{"text_format":"1","workbook":"xlsx","n_sheets":8,"sheets":["Notes","Summary","Engagement Score Breakdown","Engagement Score","Advocacy","Involvement","Motivation","BS"],"not_rendered":{"charts":0,"images":0,"macros":1,"external_links":1,"defined_names":19,"comments":0,"pivot_tables":0},"unopened":[],"bounds":{"document_bytes":16777216,"sheet_cells":100000,"rows_first":2000,"rows_last":500,"rows_between":2000,"halvings":0,"cell_chars":16384,"cell_head_chars":4096},"cells_cut":0,"cells_raw":0,"read":"whole","date_system":"1900"}

{"sheet":"Notes","index":0,"n_rows":3,"n_cols":1,"rows_kept":3,"cut":false,"hidden":false,"merged":[]}
[]
["National Quarterly Pulse Survey Data - Q4 2021-22"]
[": "]

{"sheet":"Summary","index":1,"n_rows":36,"n_cols":6,"rows_kept":36,"cut":false,"hidden":false,"merged":[[5,1,5,3],[7,2,7,5]]}
[]
[]
[]
[null,"National level headline figures for Quarter 4"]
[]
[null,"194 NHS service providers submitted to Q4 2021-22"]
[]
[null,null,"Quarter 4"]
[null,null,"Response count","Head Count","Score","Proportion"]
[null,"Engagement",119669,1128001,6.5018315398138169]
[null,"Acute and Acute & Community Trusts",78451,827952,6.4281885676286032,0.65556660455088622]
[null,"Acute Specialist Trusts",1320,18817,7.0196824869941761,1.1030425590587371E-2]
[null,"Ambulance Trusts",4363,48293,5.6390188734203495,3.6458899130100531E-2]
[null,"Community Trusts",5537,36159,7.0348621383763987,4.6269292799304751E-2]
[null,"Mental Health & Learning Disability and Mental Health, Learning Disability & Community Trusts",29998,196780,6.8530005621284831,0.25067477792912118]
[]
[null,"Motivation",120272,1128001,6.6469613320917036]
[null,"Acute and Acute & Community Trusts",78782,827952,6.5090063376088754,0.65503192763070373]
[null,"Acute Specialist Trusts",1352,18817,6.8537722050493786,1.1241186643607822E-2]
[null,"Ambulance Trusts",4389,48293,5.9794119605115847,3.6492284155913261E-2]
[null,"Community Trusts",5546,36159,7.0525770358712379,4.6112145802846879E-2]
[null,"Mental Health & Learning Disability and Mental Health, Learning Disability & Community Trusts",30203,196780,6.9407846347296687,0.25112245576692832]
[]
[null,"Advocacy",124466,1128001,6.5593482021864071]
[null,"Acute and Acute & Community Trusts",83154,827952,6.534481705570621,0.6680860636639725]
[null,"Acute Specialist Trusts",1321,18817,7.5264860139860144,1.0613340189288641E-2]
[null,"Ambulance Trusts",4371,48293,5.8950218829276766,3.5118024199379753E-2]
[null,"Community Trusts",5563,36159,7.2495906208725165,4.4694936769880934E-2]
[null,"Mental Health & Learning Disability and Mental Health, Learning Disability & Community Trusts",30057,196780,6.8588295710829756,0.24148763517747818]
[]
[null,"Involvement",126639,1128001,6.2991850851633382]
[null,"Acute and Acute & Community Trusts",85158,827952,6.2410776597063125,0.67244687655461588]
[null,"Acute Specialist Trusts",1338,18817,6.6787892419471371,1.0565465614857982E-2]
[null,"Ambulance Trusts",4369,48293,5.0426227768217888,3.4499640710997405E-2]
[null,"Community Trusts",5577,36159,6.8024187583854436,4.4038566318432712E-2]
[null,"Mental Health & Learning Disability and Mental Health, Learning Disability & Community Trusts",30197,196780,6.7593874805727969,0.23844945080109603]

{"sheet":"Engagement Score Breakdown","index":2,"n_rows":203,"n_cols":13,"rows_kept":203,"cut":false,"hidden":false,"merged":[[6,5,7,5],[6,0,7,0],[6,1,7,1],[6,2,7,2],[6,3,7,3],[6,4,7,4],[6,12,7,12],[6,6,7,6],[6,7,7,7],[6,8,7,8],[6,9,7,9],[6,10,7,10],[6,11,7,11]]}
[]
[]
[]
[]
[]
[]
["Region Code","Region Name","ICB Code","ICB Name","Org Code","Org Name","Care Setting","Total Responses (Average Across Theme)","HSCIC Workforce Headcount","Engagement Score","Advocacy","Involvement","Motivation"]
[]
[null,null,null,null,null,null,"England",119669,1128001,6.5018315398138169,6.5593482021864071,6.2991850851633382,6.6469613320917036]
["Y56","LONDON COMMISSIONING REGION","QMF","East London Health & Care Partnership (STP)","R1H","BARTS HEALTH NHS TRUST","Acute and Acute & Community Trusts",376,15760,6.2551713947990537,6.3364361702127656,6.1192375886524824,6.3098404255319149]
["Y56","LONDON COMMISSIONING REGION","QMJ","North London Partners in Health & Care (STP)","RAL","ROYAL FREE LONDON NHS FOUNDATION TRUST","Acute and Acute & Community Trusts",110,9812,6.1388888888888893,6.2196969696969697,5.8106060606060606,6.3863636363636367]
["Y56","LONDON COMMISSIONING REGION","QRV","North West London Health & Care Partnership (STP)","RAS","THE HILLINGDON HOSPITALS NHS FOUNDATION TRUST","Acute and Acute & Community Trusts",21,3164,6.2962962962962967,5.3968253968253963,6.666666666666667,6.825396825396826]
["Y56","LONDON COMMISSIONING REGION","QMF","East London Health & Care Partnership (STP)","RAT","NORTH EAST LONDON NHS FOUNDATION TRUST","Mental Health & Learning Disability and Mental Health, Learning Disability & Community Trusts",1020,5887,6.8001089324618738,6.7630718954248366,6.6879084967320264,6.9493464052287575]
["Y56","LONDON COMMISSIONING REGION","QWE","South West London Health & Care Partnership (STP)","RAX","KINGSTON HOSPITAL NHS FOUNDATION TRUST","Acute and Acute & Community Trusts",56,3244,6.1160714285714279,6.6220238095238093,5.4464285714285712,6.2797619047619051]
["Y56","LONDON COMMISSIONING REGION","QMF","East London Health & Care Partnership (STP)","RF4","BARKING, HAVERING AND REDBRIDGE UNIVERSITY HOSPITALS NHS TRUST","Acute and Acute & Community Trusts",420,6783,6.060185185185186,5.7103174603174605,5.9186507936507944,6.5515873015873014]
["Y56","LONDON COMMISSIONING REGION","QKK","Our Healthier South East London STP","RJ1","GUY'S AND ST THOMAS' NHS FOUNDATION TRUST","Acute and Acute & Community Trusts",263,20397,6.8002397920628708,7.6026119402985071,6.3659147869674184,6.4321926489226868]
["Y56","LONDON COMMISSIONING REGION","QKK","Our Healthier South East London STP","RJ2","LEWISHAM AND GREENWICH NHS TRUST","Acute and Acute & Community Trusts",470,6157,5.9633569739952721,5.8297872340425529,5.8404255319148932,6.2198581560283692]
["Y56","LONDON COMMISSIONING REGION","QWE","South West London Health & Care Partnership (STP)","RJ7","ST GEORGE'S UNIVERSITY HOSPITALS NHS FOUNDATION TRUST","Acute and Acute & Community Trusts",312,8764,6.3060897435897436,6.3327991452991448,6.0069444444444446,6.5785256410256414]
["Y56","LONDON COMMISSIONING REGION","QKK","Our Healthier South East London STP","RJZ","KING'S COLLEGE HOSPITAL NHS FOUNDATION TRUST","Acute and Acute & Community Trusts",100,12410,6.613888888888888,6.9166666666666661,6.3083333333333336,6.6166666666666663]
["Y56","LONDON COMMISSIONING REGION","QMJ","North London Partners in Health & Care (STP)","RKE","WHITTINGTON HEALTH NHS TRUST","Acute and Acute & Community Trusts",286,4003,6.3801476301476301,6.2907925407925411,6.1858974358974361,6.6637529137529139]
["Y56","LONDON COMMISSIONING REGION","QRV","North West London Health & Care Partnership (STP)","RKL","WEST LONDON NHS TRUST","Mental Health & Learning Disability and Mental Health, Learning Disability & Community Trusts",30,3793,5.6203703703703702,5.2222222222222223,5.3888888888888884,6.25]
["Y56","LONDON COMMISSIONING REGION","QMJ","North London Partners in Health & Care (STP)","RP4","GREAT ORMOND STREET HOSPITAL FOR CHILDREN NHS FOUNDATION TRUST","Acute Specialist Trusts",129,5112,7.0495759623666601,7.5384615384615383,6.8346253229974154,6.7756410256410255]
["Y56","LONDON COMMISSIONING REGION","QMJ","North London Partners in Health & Care (STP)","RP6","MOORFIELDS EYE HOSPITAL NHS FOUNDATION TRUST","Acute Specialist Trusts",14,2082,5.7341269841269842,6.4880952380952381,4.9404761904761907,5.7738095238095237]
["Y56","LONDON COMMISSIONING REGION","QKK","Our Healthier South East London STP","RPG","OXLEAS NHS FOUNDATION TRUST","Mental Health & Learning Disability and Mental Health, Learning Disability & Community Trusts",359,3475,6.4871556793562375,6.4090064995357476,6.4415041782729805,6.6109563602599817]
["Y56","LONDON COMMISSIONING REGION","QRV","North West London Health & Care Partnership (STP)","RQM","CHELSEA AND WESTMINSTER HOSPITAL NHS FOUNDATION TRUST","Acute and Acute & Community Trusts",18,5899,6.3734567901234565,6.7592592592592595,6.6203703703703702,5.7407407407407405]
["Y56","LONDON COMMISSIONING REGION","QMF","East London Health & Care Partnership (STP)","RQX","HOMERTON UNIVERSITY HOSPITAL NHS FOUNDATION TRUST","Acute and Acute & Community Trusts",866,3550,7.0634889647940211,7.3993925588458618,6.7953083617101786,6.9957659738260194]
["Y56","LONDON COMMISSIONING REGION","QWE","South West London Health & Care Partnership (STP)","RQY","SOUTH WEST LONDON AND ST GEORGE'S MENTAL HEALTH NHS TRUST","Mental Health & Learning Disability and Mental Health, Learning Disability & Community Trusts",50,2320,6.2277777777777779,5.8833333333333337,6.0333333333333341,6.7666666666666666]
["Y56","LONDON COMMISSIONING REGION","QMJ","North London Partners in Health & Care (STP)","RRP","BARNET, ENFIELD AND HARINGEY MENTAL HEALTH NHS TRUST","Mental Health & Learning Disability and Mental Health, Learning Disability & Community Trusts",218,3066,6.2933231396534142,5.8639143730886847,6.4793577981651378,6.5366972477064218]
["Y56","LONDON COMMISSIONING REGION","QKK","Our Healthier South East London STP","RRU","LONDON AMBULANCE SERVICE NHS TRUST","Ambulance Trusts",41,6227,5.7994579945799458,6.1178861788617889,5.1829268292682924,6.0975609756097562]
["Y56","LONDON COMMISSIONING REGION","QMJ","North London Partners in Health & Care (STP)","RRV","UNIVERSITY COLLEGE LONDON HOSPITALS NHS FOUNDATION TRUST","Acute and Acute & Community Trusts",663,9370,6.8246187363834423,7.3579688285570635,6.5196078431372548,6.5962795374560077]
["Y56","LONDON COMMISSIONING REGION","QMJ","North London Partners in Health & Care (STP)","RV3","CENTRAL AND NORTH WEST LONDON NHS FOUNDATION TRUST","Mental Health & Learning Disability and Mental Health, Learning Disability & Community Trusts",37,6889,5.6906906906906904,5.6756756756756754,5.4954954954954953,5.9009009009009015]
["Y56","LONDON COMMISSIONING REGION","QKK","Our Healthier South East London STP","RV5","SOUTH LONDON AND MAUDSLEY NHS FOUNDATION TRUST","Mental Health & Learning Disability and Mental Health, Learning Disability & Community Trusts",111,5026,6.3013013013013008,5.9159159159159156,6.501501501501501,6.4864864864864868]
["Y56","LONDON COMMISSIONING REGION","QWE","South West London Health & Care Partnership (STP)","RVR","EPSOM AND ST HELIER UNIVERSITY HOSPITALS NHS TRUST","Acute and Acute & Community Trusts",204,6045,5.9803921568627452,5.7557189542483664,5.8946078431372548,6.2908496732026142]
["Y56","LONDON COMMISSIONING REGION","QMF","East London Health & Care Partnership (STP)","RWK","EAST LONDON NHS FOUNDATION TRUST","Mental Health & Learning Disability and Mental Health, Learning Disability & Community Trusts",1418,5851,7.1725375267494043,7.4112599905970846,6.9641614474599862,7.1421911421911428]
["Y56","LONDON COMMISSIONING REGION","QWE","South West London Health & Care Partnership (STP)","RY9","HOUNSLOW AND RICHMOND COMMUNITY HEALTHCARE NHS TRUST","Community Trusts",180,1045,6.9290123456790127,7.1435185185185182,6.791666666666667,6.8518518518518512]
["Y56","LONDON COMMISSIONING REGION","QRV","North West London Health & Care Partnership (STP)","RYJ","IMPERIAL COLLEGE HEALTHCARE NHS TRUST","Acute and Acute & Community Trusts",80,12149,6.3784722222222214,6.520833333333333,6,6.614583333333333]
["Y56","LONDON COMMISSIONING REGION","QRV","North West London Health & Care Partnership (STP)","RYX","CENTRAL LONDON COMMUNITY HEALTHCARE NHS TRUST","Community Trusts",154,4006,6.3997113997113999,6.1309523809523805,6.2824675324675328,6.7857142857142856]
["Y58","SOUTH WEST COMMISSIONING REGION","QVV","Dorset STP","R0D","UNIVERSITY HOSPITALS DORSET NHS FOUNDATION TRUST","Acute and Acute & Community Trusts",172,8004,6.0836563307493536,6.1240310077519373,6.0562015503875974,6.0707364341085279]
["Y58","SOUTH WEST COMMISSIONING REGION","QSL","Somerset STP","RA4","YEOVIL DISTRICT HOSPITAL NHS FOUNDATION TRUST","Acute and Acute & Community Trusts",0,2315,0,7.0725646123260439,6.6699801192842942,"-"]
["Y58","SOUTH WEST COMMISSIONING REGION","QUY","Bristol, North Somerset and South Gloucestershire STP","RA7","UNIVERSITY HOSPITALS BRISTOL AND WESTON NHS FOUNDATION TRUST","Acute and Acute & Community Trusts",2536,10096,6.8761266953109015,7.2530390275111971,6.5525886924909109,6.8227523659305991]
["Y58","SOUTH WEST COMMISSIONING REGION","QJK","Devon STP","RA9","TORBAY AND SOUTH DEVON NHS FOUNDATION TRUST","Acute and Acute & Community Trusts",140,5683,5.7817181885973836,5.4474272930648766,5.8154761904761898,6.0822510822510818]
["Y58","SOUTH WEST COMMISSIONING REGION","QVV","Dorset STP","RBD","DORSET COUNTY HOSPITAL NHS FOUNDATION TRUST","Acute and Acute & Community Trusts",464,2765,6.7804118773946369,6.8552442528735638,6.6038074712643677,6.8821839080459775]
["Y58","SOUTH WEST COMMISSIONING REGION","QJK","Devon STP","RBZ","NORTHERN DEVON HEALTHCARE NHS TRUST","Acute and Acute & Community Trusts",531,2963,6.932788909556769,7.0841180163214057,6.7007434944237918,7.0135052179251076]
["Y58","SOUTH WEST COMMISSIONING REGION","QOX","Bath and North East Somerset, Swindon and Wiltshire STP","RD1","ROYAL UNITED HOSPITALS BATH NHS FOUNDATION TRUST","Acute and Acute & Community Trusts",256,5074,6.9911024305555562,7.122395833333333,6.940104166666667,6.910807291666667]
["Y58","SOUTH WEST COMMISSIONING REGION","QVV","Dorset STP","RDY","DORSET HEALTHCARE UNIVERSITY NHS FOUNDATION TRUST","Mental Health & Learning Disability and Mental Health, Learning Disability & Community Trusts",1148,5189,6.9120209059233444,6.9301684088269448,6.6499709639953544,7.1559233449477349]
["Y58","SOUTH WEST COMMISSIONING REGION","QT6","Cornwall and the Isles of Scilly Health & Social Care Partnership (STP)","REF","ROYAL CORNWALL HOSPITALS NHS TRUST","Acute and Acute & Community Trusts",681,5957,6.4682140671553769,6.427174975562072,6.5114858260019544,6.4659813999021045]
["Y58","SOUTH WEST COMMISSIONING REGION","QSL","Somerset STP","RH5","SOMERSET NHS FOUNDATION TRUST","Acute and Acute & Community Trusts",946,8202,6.8510688278130152,7.0366455250176188,6.666666666666667,6.8498942917547572]
["Y58","SOUTH WEST COMMISSIONING REGION","QJK","Devon STP","RH8","ROYAL DEVON AND EXETER NHS FOUNDATION TRUST","Acute and Acute & Community Trusts",1181,7581,6.8881134503549957,7.1789443974033311,6.5617961711711716,6.9235997824904842]
["Y58","SOUTH WEST COMMISSIONING REGION","QT6","Cornwall and the Isles of Scilly Health & Social Care Partnership (STP)","RJ8","CORNWALL PARTNERSHIP NHS FOUNDATION TRUST","Mental Health & Learning Disability and Mental Health, Learning Disability & Community Trusts",11,3370,5.0505050505050502,4.9242424242424239,4.6212121212121211,5.6060606060606055]
["Y58","SOUTH WEST COMMISSIONING REGION","QJK","Devon STP","RK9","UNIVERSITY HOSPITALS PLYMOUTH NHS TRUST","Acute and Acute & Community Trusts",167,8017,6.5197546084301976,6.6916167664670656,6.2107843137254894,6.6568627450980395]
["Y58","SOUTH WEST COMMISSIONING REGION","QOX","Bath and North East Somerset, Swindon and Wiltshire STP","RN3","GREAT WESTERN HOSPITALS NHS FOUNDATION TRUST","Acute and Acute & Community Trusts",1663,4570,6.6689183533025576,6.7643816396071355,6.3410693301997654,6.9013040901007709]
["Y58","SOUTH WEST COMMISSIONING REGION","QOX","Bath and North East Somerset, Swindon and Wiltshire STP","RNZ","SALISBURY NHS FOUNDATION TRUST","Acute and Acute & Community Trusts",99,3371,6.1054994388327719,6.3468013468013469,5.8754208754208754,6.0942760942760943]
["Y58","SOUTH WEST COMMISSIONING REGION","QR1","Gloucestershire STP","RTE","GLOUCESTERSHIRE HOSPITALS NHS FOUNDATION TRUST","Acute and Acute & Community Trusts",98,7155,6.2492842254747023,6.1952861952861955,6.037414965986394,6.5151515151515156]
["Y58","SOUTH WEST COMMISSIONING REGION","QR1","Gloucestershire STP","RTQ","GLOUCESTERSHIRE HEALTH AND CARE NHS FOUNDATION TRUST","Mental Health & Learning Disability and Mental Health, Learning Disability & Community Trusts",171,3774,6.8518518518518512,6.8908382066276799,6.9395711500974659,6.7251461988304095]
["Y58","SOUTH WEST COMMISSIONING REGION","QUY","Bristol, North Somerset and South Gloucestershire STP","RVJ","NORTH BRISTOL NHS TRUST","Acute and Acute & Community Trusts",175,8058,6.4554022366522368,6.7471590909090908,6.4095238095238098,6.2095238095238097]
["Y58","SOUTH WEST COMMISSIONING REGION","QJK","Devon STP","RWV","DEVON PARTNERSHIP NHS TRUST","Mental Health & Learning Disability and Mental Health, Learning Disability & Community Trusts",151,3068,6.6942604856512142,6.4955849889624728,6.8432671081677698,6.7439293598234]
["Y58","SOUTH WEST COMMISSIONING REGION","QJK","Devon STP","RYF","SOUTH WESTERN AMBULANCE SERVICE NHS FOUNDATION TRUST","Ambulance Trusts",520,4390,5.8461368306553725,6.0252719129878436,5.3044871794871797,6.2086513994910941]
["Y59","SOUTH EAST COMMISSIONING REGION","QRL","Hampshire and the Isle of Wight STP","R1C","SOLENT NHS TRUST","Mental Health & Learning Disability and Mental Health, Learning Disability & Community Trusts",251,3306,7.2886232846392218,7.6095617529880482,7.1148738379814072,7.1414342629482075]
["Y59","SOUTH EAST COMMISSIONING REGION","QRL","Hampshire and the Isle of Wight STP","R1F","ISLE OF WIGHT NHS TRUST","Acute and Acute & Community Trusts",344,3082,7.0970000448088895,6.8352601156069364,7.0930232558139537,7.3627167630057802]
["Y59","SOUTH EAST COMMISSIONING REGION","QXU","Surrey Heartlands Health & Care Partnership (STP)","RA2","ROYAL SURREY COUNTY HOSPITAL NHS FOUNDATION TRUST","Acute and Acute & Community Trusts",52,4289,7.0566239316239319,7.5160256410256405,6.7147435897435903,6.9391025641025639]
["Y59","SOUTH EAST COMMISSIONING REGION","QNX","Sussex Health and Care Partnership STP","RDR","SUSSEX COMMUNITY NHS FOUNDATION TRUST","Community Trusts",62,4364,7.2177419354838719,7.459677419354839,7.163978494623656,7.029569892473118]
["Y59","SOUTH EAST COMMISSIONING REGION","QNQ","Frimley Health & Care (STP)","RDU","FRIMLEY HEALTH NHS FOUNDATION TRUST","Acute and Acute & Community Trusts",155,8996,5.78494623655914,6.0591397849462361,5.424731182795699,5.870967741935484]
["Y59","SOUTH EAST COMMISSIONING REGION","QRL","Hampshire and the Isle of Wight STP","RHM","UNIVERSITY HOSPITAL SOUTHAMPTON NHS FOUNDATION TRUST","Acute and Acute & Community Trusts",3359,11005,7.1754316338592323,7.7359333134861563,6.8720484061393154,6.9183131819522261]
["Y59","SOUTH EAST COMMISSIONING REGION","QRL","Hampshire and the Isle of Wight STP","RHU","PORTSMOUTH HOSPITALS UNIVERSITY NATIONAL HEALTH SERVICE TRUST","Acute and Acute & Community Trusts",1077,7090,6.4164861240070152,6.6241101826060049,6.1838440111420612,6.4415041782729805]
["Y59","SOUTH EAST COMMISSIONING REGION","QU9","Buckinghamshire, Oxfordshire and Berkshire West STP","RHW","ROYAL BERKSHIRE NHS FOUNDATION TRUST","Acute and Acute & Community Trusts",97,5537,6.9014891179839628,7.1821305841924392,6.5463917525773194,6.9759450171821298]
["Y59","SOUTH EAST COMMISSIONING REGION","QRL","Hampshire and the Isle of Wight STP","RN5","HAMPSHIRE HOSPITALS NHS FOUNDATION TRUST","Acute and Acute & Community Trusts",293,6428,6.0096700796359492,5.8048919226393627,5.78782707622298,6.4362912400455059]
["Y59","SOUTH EAST COMMISSIONING REGION","QKS","Kent and Medway STP","RN7","DARTFORD AND GRAVESHAM NHS TRUST","Acute and Acute & Community Trusts",620,3401,6.8203405017921144,7.0215053763440851,6.5053763440860219,6.934139784946237]
["Y59","SOUTH EAST COMMISSIONING REGION","QU9","Buckinghamshire, Oxfordshire and Berkshire West STP","RNU","OXFORD HEALTH NHS FOUNDATION TRUST","Mental Health & Learning Disability and Mental Health, Learning Disability & Community Trusts",1100,5265,6.8681818181818182,6.8469696969696976,6.7295454545454545,7.0280303030303024]
["Y59","SOUTH EAST COMMISSIONING REGION","QKS","Kent and Medway STP","RPA","MEDWAY NHS FOUNDATION TRUST","Acute and Acute & Community Trusts",312,4106,5.941951566951567,5.6623931623931627,5.7852564102564106,6.3782051282051286]
["Y59","SOUTH EAST COMMISSIONING REGION","QNX","Sussex Health and Care Partnership STP","RPC","QUEEN VICTORIA HOSPITAL NHS FOUNDATION TRUST","Acute Specialist Trusts",145,902,7.4923371647509578,8.1724137931034484,7.2126436781609193,7.0919540229885056]
["Y59","SOUTH EAST COMMISSIONING REGION","QU9","Buckinghamshire, Oxfordshire and Berkshire West STP","RTH","OXFORD UNIVERSITY HOSPITALS NHS FOUNDATION TRUST","Acute and Acute & Community Trusts",2814,12111,6.9743351620933618,7.3708836768538264,6.5724101479915431,6.9797116614347168]
["Y59","SOUTH EAST COMMISSIONING REGION","QKS","Kent and Medway STP","RVV","EAST KENT HOSPITALS UNIVERSITY NHS FOUNDATION TRUST","Acute and Acute & Community Trusts",2916,9248,6.3623987227917622,6.193415637860082,6.1954432383536862,6.6983372921615203]
["Y59","SOUTH EAST COMMISSIONING REGION","QRL","Hampshire and the Isle of Wight STP","RW1","SOUTHERN HEALTH NHS FOUNDATION TRUST","Mental Health & Learning Disability and Mental Health, Learning Disability & Community Trusts",440,5369,6.7960858585858581,6.9053030303030303,6.8219696969696964,6.6609848484848486]
["Y59","SOUTH EAST COMMISSIONING REGION","QNQ","Frimley Health & Care (STP)","RWX","BERKSHIRE HEALTHCARE NHS FOUNDATION TRUST","Mental Health & Learning Disability and Mental Health, Learning Disability & Community Trusts",1479,3880,7.3709711846682344,7.6245210727969344,7.2350771294433267,7.2533153517644413]
["Y59","SOUTH EAST COMMISSIONING REGION","QNX","Sussex Health and Care Partnership STP","RX2","SUSSEX PARTNERSHIP NHS FOUNDATION TRUST","Mental Health & Learning Disability and Mental Health, Learning Disability & Community Trusts",145,4598,6.5114942528735638,6.1781609195402298,6.6091954022988508,6.7471264367816097]
["Y59","SOUTH EAST COMMISSIONING REGION","QNX","Sussex Health and Care Partnership STP","RXC","EAST SUSSEX HEALTHCARE NHS TRUST","Acute and Acute & Community Trusts",119,6714,5.8216619981325861,5.8683473389355747,5.6022408963585431,5.9943977591036415]
["Y59","SOUTH EAST COMMISSIONING REGION","QU9","Buckinghamshire, Oxfordshire and Berkshire West STP","RXQ","BUCKINGHAMSHIRE HEALTHCARE NHS TRUST","Acute and Acute & Community Trusts",607,5385,6.7440051253889806,6.6913783635365185,6.5719384953322351,6.9686985172981881]
["Y59","SOUTH EAST COMMISSIONING REGION","QKS","Kent and Medway STP","RXY","KENT AND MEDWAY NHS AND SOCIAL CARE PARTNERSHIP TRUST","Mental Health & Learning Disability and Mental Health, Learning Disability & Community Trusts",272,3123,6.6390931372549025,6.4307598039215685,6.6819852941176467,6.8045343137254903]
["Y59","SOUTH EAST COMMISSIONING REGION","QNX","Sussex Health and Care Partnership STP","RYD","SOUTH EAST COAST AMBULANCE SERVICE NHS FOUNDATION TRUST","Ambulance Trusts",318,3879,5.1292802236198458,5.1598532494758906,4.6121593291404617,5.615828092243186]
["Y59","SOUTH EAST COMMISSIONING REGION","QU9","Buckinghamshire, Oxfordshire and Berkshire West STP","RYE","SOUTH CENTRAL AMBULANCE SERVICE NHS FOUNDATION TRUST","Ambulance Trusts",143,4160,5.9168609168609168,6.2820512820512819,5.3613053613053614,6.1072261072261078]
["Y59","SOUTH EAST COMMISSIONING REGION","QNX","Sussex Health and Care Partnership STP","RYR","UNIVERSITY HOSPITALS SUSSEX NHS FOUNDATION TRUST","Acute and Acute & Community Trusts",326,14064,5.854635310156783,5.8231083844580773,5.8461145194274025,5.8946830265848673]
["Y59","SOUTH EAST COMMISSIONING REGION","QKS","Kent and Medway STP","RYY","KENT COMMUNITY HEALTH NHS FOUNDATION TRUST","Community Trusts",324,4189,6.7952674897119349,7.019032921810699,6.6820987654320989,6.6846707818930042]
["Y60","MIDLANDS COMMISSIONING REGION","QGH","Herefordshire and Worcestershire STP","R1A","HEREFORDSHIRE AND WORCESTERSHIRE HEALTH AND CARE NHS TRUST","Mental Health & Learning Disability and Mental Health, Learning Disability & Community Trusts",282,3596,6.7092212504211597,6.6696217494089831,6.4988221436984688,6.9592198581560281]
["Y60","MIDLANDS COMMISSIONING REGION","QOC","Shropshire and Telford and Wrekin STP","R1D","SHROPSHIRE COMMUNITY HEALTH NHS TRUST","Community Trusts",21,1244,6.8518518518518521,6.2698412698412698,7.0634920634920642,7.2222222222222214]
["Y60","MIDLANDS COMMISSIONING REGION","QUA","The Black Country and West Birmingham STP","RBK","WALSALL HEALTHCARE NHS TRUST","Acute and Acute & Community Trusts",1015,3772,6.2364532019704439,6.0229885057471257,6.2512315270935961,6.4351395730706082]
["Y60","MIDLANDS COMMISSIONING REGION","QJ2","Joined Up Care Derbyshire STP","RFS","CHESTERFIELD ROYAL HOSPITAL NHS FOUNDATION TRUST","Acute and Acute & Community Trusts",79,3351,6.5682137834036567,6.561181434599157,6.4451476793248945,6.6983122362869194]
["Y60","MIDLANDS COMMISSIONING REGION","QT1","Nottingham and Nottinghamshire Health and Care STP","RHA","NOTTINGHAMSHIRE HEALTHCARE NHS FOUNDATION TRUST","Mental Health & Learning Disability and Mental Health, Learning Disability & Community Trusts",254,7917,6.2159678685136397,6.2613488975356679,6.3123359580052494,6.07421875]
["Y60","MIDLANDS COMMISSIONING REGION","QWU","Coventry and Warwickshire STP","RJC","SOUTH WARWICKSHIRE NHS FOUNDATION TRUST","Acute and Acute & Community Trusts",255,4288,6.7734204793028319,6.9934640522875817,6.4836601307189543,6.8431372549019605]
["Y60","MIDLANDS COMMISSIONING REGION","QNC","Staffordshire & Stoke on Trent STP","RJE","UNIVERSITY HOSPITALS OF NORTH MIDLANDS NHS TRUST","Acute and Acute & Community Trusts",81,9689,5.7818930041152257,5.833333333333333,5.3600823045267489,6.1522633744855968]
["Y60","MIDLANDS COMMISSIONING REGION","QT1","Nottingham and Nottinghamshire Health and Care STP","RK5","SHERWOOD FOREST HOSPITALS NHS FOUNDATION TRUST","Acute and Acute & Community Trusts",1158,4630,7.1349069276530415,7.7094127806563035,6.7832469775474955,6.9120610247553254]
["Y60","MIDLANDS COMMISSIONING REGION","QWU","Coventry and Warwickshire STP","RKB","UNIVERSITY HOSPITALS COVENTRY AND WARWICKSHIRE NHS TRUST","Acute and Acute & Community Trusts",131,8012,6.0771840542832907,6.1513994910941481,5.8715012722646307,6.2086513994910941]
["Y60","MIDLANDS COMMISSIONING REGION","QUA","The Black Country and West Birmingham STP","RL4","THE ROYAL WOLVERHAMPTON NHS TRUST","Acute and Acute & Community Trusts",150,8719,6.9981481481481476,7.333333333333333,6.583333333333333,7.0777777777777784]
["Y60","MIDLANDS COMMISSIONING REGION","QWU","Coventry and Warwickshire STP","RLT","GEORGE ELIOT HOSPITAL NHS TRUST","Acute and Acute & Community Trusts",25,2321,6.2222222222222223,6.7,5.8333333333333339,6.1333333333333337]
["Y60","MIDLANDS COMMISSIONING REGION","QNC","Staffordshire & Stoke on Trent STP","RLY","NORTH STAFFORDSHIRE COMBINED HEALTHCARE NHS TRUST","Mental Health & Learning Disability and Mental Health, Learning Disability & Community Trusts",21,1479,7.1164021164021163,7.1825396825396828,7.3015873015873023,6.8650793650793647]
["Y60","MIDLANDS COMMISSIONING REGION","QUA","The Black Country and West Birmingham STP","RNA","THE DUDLEY GROUP NHS FOUNDATION TRUST","Acute and Acute & Community Trusts",882,4799,6.6978730397750015,6.7696523053665905,6.496827174318776,6.8271396396396398]
["Y60","MIDLANDS COMMISSIONING REGION","QPM","Northamptonshire STP","RNQ","KETTERING GENERAL HOSPITAL NHS FOUNDATION TRUST","Acute and Acute & Community Trusts",761,4307,6.2916085609754324,6.322820849759089,6.2943495400788434,6.257655293088364]
["Y60","MIDLANDS COMMISSIONING REGION","QPM","Northamptonshire STP","RNS","NORTHAMPTON GENERAL HOSPITAL NHS TRUST","Acute and Acute & Community Trusts",777,5039,6.346929926621443,6.5583440583440575,6.1396743787489294,6.3427713427713428]
["Y60","MIDLANDS COMMISSIONING REGION","QPM","Northamptonshire STP","RP1","NORTHAMPTONSHIRE HEALTHCARE NHS FOUNDATION TRUST","Mental Health & Learning Disability and Mental Health, Learning Disability & Community Trusts",1629,3744,7.3323462379504258,7.6222631471250253,7.0765192812436908,7.2982562854825632]
["Y60","MIDLANDS COMMISSIONING REGION","QJM","Lincolnshire STP","RP7","LINCOLNSHIRE PARTNERSHIP NHS FOUNDATION TRUST","Mental Health & Learning Disability and Mental Health, Learning Disability & Community Trusts",175,2047,6.9256764069264065,6.9791666666666661,6.7571428571428571,7.0407196969696972]
["Y60","MIDLANDS COMMISSIONING REGION","QHL","Birmingham and Solihull STP","RQ3","BIRMINGHAM WOMEN'S AND CHILDREN'S NHS FOUNDATION TRUST","Acute and Acute & Community Trusts",23,5380,5.9661835748792269,6.1594202898550723,5.2173913043478262,6.5217391304347823]
["Y60","MIDLANDS COMMISSIONING REGION","QNC","Staffordshire & Stoke on Trent STP","RRE","MIDLANDS PARTNERSHIP NHS FOUNDATION TRUST","Mental Health & Learning Disability and Mental Health, Learning Disability & Community Trusts",0,7698,0,"-","-","-"]
["Y60","MIDLANDS COMMISSIONING REGION","QHL","Birmingham and Solihull STP","RRK","UNIVERSITY HOSPITALS BIRMINGHAM NHS FOUNDATION TRUST","Acute and Acute & Community Trusts",1059,18810,5.7274962238415652,5.6352201257861632,5.6092767295597481,5.9379918161787844]
["Y60","MIDLANDS COMMISSIONING REGION","QK1","Leicester, Leicestershire and Rutland STP","RT5","LEICESTERSHIRE PARTNERSHIP NHS TRUST","Mental Health & Learning Disability and Mental Health, Learning Disability & Community Trusts",960,4741,6.3185763888888893,6.1640625,6.1953125,6.596354166666667]
["Y60","MIDLANDS COMMISSIONING REGION","QJ2","Joined Up Care Derbyshire STP","RTG","UNIVERSITY HOSPITALS OF DERBY AND BURTON NHS FOUNDATION TRUST","Acute and Acute & Community Trusts",2215,11606,6.4618331020490034,6.7857142857142856,5.996613995485327,6.6031710249474003]
["Y60","MIDLANDS COMMISSIONING REGION","QJM","Lincolnshire STP","RWD","UNITED LINCOLNSHIRE HOSPITALS NHS TRUST","Acute and Acute & Community Trusts",2651,7161,6.2778811780617003,5.9685024519049419,6.1154855643044623,6.7496555179756976]
["Y60","MIDLANDS COMMISSIONING REGION","QK1","Leicester, Leicestershire and Rutland STP","RWE","UNIVERSITY HOSPITALS OF LEICESTER NHS TRUST","Acute and Acute & Community Trusts",284,13950,6.3155320813771523,6.2529342723004691,6.07981220657277,6.613849765258216]
["Y60","MIDLANDS COMMISSIONING REGION","QGH","Herefordshire and Worcestershire STP","RWP","WORCESTERSHIRE ACUTE HOSPITALS NHS TRUST","Acute and Acute & Community Trusts",484,5680,6.337235996326906,6.18973829201102,6.2568870523415985,6.5650826446280988]
["Y60","MIDLANDS COMMISSIONING REGION","QT1","Nottingham and Nottinghamshire Health and Care STP","RX1","NOTTINGHAM UNIVERSITY HOSPITALS NHS TRUST","Acute and Acute & Community Trusts",1382,15210,6.4779305354558607,6.4845634346357928,6.4091895803183796,6.5400385914134107]
["Y60","MIDLANDS COMMISSIONING REGION","QT1","Nottingham and Nottinghamshire Health and Care STP","RX9","EAST MIDLANDS AMBULANCE SERVICE NHS TRUST","Ambulance Trusts",88,3716,5.703914141414141,5.9659090909090908,5.0094696969696964,6.1363636363636367]
["Y60","MIDLANDS COMMISSIONING REGION","QUA","The Black Country and West Birmingham STP","RXK","SANDWELL AND WEST BIRMINGHAM HOSPITALS NHS TRUST","Acute and Acute & Community Trusts",1250,6464,6.4791366674070501,6.4047987616099071,6.2406112406112406,6.7919999999999998]
["Y60","MIDLANDS COMMISSIONING REGION","QJ2","Joined Up Care Derbyshire STP","RXM","DERBYSHIRE HEALTHCARE NHS FOUNDATION TRUST","Mental Health & Learning Disability and Mental Health, Learning Disability & Community Trusts",1102,2445,7.2266667006811991,7.429556354916067,7.0355314664257751,7.2149122807017543]
["Y60","MIDLANDS COMMISSIONING REGION","QUA","The Black Country and West Birmingham STP","RXT","BIRMINGHAM AND SOLIHULL MENTAL HEALTH NHS FOUNDATION TRUST","Mental Health & Learning Disability and Mental Health, Learning Disability & Community Trusts",388,4027,6.1669530355097359,5.8934707903780064,6.2564432989690726,6.3509450171821298]
["Y60","MIDLANDS COMMISSIONING REGION","QJM","Lincolnshire STP","RY5","LINCOLNSHIRE COMMUNITY HEALTH SERVICES NHS TRUST","Community Trusts",642,1867,7.2810138546119854,7.6311007268951201,6.9103535353535346,7.3015873015873014]
["Y60","MIDLANDS COMMISSIONING REGION","QJ2","Joined Up Care Derbyshire STP","RY8","DERBYSHIRE COMMUNITY HEALTH SERVICES NHS FOUNDATION TRUST","Community Trusts",1635,3365,7.3101743929073253,7.7653123104912067,6.9557307459066102,7.2094801223241589]
["Y60","MIDLANDS COMMISSIONING REGION","QUA","The Black Country and West Birmingham STP","RYA","WEST MIDLANDS AMBULANCE SERVICE UNIVERSITY NHS FOUNDATION TRUST","Ambulance Trusts",558,6387,4.8536439665471924,5.080645161290323,3.9919354838709675,5.4883512544802864]
["Y60","MIDLANDS COMMISSIONING REGION","QWU","Coventry and Warwickshire STP","RYG","COVENTRY AND WARWICKSHIRE PARTNERSHIP NHS TRUST","Mental Health & Learning Disability and Mental Health, Learning Disability & Community Trusts",299,3505,6.982534373838722,7.0206243032329985,6.8756967670011155,7.051282051282052]
["Y60","MIDLANDS COMMISSIONING REGION","QHL","Birmingham and Solihull STP","RYW","BIRMINGHAM COMMUNITY HEALTHCARE NHS FOUNDATION TRUST","Community Trusts",526,4224,6.4110688635403461,6.2024714828897336,6.3197084917617232,6.7110266159695815]
["Y60","MIDLANDS COMMISSIONING REGION","QUA","The Black Country and West Birmingham STP","TAJ","BLACK COUNTRY HEALTHCARE NHS FOUNDATION TRUST","Mental Health & Learning Disability and Mental Health, Learning Disability & Community Trusts",606,3097,6.1913274660799429,6.0616061606160621,6.105610561056106,6.4067656765676571]
["Y61","EAST OF ENGLAND COMMISSIONING REGION","QH8","Mid and South Essex STP","R1L","ESSEX PARTNERSHIP UNIVERSITY NHS FOUNDATION TRUST","Mental Health & Learning Disability and Mental Health, Learning Disability & Community Trusts",322,4918,6.548569847466065,6.6692466460268314,6.3975155279503104,6.5789473684210522]
["Y61","EAST OF ENGLAND COMMISSIONING REGION","QH8","Mid and South Essex STP","RAJ","MID AND SOUTH ESSEX NHS FOUNDATION TRUST","Acute and Acute & Community Trusts",48,13662,5.2546296296296298,4.947916666666667,4.791666666666667,6.0243055555555562]
["Y61","EAST OF ENGLAND COMMISSIONING REGION","QH8","Mid and South Essex STP","RAJ","MID AND SOUTH ESSEX NHS FOUNDATION TRUST","Acute and Acute & Community Trusts",48,13662,5.2546296296296298,4.947916666666667,4.791666666666667,6.0243055555555562]
["Y61","EAST OF ENGLAND COMMISSIONING REGION","QHG","Bedfordshire, Luton and Milton Keynes STP","RC9","BEDFORDSHIRE HOSPITALS NHS FOUNDATION TRUST","Acute and Acute & Community Trusts",28,7136,5.0496031746031749,5.2083333333333339,5,4.9404761904761907]
["Y61","EAST OF ENGLAND COMMISSIONING REGION","QMM","Norfolk and Waveney Health & Care Partnership (STP)","RCX","THE QUEEN ELIZABETH HOSPITAL, KING'S LYNN, NHS FOUNDATION TRUST","Acute and Acute & Community Trusts",89,3273,5.9394506866416981,5.6086142322097379,5.8988764044943824,6.310861423220973]
["Y61","EAST OF ENGLAND COMMISSIONING REGION","QHG","Bedfordshire, Luton and Milton Keynes STP","RD8","MILTON KEYNES UNIVERSITY HOSPITAL NHS FOUNDATION TRUST","Acute and Acute & Community Trusts",12,3264,6.3425925925925926,6.5972222222222223,6.25,6.1805555555555562]
["Y61","EAST OF ENGLAND COMMISSIONING REGION","QJG","Suffolk and North East Essex STP","RDE","EAST SUFFOLK AND NORTH ESSEX NHS FOUNDATION TRUST","Acute and Acute & Community Trusts",32,9644,6.3715277777777777,6.510416666666667,6.380208333333333,6.223958333333333]
["Y61","EAST OF ENGLAND COMMISSIONING REGION","QUE","Cambridgeshire and Peterborough STP","RGM","ROYAL PAPWORTH HOSPITAL NHS FOUNDATION TRUST","Acute Specialist Trusts",259,1894,7.2383997112257985,8.0083655083655074,6.8620268620268616,6.8448067632850247]
["Y61","EAST OF ENGLAND COMMISSIONING REGION","QUE","Cambridgeshire and Peterborough STP","RGN","NORTH WEST ANGLIA NHS FOUNDATION TRUST","Acute and Acute & Community Trusts",261,6066,6.4502154244077339,6.4692982456140351,6.4669163545568047,6.4144316730523627]
["Y61","EAST OF ENGLAND COMMISSIONING REGION","QJG","Suffolk and North East Essex STP","RGR","WEST SUFFOLK NHS FOUNDATION TRUST","Acute and Acute & Community Trusts",1401,4097,7.0010943453794283,7.2335236735664994,6.7511221356012285,7.0186372269705597]
["Y61","EAST OF ENGLAND COMMISSIONING REGION","QUE","Cambridgeshire and Peterborough STP","RGT","CAMBRIDGE UNIVERSITY HOSPITALS NHS FOUNDATION TRUST","Acute and Acute & Community Trusts",4086,10429,3.0924130256776263,2.5033592475285533,3.6245079907051738,3.1493718387991518]
["Y61","EAST OF ENGLAND COMMISSIONING REGION","QMM","Norfolk and Waveney Health & Care Partnership (STP)","RM1","NORFOLK AND NORWICH UNIVERSITY HOSPITALS NHS FOUNDATION TRUST","Acute and Acute & Community Trusts",220,7867,5.5757575757575752,5.3560606060606055,5.4318181818181817,5.9393939393939394]
["Y61","EAST OF ENGLAND COMMISSIONING REGION","QMM","Norfolk and Waveney Health & Care Partnership (STP)","RMY","NORFOLK AND SUFFOLK NHS FOUNDATION TRUST","Mental Health & Learning Disability and Mental Health, Learning Disability & Community Trusts",1366,4168,6.3738348361457824,5.6259150805270863,6.7022946859903376,6.7932947419199232]
["Y61","EAST OF ENGLAND COMMISSIONING REGION","QM7","Hertfordshire and West Essex STP","RQW","THE PRINCESS ALEXANDRA HOSPITAL NHS TRUST","Acute and Acute & Community Trusts",190,3407,5.8874269005847948,5.3245614035087714,6.0350877192982457,6.3026315789473681]
["Y61","EAST OF ENGLAND COMMISSIONING REGION","QUE","Cambridgeshire and Peterborough STP","RT1","CAMBRIDGESHIRE AND PETERBOROUGH NHS FOUNDATION TRUST","Mental Health & Learning Disability and Mental Health, Learning Disability & Community Trusts",2778,3809,6.8995480361571069,7.0539356851451878,6.8262538996880249,6.8184545236381098]
["Y61","EAST OF ENGLAND COMMISSIONING REGION","QM7","Hertfordshire and West Essex STP","RWG","WEST HERTFORDSHIRE HOSPITALS NHS TRUST","Acute and Acute & Community Trusts",664,4738,6.1399765729585001,5.8747489959839356,6.0015060240963853,6.543674698795181]
["Y61","EAST OF ENGLAND COMMISSIONING REGION","QM7","Hertfordshire and West Essex STP","RWH","EAST AND NORTH HERTFORDSHIRE NHS TRUST","Acute and Acute & Community Trusts",180,5630,6.1481481481481479,6.0601851851851851,5.8842592592592595,6.5]
["Y61","EAST OF ENGLAND COMMISSIONING REGION","QM7","Hertfordshire and West Essex STP","RWR","HERTFORDSHIRE PARTNERSHIP UNIVERSITY NHS FOUNDATION TRUST","Mental Health & Learning Disability and Mental Health, Learning Disability & Community Trusts",853,3266,7.3949998018438619,7.7951993805652346,7.1473231731144979,7.2424768518518521]
["Y61","EAST OF ENGLAND COMMISSIONING REGION","QMM","Norfolk and Waveney Health & Care Partnership (STP)","RY3","NORFOLK COMMUNITY HEALTH AND CARE NHS TRUST","Community Trusts",398,1992,7.1957007258514798,7.3869346733668344,7.1084589614740361,7.091708542713568]
["Y61","EAST OF ENGLAND COMMISSIONING REGION","QM7","Hertfordshire and West Essex STP","RY4","HERTFORDSHIRE COMMUNITY NHS TRUST","Community Trusts",171,2090,7.155620532813515,7.2563352826510714,6.8274853801169595,7.3830409356725148]
["Y61","EAST OF ENGLAND COMMISSIONING REGION","QUE","Cambridgeshire and Peterborough STP","RYC","EAST OF ENGLAND AMBULANCE SERVICE NHS TRUST","Ambulance Trusts",305,5410,4.6803278688524594,4.7704918032786887,3.9207650273224042,5.3497267759562845]
["Y61","EAST OF ENGLAND COMMISSIONING REGION","QUE","Cambridgeshire and Peterborough STP","RYV","CAMBRIDGESHIRE COMMUNITY SERVICES NHS TRUST","Community Trusts",99,2126,7.471941638608306,7.8703703703703702,7.1380471380471375,7.4074074074074074]
["Y62","NORTH WEST COMMISSIONING REGION","QOP","Greater Manchester Health & Social Care Partnership","R0A","MANCHESTER UNIVERSITY NHS FOUNDATION TRUST","Acute and Acute & Community Trusts",2798,24928,6.4186152915419763,6.4718120018752927,6.2841530054644803,6.4998808672861568]
["Y62","NORTH WEST COMMISSIONING REGION","QYG","Cheshire and Merseyside STP","RBL","WIRRAL UNIVERSITY TEACHING HOSPITAL NHS FOUNDATION TRUST","Acute and Acute & Community Trusts",59,5550,5.6497175141242941,6.129943502824859,5.0847457627118642,5.7344632768361583]
["Y62","NORTH WEST COMMISSIONING REGION","QYG","Cheshire and Merseyside STP","RBN","ST HELENS AND KNOWSLEY TEACHING HOSPITALS NHS TRUST","Acute and Acute & Community Trusts",137,5963,6.2611516626115176,6.6362530413625302,5.6812652068126521,6.4659367396593677]
["Y62","NORTH WEST COMMISSIONING REGION","QYG","Cheshire and Merseyside STP","RBQ","LIVERPOOL HEART AND CHEST HOSPITAL NHS FOUNDATION TRUST","Acute Specialist Trusts",146,1662,6.9539573820395733,7.6312785388127855,6.512557077625571,6.7180365296803659]
["Y62","NORTH WEST COMMISSIONING REGION","QYG","Cheshire and Merseyside STP","RBS","ALDER HEY CHILDREN'S NHS FOUNDATION TRUST","Acute and Acute & Community Trusts",271,3632,7.0049200492004919,7.6107011070110699,6.4821648216482171,6.9218942189421888]
["Y62","NORTH WEST COMMISSIONING REGION","QYG","Cheshire and Merseyside STP","RBT","MID CHESHIRE HOSPITALS NHS FOUNDATION TRUST","Acute and Acute & Community Trusts",204,4300,6.9703159041394338,7.1446078431372548,6.7320261437908497,7.034313725490196]
["Y62","NORTH WEST COMMISSIONING REGION","QOP","Greater Manchester Health & Social Care Partnership","RBV","THE CHRISTIE NHS FOUNDATION TRUST","Acute Specialist Trusts",107,2962,7.0249221183800614,7.5700934579439254,6.861370716510903,6.6433021806853585]
["Y62","NORTH WEST COMMISSIONING REGION","QYG","Cheshire and Merseyside STP","REM","LIVERPOOL UNIVERSITY HOSPITALS NHS FOUNDATION TRUST","Acute and Acute & Community Trusts",2055,12104,6.4476102962516499,6.5559610705596105,6.1939102564102564,6.592959561785082]
["Y62","NORTH WEST COMMISSIONING REGION","QYG","Cheshire and Merseyside STP","REN","THE CLATTERBRIDGE CANCER CENTRE NHS FOUNDATION TRUST","Acute Specialist Trusts",228,1451,6.9931773879142298,7.394005847953216,6.8019005847953213,6.7836257309941521]
["Y62","NORTH WEST COMMISSIONING REGION","QYG","Cheshire and Merseyside STP","REP","LIVERPOOL WOMEN'S NHS FOUNDATION TRUST","Acute Specialist Trusts",186,1405,6.3913145318493365,6.3664874551971327,5.7324561403508776,7.0750000000000002]
["Y62","NORTH WEST COMMISSIONING REGION","QYG","Cheshire and Merseyside STP","RET","THE WALTON CENTRE NHS FOUNDATION TRUST","Acute Specialist Trusts",106,1347,7.216981132075472,7.7201257861635222,6.9811320754716979,6.949685534591195]
["Y62","NORTH WEST COMMISSIONING REGION","QYG","Cheshire and Merseyside STP","RJN","EAST CHESHIRE NHS TRUST","Acute and Acute & Community Trusts",122,2167,6.5915300546448092,6.4822404371584703,6.7076502732240444,6.584699453551913]
["Y62","NORTH WEST COMMISSIONING REGION","QYG","Cheshire and Merseyside STP","RJR","COUNTESS OF CHESTER HOSPITAL NHS FOUNDATION TRUST","Acute and Acute & Community Trusts",263,3819,6.1900892639961071,5.8840304182509504,6.2531565656565657,6.433080808080808]
["Y62","NORTH WEST COMMISSIONING REGION","QOP","Greater Manchester Health & Social Care Partnership","RM3","NORTHERN CARE ALLIANCE NHS FOUNDATION TRUST","Acute and Acute & Community Trusts",2263,17028,6.3613084882222379,6.5867579908675804,6.223582568138756,6.2735849056603774]
["Y62","NORTH WEST COMMISSIONING REGION","QOP","Greater Manchester Health & Social Care Partnership","RMC","BOLTON NHS FOUNDATION TRUST","Acute and Acute & Community Trusts",1089,5533,7.216865625956534,7.0003060912151822,7.3316498316498322,7.3186409550045912]
["Y62","NORTH WEST COMMISSIONING REGION","QOP","Greater Manchester Health & Social Care Partnership","RMP","TAMESIDE AND GLOSSOP INTEGRATED CARE NHS FOUNDATION TRUST","Acute and Acute & Community Trusts",78,3584,5.5484330484330497,5.1602564102564106,5.3418803418803424,6.1431623931623935]
["Y62","NORTH WEST COMMISSIONING REGION","QOP","Greater Manchester Health & Social Care Partnership","RRF","WRIGHTINGTON, WIGAN AND LEIGH NHS FOUNDATION TRUST","Acute and Acute & Community Trusts",159,5754,6.1128581411600287,6.1949685534591197,5.8805031446540879,6.2631027253668767]
["Y62","NORTH WEST COMMISSIONING REGION","QOP","Greater Manchester Health & Social Care Partnership","RT2","PENNINE CARE NHS FOUNDATION TRUST","Mental Health & Learning Disability and Mental Health, Learning Disability & Community Trusts",231,3145,6.3347763347763353,5.9379509379509381,6.5043290043290041,6.5620490620490619]
["Y62","NORTH WEST COMMISSIONING REGION","QE1","Healthier Lancashire and South Cumbria","RTX","UNIVERSITY HOSPITALS OF MORECAMBE BAY NHS FOUNDATION TRUST","Acute and Acute & Community Trusts",199,6070,5.5667225013958683,5.125628140703518,5.5862646566164154,5.9882747068676725]
["Y62","NORTH WEST COMMISSIONING REGION","QYG","Cheshire and Merseyside STP","RVY","SOUTHPORT AND ORMSKIRK HOSPITAL NHS TRUST","Acute and Acute & Community Trusts",324,2861,6.3621056620465604,6.0309017223910839,6.2575757575757578,6.7978395061728394]
["Y62","NORTH WEST COMMISSIONING REGION","QYG","Cheshire and Merseyside STP","RW4","MERSEY CARE NHS FOUNDATION TRUST","Mental Health & Learning Disability and Mental Health, Learning Disability & Community Trusts",2317,9735,6.9563469046364039,6.9835180448991192,6.7491394148020651,7.1363832542080274]
["Y62","NORTH WEST COMMISSIONING REGION","QE1","Healthier Lancashire and South Cumbria","RW5","LANCASHIRE & SOUTH CUMBRIA NHS FOUNDATION TRUST","Mental Health & Learning Disability and Mental Health, Learning Disability & Community Trusts",1058,6159,6.9112313620289614,6.9738500315059859,6.6228070175438596,7.1370370370370377]
["Y62","NORTH WEST COMMISSIONING REGION","QOP","Greater Manchester Health & Social Care Partnership","RWJ","STOCKPORT NHS FOUNDATION TRUST","Acute and Acute & Community Trusts",87,4993,5.6928480204342273,5.047892720306514,5.7950191570881229,6.235632183908046]
["Y62","NORTH WEST COMMISSIONING REGION","QYG","Cheshire and Merseyside STP","RWW","WARRINGTON AND HALTON TEACHING HOSPITALS NHS FOUNDATION TRUST","Acute and Acute & Community Trusts",51,3876,6.2854030501089326,6.1274509803921573,6.0620915032679745,6.666666666666667]
["Y62","NORTH WEST COMMISSIONING REGION","QOP","Greater Manchester Health & Social Care Partnership","RX7","NORTH WEST AMBULANCE SERVICE NHS TRUST","Ambulance Trusts",1350,6258,6.087708626276414,6.3648148148148147,5.5578105781057809,6.3405004859086489]
["Y62","NORTH WEST COMMISSIONING REGION","QYG","Cheshire and Merseyside STP","RXA","CHESHIRE AND WIRRAL PARTNERSHIP NHS FOUNDATION TRUST","Mental Health & Learning Disability and Mental Health, Learning Disability & Community Trusts",793,3383,7.0170614950727996,7.2078604455653634,6.770833333333333,7.0724907063197024]
["Y62","NORTH WEST COMMISSIONING REGION","QE1","Healthier Lancashire and South Cumbria","RXL","BLACKPOOL TEACHING HOSPITALS NHS FOUNDATION TRUST","Acute and Acute & Community Trusts",539,6870,6.5718408575551441,6.4378478664192951,6.4223871366728504,6.8552875695732842]
["Y62","NORTH WEST COMMISSIONING REGION","QE1","Healthier Lancashire and South Cumbria","RXN","LANCASHIRE TEACHING HOSPITALS NHS FOUNDATION TRUST","Acute and Acute & Community Trusts",1723,8078,6.7114621113469406,6.6632810988585804,6.6595319634703198,6.8115732717119206]
["Y62","NORTH WEST COMMISSIONING REGION","QE1","Healthier Lancashire and South Cumbria","RXR","EAST LANCASHIRE HOSPITALS NHS TRUST","Acute and Acute & Community Trusts",95,8472,6.4210526315789478,6.3859649122807012,6.2543859649122799,6.6228070175438596]
["Y62","NORTH WEST COMMISSIONING REGION","QOP","Greater Manchester Health & Social Care Partnership","RXV","GREATER MANCHESTER MENTAL HEALTH NHS FOUNDATION TRUST","Mental Health & Learning Disability and Mental Health, Learning Disability & Community Trusts",1249,5688,6.6708773502683023,6.4898585535094737,6.694269190325973,6.8285043069694593]
["Y62","NORTH WEST COMMISSIONING REGION","QYG","Cheshire and Merseyside STP","RY2","BRIDGEWATER COMMUNITY HEALTHCARE NHS FOUNDATION TRUST","Community Trusts",296,1423,6.8083708708708706,6.7764639639639634,6.5568693693693687,7.0917792792792786]
["Y62","NORTH WEST COMMISSIONING REGION","QYG","Cheshire and Merseyside STP","RY7","WIRRAL COMMUNITY HEALTH AND CARE NHS FOUNDATION TRUST","Community Trusts",137,1514,6.8552311435523121,6.8613138686131387,6.6484184914841853,7.0559610705596105]
["Y63","NORTH EAST AND YORKSHIRE COMMISSIONING REGION","QHM","Cumbria and North East STP","R0B","SOUTH TYNESIDE AND SUNDERLAND NHS FOUNDATION TRUST","Acute and Acute & Community Trusts",131,7669,5.2226463104325695,5.2417302798982188,5.2862595419847329,5.1399491094147587]
["Y63","NORTH EAST AND YORKSHIRE COMMISSIONING REGION","QWO","West Yorkshire and Harrogate Health & Care Partnership (STP)","RAE","BRADFORD TEACHING HOSPITALS NHS FOUNDATION TRUST","Acute and Acute & Community Trusts",74,5468,5.968468468468469,5.9572072072072073,6.0698198198198199,5.8783783783783781]
["Y63","NORTH EAST AND YORKSHIRE COMMISSIONING REGION","QOQ","Humber, Coast and Vale STP","RCB","YORK AND SCARBOROUGH TEACHING HOSPITALS NHS FOUNDATION TRUST","Acute and Acute & Community Trusts",142,7674,5.768779342723005,5.28169014084507,5.9741784037558689,6.050469483568075]
["Y63","NORTH EAST AND YORKSHIRE COMMISSIONING REGION","QOQ","Humber, Coast and Vale STP","RCD","HARROGATE AND DISTRICT NHS FOUNDATION TRUST","Acute and Acute & Community Trusts",932,3924,6.9553577457214688,6.869635193133047,6.8445393098541443,7.1518987341772151]
["Y63","NORTH EAST AND YORKSHIRE COMMISSIONING REGION","QWO","West Yorkshire and Harrogate Health & Care Partnership (STP)","RCF","AIREDALE NHS FOUNDATION TRUST","Acute and Acute & Community Trusts",884,2987,6.9654484109592909,7.1408371040723981,6.6862197392923655,7.0692883895131091]
["Y63","NORTH EAST AND YORKSHIRE COMMISSIONING REGION","QF7","South Yorkshire and Bassetlaw STP","RCU","SHEFFIELD CHILDREN'S NHS FOUNDATION TRUST","Acute and Acute & Community Trusts",275,3013,6.9555555555555557,7.4424242424242424,6.8606060606060613,6.5636363636363635]
["Y63","NORTH EAST AND YORKSHIRE COMMISSIONING REGION","QF7","South Yorkshire and Bassetlaw STP","RFF","BARNSLEY HOSPITAL NHS FOUNDATION TRUST","Acute and Acute & Community Trusts",61,3523,6.6757741347905286,6.5437158469945356,6.8169398907103824,6.666666666666667]
["Y63","NORTH EAST AND YORKSHIRE COMMISSIONING REGION","QF7","South Yorkshire and Bassetlaw STP","RFR","THE ROTHERHAM NHS FOUNDATION TRUST","Acute and Acute & Community Trusts",53,3997,5.5345911949685531,5.0786163522012586,5.5345911949685531,5.9905660377358494]
["Y63","NORTH EAST AND YORKSHIRE COMMISSIONING REGION","QWO","West Yorkshire and Harrogate Health & Care Partnership (STP)","RGD","LEEDS AND YORK PARTNERSHIP NHS FOUNDATION TRUST","Mental Health & Learning Disability and Mental Health, Learning Disability & Community Trusts",18,2818,6.0339506172839501,5.6018518518518512,6.4814814814814818,6.0185185185185182]
["Y63","NORTH EAST AND YORKSHIRE COMMISSIONING REGION","QF7","South Yorkshire and Bassetlaw STP","RHQ","SHEFFIELD TEACHING HOSPITALS NHS FOUNDATION TRUST","Acute and Acute & Community Trusts",953,14915,6.3786871866620034,6.6998950682056666,6.1621196222455401,6.2740468695348026]
["Y63","NORTH EAST AND YORKSHIRE COMMISSIONING REGION","QOQ","Humber, Coast and Vale STP","RJL","NORTHERN LINCOLNSHIRE AND GOOLE NHS FOUNDATION TRUST","Acute and Acute & Community Trusts",182,5527,5.5494505494505484,5,5.4624542124542126,6.1858974358974352]
["Y63","NORTH EAST AND YORKSHIRE COMMISSIONING REGION","QHM","Cumbria and North East STP","RNN","NORTH CUMBRIA INTEGRATED CARE NHS FOUNDATION TRUST","Acute and Acute & Community Trusts",504,5709,5.869157848324515,5.1653439153439153,5.9689153439153442,6.4732142857142856]
["Y63","NORTH EAST AND YORKSHIRE COMMISSIONING REGION","QF7","South Yorkshire and Bassetlaw STP","RP5","DONCASTER AND BASSETLAW TEACHING HOSPITALS NHS FOUNDATION TRUST","Acute and Acute & Community Trusts",1431,5615,7.2191264972763607,8.3391904204086948,6.45410800922612,6.8640810621942698]
["Y63","NORTH EAST AND YORKSHIRE COMMISSIONING REGION","QHM","Cumbria and North East STP","RR7","GATESHEAD HEALTH NHS FOUNDATION TRUST","Acute and Acute & Community Trusts",351,4268,6.3271604938271606,6.5859449192782522,6.0185185185185182,6.3770180436847106]
["Y63","NORTH EAST AND YORKSHIRE COMMISSIONING REGION","QWO","West Yorkshire and Harrogate Health & Care Partnership (STP)","RR8","LEEDS TEACHING HOSPITALS NHS TRUST","Acute and Acute & Community Trusts",3182,17248,6.8575843285145615,7.1349256232977156,6.6441441441441444,6.7936832181018225]
["Y63","NORTH EAST AND YORKSHIRE COMMISSIONING REGION","QHM","Cumbria and North East STP","RTD","THE NEWCASTLE UPON TYNE HOSPITALS NHS FOUNDATION TRUST","Acute and Acute & Community Trusts",180,14299,6.2854938271604937,6.8935185185185182,6,5.9629629629629628]
["Y63","NORTH EAST AND YORKSHIRE COMMISSIONING REGION","QHM","Cumbria and North East STP","RTF","NORTHUMBRIA HEALTHCARE NHS FOUNDATION TRUST","Acute and Acute & Community Trusts",4015,7033,7.1823024768230255,7.7156496471564964,6.7615193026151932,7.0697384806973851]
["Y63","NORTH EAST AND YORKSHIRE COMMISSIONING REGION","QOQ","Humber, Coast and Vale STP","RV9","HUMBER TEACHING NHS FOUNDATION TRUST","Mental Health & Learning Disability and Mental Health, Learning Disability & Community Trusts",602,2645,6.9241127756374512,6.8629873695771551,6.9284539473684212,6.9808970099667773]
["Y63","NORTH EAST AND YORKSHIRE COMMISSIONING REGION","QHM","Cumbria and North East STP","RVW","NORTH TEES AND HARTLEPOOL NHS FOUNDATION TRUST","Acute and Acute & Community Trusts",122,4661,6.1657559198542797,6.0587431693989071,6.2568306010928962,6.1816939890710376]
["Y63","NORTH EAST AND YORKSHIRE COMMISSIONING REGION","QWO","West Yorkshire and Harrogate Health & Care Partnership (STP)","RWY","CALDERDALE AND HUDDERSFIELD NHS FOUNDATION TRUST","Acute and Acute & Community Trusts",256,5590,6.2814670138888884,6.263020833333333,6.181640625,6.399739583333333]
["Y63","NORTH EAST AND YORKSHIRE COMMISSIONING REGION","QHM","Cumbria and North East STP","RX3","TEES, ESK AND WEAR VALLEYS NHS FOUNDATION TRUST","Mental Health & Learning Disability and Mental Health, Learning Disability & Community Trusts",2361,6819,6.7125246792351634,6.5417196103346038,6.7412519169106373,6.8546025104602508]
["Y63","NORTH EAST AND YORKSHIRE COMMISSIONING REGION","QHM","Cumbria and North East STP","RX4","CUMBRIA, NORTHUMBERLAND, TYNE AND WEAR NHS FOUNDATION TRUST","Mental Health & Learning Disability and Mental Health, Learning Disability & Community Trusts",104,6670,6.308760683760684,6.2419871794871788,6.386217948717948,6.2980769230769234]
["Y63","NORTH EAST AND YORKSHIRE COMMISSIONING REGION","QHM","Cumbria and North East STP","RX6","NORTH EAST AMBULANCE SERVICE NHS FOUNDATION TRUST","Ambulance Trusts",293,2645,5.184869169510808,5.1763367463026171,4.7269624573378843,5.6513083048919226]
["Y63","NORTH EAST AND YORKSHIRE COMMISSIONING REGION","QWO","West Yorkshire and Harrogate Health & Care Partnership (STP)","RX8","YORKSHIRE AMBULANCE SERVICE NHS TRUST","Ambulance Trusts",747,5221,5.9875463224559402,6.5229885057471257,5.4144385026737964,6.0252119589468984]
["Y63","NORTH EAST AND YORKSHIRE COMMISSIONING REGION","QF7","South Yorkshire and Bassetlaw STP","RXE","ROTHERHAM DONCASTER AND SOUTH HUMBER NHS FOUNDATION TRUST","Mental Health & Learning Disability and Mental Health, Learning Disability & Community Trusts",56,3009,5.4265873015873014,5.3720238095238093,5.4166666666666661,5.4910714285714288]
["Y63","NORTH EAST AND YORKSHIRE COMMISSIONING REGION","QWO","West Yorkshire and Harrogate Health & Care Partnership (STP)","RXF","MID YORKSHIRE HOSPITALS NHS TRUST","Acute and Acute & Community Trusts",2338,7662,6.5420713839644433,6.5116196179070425,6.3068101871394404,6.8077843468468471]
["Y63","NORTH EAST AND YORKSHIRE COMMISSIONING REGION","QWO","West Yorkshire and Harrogate Health & Care Partnership (STP)","RXG","SOUTH WEST YORKSHIRE PARTNERSHIP NHS FOUNDATION TRUST","Mental Health & Learning Disability and Mental Health, Learning Disability & Community Trusts",817,3996,7.0458342071969158,7.2853072853072858,6.7948717948717947,7.0573235414116686]
["Y63","NORTH EAST AND YORKSHIRE COMMISSIONING REGION","QHM","Cumbria and North East STP","RXP","COUNTY DURHAM AND DARLINGTON NHS FOUNDATION TRUST","Acute and Acute & Community Trusts",1503,6751,6.178568788349228,6.2347527167886456,5.9830339321357284,6.3179197161233089]
["Y63","NORTH EAST AND YORKSHIRE COMMISSIONING REGION","QWO","West Yorkshire and Harrogate Health & Care Partnership (STP)","RY6","LEEDS COMMUNITY HEALTHCARE NHS TRUST","Community Trusts",892,2710,6.8898692947348978,7.0390855457227133,6.7592592592592586,6.8712630792227207]
["Y63","NORTH EAST AND YORKSHIRE COMMISSIONING REGION","QWO","West Yorkshire and Harrogate Health & Care Partnership (STP)","TAD","BRADFORD DISTRICT CARE NHS FOUNDATION TRUST","Mental Health & Learning Disability and Mental Health, Learning Disability & Community Trusts",489,2811,7.0620724866227986,7.2409679618268576,6.9766260162601625,6.9686234817813766]
["Y63","NORTH EAST AND YORKSHIRE COMMISSIONING REGION","QF7","South Yorkshire and Bassetlaw STP","TAH","SHEFFIELD HEALTH & SOCIAL CARE NHS FOUNDATION TRUST","Mental Health & Learning Disability and Mental Health, Learning Disability & Community Trusts",457,2196,6.0515438852419159,5.4741064916119617,6.3803792851932899,6.300145878920496]

{"sheet":"Engagement Score","index":3,"n_rows":204,"n_cols":60,"rows_kept":204,"cut":false,"hidden":false,"merged":[[6,15,6,19],[6,0,7,0],[6,1,7,1],[6,2,7,2],[6,3,7,3],[6,4,7,4],[6,5,7,5],[6,6,7,6],[6,7,7,7],[6,8,7,8],[6,9,7,9],[6,10,6,14],[6,50,6,54],[6,55,6,57],[6,20,6,24],[6,25,6,29],[6,30,6,34],[6,35,6,39],[6,40,6,44],[6,45,6,49]]}
[]
[]
[null,null,null,null,null,null,null,null,null,null,null,null,null,null,null,null,null,null,null,null,null,null,null,"Avg Motivation:",{"$f":"AVERAGE(T4,Y4,AD4)","v":{"$error":"#N/A"}},null,null,null,null,null,null,null,null,null,null,null,null,null,"Avg Involvement:",{"$f":"AVERAGE(AI4,AN4,AS4)","v":{"$error":"#N/A"}},null,null,null,null,null,null,null,null,null,null,null,null,null,"Avg Advocacy: ",{"$f":"AVERAGE(AX4,BC4,BH4)","v":{"$error":"#N/A"}}]
[null,null,null,null,null,null,null,null,null,null,null,null,null,null,null,null,null,null,null,{"$f":"IF($H$10=0,\"-\",((K$10*0)+(L$10*2.5)+(M$10*5)+(N$10*7.5)+(O$10*10))/$BF$10)","v":{"$error":"#N/A"}},null,null,null,null,{"$f":"IF($H$10=0,\"-\",((P$10*0)+(Q$10*2.5)+(R$10*5)+(S$10*7.5)+(T$10*10))/$BF$10)","v":{"$error":"#N/A"}},null,null,null,null,{"$f":"IF($H$10=0,\"-\",((U$10*0)+(V$10*2.5)+(W$10*5)+(X$10*7.5)+(Y$10*10))/$BF$10)","v":{"$error":"#N/A"}},null,null,null,null,{"$f":"IF($H$10=0,\"-\",((Z$10*0)+(AA$10*2.5)+(AB$10*5)+(AC$10*7.5)+(AD$10*10))/$BE$10)","v":{"$error":"#N/A"}},null,null,null,null,{"$f":"IF($H$10=0,\"-\",((AE$10*0)+(AF$10*2.5)+(AG$10*5)+(AH$10*7.5)+(AI$10*10))/$BE$10)","v":{"$error":"#N/A"}},null,null,null,null,{"$f":"IF($H$10=0,\"-\",((AJ$10*0)+(AK$10*2.5)+(AL$10*5)+(AM$10*7.5)+(AN$10*10))/$BE$10)","v":{"$error":"#N/A"}},null,null,null,null,{"$f":"IF($H$10=0,\"-\",((AO$10*0)+(AP$10*2.5)+(AQ$10*5)+(AR$10*7.5)+(AS$10*10))/$BD$10)","v":{"$error":"#N/A"}},null,null,null,null,{"$f":"IF($H$10=0,\"-\",((AT$10*0)+(AU$10*2.5)+(AV$10*5)+(AW$10*7.5)+(AX$10*10))/$BD$10)","v":{"$error":"#N/A"}},null,null,null,null,{"$f":"IF($H$10=0,\"-\",((AY$10*0)+(AZ$10*2.5)+(BA$10*5)+(BB$10*7.5)+(BC$10*10))/$BD$10)","v":{"$error":"#N/A"}}]
[]
[]
["Region Code","Region Name","ICB Code","ICB Name","Org Code","Org Name","Care Setting","Total Responses (Average across Theme)","HSCIC Workforce Headcount","Engagement Score","Weighted Breakdown of Responses - Motivation Q1",null,null,null,null,"Weighted Breakdown of Responses - Motivation Q2",null,null,null,null,"Weighted Breakdown of Responses - Motivation Q3",null,null,null,null,"Weighted Breakdown of Responses - Involvement Q4",null,null,null,null,"Weighted Breakdown of Responses - Involvement Q5",null,null,null,null,"Weighted Breakdown of Responses - Involvement Q6",null,null,null,null,"Weighted Breakdown of Responses - Advocacy Q7",null,null,null,null,"Weighted Breakdown of Responses - Advocacy Q8",null,null,null,null,"Weighted Breakdown of Responses - Advocacy Q9",null,null,null,null,"Minimum headcounts"]
[null,null,null,null,null,null,null,null,null,null,"Strongly Disagree","Disagree","Neither Disagree nor Agree","Agree","Strongly Agree","Strongly Disagree","Disagree","Neither Disagree nor Agree","Agree","Strongly Agree","Strongly Disagree","Disagree","Neither Disagree nor Agree","Agree","Strongly Agree","Strongly Disagree","Disagree","Neither Disagree nor Agree","Agree","Strongly Agree","Strongly Disagree","Disagree","Neither Disagree nor Agree","Agree","Strongly Agree","Strongly Disagree","Disagree","Neither Disagree nor Agree","Agree","Strongly Agree","Strongly Disagree","Disagree","Neither Disagree nor Agree","Agree","Strongly Agree","Strongly Disagree","Disagree","Neither Disagree nor Agree","Agree","Strongly Agree","Strongly Disagree","Disagree","Neither Disagree nor Agree","Agree","Strongly Agree","Min Advocacy Headcount","Min involvement Headcount","Min motivation Headcount"]
[null,null,null,null,null,null,"England",119669,1128001,6.5018315398138169,5844,18059,39988,43183,14471,3477,11053,31193,47212,27894,3647,7732,26229,43953,38791,6725,16269,24885,56258,22744,7236,15182,23095,57307,23981,8326,19464,32258,48371,18292,6194,11672,19419,52996,35942,9791,17178,29465,46557,21569,6967,12884,26852,53894,24027,124478,126651,120284]
[null,null,null,null,null,null,"Selection (excluding suppressed data)",{"$f":"SUBTOTAL(9,H11:H1002)","v":119669},{"$f":"SUBTOTAL(9,I11:I1002)","v":1128001},6.5018315398138169,{"$f":"SUBTOTAL(9,K11:K1002)","v":5844},{"$f":"SUBTOTAL(9,L11:L1002)","v":18059},39988,43183,14471,3477,11053,31193,47212,27894,3647,7732,26229,43953,38791,6725,16269,24885,56258,22744,7236,15182,23095,57307,23981,8326,19464,32258,48371,18292,6194,11672,19419,52996,35942,9791,17178,29465,46557,21569,6967,12884,26852,53894,24027,{"$error":"#N/A"},{"$error":"#N/A"},{"$error":"#N/A"}]
["Y56","LONDON COMMISSIONING REGION","QMF","East London Health & Care Partnership (STP)","R1H","BARTS HEALTH NHS TRUST","Acute and Acute & Community Trusts",376,15760,6.2551713947990537,34,69,106,121,46,20,46,103,125,82,22,22,84,118,130,31,49,80,153,63,30,40,72,166,68,36,52,83,151,54,18,22,85,160,91,46,42,101,128,59,19,37,103,152,65,376,376,376]
["Y56","LONDON COMMISSIONING REGION","QMJ","North London Partners in Health & Care (STP)","RAL","ROYAL FREE LONDON NHS FOUNDATION TRUST","Acute and Acute & Community Trusts",110,9812,6.1388888888888893,7,22,38,33,10,5,13,30,36,26,3,5,31,30,41,9,12,22,54,13,13,12,14,57,14,14,19,31,35,11,4,10,24,45,27,16,20,31,27,16,5,11,21,52,21,110,110,110]
["Y56","LONDON COMMISSIONING REGION","QRV","North West London Health & Care Partnership (STP)","RAS","THE HILLINGDON HOSPITALS NHS FOUNDATION TRUST","Acute and Acute & Community Trusts",21,3164,6.2962962962962967,0,3,9,5,4,0,2,5,10,4,0,3,1,11,6,2,2,3,9,5,2,1,1,12,5,2,3,2,9,5,3,0,6,8,4,4,2,10,2,3,3,3,4,11,0,21,21,21]
["Y56","LONDON COMMISSIONING REGION","QMF","East London Health & Care Partnership (STP)","RAT","NORTH EAST LONDON NHS FOUNDATION TRUST","Mental Health & Learning Disability and Mental Health, Learning Disability & Community Trusts",1020,5887,6.8001089324618738,32,127,361,355,145,13,61,277,389,280,9,49,218,351,393,33,81,215,513,178,35,68,182,544,191,36,111,278,451,144,38,68,147,458,309,53,88,279,395,205,47,71,287,450,165,1020,1020,1020]
["Y56","LONDON COMMISSIONING REGION","QWE","South West London Health & Care Partnership (STP)","RAX","KINGSTON HOSPITAL NHS FOUNDATION TRUST","Acute and Acute & Community Trusts",56,3244,6.1160714285714279,4,9,22,14,7,4,5,20,15,12,1,5,15,14,21,6,9,16,22,3,9,7,7,28,5,10,5,13,21,7,4,2,10,20,20,9,5,13,19,10,3,4,10,25,14,56,56,56]
["Y56","LONDON COMMISSIONING REGION","QMF","East London Health & Care Partnership (STP)","RF4","BARKING, HAVERING AND REDBRIDGE UNIVERSITY HOSPITALS NHS TRUST","Acute and Acute & Community Trusts",420,6783,6.060185185185186,32,70,153,107,58,15,40,112,139,114,7,27,93,149,144,33,43,107,172,65,36,48,94,174,68,43,64,128,140,45,23,42,92,167,96,64,69,135,114,38,37,56,142,146,39,420,420,420]
["Y56","LONDON COMMISSIONING REGION","QKK","Our Healthier South East London STP","RJ1","GUY'S AND ST THOMAS' NHS FOUNDATION TRUST","Acute and Acute & Community Trusts",263,20397,6.8002397920628708,21,41,84,87,35,13,25,79,87,59,12,19,57,93,82,20,29,48,113,57,20,32,34,120,60,24,39,59,97,48,9,4,28,115,112,18,23,39,103,85,12,4,24,122,106,268,266,263]
["Y56","LONDON COMMISSIONING REGION","QKK","Our Healthier South East London STP","RJ2","LEWISHAM AND GREENWICH NHS TRUST","Acute and Acute & Community Trusts",470,6157,5.9633569739952721,34,102,167,115,52,22,64,140,131,113,21,38,103,146,162,38,59,105,217,51,38,55,102,214,61,48,79,127,172,44,26,41,94,191,118,71,74,134,149,42,41,66,138,185,40,470,470,470]
["Y56","LONDON COMMISSIONING REGION","QWE","South West London Health & Care Partnership (STP)","RJ7","ST GEORGE'S UNIVERSITY HOSPITALS NHS FOUNDATION TRUST","Acute and Acute & Community Trusts",312,8764,6.3060897435897436,12,58,116,92,34,10,27,89,121,65,4,16,67,117,108,21,46,57,144,44,20,35,65,141,51,31,59,69,120,33,8,38,58,132,76,25,59,81,107,40,15,32,70,137,58,312,312,312]
["Y56","LONDON COMMISSIONING REGION","QKK","Our Healthier South East London STP","RJZ","KING'S COLLEGE HOSPITAL NHS FOUNDATION TRUST","Acute and Acute & Community Trusts",100,12410,6.613888888888888,8,16,29,32,15,4,11,24,39,22,2,5,18,41,34,7,10,26,37,20,6,8,25,42,19,7,11,29,37,16,3,5,19,44,29,6,8,25,40,21,3,6,24,45,22,100,100,100]
["Y56","LONDON COMMISSIONING REGION","QMJ","North London Partners in Health & Care (STP)","RKE","WHITTINGTON HEALTH NHS TRUST","Acute and Acute & Community Trusts",286,4003,6.3801476301476301,16,53,94,89,34,7,28,75,105,71,8,13,61,85,119,23,36,54,120,53,23,29,57,119,58,23,52,59,103,49,18,21,53,110,84,36,42,69,88,51,21,29,74,107,55,286,286,286]
["Y56","LONDON COMMISSIONING REGION","QRV","North West London Health & Care Partnership (STP)","RKL","WEST LONDON NHS TRUST","Mental Health & Learning Disability and Mental Health, Learning Disability & Community Trusts",30,3793,5.6203703703703702,3,4,13,7,3,0,4,11,10,5,0,1,10,11,8,3,5,11,7,4,2,8,7,10,3,4,4,6,14,2,3,2,6,15,4,5,7,7,7,4,6,5,9,8,2,30,30,30]
["Y56","LONDON COMMISSIONING REGION","QMJ","North London Partners in Health & Care (STP)","RP4","GREAT ORMOND STREET HOSPITAL FOR CHILDREN NHS FOUNDATION TRUST","Acute Specialist Trusts",129,5112,7.0495759623666601,6,14,48,50,13,4,7,32,60,27,2,7,30,45,46,7,10,17,76,21,5,8,15,75,27,8,16,23,59,23,1,9,14,59,47,6,17,28,50,30,1,3,11,58,58,130,129,130]
["Y56","LONDON COMMISSIONING REGION","QMJ","North London Partners in Health & Care (STP)","RP6","MOORFIELDS EYE HOSPITAL NHS FOUNDATION TRUST","Acute Specialist Trusts",14,2082,5.7341269841269842,2,3,2,6,1,1,3,2,6,2,1,1,5,4,3,0,7,2,2,3,0,8,1,3,2,1,6,2,3,2,0,1,4,5,4,3,1,5,4,1,0,1,3,5,5,14,14,14]
["Y56","LONDON COMMISSIONING REGION","QKK","Our Healthier South East London STP","RPG","OXLEAS NHS FOUNDATION TRUST","Mental Health & Learning Disability and Mental Health, Learning Disability & Community Trusts",359,3475,6.4871556793562375,13,55,139,114,38,7,34,98,137,83,5,29,83,115,127,17,48,62,158,74,20,31,56,179,73,21,52,100,135,51,15,24,71,155,94,22,49,101,127,60,22,32,117,136,52,359,359,359]
["Y56","LONDON COMMISSIONING REGION","QRV","North West London Health & Care Partnership (STP)","RQM","CHELSEA AND WESTMINSTER HOSPITAL NHS FOUNDATION TRUST","Acute and Acute & Community Trusts",18,5899,6.3734567901234565,3,2,6,5,2,2,2,5,7,2,3,2,1,6,6,2,0,3,8,5,2,1,3,6,6,2,3,3,5,5,2,1,0,10,5,3,0,4,6,5,2,1,1,10,4,18,18,18]
["Y56","LONDON COMMISSIONING REGION","QMF","East London Health & Care Partnership (STP)","RQX","HOMERTON UNIVERSITY HOSPITAL NHS FOUNDATION TRUST","Acute and Acute & Community Trusts",866,3550,7.0634889647940211,42,82,291,327,145,19,46,232,332,237,17,47,179,318,308,30,61,163,422,210,42,60,164,428,189,48,82,226,371,154,16,36,83,398,346,48,70,173,363,224,22,34,146,423,255,878,881,866]
["Y56","LONDON COMMISSIONING REGION","QWE","South West London Health & Care Partnership (STP)","RQY","SOUTH WEST LONDON AND ST GEORGE'S MENTAL HEALTH NHS TRUST","Mental Health & Learning Disability and Mental Health, Learning Disability & Community Trusts",50,2320,6.2277777777777779,3,7,16,16,8,2,6,12,15,15,1,6,8,10,25,3,7,11,17,12,4,6,11,19,10,5,9,16,12,8,4,5,11,16,14,5,8,19,11,7,4,3,24,12,7,50,50,50]
["Y56","LONDON COMMISSIONING REGION","QMJ","North London Partners in Health & Care (STP)","RRP","BARNET, ENFIELD AND HARINGEY MENTAL HEALTH NHS TRUST","Mental Health & Learning Disability and Mental Health, Learning Disability & Community Trusts",218,3066,6.2933231396534142,13,28,79,77,21,9,19,67,75,48,9,11,39,86,73,12,22,46,92,46,13,20,38,97,50,14,32,47,92,33,18,20,45,73,62,29,36,48,78,27,30,21,66,74,27,218,218,218]
["Y56","LONDON COMMISSIONING REGION","QKK","Our Healthier South East London STP","RRU","LONDON AMBULANCE SERVICE NHS TRUST","Ambulance Trusts",41,6227,5.7994579945799458,2,8,13,13,5,1,7,8,16,9,2,3,18,11,7,7,5,9,12,8,6,8,12,7,8,8,9,10,6,8,6,3,6,10,16,9,7,9,6,10,4,5,5,14,13,41,41,41]
["Y56","LONDON COMMISSIONING REGION","QMJ","North London Partners in Health & Care (STP)","RRV","UNIVERSITY COLLEGE LONDON HOSPITALS NHS FOUNDATION TRUST","Acute and Acute & Community Trusts",663,9370,6.8246187363834423,32,100,226,240,65,24,58,190,246,145,21,39,123,245,235,35,76,93,312,147,34,81,91,300,157,40,116,132,270,105,19,33,82,298,231,48,57,130,245,183,17,23,84,292,247,663,663,663]
["Y56","LONDON COMMISSIONING REGION","QMJ","North London Partners in Health & Care (STP)","RV3","CENTRAL AND NORTH WEST LONDON NHS FOUNDATION TRUST","Mental Health & Learning Disability and Mental Health, Learning Disability & Community Trusts",37,6889,5.6906906906906904,3,11,10,13,0,3,2,17,10,5,0,3,9,15,10,4,5,9,15,4,4,9,4,14,6,2,12,10,7,6,4,6,2,14,11,5,6,10,11,5,1,11,11,12,2,37,37,37]
["Y56","LONDON COMMISSIONING REGION","QKK","Our Healthier South East London STP","RV5","SOUTH LONDON AND MAUDSLEY NHS FOUNDATION TRUST","Mental Health & Learning Disability and Mental Health, Learning Disability & Community Trusts",111,5026,6.3013013013013008,3,25,35,34,14,3,13,34,40,21,3,8,21,40,39,3,13,22,55,18,5,9,14,62,21,7,20,25,41,18,4,8,24,54,21,14,23,29,32,13,6,16,41,33,15,111,111,111]
["Y56","LONDON COMMISSIONING REGION","QWE","South West London Health & Care Partnership (STP)","RVR","EPSOM AND ST HELIER UNIVERSITY HOSPITALS NHS TRUST","Acute and Acute & Community Trusts",204,6045,5.9803921568627452,9,54,70,57,14,4,24,73,73,30,3,13,36,83,69,13,35,33,100,23,15,29,38,92,30,18,40,48,79,19,10,21,50,82,41,28,33,64,63,16,18,28,58,80,20,204,204,204]
["Y56","LONDON COMMISSIONING REGION","QMF","East London Health & Care Partnership (STP)","RWK","EAST LONDON NHS FOUNDATION TRUST","Mental Health & Learning Disability and Mental Health, Learning Disability & Community Trusts",1418,5851,7.1725375267494043,42,132,475,554,255,22,71,361,572,404,16,59,304,508,544,51,99,237,728,331,50,92,223,733,346,53,133,345,640,266,18,56,148,595,606,45,101,265,582,425,42,104,305,613,355,1418,1437,1430]
["Y56","LONDON COMMISSIONING REGION","QWE","South West London Health & Care Partnership (STP)","RY9","HOUNSLOW AND RICHMOND COMMUNITY HEALTHCARE NHS TRUST","Community Trusts",180,1045,6.9290123456790127,8,23,57,69,23,1,22,42,71,44,3,9,33,66,69,9,13,35,90,33,8,10,29,92,41,7,18,39,86,30,5,8,21,95,51,6,15,50,74,35,3,4,38,93,42,180,180,180]
["Y56","LONDON COMMISSIONING REGION","QRV","North West London Health & Care Partnership (STP)","RYJ","IMPERIAL COLLEGE HEALTHCARE NHS TRUST","Acute and Acute & Community Trusts",80,12149,6.3784722222222214,4,13,28,27,8,0,11,19,28,22,0,5,24,25,26,6,11,14,34,15,7,14,10,33,16,9,16,12,34,9,4,7,11,34,24,8,9,22,30,11,4,6,19,36,15,80,80,80]
["Y56","LONDON COMMISSIONING REGION","QRV","North West London Health & Care Partnership (STP)","RYX","CENTRAL LONDON COMMUNITY HEALTHCARE NHS TRUST","Community Trusts",154,4006,6.3997113997113999,4,23,55,55,17,2,18,42,59,33,2,7,27,56,62,15,20,28,58,33,12,20,21,70,31,10,23,35,54,32,12,15,26,62,39,27,14,42,45,26,10,13,43,64,24,154,154,154]
["Y58","SOUTH WEST COMMISSIONING REGION","QVV","Dorset STP","R0D","UNIVERSITY HOSPITALS DORSET NHS FOUNDATION TRUST","Acute and Acute & Community Trusts",172,8004,6.0836563307493536,13,41,55,51,12,5,21,60,64,22,6,6,48,70,42,5,33,28,75,31,9,24,28,82,29,13,39,48,53,19,7,14,36,79,36,19,26,56,52,19,8,21,44,78,21,172,172,172]
["Y58","SOUTH WEST COMMISSIONING REGION","QSL","Somerset STP","RA4","YEOVIL DISTRICT HOSPITAL NHS FOUNDATION TRUST","Acute and Acute & Community Trusts",0,2315,0,21,69,131,207,75,12,33,81,242,135,0,0,0,0,0,18,47,91,245,102,21,32,109,235,106,22,57,130,218,76,12,22,73,219,177,21,40,129,219,94,14,33,104,244,108,503,503,0]
["Y58","SOUTH WEST COMMISSIONING REGION","QUY","Bristol, North Somerset and South Gloucestershire STP","RA7","UNIVERSITY HOSPITALS BRISTOL AND WESTON NHS FOUNDATION TRUST","Acute and Acute & Community Trusts",2536,10096,6.8761266953109015,73,315,917,959,297,34,160,688,1084,574,34,125,577,1014,786,75,263,510,1383,435,71,238,509,1382,462,118,366,735,1110,330,38,103,331,1270,863,97,253,569,1157,529,43,110,455,1340,657,2605,2659,2536]
["Y58","SOUTH WEST COMMISSIONING REGION","QJK","Devon STP","RA9","TORBAY AND SOUTH DEVON NHS FOUNDATION TRUST","Acute and Acute & Community Trusts",140,5683,5.7817181885973836,9,31,63,42,9,2,22,50,66,15,5,5,51,54,39,13,23,23,58,23,15,19,20,62,24,19,25,29,50,17,6,23,35,64,21,23,27,47,50,2,11,29,40,59,10,149,140,154]
["Y58","SOUTH WEST COMMISSIONING REGION","QVV","Dorset STP","RBD","DORSET COUNTY HOSPITAL NHS FOUNDATION TRUST","Acute and Acute & Community Trusts",464,2765,6.7804118773946369,16,71,145,172,60,9,36,107,182,130,7,26,90,171,170,25,42,93,201,103,25,37,58,240,104,29,66,102,193,74,14,26,74,234,116,39,41,110,187,87,16,22,94,231,101,464,464,464]
["Y58","SOUTH WEST COMMISSIONING REGION","QJK","Devon STP","RBZ","NORTHERN DEVON HEALTHCARE NHS TRUST","Acute and Acute & Community Trusts",531,2963,6.932788909556769,17,66,194,206,67,5,31,135,231,141,5,20,99,230,191,25,53,118,238,111,11,42,93,284,109,20,63,146,228,81,6,35,72,271,147,21,52,107,253,98,7,33,105,274,113,531,538,543]
["Y58","SOUTH WEST COMMISSIONING REGION","QOX","Bath and North East Somerset, Swindon and Wiltshire STP","RD1","ROYAL UNITED HOSPITALS BATH NHS FOUNDATION TRUST","Acute and Acute & Community Trusts",256,5074,6.9911024305555562,9,36,85,99,27,4,16,65,122,49,1,7,29,137,82,6,24,48,115,63,8,11,45,131,61,15,22,47,127,45,2,8,55,128,63,7,16,59,141,33,1,9,51,146,49,256,256,256]
["Y58","SOUTH WEST COMMISSIONING REGION","QVV","Dorset STP","RDY","DORSET HEALTHCARE UNIVERSITY NHS FOUNDATION TRUST","Mental Health & Learning Disability and Mental Health, Learning Disability & Community Trusts",1148,5189,6.9120209059233444,32,127,348,444,197,8,71,260,474,335,8,49,212,427,452,50,104,213,527,254,57,82,206,543,260,69,133,294,458,194,57,72,173,525,321,61,109,244,503,231,23,77,225,579,244,1148,1148,1148]
["Y58","SOUTH WEST COMMISSIONING REGION","QT6","Cornwall and the Isles of Scilly Health & Social Care Partnership (STP)","REF","ROYAL CORNWALL HOSPITALS NHS TRUST","Acute and Acute & Community Trusts",681,5957,6.4682140671553769,75,95,193,221,97,42,64,167,272,138,30,46,124,252,234,52,65,130,248,192,61,61,115,248,197,77,87,144,218,160,43,61,142,237,199,58,98,181,244,108,28,60,197,282,121,682,682,681]
["Y58","SOUTH WEST COMMISSIONING REGION","QSL","Somerset STP","RH5","SOMERSET NHS FOUNDATION TRUST","Acute and Acute & Community Trusts",946,8202,6.8510688278130152,27,132,312,355,120,11,77,243,393,222,13,42,194,373,324,37,85,161,471,192,44,73,134,481,214,51,132,232,380,151,24,56,147,440,279,47,90,235,361,213,29,58,163,461,235,946,946,946]
["Y58","SOUTH WEST COMMISSIONING REGION","QJK","Devon STP","RH8","ROYAL DEVON AND EXETER NHS FOUNDATION TRUST","Acute and Acute & Community Trusts",1181,7581,6.8881134503549957,38,150,406,478,163,16,77,322,510,301,15,47,269,486,410,34,149,242,537,237,38,97,248,579,222,50,166,322,485,162,13,69,163,589,348,39,120,276,543,203,13,49,191,636,292,1181,1184,1226]
["Y58","SOUTH WEST COMMISSIONING REGION","QT6","Cornwall and the Isles of Scilly Health & Social Care Partnership (STP)","RJ8","CORNWALL PARTNERSHIP NHS FOUNDATION TRUST","Mental Health & Learning Disability and Mental Health, Learning Disability & Community Trusts",11,3370,5.0505050505050502,0,2,5,4,0,0,5,2,2,2,0,2,4,3,2,2,2,4,3,0,2,2,0,6,1,0,6,3,2,0,0,2,6,2,1,0,4,4,3,0,0,5,3,3,0,11,11,11]
["Y58","SOUTH WEST COMMISSIONING REGION","QJK","Devon STP","RK9","UNIVERSITY HOSPITALS PLYMOUTH NHS TRUST","Acute and Acute & Community Trusts",167,8017,6.5197546084301976,11,26,47,64,22,7,18,36,62,47,5,8,39,64,54,13,23,35,64,35,10,29,23,70,38,12,31,38,58,31,4,19,20,74,50,15,23,36,72,24,5,20,34,79,32,167,170,170]
["Y58","SOUTH WEST COMMISSIONING REGION","QOX","Bath and North East Somerset, Swindon and Wiltshire STP","RN3","GREAT WESTERN HOSPITALS NHS FOUNDATION TRUST","Acute and Acute & Community Trusts",1663,4570,6.6689183533025576,62,206,598,583,260,27,134,447,646,438,27,83,376,577,624,72,169,386,821,255,83,172,308,876,263,90,246,481,689,196,21,121,245,787,489,92,192,441,700,246,41,159,407,800,260,1663,1702,1687]
["Y58","SOUTH WEST COMMISSIONING REGION","QOX","Bath and North East Somerset, Swindon and Wiltshire STP","RNZ","SALISBURY NHS FOUNDATION TRUST","Acute and Acute & Community Trusts",99,3371,6.1054994388327719,9,19,40,22,9,5,8,34,30,22,5,6,25,39,24,6,16,26,39,12,7,6,24,48,14,10,19,30,28,12,2,6,24,46,21,9,17,29,32,12,4,8,24,49,14,99,99,99]
["Y58","SOUTH WEST COMMISSIONING REGION","QR1","Gloucestershire STP","RTE","GLOUCESTERSHIRE HOSPITALS NHS FOUNDATION TRUST","Acute and Acute & Community Trusts",98,7155,6.2492842254747023,5,17,36,35,9,2,11,31,39,16,2,6,22,36,33,7,10,23,42,16,8,12,20,43,16,9,17,27,36,10,4,9,19,44,23,8,17,28,35,12,7,12,27,43,11,99,98,99]
["Y58","SOUTH WEST COMMISSIONING REGION","QR1","Gloucestershire STP","RTQ","GLOUCESTERSHIRE HEALTH AND CARE NHS FOUNDATION TRUST","Mental Health & Learning Disability and Mental Health, Learning Disability & Community Trusts",171,3774,6.8518518518518512,7,24,56,72,12,1,13,52,73,32,2,7,40,59,63,4,16,27,83,41,5,13,24,78,51,6,22,39,74,30,3,9,30,76,53,13,21,39,62,36,4,13,41,71,42,171,171,171]
["Y58","SOUTH WEST COMMISSIONING REGION","QUY","Bristol, North Somerset and South Gloucestershire STP","RVJ","NORTH BRISTOL NHS TRUST","Acute and Acute & Community Trusts",175,8058,6.4554022366522368,13,31,64,56,12,5,24,46,74,27,4,14,47,65,45,29,25,9,36,76,20,32,12,32,79,33,22,17,45,58,13,53,8,23,79,20,27,14,40,75,6,46,7,32,85,176,175,175]
["Y58","SOUTH WEST COMMISSIONING REGION","QJK","Devon STP","RWV","DEVON PARTNERSHIP NHS TRUST","Mental Health & Learning Disability and Mental Health, Learning Disability & Community Trusts",151,3068,6.6942604856512142,3,28,57,49,14,1,10,52,57,31,2,5,27,59,58,5,15,35,64,32,4,10,30,73,34,4,13,35,69,30,5,9,24,85,28,11,19,28,69,24,7,10,57,57,20,151,151,151]
["Y58","SOUTH WEST COMMISSIONING REGION","QJK","Devon STP","RYF","SOUTH WESTERN AMBULANCE SERVICE NHS FOUNDATION TRUST","Ambulance Trusts",520,4390,5.8461368306553725,24,85,170,172,73,12,47,167,182,116,10,70,188,190,66,37,70,118,234,62,66,94,144,170,46,70,120,162,138,30,31,86,92,204,110,67,99,124,179,52,26,65,112,212,107,521,520,524]
["Y59","SOUTH EAST COMMISSIONING REGION","QRL","Hampshire and the Isle of Wight STP","R1C","SOLENT NHS TRUST","Mental Health & Learning Disability and Mental Health, Learning Disability & Community Trusts",251,3306,7.2886232846392218,7,30,73,105,36,2,13,57,109,70,2,11,46,89,103,5,21,42,109,74,7,24,26,120,74,9,25,51,108,58,6,9,23,108,105,11,19,55,89,77,6,9,31,102,103,251,251,251]
["Y59","SOUTH EAST COMMISSIONING REGION","QRL","Hampshire and the Isle of Wight STP","R1F","ISLE OF WIGHT NHS TRUST","Acute and Acute & Community Trusts",344,3082,7.0970000448088895,7,31,96,151,62,3,24,61,153,106,2,15,49,129,151,9,25,44,173,96,12,24,37,181,92,16,33,83,144,68,9,31,47,133,126,13,37,88,138,71,10,37,101,136,63,346,344,346]
["Y59","SOUTH EAST COMMISSIONING REGION","QXU","Surrey Heartlands Health & Care Partnership (STP)","RA2","ROYAL SURREY COUNTY HOSPITAL NHS FOUNDATION TRUST","Acute and Acute & Community Trusts",52,4289,7.0566239316239319,4,10,12,16,10,1,3,15,20,13,1,0,8,22,21,3,1,16,18,14,2,5,9,25,11,3,5,13,21,10,0,2,7,21,22,2,6,10,21,13,1,0,11,21,19,52,52,52]
["Y59","SOUTH EAST COMMISSIONING REGION","QNX","Sussex Health and Care Partnership STP","RDR","SUSSEX COMMUNITY NHS FOUNDATION TRUST","Community Trusts",62,4364,7.2177419354838719,0,11,13,32,6,0,5,13,28,16,1,4,9,27,21,0,8,6,33,15,1,6,3,36,16,0,9,12,27,14,1,2,8,29,22,3,3,11,33,12,0,0,12,34,16,62,62,62]
["Y59","SOUTH EAST COMMISSIONING REGION","QNQ","Frimley Health & Care (STP)","RDU","FRIMLEY HEALTH NHS FOUNDATION TRUST","Acute and Acute & Community Trusts",155,8996,5.78494623655914,16,35,57,36,11,10,26,43,48,28,7,12,44,45,47,12,32,33,52,26,18,29,33,53,22,21,36,34,51,13,12,11,34,63,35,23,26,49,41,16,11,13,28,73,30,155,155,155]
["Y59","SOUTH EAST COMMISSIONING REGION","QRL","Hampshire and the Isle of Wight STP","RHM","UNIVERSITY HOSPITAL SOUTHAMPTON NHS FOUNDATION TRUST","Acute and Acute & Community Trusts",3359,11005,7.1754316338592323,83,382,1140,1426,402,27,188,869,1563,744,41,158,754,1417,1024,73,244,589,1781,701,90,232,608,1750,713,105,365,867,1511,547,33,104,278,1557,1387,93,190,597,1582,901,30,92,384,1719,1138,3359,3388,3391]
["Y59","SOUTH EAST COMMISSIONING REGION","QRL","Hampshire and the Isle of Wight STP","RHU","PORTSMOUTH HOSPITALS UNIVERSITY NATIONAL HEALTH SERVICE TRUST","Acute and Acute & Community Trusts",1077,7090,6.4164861240070152,49,213,375,332,108,17,118,330,382,230,20,70,283,362,342,61,119,236,488,173,72,124,223,487,171,70,153,318,403,133,27,72,165,479,334,85,143,328,381,140,32,94,260,494,197,1077,1077,1077]
["Y59","SOUTH EAST COMMISSIONING REGION","QU9","Buckinghamshire, Oxfordshire and Berkshire West STP","RHW","ROYAL BERKSHIRE NHS FOUNDATION TRUST","Acute and Acute & Community Trusts",97,5537,6.9014891179839628,2,15,29,36,15,0,9,21,40,27,1,7,23,25,41,4,18,12,39,24,5,15,13,36,28,6,14,19,38,20,2,3,14,40,38,6,14,22,35,20,2,3,18,45,29,97,97,97]
["Y59","SOUTH EAST COMMISSIONING REGION","QRL","Hampshire and the Isle of Wight STP","RN5","HAMPSHIRE HOSPITALS NHS FOUNDATION TRUST","Acute and Acute & Community Trusts",293,6428,6.0096700796359492,16,57,93,96,31,12,31,74,104,72,13,23,60,102,95,25,48,59,112,49,28,44,50,123,48,33,59,71,89,41,19,28,57,123,66,50,57,77,74,35,25,33,85,110,40,293,293,293]
["Y59","SOUTH EAST COMMISSIONING REGION","QKS","Kent and Medway STP","RN7","DARTFORD AND GRAVESHAM NHS TRUST","Acute and Acute & Community Trusts",620,3401,6.8203405017921144,21,62,207,211,119,12,43,152,236,177,10,37,152,214,207,27,64,132,261,136,31,69,128,259,133,39,76,160,225,120,15,36,97,261,211,30,55,131,252,152,28,46,132,280,134,620,620,620]
["Y59","SOUTH EAST COMMISSIONING REGION","QU9","Buckinghamshire, Oxfordshire and Berkshire West STP","RNU","OXFORD HEALTH NHS FOUNDATION TRUST","Mental Health & Learning Disability and Mental Health, Learning Disability & Community Trusts",1100,5265,6.8681818181818182,27,141,348,436,148,13,77,278,461,271,12,44,203,374,467,44,106,176,529,245,47,87,164,561,241,45,135,274,471,175,39,48,186,515,312,73,102,276,434,215,41,70,254,509,226,1100,1100,1100]
["Y59","SOUTH EAST COMMISSIONING REGION","QKS","Kent and Medway STP","RPA","MEDWAY NHS FOUNDATION TRUST","Acute and Acute & Community Trusts",312,4106,5.941951566951567,17,70,90,99,36,14,35,87,101,75,16,20,72,95,109,34,39,71,120,48,37,40,60,121,54,36,49,88,87,52,24,29,73,117,69,46,52,87,89,38,31,51,97,104,29,312,312,312]
["Y59","SOUTH EAST COMMISSIONING REGION","QNX","Sussex Health and Care Partnership STP","RPC","QUEEN VICTORIA HOSPITAL NHS FOUNDATION TRUST","Acute Specialist Trusts",145,902,7.4923371647509578,4,13,50,58,20,2,6,37,61,39,2,2,24,70,47,5,8,28,51,53,5,14,17,49,60,6,17,33,48,41,1,3,15,49,77,8,7,34,59,37,0,0,4,38,103,145,145,145]
["Y59","SOUTH EAST COMMISSIONING REGION","QU9","Buckinghamshire, Oxfordshire and Berkshire West STP","RTH","OXFORD UNIVERSITY HOSPITALS NHS FOUNDATION TRUST","Acute and Acute & Community Trusts",2814,12111,6.9743351620933618,69,337,922,1131,441,41,176,725,1205,723,34,139,627,1119,948,122,288,490,1367,575,125,259,463,1433,562,163,394,677,1182,422,45,137,331,1256,1048,139,283,554,1191,649,36,111,414,1380,873,2814,2838,2867]
["Y59","SOUTH EAST COMMISSIONING REGION","QKS","Kent and Medway STP","RVV","EAST KENT HOSPITALS UNIVERSITY NHS FOUNDATION TRUST","Acute and Acute & Community Trusts",2916,9248,6.3623987227917622,124,399,1082,1055,332,56,249,804,1130,708,63,169,707,1078,934,112,366,660,1393,417,131,349,614,1447,410,184,469,851,1121,323,104,286,584,1249,693,240,462,844,1027,343,134,399,816,1211,358,2916,2948,2947]
["Y59","SOUTH EAST COMMISSIONING REGION","QRL","Hampshire and the Isle of Wight STP","RW1","SOUTHERN HEALTH NHS FOUNDATION TRUST","Mental Health & Learning Disability and Mental Health, Learning Disability & Community Trusts",440,5369,6.7960858585858581,15,72,125,181,47,9,44,94,216,77,7,34,61,232,106,14,44,72,211,99,16,36,58,228,102,15,52,110,183,80,13,23,61,191,152,21,40,105,203,71,14,30,115,207,74,440,440,440]
["Y59","SOUTH EAST COMMISSIONING REGION","QNQ","Frimley Health & Care (STP)","RWX","BERKSHIRE HEALTHCARE NHS FOUNDATION TRUST","Mental Health & Learning Disability and Mental Health, Learning Disability & Community Trusts",1479,3880,7.3709711846682344,20,141,503,629,210,9,69,360,663,382,9,41,242,569,624,24,98,246,755,374,19,74,199,772,427,35,132,330,670,324,10,45,133,674,617,36,100,266,633,445,25,57,250,725,422,1479,1491,1483]
["Y59","SOUTH EAST COMMISSIONING REGION","QNX","Sussex Health and Care Partnership STP","RX2","SUSSEX PARTNERSHIP NHS FOUNDATION TRUST","Mental Health & Learning Disability and Mental Health, Learning Disability & Community Trusts",145,4598,6.5114942528735638,7,19,58,47,14,3,13,38,62,29,1,6,24,59,55,6,12,25,70,32,10,7,25,72,31,12,18,35,55,25,3,11,31,60,40,15,25,32,41,32,16,24,36,50,19,145,145,145]
["Y59","SOUTH EAST COMMISSIONING REGION","QNX","Sussex Health and Care Partnership STP","RXC","EAST SUSSEX HEALTHCARE NHS TRUST","Acute and Acute & Community Trusts",119,6714,5.8216619981325861,10,23,43,33,10,8,11,37,39,24,6,10,35,42,26,14,15,29,45,16,12,14,23,55,15,16,18,42,31,12,8,15,26,48,22,14,18,39,36,12,9,12,36,45,17,119,119,119]
["Y59","SOUTH EAST COMMISSIONING REGION","QU9","Buckinghamshire, Oxfordshire and Berkshire West STP","RXQ","BUCKINGHAMSHIRE HEALTHCARE NHS TRUST","Acute and Acute & Community Trusts",607,5385,6.7440051253889806,21,75,199,238,74,10,42,163,230,162,5,22,118,219,243,20,61,118,292,116,19,67,94,309,118,30,86,151,252,88,18,28,109,300,152,42,59,177,236,93,26,43,135,298,105,607,607,607]
["Y59","SOUTH EAST COMMISSIONING REGION","QKS","Kent and Medway STP","RXY","KENT AND MEDWAY NHS AND SOCIAL CARE PARTNERSHIP TRUST","Mental Health & Learning Disability and Mental Health, Learning Disability & Community Trusts",272,3123,6.6390931372549025,15,37,79,108,33,6,21,72,101,72,8,17,53,85,109,17,26,54,108,67,12,24,41,129,66,15,41,42,123,51,11,25,47,104,85,21,33,88,79,51,19,25,81,97,50,272,272,272]
["Y59","SOUTH EAST COMMISSIONING REGION","QNX","Sussex Health and Care Partnership STP","RYD","SOUTH EAST COAST AMBULANCE SERVICE NHS FOUNDATION TRUST","Ambulance Trusts",318,3879,5.1292802236198458,25,79,113,73,28,9,52,102,102,53,22,51,104,90,51,36,66,74,113,29,62,81,59,86,30,69,86,78,68,17,44,53,75,88,58,70,72,85,68,23,39,40,73,118,48,318,318,318]
["Y59","SOUTH EAST COMMISSIONING REGION","QU9","Buckinghamshire, Oxfordshire and Berkshire West STP","RYE","SOUTH CENTRAL AMBULANCE SERVICE NHS FOUNDATION TRUST","Ambulance Trusts",143,4160,5.9168609168609168,12,17,53,43,18,4,18,48,39,34,9,12,49,45,28,12,30,29,58,14,14,25,23,62,19,22,35,35,40,11,10,18,21,58,36,20,20,39,44,20,5,13,35,53,37,143,143,143]
["Y59","SOUTH EAST COMMISSIONING REGION","QNX","Sussex Health and Care Partnership STP","RYR","UNIVERSITY HOSPITALS SUSSEX NHS FOUNDATION TRUST","Acute and Acute & Community Trusts",326,14064,5.854635310156783,21,80,126,81,18,10,51,108,98,59,10,27,101,119,69,27,48,57,153,41,23,43,57,155,48,29,77,81,107,32,20,44,62,128,72,45,71,80,100,30,22,41,89,128,46,326,326,326]
["Y59","SOUTH EAST COMMISSIONING REGION","QKS","Kent and Medway STP","RYY","KENT COMMUNITY HEALTH NHS FOUNDATION TRUST","Community Trusts",324,4189,6.7952674897119349,12,49,124,104,35,5,29,100,124,66,3,14,79,99,129,16,30,60,156,62,14,28,39,174,69,16,41,68,145,54,9,22,44,142,107,24,30,76,130,64,11,11,61,160,81,324,324,324]
["Y60","MIDLANDS COMMISSIONING REGION","QGH","Herefordshire and Worcestershire STP","R1A","HEREFORDSHIRE AND WORCESTERSHIRE HEALTH AND CARE NHS TRUST","Mental Health & Learning Disability and Mental Health, Learning Disability & Community Trusts",282,3596,6.7092212504211597,17,33,95,101,38,5,15,75,101,86,4,15,53,96,114,11,30,47,144,52,13,28,42,146,54,18,43,76,102,44,12,24,53,107,87,22,34,78,97,53,9,21,72,120,60,282,283,282]
["Y60","MIDLANDS COMMISSIONING REGION","QOC","Shropshire and Telford and Wrekin STP","R1D","SHROPSHIRE COMMUNITY HEALTH NHS TRUST","Community Trusts",21,1244,6.8518518518518521,0,4,6,6,5,0,1,9,3,8,0,2,3,4,12,1,2,3,11,4,2,0,1,13,5,1,0,3,14,3,1,2,3,11,4,1,6,4,9,1,0,3,2,15,1,21,21,21]
["Y60","MIDLANDS COMMISSIONING REGION","QUA","The Black Country and West Birmingham STP","RBK","WALSALL HEALTHCARE NHS TRUST","Acute and Acute & Community Trusts",1015,3772,6.2364532019704439,79,165,312,378,81,42,109,208,498,158,33,50,182,474,276,65,133,200,457,160,66,94,190,478,187,80,138,247,418,132,43,103,185,451,233,92,145,297,377,104,80,143,317,385,90,1015,1015,1015]
["Y60","MIDLANDS COMMISSIONING REGION","QJ2","Joined Up Care Derbyshire STP","RFS","CHESTERFIELD ROYAL HOSPITAL NHS FOUNDATION TRUST","Acute and Acute & Community Trusts",79,3351,6.5682137834036567,3,17,27,25,7,1,7,23,30,18,1,3,17,23,35,4,8,10,40,17,5,9,9,40,16,8,10,19,32,10,1,7,16,33,22,6,11,20,31,11,2,8,18,40,11,79,79,79]
["Y60","MIDLANDS COMMISSIONING REGION","QT1","Nottingham and Nottinghamshire Health and Care STP","RHA","NOTTINGHAMSHIRE HEALTHCARE NHS FOUNDATION TRUST","Mental Health & Learning Disability and Mental Health, Learning Disability & Community Trusts",254,7917,6.2159678685136397,23,56,74,79,25,13,36,55,110,42,14,27,56,94,65,14,39,45,112,47,17,31,38,121,50,17,42,57,107,31,8,26,49,108,66,29,44,53,98,33,14,29,65,112,37,257,254,256]
["Y60","MIDLANDS COMMISSIONING REGION","QWU","Coventry and Warwickshire STP","RJC","SOUTH WARWICKSHIRE NHS FOUNDATION TRUST","Acute and Acute & Community Trusts",255,4288,6.7734204793028319,6,47,80,95,27,1,26,62,106,60,0,14,47,98,96,14,22,55,116,48,12,24,37,129,53,14,46,56,99,40,6,26,40,103,80,10,31,48,105,61,6,19,48,124,58,255,255,255]
["Y60","MIDLANDS COMMISSIONING REGION","QNC","Staffordshire & Stoke on Trent STP","RJE","UNIVERSITY HOSPITALS OF NORTH MIDLANDS NHS TRUST","Acute and Acute & Community Trusts",81,9689,5.7818930041152257,6,15,31,23,6,3,12,19,27,20,5,6,21,27,22,6,18,14,34,9,8,17,15,30,11,12,17,24,21,7,6,12,15,33,15,14,15,25,17,10,4,9,18,35,15,81,81,81]
["Y60","MIDLANDS COMMISSIONING REGION","QT1","Nottingham and Nottinghamshire Health and Care STP","RK5","SHERWOOD FOREST HOSPITALS NHS FOUNDATION TRUST","Acute and Acute & Community Trusts",1158,4630,7.1349069276530415,45,128,301,538,146,33,82,221,574,248,18,57,220,510,353,41,123,195,522,277,43,86,216,551,262,46,129,268,505,210,28,35,136,526,433,33,56,131,576,362,15,32,125,624,362,1158,1158,1158]
["Y60","MIDLANDS COMMISSIONING REGION","QWU","Coventry and Warwickshire STP","RKB","UNIVERSITY HOSPITALS COVENTRY AND WARWICKSHIRE NHS TRUST","Acute and Acute & Community Trusts",131,8012,6.0771840542832907,9,30,38,39,15,4,17,40,45,25,6,9,40,32,44,10,22,29,54,16,7,21,21,60,22,8,33,32,43,15,7,10,36,48,30,16,18,40,43,14,4,18,29,58,22,131,131,131]
["Y60","MIDLANDS COMMISSIONING REGION","QUA","The Black Country and West Birmingham STP","RL4","THE ROYAL WOLVERHAMPTON NHS TRUST","Acute and Acute & Community Trusts",150,8719,6.9981481481481476,2,14,54,55,25,2,10,41,50,47,2,5,39,42,62,9,13,33,61,34,7,12,33,60,38,7,15,47,56,25,3,8,20,57,62,5,11,34,59,41,4,7,30,70,39,150,150,150]
["Y60","MIDLANDS COMMISSIONING REGION","QWU","Coventry and Warwickshire STP","RLT","GEORGE ELIOT HOSPITAL NHS TRUST","Acute and Acute & Community Trusts",25,2321,6.2222222222222223,4,2,12,6,1,2,1,9,6,7,1,1,7,8,8,4,3,3,10,5,4,1,7,5,8,4,5,5,5,6,2,1,3,9,10,4,2,6,8,5,1,2,5,11,6,25,25,25]
["Y60","MIDLANDS COMMISSIONING REGION","QNC","Staffordshire & Stoke on Trent STP","RLY","NORTH STAFFORDSHIRE COMBINED HEALTHCARE NHS TRUST","Mental Health & Learning Disability and Mental Health, Learning Disability & Community Trusts",21,1479,7.1164021164021163,0,1,13,6,1,0,1,5,13,2,0,0,4,10,7,0,3,1,11,6,0,1,5,9,6,0,2,4,10,5,0,1,5,9,6,0,2,4,10,5,0,1,6,10,4,21,21,21]
["Y60","MIDLANDS COMMISSIONING REGION","QUA","The Black Country and West Birmingham STP","RNA","THE DUDLEY GROUP NHS FOUNDATION TRUST","Acute and Acute & Community Trusts",882,4799,6.6978730397750015,42,126,308,325,101,11,67,232,359,219,12,34,195,346,302,37,94,175,419,168,41,75,182,428,169,46,127,230,357,133,9,57,142,392,282,49,102,250,347,136,29,65,241,406,142,882,893,888]
["Y60","MIDLANDS COMMISSIONING REGION","QPM","Northamptonshire STP","RNQ","KETTERING GENERAL HOSPITAL NHS FOUNDATION TRUST","Acute and Acute & Community Trusts",761,4307,6.2916085609754324,52,201,174,262,73,25,138,136,328,135,21,105,103,282,251,34,77,186,343,122,35,85,167,342,132,37,119,224,282,99,23,71,154,316,197,36,106,244,307,69,24,85,242,341,69,761,761,762]
["Y60","MIDLANDS COMMISSIONING REGION","QPM","Northamptonshire STP","RNS","NORTHAMPTON GENERAL HOSPITAL NHS TRUST","Acute and Acute & Community Trusts",777,5039,6.346929926621443,62,189,144,310,73,24,151,112,329,161,23,121,84,276,273,38,99,176,345,120,34,103,163,362,116,42,139,228,284,85,21,59,145,336,216,39,105,218,318,98,18,80,208,377,95,777,778,777]
["Y60","MIDLANDS COMMISSIONING REGION","QPM","Northamptonshire STP","RP1","NORTHAMPTONSHIRE HEALTHCARE NHS FOUNDATION TRUST","Mental Health & Learning Disability and Mental Health, Learning Disability & Community Trusts",1629,3744,7.3323462379504258,23,139,517,695,286,11,78,368,706,484,6,50,304,666,618,34,101,257,866,397,36,104,260,856,397,44,151,399,738,319,11,42,161,722,695,45,90,316,699,479,25,64,305,763,473,1629,1651,1644]
["Y60","MIDLANDS COMMISSIONING REGION","QJM","Lincolnshire STP","RP7","LINCOLNSHIRE PARTNERSHIP NHS FOUNDATION TRUST","Mental Health & Learning Disability and Mental Health, Learning Disability & Community Trusts",175,2047,6.9256764069264065,5,17,60,74,20,1,8,41,69,57,3,7,39,70,57,8,15,36,70,46,7,14,41,67,46,12,17,39,70,38,6,12,22,61,75,5,27,35,61,48,8,18,38,79,33,176,175,176]
["Y60","MIDLANDS COMMISSIONING REGION","QHL","Birmingham and Solihull STP","RQ3","BIRMINGHAM WOMEN'S AND CHILDREN'S NHS FOUNDATION TRUST","Acute and Acute & Community Trusts",23,5380,5.9661835748792269,3,5,6,6,3,0,3,8,7,5,0,1,5,6,11,3,6,1,9,4,3,4,5,7,4,4,6,6,4,3,1,4,3,8,7,5,3,6,6,3,2,2,2,11,6,23,23,23]
["Y60","MIDLANDS COMMISSIONING REGION","QNC","Staffordshire & Stoke on Trent STP","RRE","MIDLANDS PARTNERSHIP NHS FOUNDATION TRUST","Mental Health & Learning Disability and Mental Health, Learning Disability & Community Trusts",0,7698,0,0,0,0,0,0,0,0,0,0,0,0,0,0,0,0,0,0,0,0,0,0,0,0,0,0,0,0,0,0,0,0,0,0,0,0,0,0,0,0,0,0,0,0,0,0,0,0,0]
["Y60","MIDLANDS COMMISSIONING REGION","QHL","Birmingham and Solihull STP","RRK","UNIVERSITY HOSPITALS BIRMINGHAM NHS FOUNDATION TRUST","Acute and Acute & Community Trusts",1059,18810,5.7274962238415652,101,242,358,280,79,56,136,325,368,174,49,94,291,334,292,109,161,212,428,150,115,166,213,431,135,120,205,277,350,108,86,144,261,374,195,186,209,260,315,90,78,129,270,435,148,1060,1060,1059]
["Y60","MIDLANDS COMMISSIONING REGION","QK1","Leicester, Leicestershire and Rutland STP","RT5","LEICESTERSHIRE PARTNERSHIP NHS TRUST","Mental Health & Learning Disability and Mental Health, Learning Disability & Community Trusts",960,4741,6.3185763888888893,55,142,362,297,104,24,90,289,359,198,19,37,220,324,360,49,125,212,413,161,46,116,196,434,168,58,163,276,344,119,45,94,185,394,242,85,124,318,307,126,61,107,296,381,115,960,960,960]
["Y60","MIDLANDS COMMISSIONING REGION","QJ2","Joined Up Care Derbyshire STP","RTG","UNIVERSITY HOSPITALS OF DERBY AND BURTON NHS FOUNDATION TRUST","Acute and Acute & Community Trusts",2215,11606,6.4618331020490034,128,338,757,743,259,53,220,623,788,540,41,127,532,795,723,128,305,506,940,339,150,273,452,1012,330,173,397,636,792,217,80,134,338,1122,557,130,249,505,1024,320,68,128,456,1225,349,2226,2215,2218]
["Y60","MIDLANDS COMMISSIONING REGION","QJM","Lincolnshire STP","RWD","UNITED LINCOLNSHIRE HOSPITALS NHS TRUST","Acute and Acute & Community Trusts",2651,7161,6.2778811780617003,126,374,923,933,328,44,215,725,1007,670,46,134,632,966,890,127,308,595,1244,395,140,328,583,1240,376,185,447,799,957,282,90,279,514,1106,662,257,446,790,875,283,185,440,834,945,247,2651,2667,2661]
["Y60","MIDLANDS COMMISSIONING REGION","QK1","Leicester, Leicestershire and Rutland STP","RWE","UNIVERSITY HOSPITALS OF LEICESTER NHS TRUST","Acute and Acute & Community Trusts",284,13950,6.3155320813771523,20,48,88,86,42,7,25,89,93,70,5,10,78,88,103,16,28,62,135,43,13,40,56,132,43,18,57,87,96,26,15,24,58,113,74,22,50,78,91,43,14,33,79,118,40,284,284,284]
["Y60","MIDLANDS COMMISSIONING REGION","QGH","Herefordshire and Worcestershire STP","RWP","WORCESTERSHIRE ACUTE HOSPITALS NHS TRUST","Acute and Acute & Community Trusts",484,5680,6.337235996326906,32,78,155,162,57,17,37,141,175,114,11,25,119,168,161,29,54,102,218,81,31,48,90,220,95,40,80,118,170,76,31,40,90,191,132,54,61,131,170,68,40,51,126,202,65,484,484,484]
["Y60","MIDLANDS COMMISSIONING REGION","QT1","Nottingham and Nottinghamshire Health and Care STP","RX1","NOTTINGHAM UNIVERSITY HOSPITALS NHS TRUST","Acute and Acute & Community Trusts",1382,15210,6.4779305354558607,77,245,451,459,150,26,126,391,522,317,23,85,341,519,414,69,148,255,628,282,69,147,249,635,282,94,212,364,507,205,35,130,265,583,369,110,212,382,494,184,41,115,363,618,245,1382,1382,1382]
["Y60","MIDLANDS COMMISSIONING REGION","QT1","Nottingham and Nottinghamshire Health and Care STP","RX9","EAST MIDLANDS AMBULANCE SERVICE NHS TRUST","Ambulance Trusts",88,3716,5.703914141414141,5,16,35,22,10,1,13,23,33,18,3,7,30,33,15,6,19,23,29,11,11,19,22,27,9,17,21,27,14,9,9,11,15,36,17,11,14,30,22,11,4,8,24,35,17,88,88,88]
["Y60","MIDLANDS COMMISSIONING REGION","QUA","The Black Country and West Birmingham STP","RXK","SANDWELL AND WEST BIRMINGHAM HOSPITALS NHS TRUST","Acute and Acute & Community Trusts",1250,6464,6.4791366674070501,43,167,458,457,155,17,103,345,471,315,21,62,318,446,403,69,155,265,588,217,80,159,264,560,228,105,173,347,473,189,38,93,250,644,269,72,174,392,478,176,49,130,405,551,160,1292,1287,1250]
["Y60","MIDLANDS COMMISSIONING REGION","QJ2","Joined Up Care Derbyshire STP","RXM","DERBYSHIRE HEALTHCARE NHS FOUNDATION TRUST","Mental Health & Learning Disability and Mental Health, Learning Disability & Community Trusts",1102,2445,7.2266667006811991,20,84,367,496,146,9,47,248,497,304,5,33,235,418,411,27,87,181,553,266,24,73,188,547,281,34,102,276,474,221,19,35,122,538,400,36,71,190,506,309,30,57,206,533,287,1112,1107,1102]
["Y60","MIDLANDS COMMISSIONING REGION","QUA","The Black Country and West Birmingham STP","RXT","BIRMINGHAM AND SOLIHULL MENTAL HEALTH NHS FOUNDATION TRUST","Mental Health & Learning Disability and Mental Health, Learning Disability & Community Trusts",388,4027,6.1669530355097359,16,72,158,110,32,7,37,139,124,81,8,25,108,129,118,21,45,82,174,66,16,37,84,190,61,21,60,124,141,42,20,26,84,176,82,43,57,119,125,44,39,58,120,134,37,388,388,388]
["Y60","MIDLANDS COMMISSIONING REGION","QJM","Lincolnshire STP","RY5","LINCOLNSHIRE COMMUNITY HEALTH SERVICES NHS TRUST","Community Trusts",642,1867,7.2810138546119854,11,68,196,290,95,0,34,141,279,198,0,23,122,242,264,16,59,119,306,162,24,45,114,317,160,25,72,150,278,135,11,26,68,310,238,21,49,134,268,179,0,24,93,312,213,642,660,651]
["Y60","MIDLANDS COMMISSIONING REGION","QJ2","Joined Up Care Derbyshire STP","RY8","DERBYSHIRE COMMUNITY HEALTH SERVICES NHS FOUNDATION TRUST","Community Trusts",1635,3365,7.3101743929073253,42,159,507,731,214,19,74,383,710,449,20,35,295,624,665,44,139,283,811,379,50,106,263,825,405,60,162,381,733,315,17,66,155,771,649,37,99,301,702,510,18,37,198,799,601,1649,1649,1635]
["Y60","MIDLANDS COMMISSIONING REGION","QUA","The Black Country and West Birmingham STP","RYA","WEST MIDLANDS AMBULANCE SERVICE UNIVERSITY NHS FOUNDATION TRUST","Ambulance Trusts",558,6387,4.8536439665471924,64,124,192,137,41,38,88,164,172,96,38,83,187,181,69,91,116,121,193,37,152,123,140,114,29,175,164,112,89,18,115,91,101,160,91,111,110,158,134,45,71,71,143,192,81,558,558,558]
["Y60","MIDLANDS COMMISSIONING REGION","QWU","Coventry and Warwickshire STP","RYG","COVENTRY AND WARWICKSHIRE PARTNERSHIP NHS TRUST","Mental Health & Learning Disability and Mental Health, Learning Disability & Community Trusts",299,3505,6.982534373838722,7,25,101,120,46,2,13,77,137,70,2,15,48,146,88,5,20,62,156,56,4,22,49,163,61,7,26,88,136,42,5,14,43,148,89,15,23,57,151,53,7,27,57,156,52,299,299,299]
["Y60","MIDLANDS COMMISSIONING REGION","QHL","Birmingham and Solihull STP","RYW","BIRMINGHAM COMMUNITY HEALTHCARE NHS FOUNDATION TRUST","Community Trusts",526,4224,6.4110688635403461,22,87,191,174,52,10,45,147,199,125,8,32,95,185,206,39,51,116,230,90,34,51,97,230,114,41,63,140,206,76,21,55,113,209,128,50,84,158,168,66,22,54,153,221,76,526,526,526]
["Y60","MIDLANDS COMMISSIONING REGION","QUA","The Black Country and West Birmingham STP","TAJ","BLACK COUNTRY HEALTHCARE NHS FOUNDATION TRUST","Mental Health & Learning Disability and Mental Health, Learning Disability & Community Trusts",606,3097,6.1913274660799429,32,111,220,179,64,23,65,176,215,127,25,39,134,194,214,42,74,136,258,96,34,72,138,256,106,40,95,185,213,73,24,66,131,238,147,61,94,181,192,78,47,69,188,219,83,606,606,606]
["Y61","EAST OF ENGLAND COMMISSIONING REGION","QH8","Mid and South Essex STP","R1L","ESSEX PARTNERSHIP UNIVERSITY NHS FOUNDATION TRUST","Mental Health & Learning Disability and Mental Health, Learning Disability & Community Trusts",322,4918,6.548569847466065,13,60,88,121,41,6,47,67,134,69,6,29,58,137,93,20,38,56,139,70,22,32,56,138,74,26,50,80,107,60,8,24,57,120,114,14,56,72,116,65,13,43,83,122,62,323,322,323]
["Y61","EAST OF ENGLAND COMMISSIONING REGION","QH8","Mid and South Essex STP","RAJ","MID AND SOUTH ESSEX NHS FOUNDATION TRUST","Acute and Acute & Community Trusts",48,13662,5.2546296296296298,8,7,17,14,2,3,5,16,10,14,7,2,5,15,19,7,8,11,21,1,8,6,16,16,2,8,11,14,14,1,3,9,16,11,9,9,14,13,11,1,5,7,19,15,2,48,48,48]
["Y61","EAST OF ENGLAND COMMISSIONING REGION","QH8","Mid and South Essex STP","RAJ","MID AND SOUTH ESSEX NHS FOUNDATION TRUST","Acute and Acute & Community Trusts",48,13662,5.2546296296296298,8,7,17,14,2,3,5,16,10,14,7,2,5,15,19,7,8,11,21,1,8,6,16,16,2,8,11,14,14,1,3,9,16,11,9,9,14,13,11,1,5,7,19,15,2,48,48,48]
["Y61","EAST OF ENGLAND COMMISSIONING REGION","QHG","Bedfordshire, Luton and Milton Keynes STP","RC9","BEDFORDSHIRE HOSPITALS NHS FOUNDATION TRUST","Acute and Acute & Community Trusts",28,7136,5.0496031746031749,4,10,8,6,0,2,8,8,7,3,5,2,7,7,7,3,7,7,7,4,5,3,5,11,4,6,7,6,7,2,1,3,10,12,2,9,5,4,9,1,3,1,11,11,2,28,28,28]
["Y61","EAST OF ENGLAND COMMISSIONING REGION","QMM","Norfolk and Waveney Health & Care Partnership (STP)","RCX","THE QUEEN ELIZABETH HOSPITAL, KING'S LYNN, NHS FOUNDATION TRUST","Acute and Acute & Community Trusts",89,3273,5.9394506866416981,5,19,36,26,3,3,14,23,29,20,2,4,21,28,34,3,14,24,35,13,5,11,21,38,14,7,18,30,26,8,4,13,16,37,19,12,15,33,22,7,7,15,33,25,9,89,89,89]
["Y61","EAST OF ENGLAND COMMISSIONING REGION","QHG","Bedfordshire, Luton and Milton Keynes STP","RD8","MILTON KEYNES UNIVERSITY HOSPITAL NHS FOUNDATION TRUST","Acute and Acute & Community Trusts",12,3264,6.3425925925925926,1,1,5,4,1,0,2,3,5,2,0,1,3,8,0,0,4,0,6,2,0,3,1,4,4,0,4,3,3,2,0,1,2,5,4,1,1,3,5,2,2,0,2,7,1,12,12,12]
["Y61","EAST OF ENGLAND COMMISSIONING REGION","QJG","Suffolk and North East Essex STP","RDE","EAST SUFFOLK AND NORTH ESSEX NHS FOUNDATION TRUST","Acute and Acute & Community Trusts",32,9644,6.3715277777777777,1,8,10,10,3,0,3,11,11,7,0,4,11,11,6,1,8,3,12,8,2,5,4,13,8,1,8,5,11,7,1,3,7,12,9,3,6,5,11,7,1,4,6,16,5,32,32,32]
["Y61","EAST OF ENGLAND COMMISSIONING REGION","QUE","Cambridgeshire and Peterborough STP","RGM","ROYAL PAPWORTH HOSPITAL NHS FOUNDATION TRUST","Acute Specialist Trusts",259,1894,7.2383997112257985,14,37,67,117,42,11,32,47,121,65,6,22,38,114,97,18,26,34,118,78,21,22,25,123,83,21,33,43,108,68,3,7,21,108,120,12,19,36,106,86,2,4,21,91,141,259,273,276]
["Y61","EAST OF ENGLAND COMMISSIONING REGION","QUE","Cambridgeshire and Peterborough STP","RGN","NORTH WEST ANGLIA NHS FOUNDATION TRUST","Acute and Acute & Community Trusts",261,6066,6.4502154244077339,32,42,71,81,35,23,29,57,93,64,18,18,36,106,89,29,25,61,89,63,32,27,35,118,81,32,33,62,86,54,13,28,43,118,64,34,49,65,105,36,19,35,67,134,33,266,267,261]
["Y61","EAST OF ENGLAND COMMISSIONING REGION","QJG","Suffolk and North East Essex STP","RGR","WEST SUFFOLK NHS FOUNDATION TRUST","Acute and Acute & Community Trusts",1401,4097,7.0010943453794283,40,139,455,606,172,19,81,344,583,377,18,54,299,552,484,37,120,252,724,279,40,124,239,713,298,50,185,342,619,215,19,77,171,646,489,65,118,296,623,299,27,81,245,690,358,1401,1411,1404]
["Y61","EAST OF ENGLAND COMMISSIONING REGION","QUE","Cambridgeshire and Peterborough STP","RGT","CAMBRIDGE UNIVERSITY HOSPITALS NHS FOUNDATION TRUST","Acute and Acute & Community Trusts",4086,10429,3.0924130256776263,590,1571,1344,490,138,1049,1628,1050,303,56,1352,1530,925,208,74,1213,3467,1347,747,258,1132,3414,1414,759,310,869,2812,1882,1069,399,2527,3250,751,306,115,1678,3026,1344,650,252,2465,3335,802,251,93,6946,7029,4086]
["Y61","EAST OF ENGLAND COMMISSIONING REGION","QMM","Norfolk and Waveney Health & Care Partnership (STP)","RM1","NORFOLK AND NORWICH UNIVERSITY HOSPITALS NHS FOUNDATION TRUST","Acute and Acute & Community Trusts",220,7867,5.5757575757575752,22,48,81,49,20,11,30,76,67,36,11,17,52,77,63,14,41,61,76,28,17,39,57,77,30,30,50,62,59,19,19,41,55,74,31,37,51,56,56,20,15,38,56,88,23,220,220,220]
["Y61","EAST OF ENGLAND COMMISSIONING REGION","QMM","Norfolk and Waveney Health & Care Partnership (STP)","RMY","NORFOLK AND SUFFOLK NHS FOUNDATION TRUST","Mental Health & Learning Disability and Mental Health, Learning Disability & Community Trusts",1366,4168,6.3738348361457824,48,170,465,552,154,15,109,356,605,299,22,84,288,550,438,45,130,239,684,284,49,111,242,695,283,64,177,333,580,227,47,134,241,566,378,204,513,331,203,117,121,206,371,476,192,1366,1380,1382]
["Y61","EAST OF ENGLAND COMMISSIONING REGION","QM7","Hertfordshire and West Essex STP","RQW","THE PRINCESS ALEXANDRA HOSPITAL NHS TRUST","Acute and Acute & Community Trusts",190,3407,5.8874269005847948,18,39,68,47,18,8,19,49,65,49,6,10,53,59,62,18,26,36,65,45,18,24,34,69,45,22,28,53,58,29,16,21,35,70,48,33,40,61,39,17,22,41,63,49,15,190,190,190]
["Y61","EAST OF ENGLAND COMMISSIONING REGION","QUE","Cambridgeshire and Peterborough STP","RT1","CAMBRIDGESHIRE AND PETERBOROUGH NHS FOUNDATION TRUST","Mental Health & Learning Disability and Mental Health, Learning Disability & Community Trusts",2778,3809,6.8995480361571069,106,236,866,1156,414,64,142,747,1340,485,27,59,641,1503,548,73,165,776,1296,468,46,102,696,1418,516,108,242,570,1347,511,54,94,596,1428,606,128,237,556,1342,515,51,98,529,1470,630,2778,2778,2778]
["Y61","EAST OF ENGLAND COMMISSIONING REGION","QM7","Hertfordshire and West Essex STP","RWG","WEST HERTFORDSHIRE HOSPITALS NHS TRUST","Acute and Acute & Community Trusts",664,4738,6.1399765729585001,45,115,200,215,89,26,66,166,250,156,28,35,143,227,231,44,81,147,299,93,43,85,136,309,91,56,107,184,253,64,35,53,135,295,146,88,99,197,206,74,64,85,212,239,64,664,664,664]
["Y61","EAST OF ENGLAND COMMISSIONING REGION","QM7","Hertfordshire and West Essex STP","RWH","EAST AND NORTH HERTFORDSHIRE NHS TRUST","Acute and Acute & Community Trusts",180,5630,6.1481481481481479,9,33,66,59,13,5,16,57,57,45,5,7,41,68,59,13,30,35,75,27,14,22,38,77,29,16,38,43,63,20,4,15,42,82,37,21,30,58,57,14,6,19,56,84,15,180,180,180]
["Y61","EAST OF ENGLAND COMMISSIONING REGION","QM7","Hertfordshire and West Essex STP","RWR","HERTFORDSHIRE PARTNERSHIP UNIVERSITY NHS FOUNDATION TRUST","Mental Health & Learning Disability and Mental Health, Learning Disability & Community Trusts",853,3266,7.3949998018438619,15,70,277,352,156,2,34,203,386,240,4,28,188,333,311,14,58,160,415,214,15,50,153,406,229,20,67,228,376,174,10,24,55,323,456,19,44,161,346,295,13,44,161,395,248,861,853,864]
["Y61","EAST OF ENGLAND COMMISSIONING REGION","QMM","Norfolk and Waveney Health & Care Partnership (STP)","RY3","NORFOLK COMMUNITY HEALTH AND CARE NHS TRUST","Community Trusts",398,1992,7.1957007258514798,11,49,128,155,55,5,24,95,166,108,2,23,60,142,171,9,27,57,199,106,15,23,54,195,111,16,32,94,171,85,6,25,55,155,157,18,36,62,166,116,9,15,87,159,128,398,398,398]
["Y61","EAST OF ENGLAND COMMISSIONING REGION","QM7","Hertfordshire and West Essex STP","RY4","HERTFORDSHIRE COMMUNITY NHS TRUST","Community Trusts",171,2090,7.155620532813515,9,19,39,73,31,5,10,33,66,57,3,3,21,48,96,11,19,17,83,41,9,12,20,81,49,13,18,33,68,39,11,6,23,59,72,14,13,30,58,56,8,7,25,80,51,171,171,171]
["Y61","EAST OF ENGLAND COMMISSIONING REGION","QUE","Cambridgeshire and Peterborough STP","RYC","EAST OF ENGLAND AMBULANCE SERVICE NHS TRUST","Ambulance Trusts",305,5410,4.6803278688524594,36,88,85,69,27,18,63,90,83,51,29,47,93,88,48,49,80,66,77,33,88,77,52,68,20,99,89,58,46,13,43,62,66,92,42,97,75,75,45,13,26,45,77,131,26,305,305,305]
["Y61","EAST OF ENGLAND COMMISSIONING REGION","QUE","Cambridgeshire and Peterborough STP","RYV","CAMBRIDGESHIRE COMMUNITY SERVICES NHS TRUST","Community Trusts",99,2126,7.471941638608306,3,9,21,44,22,0,7,17,39,36,2,6,11,41,39,5,10,12,38,34,2,7,15,42,33,6,6,23,39,25,2,1,10,34,52,3,7,19,31,39,1,6,9,46,37,99,99,99]
["Y62","NORTH WEST COMMISSIONING REGION","QOP","Greater Manchester Health & Social Care Partnership","R0A","MANCHESTER UNIVERSITY NHS FOUNDATION TRUST","Acute and Acute & Community Trusts",2798,24928,6.4186152915419763,171,473,981,967,259,79,288,781,1113,545,62,167,668,1024,877,177,366,528,1276,497,195,298,552,1253,528,221,414,693,1063,415,112,253,500,1328,659,232,414,767,1046,386,110,213,685,1343,493,2844,2806,2798]
["Y62","NORTH WEST COMMISSIONING REGION","QYG","Cheshire and Merseyside STP","RBL","WIRRAL UNIVERSITY TEACHING HOSPITAL NHS FOUNDATION TRUST","Acute and Acute & Community Trusts",59,5550,5.6497175141242941,9,16,16,16,2,6,5,22,20,6,2,4,14,19,20,8,14,9,22,6,10,8,10,23,8,10,15,13,16,5,2,6,12,26,13,7,12,16,18,6,3,3,17,29,7,59,59,59]
["Y62","NORTH WEST COMMISSIONING REGION","QYG","Cheshire and Merseyside STP","RBN","ST HELENS AND KNOWSLEY TEACHING HOSPITALS NHS TRUST","Acute and Acute & Community Trusts",137,5963,6.2611516626115176,9,28,41,44,15,4,20,34,38,41,4,6,37,45,45,11,19,33,52,22,14,22,34,43,24,15,31,36,33,22,8,19,20,43,47,15,13,33,48,28,6,13,31,43,44,137,137,137]
["Y62","NORTH WEST COMMISSIONING REGION","QYG","Cheshire and Merseyside STP","RBQ","LIVERPOOL HEART AND CHEST HOSPITAL NHS FOUNDATION TRUST","Acute Specialist Trusts",146,1662,6.9539573820395733,10,20,47,46,23,6,10,36,50,44,4,12,29,49,52,7,10,32,70,27,7,14,26,66,33,9,22,34,61,20,6,4,13,52,71,15,14,21,57,39,2,2,13,60,69,146,146,146]
["Y62","NORTH WEST COMMISSIONING REGION","QYG","Cheshire and Merseyside STP","RBS","ALDER HEY CHILDREN'S NHS FOUNDATION TRUST","Acute and Acute & Community Trusts",271,3632,7.0049200492004919,12,37,87,99,36,7,19,64,107,74,5,8,55,95,108,12,32,51,120,56,18,24,48,114,67,19,39,71,89,53,4,10,31,126,100,16,24,53,98,80,3,7,28,114,119,271,271,271]
["Y62","NORTH WEST COMMISSIONING REGION","QYG","Cheshire and Merseyside STP","RBT","MID CHESHIRE HOSPITALS NHS FOUNDATION TRUST","Acute and Acute & Community Trusts",204,4300,6.9703159041394338,5,32,63,80,24,1,12,52,86,53,2,4,38,78,82,5,22,36,104,37,7,12,43,96,46,6,24,59,78,37,5,8,29,97,65,4,17,53,86,44,3,15,44,96,46,204,204,204]
["Y62","NORTH WEST COMMISSIONING REGION","QOP","Greater Manchester Health & Social Care Partnership","RBV","THE CHRISTIE NHS FOUNDATION TRUST","Acute Specialist Trusts",107,2962,7.0249221183800614,4,14,39,43,7,1,7,36,44,19,1,8,25,33,40,9,5,15,54,24,8,4,13,50,32,9,11,17,45,25,3,2,13,36,53,10,15,15,45,22,2,2,11,36,56,107,107,107]
["Y62","NORTH WEST COMMISSIONING REGION","QYG","Cheshire and Merseyside STP","REM","LIVERPOOL UNIVERSITY HOSPITALS NHS FOUNDATION TRUST","Acute and Acute & Community Trusts",2055,12104,6.4476102962516499,98,326,782,678,216,47,157,622,784,464,42,105,514,793,615,82,270,493,974,267,102,223,445,1027,284,121,304,618,804,233,42,157,374,949,536,129,315,576,792,244,58,174,517,980,326,2055,2080,2069]
["Y62","NORTH WEST COMMISSIONING REGION","QYG","Cheshire and Merseyside STP","REN","THE CLATTERBRIDGE CANCER CENTRE NHS FOUNDATION TRUST","Acute Specialist Trusts",228,1451,6.9931773879142298,15,41,47,93,32,7,21,39,110,51,4,18,25,111,70,8,22,32,112,54,7,22,41,104,54,11,32,44,93,48,5,14,34,80,95,14,30,50,77,57,3,8,20,104,93,228,228,228]
["Y62","NORTH WEST COMMISSIONING REGION","QYG","Cheshire and Merseyside STP","REP","LIVERPOOL WOMEN'S NHS FOUNDATION TRUST","Acute Specialist Trusts",186,1405,6.3913145318493365,17,66,0,21,97,5,44,0,98,53,6,19,0,96,81,13,35,36,74,36,17,39,33,74,27,20,43,51,54,23,5,17,29,90,47,24,31,48,57,27,10,23,37,79,37,186,190,200]
["Y62","NORTH WEST COMMISSIONING REGION","QYG","Cheshire and Merseyside STP","RET","THE WALTON CENTRE NHS FOUNDATION TRUST","Acute Specialist Trusts",106,1347,7.216981132075472,4,18,27,42,15,2,9,22,43,30,2,5,18,41,40,5,8,14,49,30,4,6,16,48,32,6,13,26,34,27,2,4,12,38,50,8,12,19,31,36,1,2,11,39,53,106,106,106]
["Y62","NORTH WEST COMMISSIONING REGION","QYG","Cheshire and Merseyside STP","RJN","EAST CHESHIRE NHS TRUST","Acute and Acute & Community Trusts",122,2167,6.5915300546448092,4,20,43,47,8,2,11,28,61,20,1,8,30,45,38,5,10,26,56,25,3,14,19,54,32,4,21,28,43,26,6,7,24,52,33,8,16,36,43,19,5,14,32,49,22,122,122,122]
["Y62","NORTH WEST COMMISSIONING REGION","QYG","Cheshire and Merseyside STP","RJR","COUNTESS OF CHESTER HOSPITAL NHS FOUNDATION TRUST","Acute and Acute & Community Trusts",263,3819,6.1900892639961071,23,58,92,68,23,7,26,76,101,54,4,12,59,83,106,19,18,57,132,38,19,26,44,123,52,26,36,72,90,40,11,28,52,120,52,27,52,83,82,20,18,44,68,103,31,263,264,264]
["Y62","NORTH WEST COMMISSIONING REGION","QOP","Greater Manchester Health & Social Care Partnership","RM3","NORTHERN CARE ALLIANCE NHS FOUNDATION TRUST","Acute and Acute & Community Trusts",2263,17028,6.3613084882222379,174,415,864,666,199,90,262,728,795,404,76,143,553,808,707,150,268,479,999,392,151,261,440,1005,433,184,337,592,816,358,84,155,403,990,634,191,318,588,802,364,82,186,545,1020,432,2263,2287,2279]
["Y62","NORTH WEST COMMISSIONING REGION","QOP","Greater Manchester Health & Social Care Partnership","RMC","BOLTON NHS FOUNDATION TRUST","Acute and Acute & Community Trusts",1089,5533,7.216865625956534,50,131,273,440,195,16,56,134,492,391,14,33,134,510,398,15,56,193,572,253,23,74,150,272,570,28,105,254,480,222,28,46,118,438,459,57,110,252,525,145,35,70,235,589,160,1089,1089,1089]
["Y62","NORTH WEST COMMISSIONING REGION","QOP","Greater Manchester Health & Social Care Partnership","RMP","TAMESIDE AND GLOSSOP INTEGRATED CARE NHS FOUNDATION TRUST","Acute and Acute & Community Trusts",78,3584,5.5484330484330497,6,20,22,24,6,4,9,26,17,22,3,9,23,12,31,11,9,16,32,10,14,10,12,29,13,16,16,14,22,10,9,13,15,28,13,18,16,16,17,11,14,13,15,26,10,78,78,78]
["Y62","NORTH WEST COMMISSIONING REGION","QOP","Greater Manchester Health & Social Care Partnership","RRF","WRIGHTINGTON, WIGAN AND LEIGH NHS FOUNDATION TRUST","Acute and Acute & Community Trusts",159,5754,6.1128581411600287,11,36,51,47,14,9,23,42,62,23,6,8,28,57,60,14,28,28,62,27,14,20,31,63,31,18,30,37,51,23,8,14,26,74,37,18,19,46,52,24,14,19,38,64,24,159,159,159]
["Y62","NORTH WEST COMMISSIONING REGION","QOP","Greater Manchester Health & Social Care Partnership","RT2","PENNINE CARE NHS FOUNDATION TRUST","Mental Health & Learning Disability and Mental Health, Learning Disability & Community Trusts",231,3145,6.3347763347763353,13,43,74,83,18,4,26,60,90,51,7,10,45,89,80,14,28,31,109,49,13,27,31,106,54,16,31,57,86,41,5,28,54,103,41,23,42,55,85,26,17,33,79,73,29,231,231,231]
["Y62","NORTH WEST COMMISSIONING REGION","QE1","Healthier Lancashire and South Cumbria","RTX","UNIVERSITY HOSPITALS OF MORECAMBE BAY NHS FOUNDATION TRUST","Acute and Acute & Community Trusts",199,6070,5.5667225013958683,20,46,67,44,22,8,36,58,56,41,10,13,60,51,65,19,34,39,74,33,22,37,39,66,35,28,46,36,59,30,22,26,54,63,34,29,41,66,46,17,25,39,68,57,10,199,199,199]
["Y62","NORTH WEST COMMISSIONING REGION","QYG","Cheshire and Merseyside STP","RVY","SOUTHPORT AND ORMSKIRK HOSPITAL NHS TRUST","Acute and Acute & Community Trusts",324,2861,6.3621056620465604,20,43,106,132,31,7,23,82,117,95,7,18,68,128,103,20,42,76,127,68,18,41,62,140,70,26,61,80,107,56,12,40,68,150,59,25,56,87,119,44,24,60,84,128,36,329,330,324]
["Y62","NORTH WEST COMMISSIONING REGION","QYG","Cheshire and Merseyside STP","RW4","MERSEY CARE NHS FOUNDATION TRUST","Mental Health & Learning Disability and Mental Health, Learning Disability & Community Trusts",2317,9735,6.9563469046364039,93,244,739,888,380,51,113,508,906,741,46,123,415,760,973,102,211,445,1063,525,112,206,373,1072,575,132,269,531,935,457,50,141,353,1043,759,130,261,549,913,496,80,154,475,1086,551,2346,2324,2317]
["Y62","NORTH WEST COMMISSIONING REGION","QE1","Healthier Lancashire and South Cumbria","RW5","LANCASHIRE & SOUTH CUMBRIA NHS FOUNDATION TRUST","Mental Health & Learning Disability and Mental Health, Learning Disability & Community Trusts",1058,6159,6.9112313620289614,31,131,357,449,159,6,49,237,531,302,10,41,203,452,420,43,92,215,548,204,51,95,204,555,203,55,119,302,519,129,28,103,218,558,218,53,118,224,480,183,24,84,281,571,168,1058,1102,1125]
["Y62","NORTH WEST COMMISSIONING REGION","QOP","Greater Manchester Health & Social Care Partnership","RWJ","STOCKPORT NHS FOUNDATION TRUST","Acute and Acute & Community Trusts",87,4993,5.6928480204342273,9,19,33,19,7,2,12,25,25,23,2,7,18,31,29,6,17,16,32,16,7,18,11,36,15,7,25,12,33,10,9,12,19,35,12,19,20,20,24,4,10,16,27,30,4,87,87,87]
["Y62","NORTH WEST COMMISSIONING REGION","QYG","Cheshire and Merseyside STP","RWW","WARRINGTON AND HALTON TEACHING HOSPITALS NHS FOUNDATION TRUST","Acute and Acute & Community Trusts",51,3876,6.2854030501089326,3,5,19,20,4,1,6,13,23,8,0,2,12,18,19,1,4,13,26,7,5,5,11,24,6,6,7,15,17,6,4,5,7,22,13,2,7,17,23,2,4,4,15,26,2,51,51,51]
["Y62","NORTH WEST COMMISSIONING REGION","QOP","Greater Manchester Health & Social Care Partnership","RX7","NORTH WEST AMBULANCE SERVICE NHS TRUST","Ambulance Trusts",1350,6258,6.087708626276414,60,229,480,452,156,28,121,387,540,296,45,132,430,485,281,97,203,288,575,192,144,232,307,499,179,183,302,371,358,147,73,191,226,533,327,109,228,330,490,194,51,124,275,651,250,1350,1355,1372]
["Y62","NORTH WEST COMMISSIONING REGION","QYG","Cheshire and Merseyside STP","RXA","CHESHIRE AND WIRRAL PARTNERSHIP NHS FOUNDATION TRUST","Mental Health & Learning Disability and Mental Health, Learning Disability & Community Trusts",793,3383,7.0170614950727996,20,77,276,331,107,8,34,199,335,231,7,39,169,307,285,18,67,153,398,172,23,67,148,394,176,25,103,211,340,129,13,34,111,359,276,33,54,180,348,179,13,51,161,397,171,793,808,807]
["Y62","NORTH WEST COMMISSIONING REGION","QE1","Healthier Lancashire and South Cumbria","RXL","BLACKPOOL TEACHING HOSPITALS NHS FOUNDATION TRUST","Acute and Acute & Community Trusts",539,6870,6.5718408575551441,18,86,166,205,64,10,44,145,203,137,6,22,109,194,208,27,68,101,251,92,29,55,84,257,114,34,70,142,213,80,21,39,104,244,131,34,66,123,239,77,37,60,142,220,80,539,539,539]
["Y62","NORTH WEST COMMISSIONING REGION","QE1","Healthier Lancashire and South Cumbria","RXN","LANCASHIRE TEACHING HOSPITALS NHS FOUNDATION TRUST","Acute and Acute & Community Trusts",1723,8078,6.7114621113469406,77,228,633,618,209,30,128,448,719,406,26,77,385,671,575,56,156,322,877,345,65,150,292,882,365,92,231,434,729,266,43,140,266,748,528,95,219,449,689,271,67,180,408,791,278,1723,1752,1731]
["Y62","NORTH WEST COMMISSIONING REGION","QE1","Healthier Lancashire and South Cumbria","RXR","EAST LANCASHIRE HOSPITALS NHS TRUST","Acute and Acute & Community Trusts",95,8472,6.4210526315789478,5,16,33,31,10,2,10,28,30,25,3,4,16,40,32,4,20,13,42,16,6,11,15,45,18,6,17,21,34,17,5,7,5,49,29,9,16,24,32,14,3,13,28,41,10,95,95,95]
["Y62","NORTH WEST COMMISSIONING REGION","QOP","Greater Manchester Health & Social Care Partnership","RXV","GREATER MANCHESTER MENTAL HEALTH NHS FOUNDATION TRUST","Mental Health & Learning Disability and Mental Health, Learning Disability & Community Trusts",1249,5688,6.6708773502683023,44,177,423,492,146,20,94,342,512,309,24,50,269,493,441,44,120,228,616,267,48,115,215,638,252,61,146,321,529,213,46,114,215,531,347,86,153,307,479,224,88,144,318,490,213,1249,1268,1277]
["Y62","NORTH WEST COMMISSIONING REGION","QYG","Cheshire and Merseyside STP","RY2","BRIDGEWATER COMMUNITY HEALTHCARE NHS FOUNDATION TRUST","Community Trusts",296,1423,6.8083708708708706,15,39,79,126,37,8,21,65,114,88,4,6,50,99,137,11,33,59,145,48,9,27,51,148,61,15,44,64,130,43,8,25,45,118,100,33,47,67,97,52,11,12,47,152,74,296,296,296]
["Y62","NORTH WEST COMMISSIONING REGION","QYG","Cheshire and Merseyside STP","RY7","WIRRAL COMMUNITY HEALTH AND CARE NHS FOUNDATION TRUST","Community Trusts",137,1514,6.8552311435523121,6,14,53,45,19,0,13,35,53,36,2,3,25,38,69,2,17,27,65,26,1,17,29,60,30,2,20,38,56,21,2,12,22,56,45,6,19,41,44,27,2,11,34,56,34,137,137,137]
["Y63","NORTH EAST AND YORKSHIRE COMMISSIONING REGION","QHM","Cumbria and North East STP","R0B","SOUTH TYNESIDE AND SUNDERLAND NHS FOUNDATION TRUST","Acute and Acute & Community Trusts",131,7669,5.2226463104325695,18,39,43,27,4,10,29,38,43,11,12,14,44,38,23,10,22,34,45,20,17,27,29,41,17,21,33,29,33,15,10,17,33,46,25,28,28,32,29,14,18,21,38,45,9,131,131,131]
["Y63","NORTH EAST AND YORKSHIRE COMMISSIONING REGION","QWO","West Yorkshire and Harrogate Health & Care Partnership (STP)","RAE","BRADFORD TEACHING HOSPITALS NHS FOUNDATION TRUST","Acute and Acute & Community Trusts",74,5468,5.968468468468469,8,18,24,18,6,2,10,23,23,16,7,5,22,20,20,7,7,16,32,12,8,8,15,28,15,7,8,21,28,10,4,7,16,25,22,17,9,14,21,13,8,7,21,26,12,74,74,74]
["Y63","NORTH EAST AND YORKSHIRE COMMISSIONING REGION","QOQ","Humber, Coast and Vale STP","RCB","YORK AND SCARBOROUGH TEACHING HOSPITALS NHS FOUNDATION TRUST","Acute and Acute & Community Trusts",142,7674,5.768779342723005,13,33,50,35,11,6,24,39,43,30,7,9,35,45,46,8,28,30,52,24,9,18,24,64,27,15,24,38,48,17,12,17,39,51,23,26,28,37,35,16,20,20,48,43,11,142,142,142]
["Y63","NORTH EAST AND YORKSHIRE COMMISSIONING REGION","QOQ","Humber, Coast and Vale STP","RCD","HARROGATE AND DISTRICT NHS FOUNDATION TRUST","Acute and Acute & Community Trusts",932,3924,6.9553577457214688,27,133,308,347,134,8,57,227,361,295,9,31,153,321,434,34,77,200,394,241,35,66,163,418,261,41,115,241,374,166,21,76,151,418,270,41,114,254,366,157,16,65,201,448,203,932,937,948]
["Y63","NORTH EAST AND YORKSHIRE COMMISSIONING REGION","QWO","West Yorkshire and Harrogate Health & Care Partnership (STP)","RCF","AIREDALE NHS FOUNDATION TRUST","Acute and Acute & Community Trusts",884,2987,6.9654484109592909,26,97,284,375,124,11,53,213,379,234,14,42,164,354,320,29,81,172,431,183,31,78,155,446,185,40,108,233,365,149,12,42,106,444,280,33,84,186,401,180,32,48,163,452,190,884,895,890]
["Y63","NORTH EAST AND YORKSHIRE COMMISSIONING REGION","QF7","South Yorkshire and Bassetlaw STP","RCU","SHEFFIELD CHILDREN'S NHS FOUNDATION TRUST","Acute and Acute & Community Trusts",275,3013,6.9555555555555557,12,41,97,103,22,6,23,68,119,59,9,15,61,115,75,9,22,37,146,61,7,24,34,146,64,8,40,59,130,38,9,7,39,112,108,16,23,56,110,70,10,5,34,119,107,275,275,275]
["Y63","NORTH EAST AND YORKSHIRE COMMISSIONING REGION","QF7","South Yorkshire and Bassetlaw STP","RFF","BARNSLEY HOSPITAL NHS FOUNDATION TRUST","Acute and Acute & Community Trusts",61,3523,6.6757741347905286,2,11,18,25,5,1,6,16,24,14,1,2,15,24,19,1,4,8,35,13,1,6,12,30,12,1,9,19,21,11,1,6,14,21,19,1,12,17,24,7,1,8,14,28,10,61,61,61]
["Y63","NORTH EAST AND YORKSHIRE COMMISSIONING REGION","QF7","South Yorkshire and Bassetlaw STP","RFR","THE ROTHERHAM NHS FOUNDATION TRUST","Acute and Acute & Community Trusts",53,3997,5.5345911949685531,5,13,14,20,1,1,11,10,22,9,4,4,11,19,15,8,9,4,23,9,9,7,6,19,12,12,8,6,22,5,7,7,10,18,11,11,5,18,14,5,10,11,15,14,3,53,53,53]
["Y63","NORTH EAST AND YORKSHIRE COMMISSIONING REGION","QWO","West Yorkshire and Harrogate Health & Care Partnership (STP)","RGD","LEEDS AND YORK PARTNERSHIP NHS FOUNDATION TRUST","Mental Health & Learning Disability and Mental Health, Learning Disability & Community Trusts",18,2818,6.0339506172839501,1,5,6,5,1,1,3,4,9,1,0,1,6,5,6,2,2,0,8,6,1,2,1,11,3,1,2,7,7,1,1,2,5,6,4,2,2,8,3,3,3,2,7,4,2,18,18,18]
["Y63","NORTH EAST AND YORKSHIRE COMMISSIONING REGION","QF7","South Yorkshire and Bassetlaw STP","RHQ","SHEFFIELD TEACHING HOSPITALS NHS FOUNDATION TRUST","Acute and Acute & Community Trusts",953,14915,6.3786871866620034,81,180,331,303,58,30,104,290,353,176,30,50,220,357,296,49,123,190,451,140,54,111,177,453,158,68,166,252,363,104,38,66,155,413,281,75,129,237,386,126,34,42,203,486,188,953,953,953]
["Y63","NORTH EAST AND YORKSHIRE COMMISSIONING REGION","QOQ","Humber, Coast and Vale STP","RJL","NORTHERN LINCOLNSHIRE AND GOOLE NHS FOUNDATION TRUST","Acute and Acute & Community Trusts",182,5527,5.5494505494505484,15,42,64,47,14,8,27,44,61,42,4,17,47,49,65,16,35,43,58,30,21,32,32,69,28,22,50,41,45,24,21,31,42,61,27,30,35,59,43,15,26,41,57,43,15,182,182,182]
["Y63","NORTH EAST AND YORKSHIRE COMMISSIONING REGION","QHM","Cumbria and North East STP","RNN","NORTH CUMBRIA INTEGRATED CARE NHS FOUNDATION TRUST","Acute and Acute & Community Trusts",504,5709,5.869157848324515,29,94,177,164,40,11,59,139,186,109,16,32,96,180,180,37,79,99,226,63,39,67,73,241,84,46,91,117,194,56,30,92,130,173,79,81,107,140,139,37,72,98,153,143,38,504,504,504]
["Y63","NORTH EAST AND YORKSHIRE COMMISSIONING REGION","QF7","South Yorkshire and Bassetlaw STP","RP5","DONCASTER AND BASSETLAW TEACHING HOSPITALS NHS FOUNDATION TRUST","Acute and Acute & Community Trusts",1431,5615,7.2191264972763607,54,192,486,541,172,32,91,356,568,384,21,63,325,552,475,185,512,796,1900,810,211,450,697,2013,832,267,594,1029,1652,649,104,270,578,1969,1240,158,283,626,1063,431,79,187,608,1264,423,2561,4191,1431]
["Y63","NORTH EAST AND YORKSHIRE COMMISSIONING REGION","QHM","Cumbria and North East STP","RR7","GATESHEAD HEALTH NHS FOUNDATION TRUST","Acute and Acute & Community Trusts",351,4268,6.3271604938271606,26,69,122,104,30,13,37,100,135,66,10,22,72,119,128,26,49,67,158,51,25,41,59,171,55,32,65,88,123,43,12,34,56,164,85,24,43,88,145,51,11,32,75,176,57,351,351,351]
["Y63","NORTH EAST AND YORKSHIRE COMMISSIONING REGION","QWO","West Yorkshire and Harrogate Health & Care Partnership (STP)","RR8","LEEDS TEACHING HOSPITALS NHS TRUST","Acute and Acute & Community Trusts",3182,17248,6.8575843285145615,103,413,1048,1295,323,37,232,844,1391,678,45,133,718,1263,1023,101,313,554,1539,675,130,279,541,1576,656,142,408,843,1331,458,62,166,423,1462,1069,142,298,720,1445,577,65,153,576,1668,720,{"$error":"#N/A"},{"$error":"#N/A"},{"$error":"#N/A"}]
["Y63","NORTH EAST AND YORKSHIRE COMMISSIONING REGION","QHM","Cumbria and North East STP","RTD","THE NEWCASTLE UPON TYNE HOSPITALS NHS FOUNDATION TRUST","Acute and Acute & Community Trusts",180,14299,6.2854938271604937,19,40,53,57,11,8,23,57,60,32,5,22,52,48,53,3,28,48,69,32,11,35,34,66,34,12,40,47,58,23,4,12,29,82,53,17,28,50,56,29,1,8,30,83,58,180,180,180]
["Y63","NORTH EAST AND YORKSHIRE COMMISSIONING REGION","QHM","Cumbria and North East STP","RTF","NORTHUMBRIA HEALTHCARE NHS FOUNDATION TRUST","Acute and Acute & Community Trusts",4015,7033,7.1823024768230255,112,403,1263,1585,652,58,223,950,1630,1154,65,157,858,1472,1463,116,357,949,1999,594,106,239,648,2303,719,121,355,981,1920,638,58,90,447,1951,1469,86,160,616,1971,1182,45,107,494,2143,1226,4015,4015,4015]
["Y63","NORTH EAST AND YORKSHIRE COMMISSIONING REGION","QOQ","Humber, Coast and Vale STP","RV9","HUMBER TEACHING NHS FOUNDATION TRUST","Mental Health & Learning Disability and Mental Health, Learning Disability & Community Trusts",602,2645,6.9241127756374512,15,74,196,254,71,4,40,152,251,155,6,26,127,238,205,20,54,91,300,146,22,41,94,296,156,26,70,136,252,124,12,48,91,285,175,35,72,132,240,128,21,51,153,251,134,607,608,602]
["Y63","NORTH EAST AND YORKSHIRE COMMISSIONING REGION","QHM","Cumbria and North East STP","RVW","NORTH TEES AND HARTLEPOOL NHS FOUNDATION TRUST","Acute and Acute & Community Trusts",122,4661,6.1657559198542797,11,32,33,37,9,5,14,31,35,37,6,7,38,36,35,10,14,24,52,22,6,18,17,54,27,8,24,26,44,20,3,10,25,55,29,11,25,32,41,13,8,20,33,48,13,122,122,122]
["Y63","NORTH EAST AND YORKSHIRE COMMISSIONING REGION","QWO","West Yorkshire and Harrogate Health & Care Partnership (STP)","RWY","CALDERDALE AND HUDDERSFIELD NHS FOUNDATION TRUST","Acute and Acute & Community Trusts",256,5590,6.2814670138888884,14,49,93,84,16,7,25,89,91,44,5,18,50,87,96,23,29,48,104,52,21,35,38,113,49,18,43,58,99,38,18,26,40,94,78,35,33,58,88,42,20,32,48,109,47,{"$error":"#N/A"},{"$error":"#N/A"},{"$error":"#N/A"}]
["Y63","NORTH EAST AND YORKSHIRE COMMISSIONING REGION","QHM","Cumbria and North East STP","RX3","TEES, ESK AND WEAR VALLEYS NHS FOUNDATION TRUST","Mental Health & Learning Disability and Mental Health, Learning Disability & Community Trusts",2361,6819,6.7125246792351634,82,313,813,941,261,31,176,607,1008,568,39,116,488,925,825,65,201,457,1190,480,66,207,416,1208,494,84,274,657,1002,376,39,189,388,1009,736,136,340,646,849,393,106,311,672,912,364,2361,2391,2390]
["Y63","NORTH EAST AND YORKSHIRE COMMISSIONING REGION","QHM","Cumbria and North East STP","RX4","CUMBRIA, NORTHUMBERLAND, TYNE AND WEAR NHS FOUNDATION TRUST","Mental Health & Learning Disability and Mental Health, Learning Disability & Community Trusts",104,6670,6.308760683760684,9,17,33,39,6,3,14,23,40,24,4,11,25,31,33,6,14,19,43,22,9,11,14,49,21,8,15,16,49,16,7,7,14,45,31,15,9,30,35,15,15,5,27,36,21,104,104,104]
["Y63","NORTH EAST AND YORKSHIRE COMMISSIONING REGION","QHM","Cumbria and North East STP","RX6","NORTH EAST AMBULANCE SERVICE NHS FOUNDATION TRUST","Ambulance Trusts",293,2645,5.184869169510808,29,78,95,67,24,15,39,93,91,55,16,36,103,90,48,36,63,61,100,33,49,69,57,94,24,56,88,69,62,18,35,62,53,99,44,77,64,82,57,13,14,38,75,124,42,293,293,293]
["Y63","NORTH EAST AND YORKSHIRE COMMISSIONING REGION","QWO","West Yorkshire and Harrogate Health & Care Partnership (STP)","RX8","YORKSHIRE AMBULANCE SERVICE NHS TRUST","Ambulance Trusts",747,5221,5.9875463224559402,59,134,246,235,81,26,83,211,286,141,45,87,242,248,126,78,126,146,304,100,90,133,167,267,96,109,161,195,205,78,41,84,104,319,206,78,110,188,266,113,31,51,136,378,159,{"$error":"#N/A"},{"$error":"#N/A"},{"$error":"#N/A"}]
["Y63","NORTH EAST AND YORKSHIRE COMMISSIONING REGION","QF7","South Yorkshire and Bassetlaw STP","RXE","ROTHERHAM DONCASTER AND SOUTH HUMBER NHS FOUNDATION TRUST","Mental Health & Learning Disability and Mental Health, Learning Disability & Community Trusts",56,3009,5.4265873015873014,7,13,22,10,4,4,11,19,15,7,2,7,13,25,9,7,9,14,20,6,5,8,15,20,8,5,16,13,17,5,4,6,18,16,12,9,13,16,14,4,4,9,23,15,5,56,56,56]
["Y63","NORTH EAST AND YORKSHIRE COMMISSIONING REGION","QWO","West Yorkshire and Harrogate Health & Care Partnership (STP)","RXF","MID YORKSHIRE HOSPITALS NHS TRUST","Acute and Acute & Community Trusts",2338,7662,6.5420713839644433,100,290,834,865,299,38,175,611,918,626,43,123,559,884,762,102,264,520,1075,408,124,250,472,1131,396,157,353,646,904,310,48,182,401,1071,636,150,287,610,929,362,118,284,638,982,320,{"$error":"#N/A"},{"$error":"#N/A"},{"$error":"#N/A"}]
["Y63","NORTH EAST AND YORKSHIRE COMMISSIONING REGION","QWO","West Yorkshire and Harrogate Health & Care Partnership (STP)","RXG","SOUTH WEST YORKSHIRE PARTNERSHIP NHS FOUNDATION TRUST","Mental Health & Learning Disability and Mental Health, Learning Disability & Community Trusts",817,3996,7.0458342071969158,26,67,284,327,115,9,35,213,337,223,7,27,200,288,297,29,76,142,389,183,31,64,119,418,187,28,100,191,367,133,17,32,84,380,306,24,72,168,360,195,15,43,159,441,161,{"$error":"#N/A"},{"$error":"#N/A"},{"$error":"#N/A"}]
["Y63","NORTH EAST AND YORKSHIRE COMMISSIONING REGION","QHM","Cumbria and North East STP","RXP","COUNTY DURHAM AND DARLINGTON NHS FOUNDATION TRUST","Acute and Acute & Community Trusts",1503,6751,6.178568788349228,130,303,418,524,128,66,172,265,734,266,53,121,283,667,379,90,227,285,672,229,103,216,279,690,215,127,263,402,553,158,75,163,269,586,410,141,235,394,523,210,77,183,404,633,206,1503,1503,1503]
["Y63","NORTH EAST AND YORKSHIRE COMMISSIONING REGION","QWO","West Yorkshire and Harrogate Health & Care Partnership (STP)","RY6","LEEDS COMMUNITY HEALTHCARE NHS TRUST","Community Trusts",892,2710,6.8898692947348978,37,108,320,356,78,13,58,254,367,200,9,44,159,322,358,31,79,152,446,197,32,77,159,418,215,47,100,238,354,161,20,50,117,410,309,47,101,205,351,200,32,81,167,397,229,{"$error":"#N/A"},{"$error":"#N/A"},{"$error":"#N/A"}]
["Y63","NORTH EAST AND YORKSHIRE COMMISSIONING REGION","QWO","West Yorkshire and Harrogate Health & Care Partnership (STP)","TAD","BRADFORD DISTRICT CARE NHS FOUNDATION TRUST","Mental Health & Learning Disability and Mental Health, Learning Disability & Community Trusts",489,2811,7.0620724866227986,18,42,167,191,76,10,29,129,189,137,13,17,105,187,172,19,48,81,196,148,18,40,78,201,157,28,55,100,197,114,8,23,45,240,176,21,46,99,209,115,13,33,91,242,110,{"$error":"#N/A"},{"$error":"#N/A"},{"$error":"#N/A"}]
["Y63","NORTH EAST AND YORKSHIRE COMMISSIONING REGION","QF7","South Yorkshire and Bassetlaw STP","TAH","SHEFFIELD HEALTH & SOCIAL CARE NHS FOUNDATION TRUST","Mental Health & Learning Disability and Mental Health, Learning Disability & Community Trusts",457,2196,6.0515438852419159,20,99,174,125,39,8,57,151,154,87,7,26,125,164,135,23,55,78,228,73,17,49,76,241,74,24,76,112,188,57,19,50,104,170,114,69,106,124,128,30,49,93,147,139,29,457,457,457]

{"sheet":"Advocacy","index":4,"n_rows":204,"n_cols":25,"rows_kept":204,"cut":false,"hidden":false,"merged":[[6,5,7,5],[6,0,7,0],[6,1,7,1],[6,2,7,2],[6,3,7,3],[6,4,7,4],[6,20,6,24],[6,6,7,6],[6,7,7,7],[6,8,7,8],[6,9,7,9],[6,10,6,14],[6,15,6,19]]}
[]
[]
[]
[]
[null,null,null,null,null,null,null,null,null,null,null,null,null,null,"Avg Advocacy:",{"$f":"AVERAGE(K6,P6,U6)","v":6.5593482021864071}]
[null,null,null,null,null,null,null,null,null,null,{"$f":"IF($H$10=0,\"-\",((K$10*0)+(L$10*2.5)+(M$10*5)+(N$10*7.5)+(O$10*10))/$H$10)","v":7.0956325422203657},null,null,null,null,{"$f":"IF($H$10=0,\"-\",((P$10*0)+(Q$10*2.5)+(R$10*5)+(S$10*7.5)+(T$10*10))/$H$10)","v":6.067018302186943},null,null,null,null,{"$f":"IF($H$10=0,\"-\",((U$10*0)+(V$10*2.5)+(W$10*5)+(X$10*7.5)+(Y$10*10))/$H$10)","v":6.5153937621519127}]
["Region Code","Region Name","ICB Code","ICB Name","Org Code","Org Name","Care Setting","Total Responses (Average across Theme)","HSCIC Workforce Headcount","Advocacy Score","Weighted Breakdown of Responses - Advocacy Q1",null,null,null,null," Weighted Breakdown of Responses - Advocacy Q2",null,null,null,null,"Weighted Breakdown of Responses - Advocacy Q3"]
[null,null,null,null,null,null,null,null,null,null,"Strongly Disagree","Disagree","Neither Disagree nor Agree","Agree","Strongly Agree","Strongly Disagree","Disagree","Neither Disagree nor Agree","Agree","Strongly Agree","Strongly Disagree","Disagree","Neither Disagree nor Agree","Agree","Strongly Agree"]
[null,null,null,null,null,"England",null,124466,1128001,6.5593482021864071,6194,11672,19419,52996,35942,9791,17178,29465,46557,21569,6967,12884,26852,53894,24027]
[null,null,null,null,null,"Selection (excluding suppressed data)",null,{"$f":"SUBTOTAL(9,H11:H1002)","v":124466},{"$f":"SUBTOTAL(9,I11:I1002)","v":1128001},{"$f":"IF(H10=0,\"-\",AVERAGE(((K10*0)+(L10*2.5)+(M10*5)+(N10*7.5)+(O10*10)),((P10*0)+(Q10*2.5)+(R10*5)+(S10*7.5)+(T10*10)),((U10*0)+(V10*2.5)+(W10*5)+(X10*7.5)+(Y10*10)))/H10)","v":6.5593482021864071},{"$f":"SUBTOTAL(9,K11:K1002)","v":6194},{"$f":"SUBTOTAL(9,L11:L1002)","v":11672},19419,52996,35942,9791,17178,29465,46557,21569,6967,12884,26852,53894,24027]
["Y56","LONDON COMMISSIONING REGION","QMF","East London Health & Care Partnership (STP)","R1H","BARTS HEALTH NHS TRUST","Acute and Acute & Community Trusts",376,15760,6.3364361702127656,18,22,85,160,91,46,42,101,128,59,19,37,103,152,65]
["Y56","LONDON COMMISSIONING REGION","QMJ","North London Partners in Health & Care (STP)","RAL","ROYAL FREE LONDON NHS FOUNDATION TRUST","Acute and Acute & Community Trusts",110,9812,6.2196969696969697,4,10,24,45,27,16,20,31,27,16,5,11,21,52,21]
["Y56","LONDON COMMISSIONING REGION","QRV","North West London Health & Care Partnership (STP)","RAS","THE HILLINGDON HOSPITALS NHS FOUNDATION TRUST","Acute and Acute & Community Trusts",21,3164,5.3968253968253963,3,0,6,8,4,4,2,10,2,3,3,3,4,11,0]
["Y56","LONDON COMMISSIONING REGION","QMF","East London Health & Care Partnership (STP)","RAT","NORTH EAST LONDON NHS FOUNDATION TRUST","Mental Health & Learning Disability and Mental Health, Learning Disability & Community Trusts",1020,5887,6.7630718954248366,38,68,147,458,309,53,88,279,395,205,47,71,287,450,165]
["Y56","LONDON COMMISSIONING REGION","QWE","South West London Health & Care Partnership (STP)","RAX","KINGSTON HOSPITAL NHS FOUNDATION TRUST","Acute and Acute & Community Trusts",56,3244,6.6220238095238093,4,2,10,20,20,9,5,13,19,10,3,4,10,25,14]
["Y56","LONDON COMMISSIONING REGION","QMF","East London Health & Care Partnership (STP)","RF4","BARKING, HAVERING AND REDBRIDGE UNIVERSITY HOSPITALS NHS TRUST","Acute and Acute & Community Trusts",420,6783,5.7103174603174605,23,42,92,167,96,64,69,135,114,38,37,56,142,146,39]
["Y56","LONDON COMMISSIONING REGION","QKK","Our Healthier South East London STP","RJ1","GUY'S AND ST THOMAS' NHS FOUNDATION TRUST","Acute and Acute & Community Trusts",268,20397,7.6026119402985071,9,4,28,115,112,18,23,39,103,85,12,4,24,122,106]
["Y56","LONDON COMMISSIONING REGION","QKK","Our Healthier South East London STP","RJ2","LEWISHAM AND GREENWICH NHS TRUST","Acute and Acute & Community Trusts",470,6157,5.8297872340425529,26,41,94,191,118,71,74,134,149,42,41,66,138,185,40]
["Y56","LONDON COMMISSIONING REGION","QWE","South West London Health & Care Partnership (STP)","RJ7","ST GEORGE'S UNIVERSITY HOSPITALS NHS FOUNDATION TRUST","Acute and Acute & Community Trusts",312,8764,6.3327991452991448,8,38,58,132,76,25,59,81,107,40,15,32,70,137,58]
["Y56","LONDON COMMISSIONING REGION","QKK","Our Healthier South East London STP","RJZ","KING'S COLLEGE HOSPITAL NHS FOUNDATION TRUST","Acute and Acute & Community Trusts",100,12410,6.9166666666666661,3,5,19,44,29,6,8,25,40,21,3,6,24,45,22]
["Y56","LONDON COMMISSIONING REGION","QMJ","North London Partners in Health & Care (STP)","RKE","WHITTINGTON HEALTH NHS TRUST","Acute and Acute & Community Trusts",286,4003,6.2907925407925411,18,21,53,110,84,36,42,69,88,51,21,29,74,107,55]
["Y56","LONDON COMMISSIONING REGION","QRV","North West London Health & Care Partnership (STP)","RKL","WEST LONDON NHS TRUST","Mental Health & Learning Disability and Mental Health, Learning Disability & Community Trusts",30,3793,5.2222222222222223,3,2,6,15,4,5,7,7,7,4,6,5,9,8,2]
["Y56","LONDON COMMISSIONING REGION","QMJ","North London Partners in Health & Care (STP)","RP4","GREAT ORMOND STREET HOSPITAL FOR CHILDREN NHS FOUNDATION TRUST","Acute Specialist Trusts",130,5112,7.5384615384615383,1,9,14,59,47,6,17,28,50,30,1,3,11,58,58]
["Y56","LONDON COMMISSIONING REGION","QMJ","North London Partners in Health & Care (STP)","RP6","MOORFIELDS EYE HOSPITAL NHS FOUNDATION TRUST","Acute Specialist Trusts",14,2082,6.4880952380952381,0,1,4,5,4,3,1,5,4,1,0,1,3,5,5]
["Y56","LONDON COMMISSIONING REGION","QKK","Our Healthier South East London STP","RPG","OXLEAS NHS FOUNDATION TRUST","Mental Health & Learning Disability and Mental Health, Learning Disability & Community Trusts",359,3475,6.4090064995357476,15,24,71,155,94,22,49,101,127,60,22,32,117,136,52]
["Y56","LONDON COMMISSIONING REGION","QRV","North West London Health & Care Partnership (STP)","RQM","CHELSEA AND WESTMINSTER HOSPITAL NHS FOUNDATION TRUST","Acute and Acute & Community Trusts",18,5899,6.7592592592592595,2,1,0,10,5,3,0,4,6,5,2,1,1,10,4]
["Y56","LONDON COMMISSIONING REGION","QMF","East London Health & Care Partnership (STP)","RQX","HOMERTON UNIVERSITY HOSPITAL NHS FOUNDATION TRUST","Acute and Acute & Community Trusts",878,3550,7.3993925588458618,16,36,83,398,346,48,70,173,363,224,22,34,146,423,255]
["Y56","LONDON COMMISSIONING REGION","QWE","South West London Health & Care Partnership (STP)","RQY","SOUTH WEST LONDON AND ST GEORGE'S MENTAL HEALTH NHS TRUST","Mental Health & Learning Disability and Mental Health, Learning Disability & Community Trusts",50,2320,5.8833333333333337,4,5,11,16,14,5,8,19,11,7,4,3,24,12,7]
["Y56","LONDON COMMISSIONING REGION","QMJ","North London Partners in Health & Care (STP)","RRP","BARNET, ENFIELD AND HARINGEY MENTAL HEALTH NHS TRUST","Mental Health & Learning Disability and Mental Health, Learning Disability & Community Trusts",218,3066,5.8639143730886847,18,20,45,73,62,29,36,48,78,27,30,21,66,74,27]
["Y56","LONDON COMMISSIONING REGION","QKK","Our Healthier South East London STP","RRU","LONDON AMBULANCE SERVICE NHS TRUST","Ambulance Trusts",41,6227,6.1178861788617889,6,3,6,10,16,9,7,9,6,10,4,5,5,14,13]
["Y56","LONDON COMMISSIONING REGION","QMJ","North London Partners in Health & Care (STP)","RRV","UNIVERSITY COLLEGE LONDON HOSPITALS NHS FOUNDATION TRUST","Acute and Acute & Community Trusts",663,9370,7.3579688285570635,19,33,82,298,231,48,57,130,245,183,17,23,84,292,247]
["Y56","LONDON COMMISSIONING REGION","QMJ","North London Partners in Health & Care (STP)","RV3","CENTRAL AND NORTH WEST LONDON NHS FOUNDATION TRUST","Mental Health & Learning Disability and Mental Health, Learning Disability & Community Trusts",37,6889,5.6756756756756754,4,6,2,14,11,5,6,10,11,5,1,11,11,12,2]
["Y56","LONDON COMMISSIONING REGION","QKK","Our Healthier South East London STP","RV5","SOUTH LONDON AND MAUDSLEY NHS FOUNDATION TRUST","Mental Health & Learning Disability and Mental Health, Learning Disability & Community Trusts",111,5026,5.9159159159159156,4,8,24,54,21,14,23,29,32,13,6,16,41,33,15]
["Y56","LONDON COMMISSIONING REGION","QWE","South West London Health & Care Partnership (STP)","RVR","EPSOM AND ST HELIER UNIVERSITY HOSPITALS NHS TRUST","Acute and Acute & Community Trusts",204,6045,5.7557189542483664,10,21,50,82,41,28,33,64,63,16,18,28,58,80,20]
["Y56","LONDON COMMISSIONING REGION","QMF","East London Health & Care Partnership (STP)","RWK","EAST LONDON NHS FOUNDATION TRUST","Mental Health & Learning Disability and Mental Health, Learning Disability & Community Trusts",1418,5851,7.4112599905970846,18,56,148,595,606,45,101,265,582,425,42,104,305,613,355]
["Y56","LONDON COMMISSIONING REGION","QWE","South West London Health & Care Partnership (STP)","RY9","HOUNSLOW AND RICHMOND COMMUNITY HEALTHCARE NHS TRUST","Community Trusts",180,1045,7.1435185185185182,5,8,21,95,51,6,15,50,74,35,3,4,38,93,42]
["Y56","LONDON COMMISSIONING REGION","QRV","North West London Health & Care Partnership (STP)","RYJ","IMPERIAL COLLEGE HEALTHCARE NHS TRUST","Acute and Acute & Community Trusts",80,12149,6.520833333333333,4,7,11,34,24,8,9,22,30,11,4,6,19,36,15]
["Y56","LONDON COMMISSIONING REGION","QRV","North West London Health & Care Partnership (STP)","RYX","CENTRAL LONDON COMMUNITY HEALTHCARE NHS TRUST","Community Trusts",154,4006,6.1309523809523805,12,15,26,62,39,27,14,42,45,26,10,13,43,64,24]
["Y58","SOUTH WEST COMMISSIONING REGION","QVV","Dorset STP","R0D","UNIVERSITY HOSPITALS DORSET NHS FOUNDATION TRUST","Acute and Acute & Community Trusts",172,8004,6.1240310077519373,7,14,36,79,36,19,26,56,52,19,8,21,44,78,21]
["Y58","SOUTH WEST COMMISSIONING REGION","QSL","Somerset STP","RA4","YEOVIL DISTRICT HOSPITAL NHS FOUNDATION TRUST","Acute and Acute & Community Trusts",503,2315,7.0725646123260439,12,22,73,219,177,21,40,129,219,94,14,33,104,244,108]
["Y58","SOUTH WEST COMMISSIONING REGION","QUY","Bristol, North Somerset and South Gloucestershire STP","RA7","UNIVERSITY HOSPITALS BRISTOL AND WESTON NHS FOUNDATION TRUST","Acute and Acute & Community Trusts",2605,10096,7.2530390275111971,38,103,331,1270,863,97,253,569,1157,529,43,110,455,1340,657]
["Y58","SOUTH WEST COMMISSIONING REGION","QJK","Devon STP","RA9","TORBAY AND SOUTH DEVON NHS FOUNDATION TRUST","Acute and Acute & Community Trusts",149,5683,5.4474272930648766,6,23,35,64,21,23,27,47,50,2,11,29,40,59,10]
["Y58","SOUTH WEST COMMISSIONING REGION","QVV","Dorset STP","RBD","DORSET COUNTY HOSPITAL NHS FOUNDATION TRUST","Acute and Acute & Community Trusts",464,2765,6.8552442528735638,14,26,74,234,116,39,41,110,187,87,16,22,94,231,101]
["Y58","SOUTH WEST COMMISSIONING REGION","QJK","Devon STP","RBZ","NORTHERN DEVON HEALTHCARE NHS TRUST","Acute and Acute & Community Trusts",531,2963,7.0841180163214057,6,35,72,271,147,21,52,107,253,98,7,33,105,274,113]
["Y58","SOUTH WEST COMMISSIONING REGION","QOX","Bath and North East Somerset, Swindon and Wiltshire STP","RD1","ROYAL UNITED HOSPITALS BATH NHS FOUNDATION TRUST","Acute and Acute & Community Trusts",256,5074,7.122395833333333,2,8,55,128,63,7,16,59,141,33,1,9,51,146,49]
["Y58","SOUTH WEST COMMISSIONING REGION","QVV","Dorset STP","RDY","DORSET HEALTHCARE UNIVERSITY NHS FOUNDATION TRUST","Mental Health & Learning Disability and Mental Health, Learning Disability & Community Trusts",1148,5189,6.9301684088269448,57,72,173,525,321,61,109,244,503,231,23,77,225,579,244]
["Y58","SOUTH WEST COMMISSIONING REGION","QT6","Cornwall and the Isles of Scilly Health & Social Care Partnership (STP)","REF","ROYAL CORNWALL HOSPITALS NHS TRUST","Acute and Acute & Community Trusts",682,5957,6.427174975562072,43,61,142,237,199,58,98,181,244,108,28,60,197,282,121]
["Y58","SOUTH WEST COMMISSIONING REGION","QSL","Somerset STP","RH5","SOMERSET NHS FOUNDATION TRUST","Acute and Acute & Community Trusts",946,8202,7.0366455250176188,24,56,147,440,279,47,90,235,361,213,29,58,163,461,235]
["Y58","SOUTH WEST COMMISSIONING REGION","QJK","Devon STP","RH8","ROYAL DEVON AND EXETER NHS FOUNDATION TRUST","Acute and Acute & Community Trusts",1181,7581,7.1789443974033311,13,69,163,589,348,39,120,276,543,203,13,49,191,636,292]
["Y58","SOUTH WEST COMMISSIONING REGION","QT6","Cornwall and the Isles of Scilly Health & Social Care Partnership (STP)","RJ8","CORNWALL PARTNERSHIP NHS FOUNDATION TRUST","Mental Health & Learning Disability and Mental Health, Learning Disability & Community Trusts",11,3370,4.9242424242424239,0,2,6,2,1,0,4,4,3,0,0,5,3,3,0]
["Y58","SOUTH WEST COMMISSIONING REGION","QJK","Devon STP","RK9","UNIVERSITY HOSPITALS PLYMOUTH NHS TRUST","Acute and Acute & Community Trusts",167,8017,6.6916167664670656,4,19,20,74,50,15,23,36,72,24,5,20,34,79,32]
["Y58","SOUTH WEST COMMISSIONING REGION","QOX","Bath and North East Somerset, Swindon and Wiltshire STP","RN3","GREAT WESTERN HOSPITALS NHS FOUNDATION TRUST","Acute and Acute & Community Trusts",1663,4570,6.7643816396071355,21,121,245,787,489,92,192,441,700,246,41,159,407,800,260]
["Y58","SOUTH WEST COMMISSIONING REGION","QOX","Bath and North East Somerset, Swindon and Wiltshire STP","RNZ","SALISBURY NHS FOUNDATION TRUST","Acute and Acute & Community Trusts",99,3371,6.3468013468013469,2,6,24,46,21,9,17,29,32,12,4,8,24,49,14]
["Y58","SOUTH WEST COMMISSIONING REGION","QR1","Gloucestershire STP","RTE","GLOUCESTERSHIRE HOSPITALS NHS FOUNDATION TRUST","Acute and Acute & Community Trusts",99,7155,6.1952861952861955,4,9,19,44,23,8,17,28,35,12,7,12,27,43,11]
["Y58","SOUTH WEST COMMISSIONING REGION","QR1","Gloucestershire STP","RTQ","GLOUCESTERSHIRE HEALTH AND CARE NHS FOUNDATION TRUST","Mental Health & Learning Disability and Mental Health, Learning Disability & Community Trusts",171,3774,6.8908382066276799,3,9,30,76,53,13,21,39,62,36,4,13,41,71,42]
["Y58","SOUTH WEST COMMISSIONING REGION","QUY","Bristol, North Somerset and South Gloucestershire STP","RVJ","NORTH BRISTOL NHS TRUST","Acute and Acute & Community Trusts",176,8058,6.7471590909090908,13,53,8,23,79,20,27,14,40,75,6,46,7,32,85]
["Y58","SOUTH WEST COMMISSIONING REGION","QJK","Devon STP","RWV","DEVON PARTNERSHIP NHS TRUST","Mental Health & Learning Disability and Mental Health, Learning Disability & Community Trusts",151,3068,6.4955849889624728,5,9,24,85,28,11,19,28,69,24,7,10,57,57,20]
["Y58","SOUTH WEST COMMISSIONING REGION","QJK","Devon STP","RYF","SOUTH WESTERN AMBULANCE SERVICE NHS FOUNDATION TRUST","Ambulance Trusts",521,4390,6.0252719129878436,31,86,92,204,110,67,99,124,179,52,26,65,112,212,107]
["Y59","SOUTH EAST COMMISSIONING REGION","QRL","Hampshire and the Isle of Wight STP","R1C","SOLENT NHS TRUST","Mental Health & Learning Disability and Mental Health, Learning Disability & Community Trusts",251,3306,7.6095617529880482,6,9,23,108,105,11,19,55,89,77,6,9,31,102,103]
["Y59","SOUTH EAST COMMISSIONING REGION","QRL","Hampshire and the Isle of Wight STP","R1F","ISLE OF WIGHT NHS TRUST","Acute and Acute & Community Trusts",346,3082,6.8352601156069364,9,31,47,133,126,13,37,88,138,71,10,37,101,136,63]
["Y59","SOUTH EAST COMMISSIONING REGION","QXU","Surrey Heartlands Health & Care Partnership (STP)","RA2","ROYAL SURREY COUNTY HOSPITAL NHS FOUNDATION TRUST","Acute and Acute & Community Trusts",52,4289,7.5160256410256405,0,2,7,21,22,2,6,10,21,13,1,0,11,21,19]
["Y59","SOUTH EAST COMMISSIONING REGION","QNX","Sussex Health and Care Partnership STP","RDR","SUSSEX COMMUNITY NHS FOUNDATION TRUST","Community Trusts",62,4364,7.459677419354839,1,2,8,29,22,3,3,11,33,12,0,0,12,34,16]
["Y59","SOUTH EAST COMMISSIONING REGION","QNQ","Frimley Health & Care (STP)","RDU","FRIMLEY HEALTH NHS FOUNDATION TRUST","Acute and Acute & Community Trusts",155,8996,6.0591397849462361,12,11,34,63,35,23,26,49,41,16,11,13,28,73,30]
["Y59","SOUTH EAST COMMISSIONING REGION","QRL","Hampshire and the Isle of Wight STP","RHM","UNIVERSITY HOSPITAL SOUTHAMPTON NHS FOUNDATION TRUST","Acute and Acute & Community Trusts",3359,11005,7.7359333134861563,33,104,278,1557,1387,93,190,597,1582,901,30,92,384,1719,1138]
["Y59","SOUTH EAST COMMISSIONING REGION","QRL","Hampshire and the Isle of Wight STP","RHU","PORTSMOUTH HOSPITALS UNIVERSITY NATIONAL HEALTH SERVICE TRUST","Acute and Acute & Community Trusts",1077,7090,6.6241101826060049,27,72,165,479,334,85,143,328,381,140,32,94,260,494,197]
["Y59","SOUTH EAST COMMISSIONING REGION","QU9","Buckinghamshire, Oxfordshire and Berkshire West STP","RHW","ROYAL BERKSHIRE NHS FOUNDATION TRUST","Acute and Acute & Community Trusts",97,5537,7.1821305841924392,2,3,14,40,38,6,14,22,35,20,2,3,18,45,29]
["Y59","SOUTH EAST COMMISSIONING REGION","QRL","Hampshire and the Isle of Wight STP","RN5","HAMPSHIRE HOSPITALS NHS FOUNDATION TRUST","Acute and Acute & Community Trusts",293,6428,5.8048919226393627,19,28,57,123,66,50,57,77,74,35,25,33,85,110,40]
["Y59","SOUTH EAST COMMISSIONING REGION","QKS","Kent and Medway STP","RN7","DARTFORD AND GRAVESHAM NHS TRUST","Acute and Acute & Community Trusts",620,3401,7.0215053763440851,15,36,97,261,211,30,55,131,252,152,28,46,132,280,134]
["Y59","SOUTH EAST COMMISSIONING REGION","QU9","Buckinghamshire, Oxfordshire and Berkshire West STP","RNU","OXFORD HEALTH NHS FOUNDATION TRUST","Mental Health & Learning Disability and Mental Health, Learning Disability & Community Trusts",1100,5265,6.8469696969696976,39,48,186,515,312,73,102,276,434,215,41,70,254,509,226]
["Y59","SOUTH EAST COMMISSIONING REGION","QKS","Kent and Medway STP","RPA","MEDWAY NHS FOUNDATION TRUST","Acute and Acute & Community Trusts",312,4106,5.6623931623931627,24,29,73,117,69,46,52,87,89,38,31,51,97,104,29]
["Y59","SOUTH EAST COMMISSIONING REGION","QNX","Sussex Health and Care Partnership STP","RPC","QUEEN VICTORIA HOSPITAL NHS FOUNDATION TRUST","Acute Specialist Trusts",145,902,8.1724137931034484,1,3,15,49,77,8,7,34,59,37,0,0,4,38,103]
["Y59","SOUTH EAST COMMISSIONING REGION","QU9","Buckinghamshire, Oxfordshire and Berkshire West STP","RTH","OXFORD UNIVERSITY HOSPITALS NHS FOUNDATION TRUST","Acute and Acute & Community Trusts",2814,12111,7.3708836768538264,45,137,331,1256,1048,139,283,554,1191,649,36,111,414,1380,873]
["Y59","SOUTH EAST COMMISSIONING REGION","QKS","Kent and Medway STP","RVV","EAST KENT HOSPITALS UNIVERSITY NHS FOUNDATION TRUST","Acute and Acute & Community Trusts",2916,9248,6.193415637860082,104,286,584,1249,693,240,462,844,1027,343,134,399,816,1211,358]
["Y59","SOUTH EAST COMMISSIONING REGION","QRL","Hampshire and the Isle of Wight STP","RW1","SOUTHERN HEALTH NHS FOUNDATION TRUST","Mental Health & Learning Disability and Mental Health, Learning Disability & Community Trusts",440,5369,6.9053030303030303,13,23,61,191,152,21,40,105,203,71,14,30,115,207,74]
["Y59","SOUTH EAST COMMISSIONING REGION","QNQ","Frimley Health & Care (STP)","RWX","BERKSHIRE HEALTHCARE NHS FOUNDATION TRUST","Mental Health & Learning Disability and Mental Health, Learning Disability & Community Trusts",1479,3880,7.6245210727969344,10,45,133,674,617,36,100,266,633,445,25,57,250,725,422]
["Y59","SOUTH EAST COMMISSIONING REGION","QNX","Sussex Health and Care Partnership STP","RX2","SUSSEX PARTNERSHIP NHS FOUNDATION TRUST","Mental Health & Learning Disability and Mental Health, Learning Disability & Community Trusts",145,4598,6.1781609195402298,3,11,31,60,40,15,25,32,41,32,16,24,36,50,19]
["Y59","SOUTH EAST COMMISSIONING REGION","QNX","Sussex Health and Care Partnership STP","RXC","EAST SUSSEX HEALTHCARE NHS TRUST","Acute and Acute & Community Trusts",119,6714,5.8683473389355747,8,15,26,48,22,14,18,39,36,12,9,12,36,45,17]
["Y59","SOUTH EAST COMMISSIONING REGION","QU9","Buckinghamshire, Oxfordshire and Berkshire West STP","RXQ","BUCKINGHAMSHIRE HEALTHCARE NHS TRUST","Acute and Acute & Community Trusts",607,5385,6.6913783635365185,18,28,109,300,152,42,59,177,236,93,26,43,135,298,105]
["Y59","SOUTH EAST COMMISSIONING REGION","QKS","Kent and Medway STP","RXY","KENT AND MEDWAY NHS AND SOCIAL CARE PARTNERSHIP TRUST","Mental Health & Learning Disability and Mental Health, Learning Disability & Community Trusts",272,3123,6.4307598039215685,11,25,47,104,85,21,33,88,79,51,19,25,81,97,50]
["Y59","SOUTH EAST COMMISSIONING REGION","QNX","Sussex Health and Care Partnership STP","RYD","SOUTH EAST COAST AMBULANCE SERVICE NHS FOUNDATION TRUST","Ambulance Trusts",318,3879,5.1598532494758906,44,53,75,88,58,70,72,85,68,23,39,40,73,118,48]
["Y59","SOUTH EAST COMMISSIONING REGION","QU9","Buckinghamshire, Oxfordshire and Berkshire West STP","RYE","SOUTH CENTRAL AMBULANCE SERVICE NHS FOUNDATION TRUST","Ambulance Trusts",143,4160,6.2820512820512819,10,18,21,58,36,20,20,39,44,20,5,13,35,53,37]
["Y59","SOUTH EAST COMMISSIONING REGION","QNX","Sussex Health and Care Partnership STP","RYR","UNIVERSITY HOSPITALS SUSSEX NHS FOUNDATION TRUST","Acute and Acute & Community Trusts",326,14064,5.8231083844580773,20,44,62,128,72,45,71,80,100,30,22,41,89,128,46]
["Y59","SOUTH EAST COMMISSIONING REGION","QKS","Kent and Medway STP","RYY","KENT COMMUNITY HEALTH NHS FOUNDATION TRUST","Community Trusts",324,4189,7.019032921810699,9,22,44,142,107,24,30,76,130,64,11,11,61,160,81]
["Y60","MIDLANDS COMMISSIONING REGION","QGH","Herefordshire and Worcestershire STP","R1A","HEREFORDSHIRE AND WORCESTERSHIRE HEALTH AND CARE NHS TRUST","Mental Health & Learning Disability and Mental Health, Learning Disability & Community Trusts",282,3596,6.6696217494089831,12,24,53,107,87,22,34,78,97,53,9,21,72,120,60]
["Y60","MIDLANDS COMMISSIONING REGION","QOC","Shropshire and Telford and Wrekin STP","R1D","SHROPSHIRE COMMUNITY HEALTH NHS TRUST","Community Trusts",21,1244,6.2698412698412698,1,2,3,11,4,1,6,4,9,1,0,3,2,15,1]
["Y60","MIDLANDS COMMISSIONING REGION","QUA","The Black Country and West Birmingham STP","RBK","WALSALL HEALTHCARE NHS TRUST","Acute and Acute & Community Trusts",1015,3772,6.0229885057471257,43,103,185,451,233,92,145,297,377,104,80,143,317,385,90]
["Y60","MIDLANDS COMMISSIONING REGION","QJ2","Joined Up Care Derbyshire STP","RFS","CHESTERFIELD ROYAL HOSPITAL NHS FOUNDATION TRUST","Acute and Acute & Community Trusts",79,3351,6.561181434599157,1,7,16,33,22,6,11,20,31,11,2,8,18,40,11]
["Y60","MIDLANDS COMMISSIONING REGION","QT1","Nottingham and Nottinghamshire Health and Care STP","RHA","NOTTINGHAMSHIRE HEALTHCARE NHS FOUNDATION TRUST","Mental Health & Learning Disability and Mental Health, Learning Disability & Community Trusts",257,7917,6.2613488975356679,8,26,49,108,66,29,44,53,98,33,14,29,65,112,37]
["Y60","MIDLANDS COMMISSIONING REGION","QWU","Coventry and Warwickshire STP","RJC","SOUTH WARWICKSHIRE NHS FOUNDATION TRUST","Acute and Acute & Community Trusts",255,4288,6.9934640522875817,6,26,40,103,80,10,31,48,105,61,6,19,48,124,58]
["Y60","MIDLANDS COMMISSIONING REGION","QNC","Staffordshire & Stoke on Trent STP","RJE","UNIVERSITY HOSPITALS OF NORTH MIDLANDS NHS TRUST","Acute and Acute & Community Trusts",81,9689,5.833333333333333,6,12,15,33,15,14,15,25,17,10,4,9,18,35,15]
["Y60","MIDLANDS COMMISSIONING REGION","QT1","Nottingham and Nottinghamshire Health and Care STP","RK5","SHERWOOD FOREST HOSPITALS NHS FOUNDATION TRUST","Acute and Acute & Community Trusts",1158,4630,7.7094127806563035,28,35,136,526,433,33,56,131,576,362,15,32,125,624,362]
["Y60","MIDLANDS COMMISSIONING REGION","QWU","Coventry and Warwickshire STP","RKB","UNIVERSITY HOSPITALS COVENTRY AND WARWICKSHIRE NHS TRUST","Acute and Acute & Community Trusts",131,8012,6.1513994910941481,7,10,36,48,30,16,18,40,43,14,4,18,29,58,22]
["Y60","MIDLANDS COMMISSIONING REGION","QUA","The Black Country and West Birmingham STP","RL4","THE ROYAL WOLVERHAMPTON NHS TRUST","Acute and Acute & Community Trusts",150,8719,7.333333333333333,3,8,20,57,62,5,11,34,59,41,4,7,30,70,39]
["Y60","MIDLANDS COMMISSIONING REGION","QWU","Coventry and Warwickshire STP","RLT","GEORGE ELIOT HOSPITAL NHS TRUST","Acute and Acute & Community Trusts",25,2321,6.7,2,1,3,9,10,4,2,6,8,5,1,2,5,11,6]
["Y60","MIDLANDS COMMISSIONING REGION","QNC","Staffordshire & Stoke on Trent STP","RLY","NORTH STAFFORDSHIRE COMBINED HEALTHCARE NHS TRUST","Mental Health & Learning Disability and Mental Health, Learning Disability & Community Trusts",21,1479,7.1825396825396828,0,1,5,9,6,0,2,4,10,5,0,1,6,10,4]
["Y60","MIDLANDS COMMISSIONING REGION","QUA","The Black Country and West Birmingham STP","RNA","THE DUDLEY GROUP NHS FOUNDATION TRUST","Acute and Acute & Community Trusts",882,4799,6.7696523053665905,9,57,142,392,282,49,102,250,347,136,29,65,241,406,142]
["Y60","MIDLANDS COMMISSIONING REGION","QPM","Northamptonshire STP","RNQ","KETTERING GENERAL HOSPITAL NHS FOUNDATION TRUST","Acute and Acute & Community Trusts",761,4307,6.322820849759089,23,71,154,316,197,36,106,244,307,69,24,85,242,341,69]
["Y60","MIDLANDS COMMISSIONING REGION","QPM","Northamptonshire STP","RNS","NORTHAMPTON GENERAL HOSPITAL NHS TRUST","Acute and Acute & Community Trusts",777,5039,6.5583440583440575,21,59,145,336,216,39,105,218,318,98,18,80,208,377,95]
["Y60","MIDLANDS COMMISSIONING REGION","QPM","Northamptonshire STP","RP1","NORTHAMPTONSHIRE HEALTHCARE NHS FOUNDATION TRUST","Mental Health & Learning Disability and Mental Health, Learning Disability & Community Trusts",1629,3744,7.6222631471250253,11,42,161,722,695,45,90,316,699,479,25,64,305,763,473]
["Y60","MIDLANDS COMMISSIONING REGION","QJM","Lincolnshire STP","RP7","LINCOLNSHIRE PARTNERSHIP NHS FOUNDATION TRUST","Mental Health & Learning Disability and Mental Health, Learning Disability & Community Trusts",176,2047,6.9791666666666661,6,12,22,61,75,5,27,35,61,48,8,18,38,79,33]
["Y60","MIDLANDS COMMISSIONING REGION","QHL","Birmingham and Solihull STP","RQ3","BIRMINGHAM WOMEN'S AND CHILDREN'S NHS FOUNDATION TRUST","Acute and Acute & Community Trusts",23,5380,6.1594202898550723,1,4,3,8,7,5,3,6,6,3,2,2,2,11,6]
["Y60","MIDLANDS COMMISSIONING REGION","QNC","Staffordshire & Stoke on Trent STP","RRE","MIDLANDS PARTNERSHIP NHS FOUNDATION TRUST","Mental Health & Learning Disability and Mental Health, Learning Disability & Community Trusts",0,7698,"-",0,0,0,0,0,0,0,0,0,0,0,0,0,0,0]
["Y60","MIDLANDS COMMISSIONING REGION","QHL","Birmingham and Solihull STP","RRK","UNIVERSITY HOSPITALS BIRMINGHAM NHS FOUNDATION TRUST","Acute and Acute & Community Trusts",1060,18810,5.6352201257861632,86,144,261,374,195,186,209,260,315,90,78,129,270,435,148]
["Y60","MIDLANDS COMMISSIONING REGION","QK1","Leicester, Leicestershire and Rutland STP","RT5","LEICESTERSHIRE PARTNERSHIP NHS TRUST","Mental Health & Learning Disability and Mental Health, Learning Disability & Community Trusts",960,4741,6.1640625,45,94,185,394,242,85,124,318,307,126,61,107,296,381,115]
["Y60","MIDLANDS COMMISSIONING REGION","QJ2","Joined Up Care Derbyshire STP","RTG","UNIVERSITY HOSPITALS OF DERBY AND BURTON NHS FOUNDATION TRUST","Acute and Acute & Community Trusts",2226,11606,6.7857142857142856,80,134,338,1122,557,130,249,505,1024,320,68,128,456,1225,349]
["Y60","MIDLANDS COMMISSIONING REGION","QJM","Lincolnshire STP","RWD","UNITED LINCOLNSHIRE HOSPITALS NHS TRUST","Acute and Acute & Community Trusts",2651,7161,5.9685024519049419,90,279,514,1106,662,257,446,790,875,283,185,440,834,945,247]
["Y60","MIDLANDS COMMISSIONING REGION","QK1","Leicester, Leicestershire and Rutland STP","RWE","UNIVERSITY HOSPITALS OF LEICESTER NHS TRUST","Acute and Acute & Community Trusts",284,13950,6.2529342723004691,15,24,58,113,74,22,50,78,91,43,14,33,79,118,40]
["Y60","MIDLANDS COMMISSIONING REGION","QGH","Herefordshire and Worcestershire STP","RWP","WORCESTERSHIRE ACUTE HOSPITALS NHS TRUST","Acute and Acute & Community Trusts",484,5680,6.18973829201102,31,40,90,191,132,54,61,131,170,68,40,51,126,202,65]
["Y60","MIDLANDS COMMISSIONING REGION","QT1","Nottingham and Nottinghamshire Health and Care STP","RX1","NOTTINGHAM UNIVERSITY HOSPITALS NHS TRUST","Acute and Acute & Community Trusts",1382,15210,6.4845634346357928,35,130,265,583,369,110,212,382,494,184,41,115,363,618,245]
["Y60","MIDLANDS COMMISSIONING REGION","QT1","Nottingham and Nottinghamshire Health and Care STP","RX9","EAST MIDLANDS AMBULANCE SERVICE NHS TRUST","Ambulance Trusts",88,3716,5.9659090909090908,9,11,15,36,17,11,14,30,22,11,4,8,24,35,17]
["Y60","MIDLANDS COMMISSIONING REGION","QUA","The Black Country and West Birmingham STP","RXK","SANDWELL AND WEST BIRMINGHAM HOSPITALS NHS TRUST","Acute and Acute & Community Trusts",1292,6464,6.4047987616099071,38,93,250,644,269,72,174,392,478,176,49,130,405,551,160]
["Y60","MIDLANDS COMMISSIONING REGION","QJ2","Joined Up Care Derbyshire STP","RXM","DERBYSHIRE HEALTHCARE NHS FOUNDATION TRUST","Mental Health & Learning Disability and Mental Health, Learning Disability & Community Trusts",1112,2445,7.429556354916067,19,35,122,538,400,36,71,190,506,309,30,57,206,533,287]
["Y60","MIDLANDS COMMISSIONING REGION","QUA","The Black Country and West Birmingham STP","RXT","BIRMINGHAM AND SOLIHULL MENTAL HEALTH NHS FOUNDATION TRUST","Mental Health & Learning Disability and Mental Health, Learning Disability & Community Trusts",388,4027,5.8934707903780064,20,26,84,176,82,43,57,119,125,44,39,58,120,134,37]
["Y60","MIDLANDS COMMISSIONING REGION","QJM","Lincolnshire STP","RY5","LINCOLNSHIRE COMMUNITY HEALTH SERVICES NHS TRUST","Community Trusts",642,1867,7.6311007268951201,11,26,68,310,238,21,49,134,268,179,0,24,93,312,213]
["Y60","MIDLANDS COMMISSIONING REGION","QJ2","Joined Up Care Derbyshire STP","RY8","DERBYSHIRE COMMUNITY HEALTH SERVICES NHS FOUNDATION TRUST","Community Trusts",1649,3365,7.7653123104912067,17,66,155,771,649,37,99,301,702,510,18,37,198,799,601]
["Y60","MIDLANDS COMMISSIONING REGION","QUA","The Black Country and West Birmingham STP","RYA","WEST MIDLANDS AMBULANCE SERVICE UNIVERSITY NHS FOUNDATION TRUST","Ambulance Trusts",558,6387,5.080645161290323,115,91,101,160,91,111,110,158,134,45,71,71,143,192,81]
["Y60","MIDLANDS COMMISSIONING REGION","QWU","Coventry and Warwickshire STP","RYG","COVENTRY AND WARWICKSHIRE PARTNERSHIP NHS TRUST","Mental Health & Learning Disability and Mental Health, Learning Disability & Community Trusts",299,3505,7.0206243032329985,5,14,43,148,89,15,23,57,151,53,7,27,57,156,52]
["Y60","MIDLANDS COMMISSIONING REGION","QHL","Birmingham and Solihull STP","RYW","BIRMINGHAM COMMUNITY HEALTHCARE NHS FOUNDATION TRUST","Community Trusts",526,4224,6.2024714828897336,21,55,113,209,128,50,84,158,168,66,22,54,153,221,76]
["Y60","MIDLANDS COMMISSIONING REGION","QUA","The Black Country and West Birmingham STP","TAJ","BLACK COUNTRY HEALTHCARE NHS FOUNDATION TRUST","Mental Health & Learning Disability and Mental Health, Learning Disability & Community Trusts",606,3097,6.0616061606160621,24,66,131,238,147,61,94,181,192,78,47,69,188,219,83]
["Y61","EAST OF ENGLAND COMMISSIONING REGION","QH8","Mid and South Essex STP","R1L","ESSEX PARTNERSHIP UNIVERSITY NHS FOUNDATION TRUST","Mental Health & Learning Disability and Mental Health, Learning Disability & Community Trusts",323,4918,6.6692466460268314,8,24,57,120,114,14,56,72,116,65,13,43,83,122,62]
["Y61","EAST OF ENGLAND COMMISSIONING REGION","QH8","Mid and South Essex STP","RAJ","MID AND SOUTH ESSEX NHS FOUNDATION TRUST","Acute and Acute & Community Trusts",48,13662,4.947916666666667,3,9,16,11,9,9,14,13,11,1,5,7,19,15,2]
["Y61","EAST OF ENGLAND COMMISSIONING REGION","QH8","Mid and South Essex STP","RAJ","MID AND SOUTH ESSEX NHS FOUNDATION TRUST","Acute and Acute & Community Trusts",48,13662,4.947916666666667,3,9,16,11,9,9,14,13,11,1,5,7,19,15,2]
["Y61","EAST OF ENGLAND COMMISSIONING REGION","QHG","Bedfordshire, Luton and Milton Keynes STP","RC9","BEDFORDSHIRE HOSPITALS NHS FOUNDATION TRUST","Acute and Acute & Community Trusts",28,7136,5.2083333333333339,1,3,10,12,2,9,5,4,9,1,3,1,11,11,2]
["Y61","EAST OF ENGLAND COMMISSIONING REGION","QMM","Norfolk and Waveney Health & Care Partnership (STP)","RCX","THE QUEEN ELIZABETH HOSPITAL, KING'S LYNN, NHS FOUNDATION TRUST","Acute and Acute & Community Trusts",89,3273,5.6086142322097379,4,13,16,37,19,12,15,33,22,7,7,15,33,25,9]
["Y61","EAST OF ENGLAND COMMISSIONING REGION","QHG","Bedfordshire, Luton and Milton Keynes STP","RD8","MILTON KEYNES UNIVERSITY HOSPITAL NHS FOUNDATION TRUST","Acute and Acute & Community Trusts",12,3264,6.5972222222222223,0,1,2,5,4,1,1,3,5,2,2,0,2,7,1]
["Y61","EAST OF ENGLAND COMMISSIONING REGION","QJG","Suffolk and North East Essex STP","RDE","EAST SUFFOLK AND NORTH ESSEX NHS FOUNDATION TRUST","Acute and Acute & Community Trusts",32,9644,6.510416666666667,1,3,7,12,9,3,6,5,11,7,1,4,6,16,5]
["Y61","EAST OF ENGLAND COMMISSIONING REGION","QUE","Cambridgeshire and Peterborough STP","RGM","ROYAL PAPWORTH HOSPITAL NHS FOUNDATION TRUST","Acute Specialist Trusts",259,1894,8.0083655083655074,3,7,21,108,120,12,19,36,106,86,2,4,21,91,141]
["Y61","EAST OF ENGLAND COMMISSIONING REGION","QUE","Cambridgeshire and Peterborough STP","RGN","NORTH WEST ANGLIA NHS FOUNDATION TRUST","Acute and Acute & Community Trusts",266,6066,6.4692982456140351,13,28,43,118,64,34,49,65,105,36,19,35,67,134,33]
["Y61","EAST OF ENGLAND COMMISSIONING REGION","QJG","Suffolk and North East Essex STP","RGR","WEST SUFFOLK NHS FOUNDATION TRUST","Acute and Acute & Community Trusts",1401,4097,7.2335236735664994,19,77,171,646,489,65,118,296,623,299,27,81,245,690,358]
["Y61","EAST OF ENGLAND COMMISSIONING REGION","QUE","Cambridgeshire and Peterborough STP","RGT","CAMBRIDGE UNIVERSITY HOSPITALS NHS FOUNDATION TRUST","Acute and Acute & Community Trusts",6946,10429,2.5033592475285533,2527,3250,751,306,115,1678,3026,1344,650,252,2465,3335,802,251,93]
["Y61","EAST OF ENGLAND COMMISSIONING REGION","QMM","Norfolk and Waveney Health & Care Partnership (STP)","RM1","NORFOLK AND NORWICH UNIVERSITY HOSPITALS NHS FOUNDATION TRUST","Acute and Acute & Community Trusts",220,7867,5.3560606060606055,19,41,55,74,31,37,51,56,56,20,15,38,56,88,23]
["Y61","EAST OF ENGLAND COMMISSIONING REGION","QMM","Norfolk and Waveney Health & Care Partnership (STP)","RMY","NORFOLK AND SUFFOLK NHS FOUNDATION TRUST","Mental Health & Learning Disability and Mental Health, Learning Disability & Community Trusts",1366,4168,5.6259150805270863,47,134,241,566,378,204,513,331,203,117,121,206,371,476,192]
["Y61","EAST OF ENGLAND COMMISSIONING REGION","QM7","Hertfordshire and West Essex STP","RQW","THE PRINCESS ALEXANDRA HOSPITAL NHS TRUST","Acute and Acute & Community Trusts",190,3407,5.3245614035087714,16,21,35,70,48,33,40,61,39,17,22,41,63,49,15]
["Y61","EAST OF ENGLAND COMMISSIONING REGION","QUE","Cambridgeshire and Peterborough STP","RT1","CAMBRIDGESHIRE AND PETERBOROUGH NHS FOUNDATION TRUST","Mental Health & Learning Disability and Mental Health, Learning Disability & Community Trusts",2778,3809,7.0539356851451878,54,94,596,1428,606,128,237,556,1342,515,51,98,529,1470,630]
["Y61","EAST OF ENGLAND COMMISSIONING REGION","QM7","Hertfordshire and West Essex STP","RWG","WEST HERTFORDSHIRE HOSPITALS NHS TRUST","Acute and Acute & Community Trusts",664,4738,5.8747489959839356,35,53,135,295,146,88,99,197,206,74,64,85,212,239,64]
["Y61","EAST OF ENGLAND COMMISSIONING REGION","QM7","Hertfordshire and West Essex STP","RWH","EAST AND NORTH HERTFORDSHIRE NHS TRUST","Acute and Acute & Community Trusts",180,5630,6.0601851851851851,4,15,42,82,37,21,30,58,57,14,6,19,56,84,15]
["Y61","EAST OF ENGLAND COMMISSIONING REGION","QM7","Hertfordshire and West Essex STP","RWR","HERTFORDSHIRE PARTNERSHIP UNIVERSITY NHS FOUNDATION TRUST","Mental Health & Learning Disability and Mental Health, Learning Disability & Community Trusts",861,3266,7.7951993805652346,10,24,55,323,456,19,44,161,346,295,13,44,161,395,248]
["Y61","EAST OF ENGLAND COMMISSIONING REGION","QMM","Norfolk and Waveney Health & Care Partnership (STP)","RY3","NORFOLK COMMUNITY HEALTH AND CARE NHS TRUST","Community Trusts",398,1992,7.3869346733668344,6,25,55,155,157,18,36,62,166,116,9,15,87,159,128]
["Y61","EAST OF ENGLAND COMMISSIONING REGION","QM7","Hertfordshire and West Essex STP","RY4","HERTFORDSHIRE COMMUNITY NHS TRUST","Community Trusts",171,2090,7.2563352826510714,11,6,23,59,72,14,13,30,58,56,8,7,25,80,51]
["Y61","EAST OF ENGLAND COMMISSIONING REGION","QUE","Cambridgeshire and Peterborough STP","RYC","EAST OF ENGLAND AMBULANCE SERVICE NHS TRUST","Ambulance Trusts",305,5410,4.7704918032786887,43,62,66,92,42,97,75,75,45,13,26,45,77,131,26]
["Y61","EAST OF ENGLAND COMMISSIONING REGION","QUE","Cambridgeshire and Peterborough STP","RYV","CAMBRIDGESHIRE COMMUNITY SERVICES NHS TRUST","Community Trusts",99,2126,7.8703703703703702,2,1,10,34,52,3,7,19,31,39,1,6,9,46,37]
["Y62","NORTH WEST COMMISSIONING REGION","QOP","Greater Manchester Health & Social Care Partnership","R0A","MANCHESTER UNIVERSITY NHS FOUNDATION TRUST","Acute and Acute & Community Trusts",2844,24928,6.4718120018752927,112,253,500,1328,659,232,414,767,1046,386,110,213,685,1343,493]
["Y62","NORTH WEST COMMISSIONING REGION","QYG","Cheshire and Merseyside STP","RBL","WIRRAL UNIVERSITY TEACHING HOSPITAL NHS FOUNDATION TRUST","Acute and Acute & Community Trusts",59,5550,6.129943502824859,2,6,12,26,13,7,12,16,18,6,3,3,17,29,7]
["Y62","NORTH WEST COMMISSIONING REGION","QYG","Cheshire and Merseyside STP","RBN","ST HELENS AND KNOWSLEY TEACHING HOSPITALS NHS TRUST","Acute and Acute & Community Trusts",137,5963,6.6362530413625302,8,19,20,43,47,15,13,33,48,28,6,13,31,43,44]
["Y62","NORTH WEST COMMISSIONING REGION","QYG","Cheshire and Merseyside STP","RBQ","LIVERPOOL HEART AND CHEST HOSPITAL NHS FOUNDATION TRUST","Acute Specialist Trusts",146,1662,7.6312785388127855,6,4,13,52,71,15,14,21,57,39,2,2,13,60,69]
["Y62","NORTH WEST COMMISSIONING REGION","QYG","Cheshire and Merseyside STP","RBS","ALDER HEY CHILDREN'S NHS FOUNDATION TRUST","Acute and Acute & Community Trusts",271,3632,7.6107011070110699,4,10,31,126,100,16,24,53,98,80,3,7,28,114,119]
["Y62","NORTH WEST COMMISSIONING REGION","QYG","Cheshire and Merseyside STP","RBT","MID CHESHIRE HOSPITALS NHS FOUNDATION TRUST","Acute and Acute & Community Trusts",204,4300,7.1446078431372548,5,8,29,97,65,4,17,53,86,44,3,15,44,96,46]
["Y62","NORTH WEST COMMISSIONING REGION","QOP","Greater Manchester Health & Social Care Partnership","RBV","THE CHRISTIE NHS FOUNDATION TRUST","Acute Specialist Trusts",107,2962,7.5700934579439254,3,2,13,36,53,10,15,15,45,22,2,2,11,36,56]
["Y62","NORTH WEST COMMISSIONING REGION","QYG","Cheshire and Merseyside STP","REM","LIVERPOOL UNIVERSITY HOSPITALS NHS FOUNDATION TRUST","Acute and Acute & Community Trusts",2055,12104,6.5559610705596105,42,157,374,949,536,129,315,576,792,244,58,174,517,980,326]
["Y62","NORTH WEST COMMISSIONING REGION","QYG","Cheshire and Merseyside STP","REN","THE CLATTERBRIDGE CANCER CENTRE NHS FOUNDATION TRUST","Acute Specialist Trusts",228,1451,7.394005847953216,5,14,34,80,95,14,30,50,77,57,3,8,20,104,93]
["Y62","NORTH WEST COMMISSIONING REGION","QYG","Cheshire and Merseyside STP","REP","LIVERPOOL WOMEN'S NHS FOUNDATION TRUST","Acute Specialist Trusts",186,1405,6.3664874551971327,5,17,29,90,47,24,31,48,57,27,10,23,37,79,37]
["Y62","NORTH WEST COMMISSIONING REGION","QYG","Cheshire and Merseyside STP","RET","THE WALTON CENTRE NHS FOUNDATION TRUST","Acute Specialist Trusts",106,1347,7.7201257861635222,2,4,12,38,50,8,12,19,31,36,1,2,11,39,53]
["Y62","NORTH WEST COMMISSIONING REGION","QYG","Cheshire and Merseyside STP","RJN","EAST CHESHIRE NHS TRUST","Acute and Acute & Community Trusts",122,2167,6.4822404371584703,6,7,24,52,33,8,16,36,43,19,5,14,32,49,22]
["Y62","NORTH WEST COMMISSIONING REGION","QYG","Cheshire and Merseyside STP","RJR","COUNTESS OF CHESTER HOSPITAL NHS FOUNDATION TRUST","Acute and Acute & Community Trusts",263,3819,5.8840304182509504,11,28,52,120,52,27,52,83,82,20,18,44,68,103,31]
["Y62","NORTH WEST COMMISSIONING REGION","QOP","Greater Manchester Health & Social Care Partnership","RM3","NORTHERN CARE ALLIANCE NHS FOUNDATION TRUST","Acute and Acute & Community Trusts",2263,17028,6.5867579908675804,84,155,403,990,634,191,318,588,802,364,82,186,545,1020,432]
["Y62","NORTH WEST COMMISSIONING REGION","QOP","Greater Manchester Health & Social Care Partnership","RMC","BOLTON NHS FOUNDATION TRUST","Acute and Acute & Community Trusts",1089,5533,7.0003060912151822,28,46,118,438,459,57,110,252,525,145,35,70,235,589,160]
["Y62","NORTH WEST COMMISSIONING REGION","QOP","Greater Manchester Health & Social Care Partnership","RMP","TAMESIDE AND GLOSSOP INTEGRATED CARE NHS FOUNDATION TRUST","Acute and Acute & Community Trusts",78,3584,5.1602564102564106,9,13,15,28,13,18,16,16,17,11,14,13,15,26,10]
["Y62","NORTH WEST COMMISSIONING REGION","QOP","Greater Manchester Health & Social Care Partnership","RRF","WRIGHTINGTON, WIGAN AND LEIGH NHS FOUNDATION TRUST","Acute and Acute & Community Trusts",159,5754,6.1949685534591197,8,14,26,74,37,18,19,46,52,24,14,19,38,64,24]
["Y62","NORTH WEST COMMISSIONING REGION","QOP","Greater Manchester Health & Social Care Partnership","RT2","PENNINE CARE NHS FOUNDATION TRUST","Mental Health & Learning Disability and Mental Health, Learning Disability & Community Trusts",231,3145,5.9379509379509381,5,28,54,103,41,23,42,55,85,26,17,33,79,73,29]
["Y62","NORTH WEST COMMISSIONING REGION","QE1","Healthier Lancashire and South Cumbria","RTX","UNIVERSITY HOSPITALS OF MORECAMBE BAY NHS FOUNDATION TRUST","Acute and Acute & Community Trusts",199,6070,5.125628140703518,22,26,54,63,34,29,41,66,46,17,25,39,68,57,10]
["Y62","NORTH WEST COMMISSIONING REGION","QYG","Cheshire and Merseyside STP","RVY","SOUTHPORT AND ORMSKIRK HOSPITAL NHS TRUST","Acute and Acute & Community Trusts",329,2861,6.0309017223910839,12,40,68,150,59,25,56,87,119,44,24,60,84,128,36]
["Y62","NORTH WEST COMMISSIONING REGION","QYG","Cheshire and Merseyside STP","RW4","MERSEY CARE NHS FOUNDATION TRUST","Mental Health & Learning Disability and Mental Health, Learning Disability & Community Trusts",2346,9735,6.9835180448991192,50,141,353,1043,759,130,261,549,913,496,80,154,475,1086,551]
["Y62","NORTH WEST COMMISSIONING REGION","QE1","Healthier Lancashire and South Cumbria","RW5","LANCASHIRE & SOUTH CUMBRIA NHS FOUNDATION TRUST","Mental Health & Learning Disability and Mental Health, Learning Disability & Community Trusts",1058,6159,6.9738500315059859,28,103,218,558,218,53,118,224,480,183,24,84,281,571,168]
["Y62","NORTH WEST COMMISSIONING REGION","QOP","Greater Manchester Health & Social Care Partnership","RWJ","STOCKPORT NHS FOUNDATION TRUST","Acute and Acute & Community Trusts",87,4993,5.047892720306514,9,12,19,35,12,19,20,20,24,4,10,16,27,30,4]
["Y62","NORTH WEST COMMISSIONING REGION","QYG","Cheshire and Merseyside STP","RWW","WARRINGTON AND HALTON TEACHING HOSPITALS NHS FOUNDATION TRUST","Acute and Acute & Community Trusts",51,3876,6.1274509803921573,4,5,7,22,13,2,7,17,23,2,4,4,15,26,2]
["Y62","NORTH WEST COMMISSIONING REGION","QOP","Greater Manchester Health & Social Care Partnership","RX7","NORTH WEST AMBULANCE SERVICE NHS TRUST","Ambulance Trusts",1350,6258,6.3648148148148147,73,191,226,533,327,109,228,330,490,194,51,124,275,651,250]
["Y62","NORTH WEST COMMISSIONING REGION","QYG","Cheshire and Merseyside STP","RXA","CHESHIRE AND WIRRAL PARTNERSHIP NHS FOUNDATION TRUST","Mental Health & Learning Disability and Mental Health, Learning Disability & Community Trusts",793,3383,7.2078604455653634,13,34,111,359,276,33,54,180,348,179,13,51,161,397,171]
["Y62","NORTH WEST COMMISSIONING REGION","QE1","Healthier Lancashire and South Cumbria","RXL","BLACKPOOL TEACHING HOSPITALS NHS FOUNDATION TRUST","Acute and Acute & Community Trusts",539,6870,6.4378478664192951,21,39,104,244,131,34,66,123,239,77,37,60,142,220,80]
["Y62","NORTH WEST COMMISSIONING REGION","QE1","Healthier Lancashire and South Cumbria","RXN","LANCASHIRE TEACHING HOSPITALS NHS FOUNDATION TRUST","Acute and Acute & Community Trusts",1723,8078,6.6632810988585804,43,140,266,748,528,95,219,449,689,271,67,180,408,791,278]
["Y62","NORTH WEST COMMISSIONING REGION","QE1","Healthier Lancashire and South Cumbria","RXR","EAST LANCASHIRE HOSPITALS NHS TRUST","Acute and Acute & Community Trusts",95,8472,6.3859649122807012,5,7,5,49,29,9,16,24,32,14,3,13,28,41,10]
["Y62","NORTH WEST COMMISSIONING REGION","QOP","Greater Manchester Health & Social Care Partnership","RXV","GREATER MANCHESTER MENTAL HEALTH NHS FOUNDATION TRUST","Mental Health & Learning Disability and Mental Health, Learning Disability & Community Trusts",1249,5688,6.4898585535094737,46,114,215,531,347,86,153,307,479,224,88,144,318,490,213]
["Y62","NORTH WEST COMMISSIONING REGION","QYG","Cheshire and Merseyside STP","RY2","BRIDGEWATER COMMUNITY HEALTHCARE NHS FOUNDATION TRUST","Community Trusts",296,1423,6.7764639639639634,8,25,45,118,100,33,47,67,97,52,11,12,47,152,74]
["Y62","NORTH WEST COMMISSIONING REGION","QYG","Cheshire and Merseyside STP","RY7","WIRRAL COMMUNITY HEALTH AND CARE NHS FOUNDATION TRUST","Community Trusts",137,1514,6.8613138686131387,2,12,22,56,45,6,19,41,44,27,2,11,34,56,34]
["Y63","NORTH EAST AND YORKSHIRE COMMISSIONING REGION","QHM","Cumbria and North East STP","R0B","SOUTH TYNESIDE AND SUNDERLAND NHS FOUNDATION TRUST","Acute and Acute & Community Trusts",131,7669,5.2417302798982188,10,17,33,46,25,28,28,32,29,14,18,21,38,45,9]
["Y63","NORTH EAST AND YORKSHIRE COMMISSIONING REGION","QWO","West Yorkshire and Harrogate Health & Care Partnership (STP)","RAE","BRADFORD TEACHING HOSPITALS NHS FOUNDATION TRUST","Acute and Acute & Community Trusts",74,5468,5.9572072072072073,4,7,16,25,22,17,9,14,21,13,8,7,21,26,12]
["Y63","NORTH EAST AND YORKSHIRE COMMISSIONING REGION","QOQ","Humber, Coast and Vale STP","RCB","YORK AND SCARBOROUGH TEACHING HOSPITALS NHS FOUNDATION TRUST","Acute and Acute & Community Trusts",142,7674,5.28169014084507,12,17,39,51,23,26,28,37,35,16,20,20,48,43,11]
["Y63","NORTH EAST AND YORKSHIRE COMMISSIONING REGION","QOQ","Humber, Coast and Vale STP","RCD","HARROGATE AND DISTRICT NHS FOUNDATION TRUST","Acute and Acute & Community Trusts",932,3924,6.869635193133047,21,76,151,418,270,41,114,254,366,157,16,65,201,448,203]
["Y63","NORTH EAST AND YORKSHIRE COMMISSIONING REGION","QWO","West Yorkshire and Harrogate Health & Care Partnership (STP)","RCF","AIREDALE NHS FOUNDATION TRUST","Acute and Acute & Community Trusts",884,2987,7.1408371040723981,12,42,106,444,280,33,84,186,401,180,32,48,163,452,190]
["Y63","NORTH EAST AND YORKSHIRE COMMISSIONING REGION","QF7","South Yorkshire and Bassetlaw STP","RCU","SHEFFIELD CHILDREN'S NHS FOUNDATION TRUST","Acute and Acute & Community Trusts",275,3013,7.4424242424242424,9,7,39,112,108,16,23,56,110,70,10,5,34,119,107]
["Y63","NORTH EAST AND YORKSHIRE COMMISSIONING REGION","QF7","South Yorkshire and Bassetlaw STP","RFF","BARNSLEY HOSPITAL NHS FOUNDATION TRUST","Acute and Acute & Community Trusts",61,3523,6.5437158469945356,1,6,14,21,19,1,12,17,24,7,1,8,14,28,10]
["Y63","NORTH EAST AND YORKSHIRE COMMISSIONING REGION","QF7","South Yorkshire and Bassetlaw STP","RFR","THE ROTHERHAM NHS FOUNDATION TRUST","Acute and Acute & Community Trusts",53,3997,5.0786163522012586,7,7,10,18,11,11,5,18,14,5,10,11,15,14,3]
["Y63","NORTH EAST AND YORKSHIRE COMMISSIONING REGION","QWO","West Yorkshire and Harrogate Health & Care Partnership (STP)","RGD","LEEDS AND YORK PARTNERSHIP NHS FOUNDATION TRUST","Mental Health & Learning Disability and Mental Health, Learning Disability & Community Trusts",18,2818,5.6018518518518512,1,2,5,6,4,2,2,8,3,3,3,2,7,4,2]
["Y63","NORTH EAST AND YORKSHIRE COMMISSIONING REGION","QF7","South Yorkshire and Bassetlaw STP","RHQ","SHEFFIELD TEACHING HOSPITALS NHS FOUNDATION TRUST","Acute and Acute & Community Trusts",953,14915,6.6998950682056666,38,66,155,413,281,75,129,237,386,126,34,42,203,486,188]
["Y63","NORTH EAST AND YORKSHIRE COMMISSIONING REGION","QOQ","Humber, Coast and Vale STP","RJL","NORTHERN LINCOLNSHIRE AND GOOLE NHS FOUNDATION TRUST","Acute and Acute & Community Trusts",182,5527,5,21,31,42,61,27,30,35,59,43,15,26,41,57,43,15]
["Y63","NORTH EAST AND YORKSHIRE COMMISSIONING REGION","QHM","Cumbria and North East STP","RNN","NORTH CUMBRIA INTEGRATED CARE NHS FOUNDATION TRUST","Acute and Acute & Community Trusts",504,5709,5.1653439153439153,30,92,130,173,79,81,107,140,139,37,72,98,153,143,38]
["Y63","NORTH EAST AND YORKSHIRE COMMISSIONING REGION","QF7","South Yorkshire and Bassetlaw STP","RP5","DONCASTER AND BASSETLAW TEACHING HOSPITALS NHS FOUNDATION TRUST","Acute and Acute & Community Trusts",2561,5615,8.3391904204086948,104,270,578,1969,1240,158,283,626,1063,431,79,187,608,1264,423]
["Y63","NORTH EAST AND YORKSHIRE COMMISSIONING REGION","QHM","Cumbria and North East STP","RR7","GATESHEAD HEALTH NHS FOUNDATION TRUST","Acute and Acute & Community Trusts",351,4268,6.5859449192782522,12,34,56,164,85,24,43,88,145,51,11,32,75,176,57]
["Y63","NORTH EAST AND YORKSHIRE COMMISSIONING REGION","QWO","West Yorkshire and Harrogate Health & Care Partnership (STP)","RR8","LEEDS TEACHING HOSPITALS NHS TRUST","Acute and Acute & Community Trusts",3182,17248,7.1349256232977156,62,166,423,1462,1069,142,298,720,1445,577,65,153,576,1668,720]
["Y63","NORTH EAST AND YORKSHIRE COMMISSIONING REGION","QHM","Cumbria and North East STP","RTD","THE NEWCASTLE UPON TYNE HOSPITALS NHS FOUNDATION TRUST","Acute and Acute & Community Trusts",180,14299,6.8935185185185182,4,12,29,82,53,17,28,50,56,29,1,8,30,83,58]
["Y63","NORTH EAST AND YORKSHIRE COMMISSIONING REGION","QHM","Cumbria and North East STP","RTF","NORTHUMBRIA HEALTHCARE NHS FOUNDATION TRUST","Acute and Acute & Community Trusts",4015,7033,7.7156496471564964,58,90,447,1951,1469,86,160,616,1971,1182,45,107,494,2143,1226]
["Y63","NORTH EAST AND YORKSHIRE COMMISSIONING REGION","QOQ","Humber, Coast and Vale STP","RV9","HUMBER TEACHING NHS FOUNDATION TRUST","Mental Health & Learning Disability and Mental Health, Learning Disability & Community Trusts",607,2645,6.8629873695771551,12,48,91,285,175,35,72,132,240,128,21,51,153,251,134]
["Y63","NORTH EAST AND YORKSHIRE COMMISSIONING REGION","QHM","Cumbria and North East STP","RVW","NORTH TEES AND HARTLEPOOL NHS FOUNDATION TRUST","Acute and Acute & Community Trusts",122,4661,6.0587431693989071,3,10,25,55,29,11,25,32,41,13,8,20,33,48,13]
["Y63","NORTH EAST AND YORKSHIRE COMMISSIONING REGION","QWO","West Yorkshire and Harrogate Health & Care Partnership (STP)","RWY","CALDERDALE AND HUDDERSFIELD NHS FOUNDATION TRUST","Acute and Acute & Community Trusts",256,5590,6.263020833333333,18,26,40,94,78,35,33,58,88,42,20,32,48,109,47]
["Y63","NORTH EAST AND YORKSHIRE COMMISSIONING REGION","QHM","Cumbria and North East STP","RX3","TEES, ESK AND WEAR VALLEYS NHS FOUNDATION TRUST","Mental Health & Learning Disability and Mental Health, Learning Disability & Community Trusts",2361,6819,6.5417196103346038,39,189,388,1009,736,136,340,646,849,393,106,311,672,912,364]
["Y63","NORTH EAST AND YORKSHIRE COMMISSIONING REGION","QHM","Cumbria and North East STP","RX4","CUMBRIA, NORTHUMBERLAND, TYNE AND WEAR NHS FOUNDATION TRUST","Mental Health & Learning Disability and Mental Health, Learning Disability & Community Trusts",104,6670,6.2419871794871788,7,7,14,45,31,15,9,30,35,15,15,5,27,36,21]
["Y63","NORTH EAST AND YORKSHIRE COMMISSIONING REGION","QHM","Cumbria and North East STP","RX6","NORTH EAST AMBULANCE SERVICE NHS FOUNDATION TRUST","Ambulance Trusts",293,2645,5.1763367463026171,35,62,53,99,44,77,64,82,57,13,14,38,75,124,42]
["Y63","NORTH EAST AND YORKSHIRE COMMISSIONING REGION","QWO","West Yorkshire and Harrogate Health & Care Partnership (STP)","RX8","YORKSHIRE AMBULANCE SERVICE NHS TRUST","Ambulance Trusts",754,5221,6.5229885057471257,41,84,104,319,206,78,110,188,266,113,31,51,136,378,159]
["Y63","NORTH EAST AND YORKSHIRE COMMISSIONING REGION","QF7","South Yorkshire and Bassetlaw STP","RXE","ROTHERHAM DONCASTER AND SOUTH HUMBER NHS FOUNDATION TRUST","Mental Health & Learning Disability and Mental Health, Learning Disability & Community Trusts",56,3009,5.3720238095238093,4,6,18,16,12,9,13,16,14,4,4,9,23,15,5]
["Y63","NORTH EAST AND YORKSHIRE COMMISSIONING REGION","QWO","West Yorkshire and Harrogate Health & Care Partnership (STP)","RXF","MID YORKSHIRE HOSPITALS NHS TRUST","Acute and Acute & Community Trusts",2338,7662,6.5116196179070425,48,182,401,1071,636,150,287,610,929,362,118,284,638,982,320]
["Y63","NORTH EAST AND YORKSHIRE COMMISSIONING REGION","QWO","West Yorkshire and Harrogate Health & Care Partnership (STP)","RXG","SOUTH WEST YORKSHIRE PARTNERSHIP NHS FOUNDATION TRUST","Mental Health & Learning Disability and Mental Health, Learning Disability & Community Trusts",819,3996,7.2853072853072858,17,32,84,380,306,24,72,168,360,195,15,43,159,441,161]
["Y63","NORTH EAST AND YORKSHIRE COMMISSIONING REGION","QHM","Cumbria and North East STP","RXP","COUNTY DURHAM AND DARLINGTON NHS FOUNDATION TRUST","Acute and Acute & Community Trusts",1503,6751,6.2347527167886456,75,163,269,586,410,141,235,394,523,210,77,183,404,633,206]
["Y63","NORTH EAST AND YORKSHIRE COMMISSIONING REGION","QWO","West Yorkshire and Harrogate Health & Care Partnership (STP)","RY6","LEEDS COMMUNITY HEALTHCARE NHS TRUST","Community Trusts",904,2710,7.0390855457227133,20,50,117,410,309,47,101,205,351,200,32,81,167,397,229]
["Y63","NORTH EAST AND YORKSHIRE COMMISSIONING REGION","QWO","West Yorkshire and Harrogate Health & Care Partnership (STP)","TAD","BRADFORD DISTRICT CARE NHS FOUNDATION TRUST","Mental Health & Learning Disability and Mental Health, Learning Disability & Community Trusts",489,2811,7.2409679618268576,8,23,45,240,176,21,46,99,209,115,13,33,91,242,110]
["Y63","NORTH EAST AND YORKSHIRE COMMISSIONING REGION","QF7","South Yorkshire and Bassetlaw STP","TAH","SHEFFIELD HEALTH & SOCIAL CARE NHS FOUNDATION TRUST","Mental Health & Learning Disability and Mental Health, Learning Disability & Community Trusts",457,2196,5.4741064916119617,19,50,104,170,114,69,106,124,128,30,49,93,147,139,29]

{"sheet":"Involvement","index":5,"n_rows":204,"n_cols":25,"rows_kept":204,"cut":false,"hidden":false,"merged":[[6,5,7,5],[6,0,7,0],[6,1,7,1],[6,2,7,2],[6,3,7,3],[6,4,7,4],[6,20,6,24],[6,6,7,6],[6,7,7,7],[6,8,7,8],[6,9,7,9],[6,10,6,14],[6,15,6,19]]}
[]
[]
[]
[]
[null,null,null,null,null,null,null,null,null,null,null,null,null,null,"Avg Involvement:",{"$f":"AVERAGE(K6,P6,U6)","v":6.2991850851633382}]
[null,null,null,null,null,null,null,null,null,null,{"$f":"IF($H$10=0,\"-\",((K$10*0)+(L$10*2.5)+(M$10*5)+(N$10*7.5)+(O$10*10))/$H$10)","v":6.4314508168889519},null,null,null,null,{"$f":"IF($H$10=0,\"-\",((P$10*0)+(Q$10*2.5)+(R$10*5)+(S$10*7.5)+(T$10*10))/$H$10)","v":6.4991234927628927},null,null,null,null,{"$f":"IF($H$10=0,\"-\",((U$10*0)+(V$10*2.5)+(W$10*5)+(X$10*7.5)+(Y$10*10))/$H$10)","v":5.96698094583817}]
["Region Code","Region Name","ICB Code","ICB Name","Org Code","Org Name","Care Setting","Total Responses (Average across Theme)","HSCIC Workforce Headcount","Involvement Score","Weighted Breakdown of Responses - Involvement Q1",null,null,null,null," Weighted Breakdown of Responses - Involvement Q2",null,null,null,null,"Weighted Breakdown of Responses - Involvement Q3"]
[null,null,null,null,null,null,null,null,null,null,"Strongly Disagree","Disagree","Neither Disagree nor Agree","Agree","Strongly Agree","Strongly Disagree","Disagree","Neither Disagree nor Agree","Agree","Strongly Agree","Strongly Disagree","Disagree","Neither Disagree nor Agree","Agree","Strongly Agree"]
[null,null,null,null,null,"England",null,126639,1128001,6.2991850851633382,6725,16269,24885,56258,22744,7236,15182,23095,57307,23981,8326,19464,32258,48371,18292]
[null,null,null,null,null,"Selection (excluding suppressed data)",null,{"$f":"SUBTOTAL(9,H11:H1002)","v":126639},{"$f":"SUBTOTAL(9,I11:I1002)","v":1128001},{"$f":"IF(H10=0,\"-\",AVERAGE(((K10*0)+(L10*2.5)+(M10*5)+(N10*7.5)+(O10*10)),((P10*0)+(Q10*2.5)+(R10*5)+(S10*7.5)+(T10*10)),((U10*0)+(V10*2.5)+(W10*5)+(X10*7.5)+(Y10*10)))/H10)","v":6.2991850851633382},{"$f":"SUBTOTAL(9,K11:K1002)","v":6725},{"$f":"SUBTOTAL(9,L11:L1002)","v":16269},24885,56258,22744,7236,15182,23095,57307,23981,8326,19464,32258,48371,18292]
["Y56","LONDON COMMISSIONING REGION","QMF","East London Health & Care Partnership (STP)","R1H","BARTS HEALTH NHS TRUST","Acute and Acute & Community Trusts",376,15760,6.1192375886524824,31,49,80,153,63,30,40,72,166,68,36,52,83,151,54]
["Y56","LONDON COMMISSIONING REGION","QMJ","North London Partners in Health & Care (STP)","RAL","ROYAL FREE LONDON NHS FOUNDATION TRUST","Acute and Acute & Community Trusts",110,9812,5.8106060606060606,9,12,22,54,13,13,12,14,57,14,14,19,31,35,11]
["Y56","LONDON COMMISSIONING REGION","QRV","North West London Health & Care Partnership (STP)","RAS","THE HILLINGDON HOSPITALS NHS FOUNDATION TRUST","Acute and Acute & Community Trusts",21,3164,6.666666666666667,2,2,3,9,5,2,1,1,12,5,2,3,2,9,5]
["Y56","LONDON COMMISSIONING REGION","QMF","East London Health & Care Partnership (STP)","RAT","NORTH EAST LONDON NHS FOUNDATION TRUST","Mental Health & Learning Disability and Mental Health, Learning Disability & Community Trusts",1020,5887,6.6879084967320264,33,81,215,513,178,35,68,182,544,191,36,111,278,451,144]
["Y56","LONDON COMMISSIONING REGION","QWE","South West London Health & Care Partnership (STP)","RAX","KINGSTON HOSPITAL NHS FOUNDATION TRUST","Acute and Acute & Community Trusts",56,3244,5.4464285714285712,6,9,16,22,3,9,7,7,28,5,10,5,13,21,7]
["Y56","LONDON COMMISSIONING REGION","QMF","East London Health & Care Partnership (STP)","RF4","BARKING, HAVERING AND REDBRIDGE UNIVERSITY HOSPITALS NHS TRUST","Acute and Acute & Community Trusts",420,6783,5.9186507936507944,33,43,107,172,65,36,48,94,174,68,43,64,128,140,45]
["Y56","LONDON COMMISSIONING REGION","QKK","Our Healthier South East London STP","RJ1","GUY'S AND ST THOMAS' NHS FOUNDATION TRUST","Acute and Acute & Community Trusts",266,20397,6.3659147869674184,20,29,48,113,57,20,32,34,120,60,24,39,59,97,48]
["Y56","LONDON COMMISSIONING REGION","QKK","Our Healthier South East London STP","RJ2","LEWISHAM AND GREENWICH NHS TRUST","Acute and Acute & Community Trusts",470,6157,5.8404255319148932,38,59,105,217,51,38,55,102,214,61,48,79,127,172,44]
["Y56","LONDON COMMISSIONING REGION","QWE","South West London Health & Care Partnership (STP)","RJ7","ST GEORGE'S UNIVERSITY HOSPITALS NHS FOUNDATION TRUST","Acute and Acute & Community Trusts",312,8764,6.0069444444444446,21,46,57,144,44,20,35,65,141,51,31,59,69,120,33]
["Y56","LONDON COMMISSIONING REGION","QKK","Our Healthier South East London STP","RJZ","KING'S COLLEGE HOSPITAL NHS FOUNDATION TRUST","Acute and Acute & Community Trusts",100,12410,6.3083333333333336,7,10,26,37,20,6,8,25,42,19,7,11,29,37,16]
["Y56","LONDON COMMISSIONING REGION","QMJ","North London Partners in Health & Care (STP)","RKE","WHITTINGTON HEALTH NHS TRUST","Acute and Acute & Community Trusts",286,4003,6.1858974358974361,23,36,54,120,53,23,29,57,119,58,23,52,59,103,49]
["Y56","LONDON COMMISSIONING REGION","QRV","North West London Health & Care Partnership (STP)","RKL","WEST LONDON NHS TRUST","Mental Health & Learning Disability and Mental Health, Learning Disability & Community Trusts",30,3793,5.3888888888888884,3,5,11,7,4,2,8,7,10,3,4,4,6,14,2]
["Y56","LONDON COMMISSIONING REGION","QMJ","North London Partners in Health & Care (STP)","RP4","GREAT ORMOND STREET HOSPITAL FOR CHILDREN NHS FOUNDATION TRUST","Acute Specialist Trusts",129,5112,6.8346253229974154,7,10,17,76,21,5,8,15,75,27,8,16,23,59,23]
["Y56","LONDON COMMISSIONING REGION","QMJ","North London Partners in Health & Care (STP)","RP6","MOORFIELDS EYE HOSPITAL NHS FOUNDATION TRUST","Acute Specialist Trusts",14,2082,4.9404761904761907,0,7,2,2,3,0,8,1,3,2,1,6,2,3,2]
["Y56","LONDON COMMISSIONING REGION","QKK","Our Healthier South East London STP","RPG","OXLEAS NHS FOUNDATION TRUST","Mental Health & Learning Disability and Mental Health, Learning Disability & Community Trusts",359,3475,6.4415041782729805,17,48,62,158,74,20,31,56,179,73,21,52,100,135,51]
["Y56","LONDON COMMISSIONING REGION","QRV","North West London Health & Care Partnership (STP)","RQM","CHELSEA AND WESTMINSTER HOSPITAL NHS FOUNDATION TRUST","Acute and Acute & Community Trusts",18,5899,6.6203703703703702,2,0,3,8,5,2,1,3,6,6,2,3,3,5,5]
["Y56","LONDON COMMISSIONING REGION","QMF","East London Health & Care Partnership (STP)","RQX","HOMERTON UNIVERSITY HOSPITAL NHS FOUNDATION TRUST","Acute and Acute & Community Trusts",881,3550,6.7953083617101786,30,61,163,422,210,42,60,164,428,189,48,82,226,371,154]
["Y56","LONDON COMMISSIONING REGION","QWE","South West London Health & Care Partnership (STP)","RQY","SOUTH WEST LONDON AND ST GEORGE'S MENTAL HEALTH NHS TRUST","Mental Health & Learning Disability and Mental Health, Learning Disability & Community Trusts",50,2320,6.0333333333333341,3,7,11,17,12,4,6,11,19,10,5,9,16,12,8]
["Y56","LONDON COMMISSIONING REGION","QMJ","North London Partners in Health & Care (STP)","RRP","BARNET, ENFIELD AND HARINGEY MENTAL HEALTH NHS TRUST","Mental Health & Learning Disability and Mental Health, Learning Disability & Community Trusts",218,3066,6.4793577981651378,12,22,46,92,46,13,20,38,97,50,14,32,47,92,33]
["Y56","LONDON COMMISSIONING REGION","QKK","Our Healthier South East London STP","RRU","LONDON AMBULANCE SERVICE NHS TRUST","Ambulance Trusts",41,6227,5.1829268292682924,7,5,9,12,8,6,8,12,7,8,8,9,10,6,8]
["Y56","LONDON COMMISSIONING REGION","QMJ","North London Partners in Health & Care (STP)","RRV","UNIVERSITY COLLEGE LONDON HOSPITALS NHS FOUNDATION TRUST","Acute and Acute & Community Trusts",663,9370,6.5196078431372548,35,76,93,312,147,34,81,91,300,157,40,116,132,270,105]
["Y56","LONDON COMMISSIONING REGION","QMJ","North London Partners in Health & Care (STP)","RV3","CENTRAL AND NORTH WEST LONDON NHS FOUNDATION TRUST","Mental Health & Learning Disability and Mental Health, Learning Disability & Community Trusts",37,6889,5.4954954954954953,4,5,9,15,4,4,9,4,14,6,2,12,10,7,6]
["Y56","LONDON COMMISSIONING REGION","QKK","Our Healthier South East London STP","RV5","SOUTH LONDON AND MAUDSLEY NHS FOUNDATION TRUST","Mental Health & Learning Disability and Mental Health, Learning Disability & Community Trusts",111,5026,6.501501501501501,3,13,22,55,18,5,9,14,62,21,7,20,25,41,18]
["Y56","LONDON COMMISSIONING REGION","QWE","South West London Health & Care Partnership (STP)","RVR","EPSOM AND ST HELIER UNIVERSITY HOSPITALS NHS TRUST","Acute and Acute & Community Trusts",204,6045,5.8946078431372548,13,35,33,100,23,15,29,38,92,30,18,40,48,79,19]
["Y56","LONDON COMMISSIONING REGION","QMF","East London Health & Care Partnership (STP)","RWK","EAST LONDON NHS FOUNDATION TRUST","Mental Health & Learning Disability and Mental Health, Learning Disability & Community Trusts",1437,5851,6.9641614474599862,51,99,237,728,331,50,92,223,733,346,53,133,345,640,266]
["Y56","LONDON COMMISSIONING REGION","QWE","South West London Health & Care Partnership (STP)","RY9","HOUNSLOW AND RICHMOND COMMUNITY HEALTHCARE NHS TRUST","Community Trusts",180,1045,6.791666666666667,9,13,35,90,33,8,10,29,92,41,7,18,39,86,30]
["Y56","LONDON COMMISSIONING REGION","QRV","North West London Health & Care Partnership (STP)","RYJ","IMPERIAL COLLEGE HEALTHCARE NHS TRUST","Acute and Acute & Community Trusts",80,12149,6,6,11,14,34,15,7,14,10,33,16,9,16,12,34,9]
["Y56","LONDON COMMISSIONING REGION","QRV","North West London Health & Care Partnership (STP)","RYX","CENTRAL LONDON COMMUNITY HEALTHCARE NHS TRUST","Community Trusts",154,4006,6.2824675324675328,15,20,28,58,33,12,20,21,70,31,10,23,35,54,32]
["Y58","SOUTH WEST COMMISSIONING REGION","QVV","Dorset STP","R0D","UNIVERSITY HOSPITALS DORSET NHS FOUNDATION TRUST","Acute and Acute & Community Trusts",172,8004,6.0562015503875974,5,33,28,75,31,9,24,28,82,29,13,39,48,53,19]
["Y58","SOUTH WEST COMMISSIONING REGION","QSL","Somerset STP","RA4","YEOVIL DISTRICT HOSPITAL NHS FOUNDATION TRUST","Acute and Acute & Community Trusts",503,2315,6.6699801192842942,18,47,91,245,102,21,32,109,235,106,22,57,130,218,76]
["Y58","SOUTH WEST COMMISSIONING REGION","QUY","Bristol, North Somerset and South Gloucestershire STP","RA7","UNIVERSITY HOSPITALS BRISTOL AND WESTON NHS FOUNDATION TRUST","Acute and Acute & Community Trusts",2659,10096,6.5525886924909109,75,263,510,1383,435,71,238,509,1382,462,118,366,735,1110,330]
["Y58","SOUTH WEST COMMISSIONING REGION","QJK","Devon STP","RA9","TORBAY AND SOUTH DEVON NHS FOUNDATION TRUST","Acute and Acute & Community Trusts",140,5683,5.8154761904761898,13,23,23,58,23,15,19,20,62,24,19,25,29,50,17]
["Y58","SOUTH WEST COMMISSIONING REGION","QVV","Dorset STP","RBD","DORSET COUNTY HOSPITAL NHS FOUNDATION TRUST","Acute and Acute & Community Trusts",464,2765,6.6038074712643677,25,42,93,201,103,25,37,58,240,104,29,66,102,193,74]
["Y58","SOUTH WEST COMMISSIONING REGION","QJK","Devon STP","RBZ","NORTHERN DEVON HEALTHCARE NHS TRUST","Acute and Acute & Community Trusts",538,2963,6.7007434944237918,25,53,118,238,111,11,42,93,284,109,20,63,146,228,81]
["Y58","SOUTH WEST COMMISSIONING REGION","QOX","Bath and North East Somerset, Swindon and Wiltshire STP","RD1","ROYAL UNITED HOSPITALS BATH NHS FOUNDATION TRUST","Acute and Acute & Community Trusts",256,5074,6.940104166666667,6,24,48,115,63,8,11,45,131,61,15,22,47,127,45]
["Y58","SOUTH WEST COMMISSIONING REGION","QVV","Dorset STP","RDY","DORSET HEALTHCARE UNIVERSITY NHS FOUNDATION TRUST","Mental Health & Learning Disability and Mental Health, Learning Disability & Community Trusts",1148,5189,6.6499709639953544,50,104,213,527,254,57,82,206,543,260,69,133,294,458,194]
["Y58","SOUTH WEST COMMISSIONING REGION","QT6","Cornwall and the Isles of Scilly Health & Social Care Partnership (STP)","REF","ROYAL CORNWALL HOSPITALS NHS TRUST","Acute and Acute & Community Trusts",682,5957,6.5114858260019544,52,65,130,248,192,61,61,115,248,197,77,87,144,218,160]
["Y58","SOUTH WEST COMMISSIONING REGION","QSL","Somerset STP","RH5","SOMERSET NHS FOUNDATION TRUST","Acute and Acute & Community Trusts",946,8202,6.666666666666667,37,85,161,471,192,44,73,134,481,214,51,132,232,380,151]
["Y58","SOUTH WEST COMMISSIONING REGION","QJK","Devon STP","RH8","ROYAL DEVON AND EXETER NHS FOUNDATION TRUST","Acute and Acute & Community Trusts",1184,7581,6.5617961711711716,34,149,242,537,237,38,97,248,579,222,50,166,322,485,162]
["Y58","SOUTH WEST COMMISSIONING REGION","QT6","Cornwall and the Isles of Scilly Health & Social Care Partnership (STP)","RJ8","CORNWALL PARTNERSHIP NHS FOUNDATION TRUST","Mental Health & Learning Disability and Mental Health, Learning Disability & Community Trusts",11,3370,4.6212121212121211,2,2,4,3,0,2,2,0,6,1,0,6,3,2,0]
["Y58","SOUTH WEST COMMISSIONING REGION","QJK","Devon STP","RK9","UNIVERSITY HOSPITALS PLYMOUTH NHS TRUST","Acute and Acute & Community Trusts",170,8017,6.2107843137254894,13,23,35,64,35,10,29,23,70,38,12,31,38,58,31]
["Y58","SOUTH WEST COMMISSIONING REGION","QOX","Bath and North East Somerset, Swindon and Wiltshire STP","RN3","GREAT WESTERN HOSPITALS NHS FOUNDATION TRUST","Acute and Acute & Community Trusts",1702,4570,6.3410693301997654,72,169,386,821,255,83,172,308,876,263,90,246,481,689,196]
["Y58","SOUTH WEST COMMISSIONING REGION","QOX","Bath and North East Somerset, Swindon and Wiltshire STP","RNZ","SALISBURY NHS FOUNDATION TRUST","Acute and Acute & Community Trusts",99,3371,5.8754208754208754,6,16,26,39,12,7,6,24,48,14,10,19,30,28,12]
["Y58","SOUTH WEST COMMISSIONING REGION","QR1","Gloucestershire STP","RTE","GLOUCESTERSHIRE HOSPITALS NHS FOUNDATION TRUST","Acute and Acute & Community Trusts",98,7155,6.037414965986394,7,10,23,42,16,8,12,20,43,16,9,17,27,36,10]
["Y58","SOUTH WEST COMMISSIONING REGION","QR1","Gloucestershire STP","RTQ","GLOUCESTERSHIRE HEALTH AND CARE NHS FOUNDATION TRUST","Mental Health & Learning Disability and Mental Health, Learning Disability & Community Trusts",171,3774,6.9395711500974659,4,16,27,83,41,5,13,24,78,51,6,22,39,74,30]
["Y58","SOUTH WEST COMMISSIONING REGION","QUY","Bristol, North Somerset and South Gloucestershire STP","RVJ","NORTH BRISTOL NHS TRUST","Acute and Acute & Community Trusts",175,8058,6.4095238095238098,29,25,9,36,76,20,32,12,32,79,33,22,17,45,58]
["Y58","SOUTH WEST COMMISSIONING REGION","QJK","Devon STP","RWV","DEVON PARTNERSHIP NHS TRUST","Mental Health & Learning Disability and Mental Health, Learning Disability & Community Trusts",151,3068,6.8432671081677698,5,15,35,64,32,4,10,30,73,34,4,13,35,69,30]
["Y58","SOUTH WEST COMMISSIONING REGION","QJK","Devon STP","RYF","SOUTH WESTERN AMBULANCE SERVICE NHS FOUNDATION TRUST","Ambulance Trusts",520,4390,5.3044871794871797,37,70,118,234,62,66,94,144,170,46,70,120,162,138,30]
["Y59","SOUTH EAST COMMISSIONING REGION","QRL","Hampshire and the Isle of Wight STP","R1C","SOLENT NHS TRUST","Mental Health & Learning Disability and Mental Health, Learning Disability & Community Trusts",251,3306,7.1148738379814072,5,21,42,109,74,7,24,26,120,74,9,25,51,108,58]
["Y59","SOUTH EAST COMMISSIONING REGION","QRL","Hampshire and the Isle of Wight STP","R1F","ISLE OF WIGHT NHS TRUST","Acute and Acute & Community Trusts",344,3082,7.0930232558139537,9,25,44,173,96,12,24,37,181,92,16,33,83,144,68]
["Y59","SOUTH EAST COMMISSIONING REGION","QXU","Surrey Heartlands Health & Care Partnership (STP)","RA2","ROYAL SURREY COUNTY HOSPITAL NHS FOUNDATION TRUST","Acute and Acute & Community Trusts",52,4289,6.7147435897435903,3,1,16,18,14,2,5,9,25,11,3,5,13,21,10]
["Y59","SOUTH EAST COMMISSIONING REGION","QNX","Sussex Health and Care Partnership STP","RDR","SUSSEX COMMUNITY NHS FOUNDATION TRUST","Community Trusts",62,4364,7.163978494623656,0,8,6,33,15,1,6,3,36,16,0,9,12,27,14]
["Y59","SOUTH EAST COMMISSIONING REGION","QNQ","Frimley Health & Care (STP)","RDU","FRIMLEY HEALTH NHS FOUNDATION TRUST","Acute and Acute & Community Trusts",155,8996,5.424731182795699,12,32,33,52,26,18,29,33,53,22,21,36,34,51,13]
["Y59","SOUTH EAST COMMISSIONING REGION","QRL","Hampshire and the Isle of Wight STP","RHM","UNIVERSITY HOSPITAL SOUTHAMPTON NHS FOUNDATION TRUST","Acute and Acute & Community Trusts",3388,11005,6.8720484061393154,73,244,589,1781,701,90,232,608,1750,713,105,365,867,1511,547]
["Y59","SOUTH EAST COMMISSIONING REGION","QRL","Hampshire and the Isle of Wight STP","RHU","PORTSMOUTH HOSPITALS UNIVERSITY NATIONAL HEALTH SERVICE TRUST","Acute and Acute & Community Trusts",1077,7090,6.1838440111420612,61,119,236,488,173,72,124,223,487,171,70,153,318,403,133]
["Y59","SOUTH EAST COMMISSIONING REGION","QU9","Buckinghamshire, Oxfordshire and Berkshire West STP","RHW","ROYAL BERKSHIRE NHS FOUNDATION TRUST","Acute and Acute & Community Trusts",97,5537,6.5463917525773194,4,18,12,39,24,5,15,13,36,28,6,14,19,38,20]
["Y59","SOUTH EAST COMMISSIONING REGION","QRL","Hampshire and the Isle of Wight STP","RN5","HAMPSHIRE HOSPITALS NHS FOUNDATION TRUST","Acute and Acute & Community Trusts",293,6428,5.78782707622298,25,48,59,112,49,28,44,50,123,48,33,59,71,89,41]
["Y59","SOUTH EAST COMMISSIONING REGION","QKS","Kent and Medway STP","RN7","DARTFORD AND GRAVESHAM NHS TRUST","Acute and Acute & Community Trusts",620,3401,6.5053763440860219,27,64,132,261,136,31,69,128,259,133,39,76,160,225,120]
["Y59","SOUTH EAST COMMISSIONING REGION","QU9","Buckinghamshire, Oxfordshire and Berkshire West STP","RNU","OXFORD HEALTH NHS FOUNDATION TRUST","Mental Health & Learning Disability and Mental Health, Learning Disability & Community Trusts",1100,5265,6.7295454545454545,44,106,176,529,245,47,87,164,561,241,45,135,274,471,175]
["Y59","SOUTH EAST COMMISSIONING REGION","QKS","Kent and Medway STP","RPA","MEDWAY NHS FOUNDATION TRUST","Acute and Acute & Community Trusts",312,4106,5.7852564102564106,34,39,71,120,48,37,40,60,121,54,36,49,88,87,52]
["Y59","SOUTH EAST COMMISSIONING REGION","QNX","Sussex Health and Care Partnership STP","RPC","QUEEN VICTORIA HOSPITAL NHS FOUNDATION TRUST","Acute Specialist Trusts",145,902,7.2126436781609193,5,8,28,51,53,5,14,17,49,60,6,17,33,48,41]
["Y59","SOUTH EAST COMMISSIONING REGION","QU9","Buckinghamshire, Oxfordshire and Berkshire West STP","RTH","OXFORD UNIVERSITY HOSPITALS NHS FOUNDATION TRUST","Acute and Acute & Community Trusts",2838,12111,6.5724101479915431,122,288,490,1367,575,125,259,463,1433,562,163,394,677,1182,422]
["Y59","SOUTH EAST COMMISSIONING REGION","QKS","Kent and Medway STP","RVV","EAST KENT HOSPITALS UNIVERSITY NHS FOUNDATION TRUST","Acute and Acute & Community Trusts",2948,9248,6.1954432383536862,112,366,660,1393,417,131,349,614,1447,410,184,469,851,1121,323]
["Y59","SOUTH EAST COMMISSIONING REGION","QRL","Hampshire and the Isle of Wight STP","RW1","SOUTHERN HEALTH NHS FOUNDATION TRUST","Mental Health & Learning Disability and Mental Health, Learning Disability & Community Trusts",440,5369,6.8219696969696964,14,44,72,211,99,16,36,58,228,102,15,52,110,183,80]
["Y59","SOUTH EAST COMMISSIONING REGION","QNQ","Frimley Health & Care (STP)","RWX","BERKSHIRE HEALTHCARE NHS FOUNDATION TRUST","Mental Health & Learning Disability and Mental Health, Learning Disability & Community Trusts",1491,3880,7.2350771294433267,24,98,246,755,374,19,74,199,772,427,35,132,330,670,324]
["Y59","SOUTH EAST COMMISSIONING REGION","QNX","Sussex Health and Care Partnership STP","RX2","SUSSEX PARTNERSHIP NHS FOUNDATION TRUST","Mental Health & Learning Disability and Mental Health, Learning Disability & Community Trusts",145,4598,6.6091954022988508,6,12,25,70,32,10,7,25,72,31,12,18,35,55,25]
["Y59","SOUTH EAST COMMISSIONING REGION","QNX","Sussex Health and Care Partnership STP","RXC","EAST SUSSEX HEALTHCARE NHS TRUST","Acute and Acute & Community Trusts",119,6714,5.6022408963585431,14,15,29,45,16,12,14,23,55,15,16,18,42,31,12]
["Y59","SOUTH EAST COMMISSIONING REGION","QU9","Buckinghamshire, Oxfordshire and Berkshire West STP","RXQ","BUCKINGHAMSHIRE HEALTHCARE NHS TRUST","Acute and Acute & Community Trusts",607,5385,6.5719384953322351,20,61,118,292,116,19,67,94,309,118,30,86,151,252,88]
["Y59","SOUTH EAST COMMISSIONING REGION","QKS","Kent and Medway STP","RXY","KENT AND MEDWAY NHS AND SOCIAL CARE PARTNERSHIP TRUST","Mental Health & Learning Disability and Mental Health, Learning Disability & Community Trusts",272,3123,6.6819852941176467,17,26,54,108,67,12,24,41,129,66,15,41,42,123,51]
["Y59","SOUTH EAST COMMISSIONING REGION","QNX","Sussex Health and Care Partnership STP","RYD","SOUTH EAST COAST AMBULANCE SERVICE NHS FOUNDATION TRUST","Ambulance Trusts",318,3879,4.6121593291404617,36,66,74,113,29,62,81,59,86,30,69,86,78,68,17]
["Y59","SOUTH EAST COMMISSIONING REGION","QU9","Buckinghamshire, Oxfordshire and Berkshire West STP","RYE","SOUTH CENTRAL AMBULANCE SERVICE NHS FOUNDATION TRUST","Ambulance Trusts",143,4160,5.3613053613053614,12,30,29,58,14,14,25,23,62,19,22,35,35,40,11]
["Y59","SOUTH EAST COMMISSIONING REGION","QNX","Sussex Health and Care Partnership STP","RYR","UNIVERSITY HOSPITALS SUSSEX NHS FOUNDATION TRUST","Acute and Acute & Community Trusts",326,14064,5.8461145194274025,27,48,57,153,41,23,43,57,155,48,29,77,81,107,32]
["Y59","SOUTH EAST COMMISSIONING REGION","QKS","Kent and Medway STP","RYY","KENT COMMUNITY HEALTH NHS FOUNDATION TRUST","Community Trusts",324,4189,6.6820987654320989,16,30,60,156,62,14,28,39,174,69,16,41,68,145,54]
["Y60","MIDLANDS COMMISSIONING REGION","QGH","Herefordshire and Worcestershire STP","R1A","HEREFORDSHIRE AND WORCESTERSHIRE HEALTH AND CARE NHS TRUST","Mental Health & Learning Disability and Mental Health, Learning Disability & Community Trusts",283,3596,6.4988221436984688,11,30,47,144,52,13,28,42,146,54,18,43,76,102,44]
["Y60","MIDLANDS COMMISSIONING REGION","QOC","Shropshire and Telford and Wrekin STP","R1D","SHROPSHIRE COMMUNITY HEALTH NHS TRUST","Community Trusts",21,1244,7.0634920634920642,1,2,3,11,4,2,0,1,13,5,1,0,3,14,3]
["Y60","MIDLANDS COMMISSIONING REGION","QUA","The Black Country and West Birmingham STP","RBK","WALSALL HEALTHCARE NHS TRUST","Acute and Acute & Community Trusts",1015,3772,6.2512315270935961,65,133,200,457,160,66,94,190,478,187,80,138,247,418,132]
["Y60","MIDLANDS COMMISSIONING REGION","QJ2","Joined Up Care Derbyshire STP","RFS","CHESTERFIELD ROYAL HOSPITAL NHS FOUNDATION TRUST","Acute and Acute & Community Trusts",79,3351,6.4451476793248945,4,8,10,40,17,5,9,9,40,16,8,10,19,32,10]
["Y60","MIDLANDS COMMISSIONING REGION","QT1","Nottingham and Nottinghamshire Health and Care STP","RHA","NOTTINGHAMSHIRE HEALTHCARE NHS FOUNDATION TRUST","Mental Health & Learning Disability and Mental Health, Learning Disability & Community Trusts",254,7917,6.3123359580052494,14,39,45,112,47,17,31,38,121,50,17,42,57,107,31]
["Y60","MIDLANDS COMMISSIONING REGION","QWU","Coventry and Warwickshire STP","RJC","SOUTH WARWICKSHIRE NHS FOUNDATION TRUST","Acute and Acute & Community Trusts",255,4288,6.4836601307189543,14,22,55,116,48,12,24,37,129,53,14,46,56,99,40]
["Y60","MIDLANDS COMMISSIONING REGION","QNC","Staffordshire & Stoke on Trent STP","RJE","UNIVERSITY HOSPITALS OF NORTH MIDLANDS NHS TRUST","Acute and Acute & Community Trusts",81,9689,5.3600823045267489,6,18,14,34,9,8,17,15,30,11,12,17,24,21,7]
["Y60","MIDLANDS COMMISSIONING REGION","QT1","Nottingham and Nottinghamshire Health and Care STP","RK5","SHERWOOD FOREST HOSPITALS NHS FOUNDATION TRUST","Acute and Acute & Community Trusts",1158,4630,6.7832469775474955,41,123,195,522,277,43,86,216,551,262,46,129,268,505,210]
["Y60","MIDLANDS COMMISSIONING REGION","QWU","Coventry and Warwickshire STP","RKB","UNIVERSITY HOSPITALS COVENTRY AND WARWICKSHIRE NHS TRUST","Acute and Acute & Community Trusts",131,8012,5.8715012722646307,10,22,29,54,16,7,21,21,60,22,8,33,32,43,15]
["Y60","MIDLANDS COMMISSIONING REGION","QUA","The Black Country and West Birmingham STP","RL4","THE ROYAL WOLVERHAMPTON NHS TRUST","Acute and Acute & Community Trusts",150,8719,6.583333333333333,9,13,33,61,34,7,12,33,60,38,7,15,47,56,25]
["Y60","MIDLANDS COMMISSIONING REGION","QWU","Coventry and Warwickshire STP","RLT","GEORGE ELIOT HOSPITAL NHS TRUST","Acute and Acute & Community Trusts",25,2321,5.8333333333333339,4,3,3,10,5,4,1,7,5,8,4,5,5,5,6]
["Y60","MIDLANDS COMMISSIONING REGION","QNC","Staffordshire & Stoke on Trent STP","RLY","NORTH STAFFORDSHIRE COMBINED HEALTHCARE NHS TRUST","Mental Health & Learning Disability and Mental Health, Learning Disability & Community Trusts",21,1479,7.3015873015873023,0,3,1,11,6,0,1,5,9,6,0,2,4,10,5]
["Y60","MIDLANDS COMMISSIONING REGION","QUA","The Black Country and West Birmingham STP","RNA","THE DUDLEY GROUP NHS FOUNDATION TRUST","Acute and Acute & Community Trusts",893,4799,6.496827174318776,37,94,175,419,168,41,75,182,428,169,46,127,230,357,133]
["Y60","MIDLANDS COMMISSIONING REGION","QPM","Northamptonshire STP","RNQ","KETTERING GENERAL HOSPITAL NHS FOUNDATION TRUST","Acute and Acute & Community Trusts",761,4307,6.2943495400788434,34,77,186,343,122,35,85,167,342,132,37,119,224,282,99]
["Y60","MIDLANDS COMMISSIONING REGION","QPM","Northamptonshire STP","RNS","NORTHAMPTON GENERAL HOSPITAL NHS TRUST","Acute and Acute & Community Trusts",778,5039,6.1396743787489294,38,99,176,345,120,34,103,163,362,116,42,139,228,284,85]
["Y60","MIDLANDS COMMISSIONING REGION","QPM","Northamptonshire STP","RP1","NORTHAMPTONSHIRE HEALTHCARE NHS FOUNDATION TRUST","Mental Health & Learning Disability and Mental Health, Learning Disability & Community Trusts",1651,3744,7.0765192812436908,34,101,257,866,397,36,104,260,856,397,44,151,399,738,319]
["Y60","MIDLANDS COMMISSIONING REGION","QJM","Lincolnshire STP","RP7","LINCOLNSHIRE PARTNERSHIP NHS FOUNDATION TRUST","Mental Health & Learning Disability and Mental Health, Learning Disability & Community Trusts",175,2047,6.7571428571428571,8,15,36,70,46,7,14,41,67,46,12,17,39,70,38]
["Y60","MIDLANDS COMMISSIONING REGION","QHL","Birmingham and Solihull STP","RQ3","BIRMINGHAM WOMEN'S AND CHILDREN'S NHS FOUNDATION TRUST","Acute and Acute & Community Trusts",23,5380,5.2173913043478262,3,6,1,9,4,3,4,5,7,4,4,6,6,4,3]
["Y60","MIDLANDS COMMISSIONING REGION","QNC","Staffordshire & Stoke on Trent STP","RRE","MIDLANDS PARTNERSHIP NHS FOUNDATION TRUST","Mental Health & Learning Disability and Mental Health, Learning Disability & Community Trusts",0,7698,"-",0,0,0,0,0,0,0,0,0,0,0,0,0,0,0]
["Y60","MIDLANDS COMMISSIONING REGION","QHL","Birmingham and Solihull STP","RRK","UNIVERSITY HOSPITALS BIRMINGHAM NHS FOUNDATION TRUST","Acute and Acute & Community Trusts",1060,18810,5.6092767295597481,109,161,212,428,150,115,166,213,431,135,120,205,277,350,108]
["Y60","MIDLANDS COMMISSIONING REGION","QK1","Leicester, Leicestershire and Rutland STP","RT5","LEICESTERSHIRE PARTNERSHIP NHS TRUST","Mental Health & Learning Disability and Mental Health, Learning Disability & Community Trusts",960,4741,6.1953125,49,125,212,413,161,46,116,196,434,168,58,163,276,344,119]
["Y60","MIDLANDS COMMISSIONING REGION","QJ2","Joined Up Care Derbyshire STP","RTG","UNIVERSITY HOSPITALS OF DERBY AND BURTON NHS FOUNDATION TRUST","Acute and Acute & Community Trusts",2215,11606,5.996613995485327,128,305,506,940,339,150,273,452,1012,330,173,397,636,792,217]
["Y60","MIDLANDS COMMISSIONING REGION","QJM","Lincolnshire STP","RWD","UNITED LINCOLNSHIRE HOSPITALS NHS TRUST","Acute and Acute & Community Trusts",2667,7161,6.1154855643044623,127,308,595,1244,395,140,328,583,1240,376,185,447,799,957,282]
["Y60","MIDLANDS COMMISSIONING REGION","QK1","Leicester, Leicestershire and Rutland STP","RWE","UNIVERSITY HOSPITALS OF LEICESTER NHS TRUST","Acute and Acute & Community Trusts",284,13950,6.07981220657277,16,28,62,135,43,13,40,56,132,43,18,57,87,96,26]
["Y60","MIDLANDS COMMISSIONING REGION","QGH","Herefordshire and Worcestershire STP","RWP","WORCESTERSHIRE ACUTE HOSPITALS NHS TRUST","Acute and Acute & Community Trusts",484,5680,6.2568870523415985,29,54,102,218,81,31,48,90,220,95,40,80,118,170,76]
["Y60","MIDLANDS COMMISSIONING REGION","QT1","Nottingham and Nottinghamshire Health and Care STP","RX1","NOTTINGHAM UNIVERSITY HOSPITALS NHS TRUST","Acute and Acute & Community Trusts",1382,15210,6.4091895803183796,69,148,255,628,282,69,147,249,635,282,94,212,364,507,205]
["Y60","MIDLANDS COMMISSIONING REGION","QT1","Nottingham and Nottinghamshire Health and Care STP","RX9","EAST MIDLANDS AMBULANCE SERVICE NHS TRUST","Ambulance Trusts",88,3716,5.0094696969696964,6,19,23,29,11,11,19,22,27,9,17,21,27,14,9]
["Y60","MIDLANDS COMMISSIONING REGION","QUA","The Black Country and West Birmingham STP","RXK","SANDWELL AND WEST BIRMINGHAM HOSPITALS NHS TRUST","Acute and Acute & Community Trusts",1287,6464,6.2406112406112406,69,155,265,588,217,80,159,264,560,228,105,173,347,473,189]
["Y60","MIDLANDS COMMISSIONING REGION","QJ2","Joined Up Care Derbyshire STP","RXM","DERBYSHIRE HEALTHCARE NHS FOUNDATION TRUST","Mental Health & Learning Disability and Mental Health, Learning Disability & Community Trusts",1107,2445,7.0355314664257751,27,87,181,553,266,24,73,188,547,281,34,102,276,474,221]
["Y60","MIDLANDS COMMISSIONING REGION","QUA","The Black Country and West Birmingham STP","RXT","BIRMINGHAM AND SOLIHULL MENTAL HEALTH NHS FOUNDATION TRUST","Mental Health & Learning Disability and Mental Health, Learning Disability & Community Trusts",388,4027,6.2564432989690726,21,45,82,174,66,16,37,84,190,61,21,60,124,141,42]
["Y60","MIDLANDS COMMISSIONING REGION","QJM","Lincolnshire STP","RY5","LINCOLNSHIRE COMMUNITY HEALTH SERVICES NHS TRUST","Community Trusts",660,1867,6.9103535353535346,16,59,119,306,162,24,45,114,317,160,25,72,150,278,135]
["Y60","MIDLANDS COMMISSIONING REGION","QJ2","Joined Up Care Derbyshire STP","RY8","DERBYSHIRE COMMUNITY HEALTH SERVICES NHS FOUNDATION TRUST","Community Trusts",1649,3365,6.9557307459066102,44,139,283,811,379,50,106,263,825,405,60,162,381,733,315]
["Y60","MIDLANDS COMMISSIONING REGION","QUA","The Black Country and West Birmingham STP","RYA","WEST MIDLANDS AMBULANCE SERVICE UNIVERSITY NHS FOUNDATION TRUST","Ambulance Trusts",558,6387,3.9919354838709675,91,116,121,193,37,152,123,140,114,29,175,164,112,89,18]
["Y60","MIDLANDS COMMISSIONING REGION","QWU","Coventry and Warwickshire STP","RYG","COVENTRY AND WARWICKSHIRE PARTNERSHIP NHS TRUST","Mental Health & Learning Disability and Mental Health, Learning Disability & Community Trusts",299,3505,6.8756967670011155,5,20,62,156,56,4,22,49,163,61,7,26,88,136,42]
["Y60","MIDLANDS COMMISSIONING REGION","QHL","Birmingham and Solihull STP","RYW","BIRMINGHAM COMMUNITY HEALTHCARE NHS FOUNDATION TRUST","Community Trusts",526,4224,6.3197084917617232,39,51,116,230,90,34,51,97,230,114,41,63,140,206,76]
["Y60","MIDLANDS COMMISSIONING REGION","QUA","The Black Country and West Birmingham STP","TAJ","BLACK COUNTRY HEALTHCARE NHS FOUNDATION TRUST","Mental Health & Learning Disability and Mental Health, Learning Disability & Community Trusts",606,3097,6.105610561056106,42,74,136,258,96,34,72,138,256,106,40,95,185,213,73]
["Y61","EAST OF ENGLAND COMMISSIONING REGION","QH8","Mid and South Essex STP","R1L","ESSEX PARTNERSHIP UNIVERSITY NHS FOUNDATION TRUST","Mental Health & Learning Disability and Mental Health, Learning Disability & Community Trusts",322,4918,6.3975155279503104,20,38,56,139,70,22,32,56,138,74,26,50,80,107,60]
["Y61","EAST OF ENGLAND COMMISSIONING REGION","QH8","Mid and South Essex STP","RAJ","MID AND SOUTH ESSEX NHS FOUNDATION TRUST","Acute and Acute & Community Trusts",48,13662,4.791666666666667,7,8,11,21,1,8,6,16,16,2,8,11,14,14,1]
["Y61","EAST OF ENGLAND COMMISSIONING REGION","QH8","Mid and South Essex STP","RAJ","MID AND SOUTH ESSEX NHS FOUNDATION TRUST","Acute and Acute & Community Trusts",48,13662,4.791666666666667,7,8,11,21,1,8,6,16,16,2,8,11,14,14,1]
["Y61","EAST OF ENGLAND COMMISSIONING REGION","QHG","Bedfordshire, Luton and Milton Keynes STP","RC9","BEDFORDSHIRE HOSPITALS NHS FOUNDATION TRUST","Acute and Acute & Community Trusts",28,7136,5,3,7,7,7,4,5,3,5,11,4,6,7,6,7,2]
["Y61","EAST OF ENGLAND COMMISSIONING REGION","QMM","Norfolk and Waveney Health & Care Partnership (STP)","RCX","THE QUEEN ELIZABETH HOSPITAL, KING'S LYNN, NHS FOUNDATION TRUST","Acute and Acute & Community Trusts",89,3273,5.8988764044943824,3,14,24,35,13,5,11,21,38,14,7,18,30,26,8]
["Y61","EAST OF ENGLAND COMMISSIONING REGION","QHG","Bedfordshire, Luton and Milton Keynes STP","RD8","MILTON KEYNES UNIVERSITY HOSPITAL NHS FOUNDATION TRUST","Acute and Acute & Community Trusts",12,3264,6.25,0,4,0,6,2,0,3,1,4,4,0,4,3,3,2]
["Y61","EAST OF ENGLAND COMMISSIONING REGION","QJG","Suffolk and North East Essex STP","RDE","EAST SUFFOLK AND NORTH ESSEX NHS FOUNDATION TRUST","Acute and Acute & Community Trusts",32,9644,6.380208333333333,1,8,3,12,8,2,5,4,13,8,1,8,5,11,7]
["Y61","EAST OF ENGLAND COMMISSIONING REGION","QUE","Cambridgeshire and Peterborough STP","RGM","ROYAL PAPWORTH HOSPITAL NHS FOUNDATION TRUST","Acute Specialist Trusts",273,1894,6.8620268620268616,18,26,34,118,78,21,22,25,123,83,21,33,43,108,68]
["Y61","EAST OF ENGLAND COMMISSIONING REGION","QUE","Cambridgeshire and Peterborough STP","RGN","NORTH WEST ANGLIA NHS FOUNDATION TRUST","Acute and Acute & Community Trusts",267,6066,6.4669163545568047,29,25,61,89,63,32,27,35,118,81,32,33,62,86,54]
["Y61","EAST OF ENGLAND COMMISSIONING REGION","QJG","Suffolk and North East Essex STP","RGR","WEST SUFFOLK NHS FOUNDATION TRUST","Acute and Acute & Community Trusts",1411,4097,6.7511221356012285,37,120,252,724,279,40,124,239,713,298,50,185,342,619,215]
["Y61","EAST OF ENGLAND COMMISSIONING REGION","QUE","Cambridgeshire and Peterborough STP","RGT","CAMBRIDGE UNIVERSITY HOSPITALS NHS FOUNDATION TRUST","Acute and Acute & Community Trusts",7029,10429,3.6245079907051738,1213,3467,1347,747,258,1132,3414,1414,759,310,869,2812,1882,1069,399]
["Y61","EAST OF ENGLAND COMMISSIONING REGION","QMM","Norfolk and Waveney Health & Care Partnership (STP)","RM1","NORFOLK AND NORWICH UNIVERSITY HOSPITALS NHS FOUNDATION TRUST","Acute and Acute & Community Trusts",220,7867,5.4318181818181817,14,41,61,76,28,17,39,57,77,30,30,50,62,59,19]
["Y61","EAST OF ENGLAND COMMISSIONING REGION","QMM","Norfolk and Waveney Health & Care Partnership (STP)","RMY","NORFOLK AND SUFFOLK NHS FOUNDATION TRUST","Mental Health & Learning Disability and Mental Health, Learning Disability & Community Trusts",1380,4168,6.7022946859903376,45,130,239,684,284,49,111,242,695,283,64,177,333,580,227]
["Y61","EAST OF ENGLAND COMMISSIONING REGION","QM7","Hertfordshire and West Essex STP","RQW","THE PRINCESS ALEXANDRA HOSPITAL NHS TRUST","Acute and Acute & Community Trusts",190,3407,6.0350877192982457,18,26,36,65,45,18,24,34,69,45,22,28,53,58,29]
["Y61","EAST OF ENGLAND COMMISSIONING REGION","QUE","Cambridgeshire and Peterborough STP","RT1","CAMBRIDGESHIRE AND PETERBOROUGH NHS FOUNDATION TRUST","Mental Health & Learning Disability and Mental Health, Learning Disability & Community Trusts",2778,3809,6.8262538996880249,73,165,776,1296,468,46,102,696,1418,516,108,242,570,1347,511]
["Y61","EAST OF ENGLAND COMMISSIONING REGION","QM7","Hertfordshire and West Essex STP","RWG","WEST HERTFORDSHIRE HOSPITALS NHS TRUST","Acute and Acute & Community Trusts",664,4738,6.0015060240963853,44,81,147,299,93,43,85,136,309,91,56,107,184,253,64]
["Y61","EAST OF ENGLAND COMMISSIONING REGION","QM7","Hertfordshire and West Essex STP","RWH","EAST AND NORTH HERTFORDSHIRE NHS TRUST","Acute and Acute & Community Trusts",180,5630,5.8842592592592595,13,30,35,75,27,14,22,38,77,29,16,38,43,63,20]
["Y61","EAST OF ENGLAND COMMISSIONING REGION","QM7","Hertfordshire and West Essex STP","RWR","HERTFORDSHIRE PARTNERSHIP UNIVERSITY NHS FOUNDATION TRUST","Mental Health & Learning Disability and Mental Health, Learning Disability & Community Trusts",853,3266,7.1473231731144979,14,58,160,415,214,15,50,153,406,229,20,67,228,376,174]
["Y61","EAST OF ENGLAND COMMISSIONING REGION","QMM","Norfolk and Waveney Health & Care Partnership (STP)","RY3","NORFOLK COMMUNITY HEALTH AND CARE NHS TRUST","Community Trusts",398,1992,7.1084589614740361,9,27,57,199,106,15,23,54,195,111,16,32,94,171,85]
["Y61","EAST OF ENGLAND COMMISSIONING REGION","QM7","Hertfordshire and West Essex STP","RY4","HERTFORDSHIRE COMMUNITY NHS TRUST","Community Trusts",171,2090,6.8274853801169595,11,19,17,83,41,9,12,20,81,49,13,18,33,68,39]
["Y61","EAST OF ENGLAND COMMISSIONING REGION","QUE","Cambridgeshire and Peterborough STP","RYC","EAST OF ENGLAND AMBULANCE SERVICE NHS TRUST","Ambulance Trusts",305,5410,3.9207650273224042,49,80,66,77,33,88,77,52,68,20,99,89,58,46,13]
["Y61","EAST OF ENGLAND COMMISSIONING REGION","QUE","Cambridgeshire and Peterborough STP","RYV","CAMBRIDGESHIRE COMMUNITY SERVICES NHS TRUST","Community Trusts",99,2126,7.1380471380471375,5,10,12,38,34,2,7,15,42,33,6,6,23,39,25]
["Y62","NORTH WEST COMMISSIONING REGION","QOP","Greater Manchester Health & Social Care Partnership","R0A","MANCHESTER UNIVERSITY NHS FOUNDATION TRUST","Acute and Acute & Community Trusts",2806,24928,6.2841530054644803,177,366,528,1276,497,195,298,552,1253,528,221,414,693,1063,415]
["Y62","NORTH WEST COMMISSIONING REGION","QYG","Cheshire and Merseyside STP","RBL","WIRRAL UNIVERSITY TEACHING HOSPITAL NHS FOUNDATION TRUST","Acute and Acute & Community Trusts",59,5550,5.0847457627118642,8,14,9,22,6,10,8,10,23,8,10,15,13,16,5]
["Y62","NORTH WEST COMMISSIONING REGION","QYG","Cheshire and Merseyside STP","RBN","ST HELENS AND KNOWSLEY TEACHING HOSPITALS NHS TRUST","Acute and Acute & Community Trusts",137,5963,5.6812652068126521,11,19,33,52,22,14,22,34,43,24,15,31,36,33,22]
["Y62","NORTH WEST COMMISSIONING REGION","QYG","Cheshire and Merseyside STP","RBQ","LIVERPOOL HEART AND CHEST HOSPITAL NHS FOUNDATION TRUST","Acute Specialist Trusts",146,1662,6.512557077625571,7,10,32,70,27,7,14,26,66,33,9,22,34,61,20]
["Y62","NORTH WEST COMMISSIONING REGION","QYG","Cheshire and Merseyside STP","RBS","ALDER HEY CHILDREN'S NHS FOUNDATION TRUST","Acute and Acute & Community Trusts",271,3632,6.4821648216482171,12,32,51,120,56,18,24,48,114,67,19,39,71,89,53]
["Y62","NORTH WEST COMMISSIONING REGION","QYG","Cheshire and Merseyside STP","RBT","MID CHESHIRE HOSPITALS NHS FOUNDATION TRUST","Acute and Acute & Community Trusts",204,4300,6.7320261437908497,5,22,36,104,37,7,12,43,96,46,6,24,59,78,37]
["Y62","NORTH WEST COMMISSIONING REGION","QOP","Greater Manchester Health & Social Care Partnership","RBV","THE CHRISTIE NHS FOUNDATION TRUST","Acute Specialist Trusts",107,2962,6.861370716510903,9,5,15,54,24,8,4,13,50,32,9,11,17,45,25]
["Y62","NORTH WEST COMMISSIONING REGION","QYG","Cheshire and Merseyside STP","REM","LIVERPOOL UNIVERSITY HOSPITALS NHS FOUNDATION TRUST","Acute and Acute & Community Trusts",2080,12104,6.1939102564102564,82,270,493,974,267,102,223,445,1027,284,121,304,618,804,233]
["Y62","NORTH WEST COMMISSIONING REGION","QYG","Cheshire and Merseyside STP","REN","THE CLATTERBRIDGE CANCER CENTRE NHS FOUNDATION TRUST","Acute Specialist Trusts",228,1451,6.8019005847953213,8,22,32,112,54,7,22,41,104,54,11,32,44,93,48]
["Y62","NORTH WEST COMMISSIONING REGION","QYG","Cheshire and Merseyside STP","REP","LIVERPOOL WOMEN'S NHS FOUNDATION TRUST","Acute Specialist Trusts",190,1405,5.7324561403508776,13,35,36,74,36,17,39,33,74,27,20,43,51,54,23]
["Y62","NORTH WEST COMMISSIONING REGION","QYG","Cheshire and Merseyside STP","RET","THE WALTON CENTRE NHS FOUNDATION TRUST","Acute Specialist Trusts",106,1347,6.9811320754716979,5,8,14,49,30,4,6,16,48,32,6,13,26,34,27]
["Y62","NORTH WEST COMMISSIONING REGION","QYG","Cheshire and Merseyside STP","RJN","EAST CHESHIRE NHS TRUST","Acute and Acute & Community Trusts",122,2167,6.7076502732240444,5,10,26,56,25,3,14,19,54,32,4,21,28,43,26]
["Y62","NORTH WEST COMMISSIONING REGION","QYG","Cheshire and Merseyside STP","RJR","COUNTESS OF CHESTER HOSPITAL NHS FOUNDATION TRUST","Acute and Acute & Community Trusts",264,3819,6.2531565656565657,19,18,57,132,38,19,26,44,123,52,26,36,72,90,40]
["Y62","NORTH WEST COMMISSIONING REGION","QOP","Greater Manchester Health & Social Care Partnership","RM3","NORTHERN CARE ALLIANCE NHS FOUNDATION TRUST","Acute and Acute & Community Trusts",2287,17028,6.223582568138756,150,268,479,999,392,151,261,440,1005,433,184,337,592,816,358]
["Y62","NORTH WEST COMMISSIONING REGION","QOP","Greater Manchester Health & Social Care Partnership","RMC","BOLTON NHS FOUNDATION TRUST","Acute and Acute & Community Trusts",1089,5533,7.3316498316498322,15,56,193,572,253,23,74,150,272,570,28,105,254,480,222]
["Y62","NORTH WEST COMMISSIONING REGION","QOP","Greater Manchester Health & Social Care Partnership","RMP","TAMESIDE AND GLOSSOP INTEGRATED CARE NHS FOUNDATION TRUST","Acute and Acute & Community Trusts",78,3584,5.3418803418803424,11,9,16,32,10,14,10,12,29,13,16,16,14,22,10]
["Y62","NORTH WEST COMMISSIONING REGION","QOP","Greater Manchester Health & Social Care Partnership","RRF","WRIGHTINGTON, WIGAN AND LEIGH NHS FOUNDATION TRUST","Acute and Acute & Community Trusts",159,5754,5.8805031446540879,14,28,28,62,27,14,20,31,63,31,18,30,37,51,23]
["Y62","NORTH WEST COMMISSIONING REGION","QOP","Greater Manchester Health & Social Care Partnership","RT2","PENNINE CARE NHS FOUNDATION TRUST","Mental Health & Learning Disability and Mental Health, Learning Disability & Community Trusts",231,3145,6.5043290043290041,14,28,31,109,49,13,27,31,106,54,16,31,57,86,41]
["Y62","NORTH WEST COMMISSIONING REGION","QE1","Healthier Lancashire and South Cumbria","RTX","UNIVERSITY HOSPITALS OF MORECAMBE BAY NHS FOUNDATION TRUST","Acute and Acute & Community Trusts",199,6070,5.5862646566164154,19,34,39,74,33,22,37,39,66,35,28,46,36,59,30]
["Y62","NORTH WEST COMMISSIONING REGION","QYG","Cheshire and Merseyside STP","RVY","SOUTHPORT AND ORMSKIRK HOSPITAL NHS TRUST","Acute and Acute & Community Trusts",330,2861,6.2575757575757578,20,42,76,127,68,18,41,62,140,70,26,61,80,107,56]
["Y62","NORTH WEST COMMISSIONING REGION","QYG","Cheshire and Merseyside STP","RW4","MERSEY CARE NHS FOUNDATION TRUST","Mental Health & Learning Disability and Mental Health, Learning Disability & Community Trusts",2324,9735,6.7491394148020651,102,211,445,1063,525,112,206,373,1072,575,132,269,531,935,457]
["Y62","NORTH WEST COMMISSIONING REGION","QE1","Healthier Lancashire and South Cumbria","RW5","LANCASHIRE & SOUTH CUMBRIA NHS FOUNDATION TRUST","Mental Health & Learning Disability and Mental Health, Learning Disability & Community Trusts",1102,6159,6.6228070175438596,43,92,215,548,204,51,95,204,555,203,55,119,302,519,129]
["Y62","NORTH WEST COMMISSIONING REGION","QOP","Greater Manchester Health & Social Care Partnership","RWJ","STOCKPORT NHS FOUNDATION TRUST","Acute and Acute & Community Trusts",87,4993,5.7950191570881229,6,17,16,32,16,7,18,11,36,15,7,25,12,33,10]
["Y62","NORTH WEST COMMISSIONING REGION","QYG","Cheshire and Merseyside STP","RWW","WARRINGTON AND HALTON TEACHING HOSPITALS NHS FOUNDATION TRUST","Acute and Acute & Community Trusts",51,3876,6.0620915032679745,1,4,13,26,7,5,5,11,24,6,6,7,15,17,6]
["Y62","NORTH WEST COMMISSIONING REGION","QOP","Greater Manchester Health & Social Care Partnership","RX7","NORTH WEST AMBULANCE SERVICE NHS TRUST","Ambulance Trusts",1355,6258,5.5578105781057809,97,203,288,575,192,144,232,307,499,179,183,302,371,358,147]
["Y62","NORTH WEST COMMISSIONING REGION","QYG","Cheshire and Merseyside STP","RXA","CHESHIRE AND WIRRAL PARTNERSHIP NHS FOUNDATION TRUST","Mental Health & Learning Disability and Mental Health, Learning Disability & Community Trusts",808,3383,6.770833333333333,18,67,153,398,172,23,67,148,394,176,25,103,211,340,129]
["Y62","NORTH WEST COMMISSIONING REGION","QE1","Healthier Lancashire and South Cumbria","RXL","BLACKPOOL TEACHING HOSPITALS NHS FOUNDATION TRUST","Acute and Acute & Community Trusts",539,6870,6.4223871366728504,27,68,101,251,92,29,55,84,257,114,34,70,142,213,80]
["Y62","NORTH WEST COMMISSIONING REGION","QE1","Healthier Lancashire and South Cumbria","RXN","LANCASHIRE TEACHING HOSPITALS NHS FOUNDATION TRUST","Acute and Acute & Community Trusts",1752,8078,6.6595319634703198,56,156,322,877,345,65,150,292,882,365,92,231,434,729,266]
["Y62","NORTH WEST COMMISSIONING REGION","QE1","Healthier Lancashire and South Cumbria","RXR","EAST LANCASHIRE HOSPITALS NHS TRUST","Acute and Acute & Community Trusts",95,8472,6.2543859649122799,4,20,13,42,16,6,11,15,45,18,6,17,21,34,17]
["Y62","NORTH WEST COMMISSIONING REGION","QOP","Greater Manchester Health & Social Care Partnership","RXV","GREATER MANCHESTER MENTAL HEALTH NHS FOUNDATION TRUST","Mental Health & Learning Disability and Mental Health, Learning Disability & Community Trusts",1268,5688,6.694269190325973,44,120,228,616,267,48,115,215,638,252,61,146,321,529,213]
["Y62","NORTH WEST COMMISSIONING REGION","QYG","Cheshire and Merseyside STP","RY2","BRIDGEWATER COMMUNITY HEALTHCARE NHS FOUNDATION TRUST","Community Trusts",296,1423,6.5568693693693687,11,33,59,145,48,9,27,51,148,61,15,44,64,130,43]
["Y62","NORTH WEST COMMISSIONING REGION","QYG","Cheshire and Merseyside STP","RY7","WIRRAL COMMUNITY HEALTH AND CARE NHS FOUNDATION TRUST","Community Trusts",137,1514,6.6484184914841853,2,17,27,65,26,1,17,29,60,30,2,20,38,56,21]
["Y63","NORTH EAST AND YORKSHIRE COMMISSIONING REGION","QHM","Cumbria and North East STP","R0B","SOUTH TYNESIDE AND SUNDERLAND NHS FOUNDATION TRUST","Acute and Acute & Community Trusts",131,7669,5.2862595419847329,10,22,34,45,20,17,27,29,41,17,21,33,29,33,15]
["Y63","NORTH EAST AND YORKSHIRE COMMISSIONING REGION","QWO","West Yorkshire and Harrogate Health & Care Partnership (STP)","RAE","BRADFORD TEACHING HOSPITALS NHS FOUNDATION TRUST","Acute and Acute & Community Trusts",74,5468,6.0698198198198199,7,7,16,32,12,8,8,15,28,15,7,8,21,28,10]
["Y63","NORTH EAST AND YORKSHIRE COMMISSIONING REGION","QOQ","Humber, Coast and Vale STP","RCB","YORK AND SCARBOROUGH TEACHING HOSPITALS NHS FOUNDATION TRUST","Acute and Acute & Community Trusts",142,7674,5.9741784037558689,8,28,30,52,24,9,18,24,64,27,15,24,38,48,17]
["Y63","NORTH EAST AND YORKSHIRE COMMISSIONING REGION","QOQ","Humber, Coast and Vale STP","RCD","HARROGATE AND DISTRICT NHS FOUNDATION TRUST","Acute and Acute & Community Trusts",937,3924,6.8445393098541443,34,77,200,394,241,35,66,163,418,261,41,115,241,374,166]
["Y63","NORTH EAST AND YORKSHIRE COMMISSIONING REGION","QWO","West Yorkshire and Harrogate Health & Care Partnership (STP)","RCF","AIREDALE NHS FOUNDATION TRUST","Acute and Acute & Community Trusts",895,2987,6.6862197392923655,29,81,172,431,183,31,78,155,446,185,40,108,233,365,149]
["Y63","NORTH EAST AND YORKSHIRE COMMISSIONING REGION","QF7","South Yorkshire and Bassetlaw STP","RCU","SHEFFIELD CHILDREN'S NHS FOUNDATION TRUST","Acute and Acute & Community Trusts",275,3013,6.8606060606060613,9,22,37,146,61,7,24,34,146,64,8,40,59,130,38]
["Y63","NORTH EAST AND YORKSHIRE COMMISSIONING REGION","QF7","South Yorkshire and Bassetlaw STP","RFF","BARNSLEY HOSPITAL NHS FOUNDATION TRUST","Acute and Acute & Community Trusts",61,3523,6.8169398907103824,1,4,8,35,13,1,6,12,30,12,1,9,19,21,11]
["Y63","NORTH EAST AND YORKSHIRE COMMISSIONING REGION","QF7","South Yorkshire and Bassetlaw STP","RFR","THE ROTHERHAM NHS FOUNDATION TRUST","Acute and Acute & Community Trusts",53,3997,5.5345911949685531,8,9,4,23,9,9,7,6,19,12,12,8,6,22,5]
["Y63","NORTH EAST AND YORKSHIRE COMMISSIONING REGION","QWO","West Yorkshire and Harrogate Health & Care Partnership (STP)","RGD","LEEDS AND YORK PARTNERSHIP NHS FOUNDATION TRUST","Mental Health & Learning Disability and Mental Health, Learning Disability & Community Trusts",18,2818,6.4814814814814818,2,2,0,8,6,1,2,1,11,3,1,2,7,7,1]
["Y63","NORTH EAST AND YORKSHIRE COMMISSIONING REGION","QF7","South Yorkshire and Bassetlaw STP","RHQ","SHEFFIELD TEACHING HOSPITALS NHS FOUNDATION TRUST","Acute and Acute & Community Trusts",953,14915,6.1621196222455401,49,123,190,451,140,54,111,177,453,158,68,166,252,363,104]
["Y63","NORTH EAST AND YORKSHIRE COMMISSIONING REGION","QOQ","Humber, Coast and Vale STP","RJL","NORTHERN LINCOLNSHIRE AND GOOLE NHS FOUNDATION TRUST","Acute and Acute & Community Trusts",182,5527,5.4624542124542126,16,35,43,58,30,21,32,32,69,28,22,50,41,45,24]
["Y63","NORTH EAST AND YORKSHIRE COMMISSIONING REGION","QHM","Cumbria and North East STP","RNN","NORTH CUMBRIA INTEGRATED CARE NHS FOUNDATION TRUST","Acute and Acute & Community Trusts",504,5709,5.9689153439153442,37,79,99,226,63,39,67,73,241,84,46,91,117,194,56]
["Y63","NORTH EAST AND YORKSHIRE COMMISSIONING REGION","QF7","South Yorkshire and Bassetlaw STP","RP5","DONCASTER AND BASSETLAW TEACHING HOSPITALS NHS FOUNDATION TRUST","Acute and Acute & Community Trusts",4191,5615,6.45410800922612,185,512,796,1900,810,211,450,697,2013,832,267,594,1029,1652,649]
["Y63","NORTH EAST AND YORKSHIRE COMMISSIONING REGION","QHM","Cumbria and North East STP","RR7","GATESHEAD HEALTH NHS FOUNDATION TRUST","Acute and Acute & Community Trusts",351,4268,6.0185185185185182,26,49,67,158,51,25,41,59,171,55,32,65,88,123,43]
["Y63","NORTH EAST AND YORKSHIRE COMMISSIONING REGION","QWO","West Yorkshire and Harrogate Health & Care Partnership (STP)","RR8","LEEDS TEACHING HOSPITALS NHS TRUST","Acute and Acute & Community Trusts",3182,17248,6.6441441441441444,101,313,554,1539,675,130,279,541,1576,656,142,408,843,1331,458]
["Y63","NORTH EAST AND YORKSHIRE COMMISSIONING REGION","QHM","Cumbria and North East STP","RTD","THE NEWCASTLE UPON TYNE HOSPITALS NHS FOUNDATION TRUST","Acute and Acute & Community Trusts",180,14299,6,3,28,48,69,32,11,35,34,66,34,12,40,47,58,23]
["Y63","NORTH EAST AND YORKSHIRE COMMISSIONING REGION","QHM","Cumbria and North East STP","RTF","NORTHUMBRIA HEALTHCARE NHS FOUNDATION TRUST","Acute and Acute & Community Trusts",4015,7033,6.7615193026151932,116,357,949,1999,594,106,239,648,2303,719,121,355,981,1920,638]
["Y63","NORTH EAST AND YORKSHIRE COMMISSIONING REGION","QOQ","Humber, Coast and Vale STP","RV9","HUMBER TEACHING NHS FOUNDATION TRUST","Mental Health & Learning Disability and Mental Health, Learning Disability & Community Trusts",608,2645,6.9284539473684212,20,54,91,300,146,22,41,94,296,156,26,70,136,252,124]
["Y63","NORTH EAST AND YORKSHIRE COMMISSIONING REGION","QHM","Cumbria and North East STP","RVW","NORTH TEES AND HARTLEPOOL NHS FOUNDATION TRUST","Acute and Acute & Community Trusts",122,4661,6.2568306010928962,10,14,24,52,22,6,18,17,54,27,8,24,26,44,20]
["Y63","NORTH EAST AND YORKSHIRE COMMISSIONING REGION","QWO","West Yorkshire and Harrogate Health & Care Partnership (STP)","RWY","CALDERDALE AND HUDDERSFIELD NHS FOUNDATION TRUST","Acute and Acute & Community Trusts",256,5590,6.181640625,23,29,48,104,52,21,35,38,113,49,18,43,58,99,38]
["Y63","NORTH EAST AND YORKSHIRE COMMISSIONING REGION","QHM","Cumbria and North East STP","RX3","TEES, ESK AND WEAR VALLEYS NHS FOUNDATION TRUST","Mental Health & Learning Disability and Mental Health, Learning Disability & Community Trusts",2391,6819,6.7412519169106373,65,201,457,1190,480,66,207,416,1208,494,84,274,657,1002,376]
["Y63","NORTH EAST AND YORKSHIRE COMMISSIONING REGION","QHM","Cumbria and North East STP","RX4","CUMBRIA, NORTHUMBERLAND, TYNE AND WEAR NHS FOUNDATION TRUST","Mental Health & Learning Disability and Mental Health, Learning Disability & Community Trusts",104,6670,6.386217948717948,6,14,19,43,22,9,11,14,49,21,8,15,16,49,16]
["Y63","NORTH EAST AND YORKSHIRE COMMISSIONING REGION","QHM","Cumbria and North East STP","RX6","NORTH EAST AMBULANCE SERVICE NHS FOUNDATION TRUST","Ambulance Trusts",293,2645,4.7269624573378843,36,63,61,100,33,49,69,57,94,24,56,88,69,62,18]
["Y63","NORTH EAST AND YORKSHIRE COMMISSIONING REGION","QWO","West Yorkshire and Harrogate Health & Care Partnership (STP)","RX8","YORKSHIRE AMBULANCE SERVICE NHS TRUST","Ambulance Trusts",748,5221,5.4144385026737964,78,126,146,304,100,90,133,167,267,96,109,161,195,205,78]
["Y63","NORTH EAST AND YORKSHIRE COMMISSIONING REGION","QF7","South Yorkshire and Bassetlaw STP","RXE","ROTHERHAM DONCASTER AND SOUTH HUMBER NHS FOUNDATION TRUST","Mental Health & Learning Disability and Mental Health, Learning Disability & Community Trusts",56,3009,5.4166666666666661,7,9,14,20,6,5,8,15,20,8,5,16,13,17,5]
["Y63","NORTH EAST AND YORKSHIRE COMMISSIONING REGION","QWO","West Yorkshire and Harrogate Health & Care Partnership (STP)","RXF","MID YORKSHIRE HOSPITALS NHS TRUST","Acute and Acute & Community Trusts",2369,7662,6.3068101871394404,102,264,520,1075,408,124,250,472,1131,396,157,353,646,904,310]
["Y63","NORTH EAST AND YORKSHIRE COMMISSIONING REGION","QWO","West Yorkshire and Harrogate Health & Care Partnership (STP)","RXG","SOUTH WEST YORKSHIRE PARTNERSHIP NHS FOUNDATION TRUST","Mental Health & Learning Disability and Mental Health, Learning Disability & Community Trusts",819,3996,6.7948717948717947,29,76,142,389,183,31,64,119,418,187,28,100,191,367,133]
["Y63","NORTH EAST AND YORKSHIRE COMMISSIONING REGION","QHM","Cumbria and North East STP","RXP","COUNTY DURHAM AND DARLINGTON NHS FOUNDATION TRUST","Acute and Acute & Community Trusts",1503,6751,5.9830339321357284,90,227,285,672,229,103,216,279,690,215,127,263,402,553,158]
["Y63","NORTH EAST AND YORKSHIRE COMMISSIONING REGION","QWO","West Yorkshire and Harrogate Health & Care Partnership (STP)","RY6","LEEDS COMMUNITY HEALTHCARE NHS TRUST","Community Trusts",900,2710,6.7592592592592586,31,79,152,446,197,32,77,159,418,215,47,100,238,354,161]
["Y63","NORTH EAST AND YORKSHIRE COMMISSIONING REGION","QWO","West Yorkshire and Harrogate Health & Care Partnership (STP)","TAD","BRADFORD DISTRICT CARE NHS FOUNDATION TRUST","Mental Health & Learning Disability and Mental Health, Learning Disability & Community Trusts",492,2811,6.9766260162601625,19,48,81,196,148,18,40,78,201,157,28,55,100,197,114]
["Y63","NORTH EAST AND YORKSHIRE COMMISSIONING REGION","QF7","South Yorkshire and Bassetlaw STP","TAH","SHEFFIELD HEALTH & SOCIAL CARE NHS FOUNDATION TRUST","Mental Health & Learning Disability and Mental Health, Learning Disability & Community Trusts",457,2196,6.3803792851932899,23,55,78,228,73,17,49,76,241,74,24,76,112,188,57]

{"sheet":"Motivation","index":6,"n_rows":204,"n_cols":25,"rows_kept":204,"cut":false,"hidden":false,"merged":[[6,5,7,5],[6,0,7,0],[6,1,7,1],[6,2,7,2],[6,3,7,3],[6,4,7,4],[6,20,6,24],[6,6,7,6],[6,7,7,7],[6,8,7,8],[6,9,7,9],[6,10,6,14],[6,15,6,19]]}
[]
[]
[]
[]
[null,null,null,null,null,null,null,null,null,null,null,null,null,null,"Avg Involvement:",{"$f":"AVERAGE(K6,P6,U6)","v":6.6469613320917036}]
[null,null,null,null,null,null,null,null,null,null,{"$f":"IF($H$10=0,\"-\",((K$10*0)+(L$10*2.5)+(M$10*5)+(N$10*7.5)+(O$10*10))/$H$10)","v":5.9338000532127175},null,null,null,null,{"$f":"IF($H$10=0,\"-\",((P$10*0)+(Q$10*2.5)+(R$10*5)+(S$10*7.5)+(T$10*10))/$H$10)","v":6.7898388652387922},null,null,null,null,{"$f":"IF($H$10=0,\"-\",((U$10*0)+(V$10*2.5)+(W$10*5)+(X$10*7.5)+(Y$10*10))/$H$10)","v":7.2172450778236001}]
["Region Code","Region Name","ICB Code","ICB Name","Org Code","Org Name","Care Setting","Total Responses (Average across Theme)","HSCIC Workforce Headcount","Motivation Score","Weighted Breakdown of Responses - Motivation Q1",null,null,null,null," Weighted Breakdown of Responses - Motivation Q2",null,null,null,null,"Weighted Breakdown of Responses - Motivation Q3"]
[null,null,null,null,null,null,null,null,null,null,"Strongly Disagree","Disagree","Neither Disagree nor Agree","Agree","Strongly Agree","Strongly Disagree","Disagree","Neither Disagree nor Agree","Agree","Strongly Agree","Strongly Disagree","Disagree","Neither Disagree nor Agree","Agree","Strongly Agree"]
[null,null,null,null,null,"England",null,120272,1128001,6.6469613320917036,5844,18059,39988,43183,14471,3477,11053,31193,47212,27894,3647,7732,26229,43953,38791]
[null,null,null,null,null,"Selection (excluding suppressed data)",null,{"$f":"SUBTOTAL(9,H11:H1002)","v":120272},{"$f":"SUBTOTAL(9,I11:I1002)","v":1128001},{"$f":"IF(H10=0,\"-\",AVERAGE(((K10*0)+(L10*2.5)+(M10*5)+(N10*7.5)+(O10*10)),((P10*0)+(Q10*2.5)+(R10*5)+(S10*7.5)+(T10*10)),((U10*0)+(V10*2.5)+(W10*5)+(X10*7.5)+(Y10*10)))/H10)","v":6.6469613320917036},{"$f":"SUBTOTAL(9,K11:K1002)","v":5844},{"$f":"SUBTOTAL(9,L11:L1002)","v":18059},39988,43183,14471,{"$f":"SUBTOTAL(9,P11:P1002)","v":3477},{"$f":"SUBTOTAL(9,Q11:Q1002)","v":11053},31193,47212,27894,{"$f":"SUBTOTAL(9,U11:U1002)","v":3647},{"$f":"SUBTOTAL(9,V11:V1002)","v":7732},26229,43953,38791]
["Y56","LONDON COMMISSIONING REGION","QMF","East London Health & Care Partnership (STP)","R1H","BARTS HEALTH NHS TRUST","Acute and Acute & Community Trusts",376,15760,6.3098404255319149,34,69,106,121,46,20,46,103,125,82,22,22,84,118,130]
["Y56","LONDON COMMISSIONING REGION","QMJ","North London Partners in Health & Care (STP)","RAL","ROYAL FREE LONDON NHS FOUNDATION TRUST","Acute and Acute & Community Trusts",110,9812,6.3863636363636367,7,22,38,33,10,5,13,30,36,26,3,5,31,30,41]
["Y56","LONDON COMMISSIONING REGION","QRV","North West London Health & Care Partnership (STP)","RAS","THE HILLINGDON HOSPITALS NHS FOUNDATION TRUST","Acute and Acute & Community Trusts",21,3164,6.825396825396826,0,3,9,5,4,0,2,5,10,4,0,3,1,11,6]
["Y56","LONDON COMMISSIONING REGION","QMF","East London Health & Care Partnership (STP)","RAT","NORTH EAST LONDON NHS FOUNDATION TRUST","Mental Health & Learning Disability and Mental Health, Learning Disability & Community Trusts",1020,5887,6.9493464052287575,32,127,361,355,145,13,61,277,389,280,9,49,218,351,393]
["Y56","LONDON COMMISSIONING REGION","QWE","South West London Health & Care Partnership (STP)","RAX","KINGSTON HOSPITAL NHS FOUNDATION TRUST","Acute and Acute & Community Trusts",56,3244,6.2797619047619051,4,9,22,14,7,4,5,20,15,12,1,5,15,14,21]
["Y56","LONDON COMMISSIONING REGION","QMF","East London Health & Care Partnership (STP)","RF4","BARKING, HAVERING AND REDBRIDGE UNIVERSITY HOSPITALS NHS TRUST","Acute and Acute & Community Trusts",420,6783,6.5515873015873014,32,70,153,107,58,15,40,112,139,114,7,27,93,149,144]
["Y56","LONDON COMMISSIONING REGION","QKK","Our Healthier South East London STP","RJ1","GUY'S AND ST THOMAS' NHS FOUNDATION TRUST","Acute and Acute & Community Trusts",263,20397,6.4321926489226868,21,41,84,87,35,13,25,79,87,59,12,19,57,93,82]
["Y56","LONDON COMMISSIONING REGION","QKK","Our Healthier South East London STP","RJ2","LEWISHAM AND GREENWICH NHS TRUST","Acute and Acute & Community Trusts",470,6157,6.2198581560283692,34,102,167,115,52,22,64,140,131,113,21,38,103,146,162]
["Y56","LONDON COMMISSIONING REGION","QWE","South West London Health & Care Partnership (STP)","RJ7","ST GEORGE'S UNIVERSITY HOSPITALS NHS FOUNDATION TRUST","Acute and Acute & Community Trusts",312,8764,6.5785256410256414,12,58,116,92,34,10,27,89,121,65,4,16,67,117,108]
["Y56","LONDON COMMISSIONING REGION","QKK","Our Healthier South East London STP","RJZ","KING'S COLLEGE HOSPITAL NHS FOUNDATION TRUST","Acute and Acute & Community Trusts",100,12410,6.6166666666666663,8,16,29,32,15,4,11,24,39,22,2,5,18,41,34]
["Y56","LONDON COMMISSIONING REGION","QMJ","North London Partners in Health & Care (STP)","RKE","WHITTINGTON HEALTH NHS TRUST","Acute and Acute & Community Trusts",286,4003,6.6637529137529139,16,53,94,89,34,7,28,75,105,71,8,13,61,85,119]
["Y56","LONDON COMMISSIONING REGION","QRV","North West London Health & Care Partnership (STP)","RKL","WEST LONDON NHS TRUST","Mental Health & Learning Disability and Mental Health, Learning Disability & Community Trusts",30,3793,6.25,3,4,13,7,3,0,4,11,10,5,0,1,10,11,8]
["Y56","LONDON COMMISSIONING REGION","QMJ","North London Partners in Health & Care (STP)","RP4","GREAT ORMOND STREET HOSPITAL FOR CHILDREN NHS FOUNDATION TRUST","Acute Specialist Trusts",130,5112,6.7756410256410255,6,14,48,50,13,4,7,32,60,27,2,7,30,45,46]
["Y56","LONDON COMMISSIONING REGION","QMJ","North London Partners in Health & Care (STP)","RP6","MOORFIELDS EYE HOSPITAL NHS FOUNDATION TRUST","Acute Specialist Trusts",14,2082,5.7738095238095237,2,3,2,6,1,1,3,2,6,2,1,1,5,4,3]
["Y56","LONDON COMMISSIONING REGION","QKK","Our Healthier South East London STP","RPG","OXLEAS NHS FOUNDATION TRUST","Mental Health & Learning Disability and Mental Health, Learning Disability & Community Trusts",359,3475,6.6109563602599817,13,55,139,114,38,7,34,98,137,83,5,29,83,115,127]
["Y56","LONDON COMMISSIONING REGION","QRV","North West London Health & Care Partnership (STP)","RQM","CHELSEA AND WESTMINSTER HOSPITAL NHS FOUNDATION TRUST","Acute and Acute & Community Trusts",18,5899,5.7407407407407405,3,2,6,5,2,2,2,5,7,2,3,2,1,6,6]
["Y56","LONDON COMMISSIONING REGION","QMF","East London Health & Care Partnership (STP)","RQX","HOMERTON UNIVERSITY HOSPITAL NHS FOUNDATION TRUST","Acute and Acute & Community Trusts",866,3550,6.9957659738260194,42,82,291,327,145,19,46,232,332,237,17,47,179,318,308]
["Y56","LONDON COMMISSIONING REGION","QWE","South West London Health & Care Partnership (STP)","RQY","SOUTH WEST LONDON AND ST GEORGE'S MENTAL HEALTH NHS TRUST","Mental Health & Learning Disability and Mental Health, Learning Disability & Community Trusts",50,2320,6.7666666666666666,3,7,16,16,8,2,6,12,15,15,1,6,8,10,25]
["Y56","LONDON COMMISSIONING REGION","QMJ","North London Partners in Health & Care (STP)","RRP","BARNET, ENFIELD AND HARINGEY MENTAL HEALTH NHS TRUST","Mental Health & Learning Disability and Mental Health, Learning Disability & Community Trusts",218,3066,6.5366972477064218,13,28,79,77,21,9,19,67,75,48,9,11,39,86,73]
["Y56","LONDON COMMISSIONING REGION","QKK","Our Healthier South East London STP","RRU","LONDON AMBULANCE SERVICE NHS TRUST","Ambulance Trusts",41,6227,6.0975609756097562,2,8,13,13,5,1,7,8,16,9,2,3,18,11,7]
["Y56","LONDON COMMISSIONING REGION","QMJ","North London Partners in Health & Care (STP)","RRV","UNIVERSITY COLLEGE LONDON HOSPITALS NHS FOUNDATION TRUST","Acute and Acute & Community Trusts",663,9370,6.5962795374560077,32,100,226,240,65,24,58,190,246,145,21,39,123,245,235]
["Y56","LONDON COMMISSIONING REGION","QMJ","North London Partners in Health & Care (STP)","RV3","CENTRAL AND NORTH WEST LONDON NHS FOUNDATION TRUST","Mental Health & Learning Disability and Mental Health, Learning Disability & Community Trusts",37,6889,5.9009009009009015,3,11,10,13,0,3,2,17,10,5,0,3,9,15,10]
["Y56","LONDON COMMISSIONING REGION","QKK","Our Healthier South East London STP","RV5","SOUTH LONDON AND MAUDSLEY NHS FOUNDATION TRUST","Mental Health & Learning Disability and Mental Health, Learning Disability & Community Trusts",111,5026,6.4864864864864868,3,25,35,34,14,3,13,34,40,21,3,8,21,40,39]
["Y56","LONDON COMMISSIONING REGION","QWE","South West London Health & Care Partnership (STP)","RVR","EPSOM AND ST HELIER UNIVERSITY HOSPITALS NHS TRUST","Acute and Acute & Community Trusts",204,6045,6.2908496732026142,9,54,70,57,14,4,24,73,73,30,3,13,36,83,69]
["Y56","LONDON COMMISSIONING REGION","QMF","East London Health & Care Partnership (STP)","RWK","EAST LONDON NHS FOUNDATION TRUST","Mental Health & Learning Disability and Mental Health, Learning Disability & Community Trusts",1430,5851,7.1421911421911428,42,132,475,554,255,22,71,361,572,404,16,59,304,508,544]
["Y56","LONDON COMMISSIONING REGION","QWE","South West London Health & Care Partnership (STP)","RY9","HOUNSLOW AND RICHMOND COMMUNITY HEALTHCARE NHS TRUST","Community Trusts",180,1045,6.8518518518518512,8,23,57,69,23,1,22,42,71,44,3,9,33,66,69]
["Y56","LONDON COMMISSIONING REGION","QRV","North West London Health & Care Partnership (STP)","RYJ","IMPERIAL COLLEGE HEALTHCARE NHS TRUST","Acute and Acute & Community Trusts",80,12149,6.614583333333333,4,13,28,27,8,0,11,19,28,22,0,5,24,25,26]
["Y56","LONDON COMMISSIONING REGION","QRV","North West London Health & Care Partnership (STP)","RYX","CENTRAL LONDON COMMUNITY HEALTHCARE NHS TRUST","Community Trusts",154,4006,6.7857142857142856,4,23,55,55,17,2,18,42,59,33,2,7,27,56,62]
["Y58","SOUTH WEST COMMISSIONING REGION","QVV","Dorset STP","R0D","UNIVERSITY HOSPITALS DORSET NHS FOUNDATION TRUST","Acute and Acute & Community Trusts",172,8004,6.0707364341085279,13,41,55,51,12,5,21,60,64,22,6,6,48,70,42]
["Y58","SOUTH WEST COMMISSIONING REGION","QSL","Somerset STP","RA4","YEOVIL DISTRICT HOSPITAL NHS FOUNDATION TRUST","Acute and Acute & Community Trusts",0,2315,"-",21,69,131,207,75,12,33,81,242,135,0,0,0,0,0]
["Y58","SOUTH WEST COMMISSIONING REGION","QUY","Bristol, North Somerset and South Gloucestershire STP","RA7","UNIVERSITY HOSPITALS BRISTOL AND WESTON NHS FOUNDATION TRUST","Acute and Acute & Community Trusts",2536,10096,6.8227523659305991,73,315,917,959,297,34,160,688,1084,574,34,125,577,1014,786]
["Y58","SOUTH WEST COMMISSIONING REGION","QJK","Devon STP","RA9","TORBAY AND SOUTH DEVON NHS FOUNDATION TRUST","Acute and Acute & Community Trusts",154,5683,6.0822510822510818,9,31,63,42,9,2,22,50,66,15,5,5,51,54,39]
["Y58","SOUTH WEST COMMISSIONING REGION","QVV","Dorset STP","RBD","DORSET COUNTY HOSPITAL NHS FOUNDATION TRUST","Acute and Acute & Community Trusts",464,2765,6.8821839080459775,16,71,145,172,60,9,36,107,182,130,7,26,90,171,170]
["Y58","SOUTH WEST COMMISSIONING REGION","QJK","Devon STP","RBZ","NORTHERN DEVON HEALTHCARE NHS TRUST","Acute and Acute & Community Trusts",543,2963,7.0135052179251076,17,66,194,206,67,5,31,135,231,141,5,20,99,230,191]
["Y58","SOUTH WEST COMMISSIONING REGION","QOX","Bath and North East Somerset, Swindon and Wiltshire STP","RD1","ROYAL UNITED HOSPITALS BATH NHS FOUNDATION TRUST","Acute and Acute & Community Trusts",256,5074,6.910807291666667,9,36,85,99,27,4,16,65,122,49,1,7,29,137,82]
["Y58","SOUTH WEST COMMISSIONING REGION","QVV","Dorset STP","RDY","DORSET HEALTHCARE UNIVERSITY NHS FOUNDATION TRUST","Mental Health & Learning Disability and Mental Health, Learning Disability & Community Trusts",1148,5189,7.1559233449477349,32,127,348,444,197,8,71,260,474,335,8,49,212,427,452]
["Y58","SOUTH WEST COMMISSIONING REGION","QT6","Cornwall and the Isles of Scilly Health & Social Care Partnership (STP)","REF","ROYAL CORNWALL HOSPITALS NHS TRUST","Acute and Acute & Community Trusts",681,5957,6.4659813999021045,75,95,193,221,97,42,64,167,272,138,30,46,124,252,234]
["Y58","SOUTH WEST COMMISSIONING REGION","QSL","Somerset STP","RH5","SOMERSET NHS FOUNDATION TRUST","Acute and Acute & Community Trusts",946,8202,6.8498942917547572,27,132,312,355,120,11,77,243,393,222,13,42,194,373,324]
["Y58","SOUTH WEST COMMISSIONING REGION","QJK","Devon STP","RH8","ROYAL DEVON AND EXETER NHS FOUNDATION TRUST","Acute and Acute & Community Trusts",1226,7581,6.9235997824904842,38,150,406,478,163,16,77,322,510,301,15,47,269,486,410]
["Y58","SOUTH WEST COMMISSIONING REGION","QT6","Cornwall and the Isles of Scilly Health & Social Care Partnership (STP)","RJ8","CORNWALL PARTNERSHIP NHS FOUNDATION TRUST","Mental Health & Learning Disability and Mental Health, Learning Disability & Community Trusts",11,3370,5.6060606060606055,0,2,5,4,0,0,5,2,2,2,0,2,4,3,2]
["Y58","SOUTH WEST COMMISSIONING REGION","QJK","Devon STP","RK9","UNIVERSITY HOSPITALS PLYMOUTH NHS TRUST","Acute and Acute & Community Trusts",170,8017,6.6568627450980395,11,26,47,64,22,7,18,36,62,47,5,8,39,64,54]
["Y58","SOUTH WEST COMMISSIONING REGION","QOX","Bath and North East Somerset, Swindon and Wiltshire STP","RN3","GREAT WESTERN HOSPITALS NHS FOUNDATION TRUST","Acute and Acute & Community Trusts",1687,4570,6.9013040901007709,62,206,598,583,260,27,134,447,646,438,27,83,376,577,624]
["Y58","SOUTH WEST COMMISSIONING REGION","QOX","Bath and North East Somerset, Swindon and Wiltshire STP","RNZ","SALISBURY NHS FOUNDATION TRUST","Acute and Acute & Community Trusts",99,3371,6.0942760942760943,9,19,40,22,9,5,8,34,30,22,5,6,25,39,24]
["Y58","SOUTH WEST COMMISSIONING REGION","QR1","Gloucestershire STP","RTE","GLOUCESTERSHIRE HOSPITALS NHS FOUNDATION TRUST","Acute and Acute & Community Trusts",99,7155,6.5151515151515156,5,17,36,35,9,2,11,31,39,16,2,6,22,36,33]
["Y58","SOUTH WEST COMMISSIONING REGION","QR1","Gloucestershire STP","RTQ","GLOUCESTERSHIRE HEALTH AND CARE NHS FOUNDATION TRUST","Mental Health & Learning Disability and Mental Health, Learning Disability & Community Trusts",171,3774,6.7251461988304095,7,24,56,72,12,1,13,52,73,32,2,7,40,59,63]
["Y58","SOUTH WEST COMMISSIONING REGION","QUY","Bristol, North Somerset and South Gloucestershire STP","RVJ","NORTH BRISTOL NHS TRUST","Acute and Acute & Community Trusts",175,8058,6.2095238095238097,13,31,64,56,12,5,24,46,74,27,4,14,47,65,45]
["Y58","SOUTH WEST COMMISSIONING REGION","QJK","Devon STP","RWV","DEVON PARTNERSHIP NHS TRUST","Mental Health & Learning Disability and Mental Health, Learning Disability & Community Trusts",151,3068,6.7439293598234,3,28,57,49,14,1,10,52,57,31,2,5,27,59,58]
["Y58","SOUTH WEST COMMISSIONING REGION","QJK","Devon STP","RYF","SOUTH WESTERN AMBULANCE SERVICE NHS FOUNDATION TRUST","Ambulance Trusts",524,4390,6.2086513994910941,24,85,170,172,73,12,47,167,182,116,10,70,188,190,66]
["Y59","SOUTH EAST COMMISSIONING REGION","QRL","Hampshire and the Isle of Wight STP","R1C","SOLENT NHS TRUST","Mental Health & Learning Disability and Mental Health, Learning Disability & Community Trusts",251,3306,7.1414342629482075,7,30,73,105,36,2,13,57,109,70,2,11,46,89,103]
["Y59","SOUTH EAST COMMISSIONING REGION","QRL","Hampshire and the Isle of Wight STP","R1F","ISLE OF WIGHT NHS TRUST","Acute and Acute & Community Trusts",346,3082,7.3627167630057802,7,31,96,151,62,3,24,61,153,106,2,15,49,129,151]
["Y59","SOUTH EAST COMMISSIONING REGION","QXU","Surrey Heartlands Health & Care Partnership (STP)","RA2","ROYAL SURREY COUNTY HOSPITAL NHS FOUNDATION TRUST","Acute and Acute & Community Trusts",52,4289,6.9391025641025639,4,10,12,16,10,1,3,15,20,13,1,0,8,22,21]
["Y59","SOUTH EAST COMMISSIONING REGION","QNX","Sussex Health and Care Partnership STP","RDR","SUSSEX COMMUNITY NHS FOUNDATION TRUST","Community Trusts",62,4364,7.029569892473118,0,11,13,32,6,0,5,13,28,16,1,4,9,27,21]
["Y59","SOUTH EAST COMMISSIONING REGION","QNQ","Frimley Health & Care (STP)","RDU","FRIMLEY HEALTH NHS FOUNDATION TRUST","Acute and Acute & Community Trusts",155,8996,5.870967741935484,16,35,57,36,11,10,26,43,48,28,7,12,44,45,47]
["Y59","SOUTH EAST COMMISSIONING REGION","QRL","Hampshire and the Isle of Wight STP","RHM","UNIVERSITY HOSPITAL SOUTHAMPTON NHS FOUNDATION TRUST","Acute and Acute & Community Trusts",3391,11005,6.9183131819522261,83,382,1140,1426,402,27,188,869,1563,744,41,158,754,1417,1024]
["Y59","SOUTH EAST COMMISSIONING REGION","QRL","Hampshire and the Isle of Wight STP","RHU","PORTSMOUTH HOSPITALS UNIVERSITY NATIONAL HEALTH SERVICE TRUST","Acute and Acute & Community Trusts",1077,7090,6.4415041782729805,49,213,375,332,108,17,118,330,382,230,20,70,283,362,342]
["Y59","SOUTH EAST COMMISSIONING REGION","QU9","Buckinghamshire, Oxfordshire and Berkshire West STP","RHW","ROYAL BERKSHIRE NHS FOUNDATION TRUST","Acute and Acute & Community Trusts",97,5537,6.9759450171821298,2,15,29,36,15,0,9,21,40,27,1,7,23,25,41]
["Y59","SOUTH EAST COMMISSIONING REGION","QRL","Hampshire and the Isle of Wight STP","RN5","HAMPSHIRE HOSPITALS NHS FOUNDATION TRUST","Acute and Acute & Community Trusts",293,6428,6.4362912400455059,16,57,93,96,31,12,31,74,104,72,13,23,60,102,95]
["Y59","SOUTH EAST COMMISSIONING REGION","QKS","Kent and Medway STP","RN7","DARTFORD AND GRAVESHAM NHS TRUST","Acute and Acute & Community Trusts",620,3401,6.934139784946237,21,62,207,211,119,12,43,152,236,177,10,37,152,214,207]
["Y59","SOUTH EAST COMMISSIONING REGION","QU9","Buckinghamshire, Oxfordshire and Berkshire West STP","RNU","OXFORD HEALTH NHS FOUNDATION TRUST","Mental Health & Learning Disability and Mental Health, Learning Disability & Community Trusts",1100,5265,7.0280303030303024,27,141,348,436,148,13,77,278,461,271,12,44,203,374,467]
["Y59","SOUTH EAST COMMISSIONING REGION","QKS","Kent and Medway STP","RPA","MEDWAY NHS FOUNDATION TRUST","Acute and Acute & Community Trusts",312,4106,6.3782051282051286,17,70,90,99,36,14,35,87,101,75,16,20,72,95,109]
["Y59","SOUTH EAST COMMISSIONING REGION","QNX","Sussex Health and Care Partnership STP","RPC","QUEEN VICTORIA HOSPITAL NHS FOUNDATION TRUST","Acute Specialist Trusts",145,902,7.0919540229885056,4,13,50,58,20,2,6,37,61,39,2,2,24,70,47]
["Y59","SOUTH EAST COMMISSIONING REGION","QU9","Buckinghamshire, Oxfordshire and Berkshire West STP","RTH","OXFORD UNIVERSITY HOSPITALS NHS FOUNDATION TRUST","Acute and Acute & Community Trusts",2867,12111,6.9797116614347168,69,337,922,1131,441,41,176,725,1205,723,34,139,627,1119,948]
["Y59","SOUTH EAST COMMISSIONING REGION","QKS","Kent and Medway STP","RVV","EAST KENT HOSPITALS UNIVERSITY NHS FOUNDATION TRUST","Acute and Acute & Community Trusts",2947,9248,6.6983372921615203,124,399,1082,1055,332,56,249,804,1130,708,63,169,707,1078,934]
["Y59","SOUTH EAST COMMISSIONING REGION","QRL","Hampshire and the Isle of Wight STP","RW1","SOUTHERN HEALTH NHS FOUNDATION TRUST","Mental Health & Learning Disability and Mental Health, Learning Disability & Community Trusts",440,5369,6.6609848484848486,15,72,125,181,47,9,44,94,216,77,7,34,61,232,106]
["Y59","SOUTH EAST COMMISSIONING REGION","QNQ","Frimley Health & Care (STP)","RWX","BERKSHIRE HEALTHCARE NHS FOUNDATION TRUST","Mental Health & Learning Disability and Mental Health, Learning Disability & Community Trusts",1483,3880,7.2533153517644413,20,141,503,629,210,9,69,360,663,382,9,41,242,569,624]
["Y59","SOUTH EAST COMMISSIONING REGION","QNX","Sussex Health and Care Partnership STP","RX2","SUSSEX PARTNERSHIP NHS FOUNDATION TRUST","Mental Health & Learning Disability and Mental Health, Learning Disability & Community Trusts",145,4598,6.7471264367816097,7,19,58,47,14,3,13,38,62,29,1,6,24,59,55]
["Y59","SOUTH EAST COMMISSIONING REGION","QNX","Sussex Health and Care Partnership STP","RXC","EAST SUSSEX HEALTHCARE NHS TRUST","Acute and Acute & Community Trusts",119,6714,5.9943977591036415,10,23,43,33,10,8,11,37,39,24,6,10,35,42,26]
["Y59","SOUTH EAST COMMISSIONING REGION","QU9","Buckinghamshire, Oxfordshire and Berkshire West STP","RXQ","BUCKINGHAMSHIRE HEALTHCARE NHS TRUST","Acute and Acute & Community Trusts",607,5385,6.9686985172981881,21,75,199,238,74,10,42,163,230,162,5,22,118,219,243]
["Y59","SOUTH EAST COMMISSIONING REGION","QKS","Kent and Medway STP","RXY","KENT AND MEDWAY NHS AND SOCIAL CARE PARTNERSHIP TRUST","Mental Health & Learning Disability and Mental Health, Learning Disability & Community Trusts",272,3123,6.8045343137254903,15,37,79,108,33,6,21,72,101,72,8,17,53,85,109]
["Y59","SOUTH EAST COMMISSIONING REGION","QNX","Sussex Health and Care Partnership STP","RYD","SOUTH EAST COAST AMBULANCE SERVICE NHS FOUNDATION TRUST","Ambulance Trusts",318,3879,5.615828092243186,25,79,113,73,28,9,52,102,102,53,22,51,104,90,51]
["Y59","SOUTH EAST COMMISSIONING REGION","QU9","Buckinghamshire, Oxfordshire and Berkshire West STP","RYE","SOUTH CENTRAL AMBULANCE SERVICE NHS FOUNDATION TRUST","Ambulance Trusts",143,4160,6.1072261072261078,12,17,53,43,18,4,18,48,39,34,9,12,49,45,28]
["Y59","SOUTH EAST COMMISSIONING REGION","QNX","Sussex Health and Care Partnership STP","RYR","UNIVERSITY HOSPITALS SUSSEX NHS FOUNDATION TRUST","Acute and Acute & Community Trusts",326,14064,5.8946830265848673,21,80,126,81,18,10,51,108,98,59,10,27,101,119,69]
["Y59","SOUTH EAST COMMISSIONING REGION","QKS","Kent and Medway STP","RYY","KENT COMMUNITY HEALTH NHS FOUNDATION TRUST","Community Trusts",324,4189,6.6846707818930042,12,49,124,104,35,5,29,100,124,66,3,14,79,99,129]
["Y60","MIDLANDS COMMISSIONING REGION","QGH","Herefordshire and Worcestershire STP","R1A","HEREFORDSHIRE AND WORCESTERSHIRE HEALTH AND CARE NHS TRUST","Mental Health & Learning Disability and Mental Health, Learning Disability & Community Trusts",282,3596,6.9592198581560281,17,33,95,101,38,5,15,75,101,86,4,15,53,96,114]
["Y60","MIDLANDS COMMISSIONING REGION","QOC","Shropshire and Telford and Wrekin STP","R1D","SHROPSHIRE COMMUNITY HEALTH NHS TRUST","Community Trusts",21,1244,7.2222222222222214,0,4,6,6,5,0,1,9,3,8,0,2,3,4,12]
["Y60","MIDLANDS COMMISSIONING REGION","QUA","The Black Country and West Birmingham STP","RBK","WALSALL HEALTHCARE NHS TRUST","Acute and Acute & Community Trusts",1015,3772,6.4351395730706082,79,165,312,378,81,42,109,208,498,158,33,50,182,474,276]
["Y60","MIDLANDS COMMISSIONING REGION","QJ2","Joined Up Care Derbyshire STP","RFS","CHESTERFIELD ROYAL HOSPITAL NHS FOUNDATION TRUST","Acute and Acute & Community Trusts",79,3351,6.6983122362869194,3,17,27,25,7,1,7,23,30,18,1,3,17,23,35]
["Y60","MIDLANDS COMMISSIONING REGION","QT1","Nottingham and Nottinghamshire Health and Care STP","RHA","NOTTINGHAMSHIRE HEALTHCARE NHS FOUNDATION TRUST","Mental Health & Learning Disability and Mental Health, Learning Disability & Community Trusts",256,7917,6.07421875,23,56,74,79,25,13,36,55,110,42,14,27,56,94,65]
["Y60","MIDLANDS COMMISSIONING REGION","QWU","Coventry and Warwickshire STP","RJC","SOUTH WARWICKSHIRE NHS FOUNDATION TRUST","Acute and Acute & Community Trusts",255,4288,6.8431372549019605,6,47,80,95,27,1,26,62,106,60,0,14,47,98,96]
["Y60","MIDLANDS COMMISSIONING REGION","QNC","Staffordshire & Stoke on Trent STP","RJE","UNIVERSITY HOSPITALS OF NORTH MIDLANDS NHS TRUST","Acute and Acute & Community Trusts",81,9689,6.1522633744855968,6,15,31,23,6,3,12,19,27,20,5,6,21,27,22]
["Y60","MIDLANDS COMMISSIONING REGION","QT1","Nottingham and Nottinghamshire Health and Care STP","RK5","SHERWOOD FOREST HOSPITALS NHS FOUNDATION TRUST","Acute and Acute & Community Trusts",1158,4630,6.9120610247553254,45,128,301,538,146,33,82,221,574,248,18,57,220,510,353]
["Y60","MIDLANDS COMMISSIONING REGION","QWU","Coventry and Warwickshire STP","RKB","UNIVERSITY HOSPITALS COVENTRY AND WARWICKSHIRE NHS TRUST","Acute and Acute & Community Trusts",131,8012,6.2086513994910941,9,30,38,39,15,4,17,40,45,25,6,9,40,32,44]
["Y60","MIDLANDS COMMISSIONING REGION","QUA","The Black Country and West Birmingham STP","RL4","THE ROYAL WOLVERHAMPTON NHS TRUST","Acute and Acute & Community Trusts",150,8719,7.0777777777777784,2,14,54,55,25,2,10,41,50,47,2,5,39,42,62]
["Y60","MIDLANDS COMMISSIONING REGION","QWU","Coventry and Warwickshire STP","RLT","GEORGE ELIOT HOSPITAL NHS TRUST","Acute and Acute & Community Trusts",25,2321,6.1333333333333337,4,2,12,6,1,2,1,9,6,7,1,1,7,8,8]
["Y60","MIDLANDS COMMISSIONING REGION","QNC","Staffordshire & Stoke on Trent STP","RLY","NORTH STAFFORDSHIRE COMBINED HEALTHCARE NHS TRUST","Mental Health & Learning Disability and Mental Health, Learning Disability & Community Trusts",21,1479,6.8650793650793647,0,1,13,6,1,0,1,5,13,2,0,0,4,10,7]
["Y60","MIDLANDS COMMISSIONING REGION","QUA","The Black Country and West Birmingham STP","RNA","THE DUDLEY GROUP NHS FOUNDATION TRUST","Acute and Acute & Community Trusts",888,4799,6.8271396396396398,42,126,308,325,101,11,67,232,359,219,12,34,195,346,302]
["Y60","MIDLANDS COMMISSIONING REGION","QPM","Northamptonshire STP","RNQ","KETTERING GENERAL HOSPITAL NHS FOUNDATION TRUST","Acute and Acute & Community Trusts",762,4307,6.257655293088364,52,201,174,262,73,25,138,136,328,135,21,105,103,282,251]
["Y60","MIDLANDS COMMISSIONING REGION","QPM","Northamptonshire STP","RNS","NORTHAMPTON GENERAL HOSPITAL NHS TRUST","Acute and Acute & Community Trusts",777,5039,6.3427713427713428,62,189,144,310,73,24,151,112,329,161,23,121,84,276,273]
["Y60","MIDLANDS COMMISSIONING REGION","QPM","Northamptonshire STP","RP1","NORTHAMPTONSHIRE HEALTHCARE NHS FOUNDATION TRUST","Mental Health & Learning Disability and Mental Health, Learning Disability & Community Trusts",1644,3744,7.2982562854825632,23,139,517,695,286,11,78,368,706,484,6,50,304,666,618]
["Y60","MIDLANDS COMMISSIONING REGION","QJM","Lincolnshire STP","RP7","LINCOLNSHIRE PARTNERSHIP NHS FOUNDATION TRUST","Mental Health & Learning Disability and Mental Health, Learning Disability & Community Trusts",176,2047,7.0407196969696972,5,17,60,74,20,1,8,41,69,57,3,7,39,70,57]
["Y60","MIDLANDS COMMISSIONING REGION","QHL","Birmingham and Solihull STP","RQ3","BIRMINGHAM WOMEN'S AND CHILDREN'S NHS FOUNDATION TRUST","Acute and Acute & Community Trusts",23,5380,6.5217391304347823,3,5,6,6,3,0,3,8,7,5,0,1,5,6,11]
["Y60","MIDLANDS COMMISSIONING REGION","QNC","Staffordshire & Stoke on Trent STP","RRE","MIDLANDS PARTNERSHIP NHS FOUNDATION TRUST","Mental Health & Learning Disability and Mental Health, Learning Disability & Community Trusts",0,7698,"-",0,0,0,0,0,0,0,0,0,0,0,0,0,0,0]
["Y60","MIDLANDS COMMISSIONING REGION","QHL","Birmingham and Solihull STP","RRK","UNIVERSITY HOSPITALS BIRMINGHAM NHS FOUNDATION TRUST","Acute and Acute & Community Trusts",1059,18810,5.9379918161787844,101,242,358,280,79,56,136,325,368,174,49,94,291,334,292]
["Y60","MIDLANDS COMMISSIONING REGION","QK1","Leicester, Leicestershire and Rutland STP","RT5","LEICESTERSHIRE PARTNERSHIP NHS TRUST","Mental Health & Learning Disability and Mental Health, Learning Disability & Community Trusts",960,4741,6.596354166666667,55,142,362,297,104,24,90,289,359,198,19,37,220,324,360]
["Y60","MIDLANDS COMMISSIONING REGION","QJ2","Joined Up Care Derbyshire STP","RTG","UNIVERSITY HOSPITALS OF DERBY AND BURTON NHS FOUNDATION TRUST","Acute and Acute & Community Trusts",2218,11606,6.6031710249474003,128,338,757,743,259,53,220,623,788,540,41,127,532,795,723]
["Y60","MIDLANDS COMMISSIONING REGION","QJM","Lincolnshire STP","RWD","UNITED LINCOLNSHIRE HOSPITALS NHS TRUST","Acute and Acute & Community Trusts",2661,7161,6.7496555179756976,126,374,923,933,328,44,215,725,1007,670,46,134,632,966,890]
["Y60","MIDLANDS COMMISSIONING REGION","QK1","Leicester, Leicestershire and Rutland STP","RWE","UNIVERSITY HOSPITALS OF LEICESTER NHS TRUST","Acute and Acute & Community Trusts",284,13950,6.613849765258216,20,48,88,86,42,7,25,89,93,70,5,10,78,88,103]
["Y60","MIDLANDS COMMISSIONING REGION","QGH","Herefordshire and Worcestershire STP","RWP","WORCESTERSHIRE ACUTE HOSPITALS NHS TRUST","Acute and Acute & Community Trusts",484,5680,6.5650826446280988,32,78,155,162,57,17,37,141,175,114,11,25,119,168,161]
["Y60","MIDLANDS COMMISSIONING REGION","QT1","Nottingham and Nottinghamshire Health and Care STP","RX1","NOTTINGHAM UNIVERSITY HOSPITALS NHS TRUST","Acute and Acute & Community Trusts",1382,15210,6.5400385914134107,77,245,451,459,150,26,126,391,522,317,23,85,341,519,414]
["Y60","MIDLANDS COMMISSIONING REGION","QT1","Nottingham and Nottinghamshire Health and Care STP","RX9","EAST MIDLANDS AMBULANCE SERVICE NHS TRUST","Ambulance Trusts",88,3716,6.1363636363636367,5,16,35,22,10,1,13,23,33,18,3,7,30,33,15]
["Y60","MIDLANDS COMMISSIONING REGION","QUA","The Black Country and West Birmingham STP","RXK","SANDWELL AND WEST BIRMINGHAM HOSPITALS NHS TRUST","Acute and Acute & Community Trusts",1250,6464,6.7919999999999998,43,167,458,457,155,17,103,345,471,315,21,62,318,446,403]
["Y60","MIDLANDS COMMISSIONING REGION","QJ2","Joined Up Care Derbyshire STP","RXM","DERBYSHIRE HEALTHCARE NHS FOUNDATION TRUST","Mental Health & Learning Disability and Mental Health, Learning Disability & Community Trusts",1102,2445,7.2149122807017543,20,84,367,496,146,9,47,248,497,304,5,33,235,418,411]
["Y60","MIDLANDS COMMISSIONING REGION","QUA","The Black Country and West Birmingham STP","RXT","BIRMINGHAM AND SOLIHULL MENTAL HEALTH NHS FOUNDATION TRUST","Mental Health & Learning Disability and Mental Health, Learning Disability & Community Trusts",388,4027,6.3509450171821298,16,72,158,110,32,7,37,139,124,81,8,25,108,129,118]
["Y60","MIDLANDS COMMISSIONING REGION","QJM","Lincolnshire STP","RY5","LINCOLNSHIRE COMMUNITY HEALTH SERVICES NHS TRUST","Community Trusts",651,1867,7.3015873015873014,11,68,196,290,95,0,34,141,279,198,0,23,122,242,264]
["Y60","MIDLANDS COMMISSIONING REGION","QJ2","Joined Up Care Derbyshire STP","RY8","DERBYSHIRE COMMUNITY HEALTH SERVICES NHS FOUNDATION TRUST","Community Trusts",1635,3365,7.2094801223241589,42,159,507,731,214,19,74,383,710,449,20,35,295,624,665]
["Y60","MIDLANDS COMMISSIONING REGION","QUA","The Black Country and West Birmingham STP","RYA","WEST MIDLANDS AMBULANCE SERVICE UNIVERSITY NHS FOUNDATION TRUST","Ambulance Trusts",558,6387,5.4883512544802864,64,124,192,137,41,38,88,164,172,96,38,83,187,181,69]
["Y60","MIDLANDS COMMISSIONING REGION","QWU","Coventry and Warwickshire STP","RYG","COVENTRY AND WARWICKSHIRE PARTNERSHIP NHS TRUST","Mental Health & Learning Disability and Mental Health, Learning Disability & Community Trusts",299,3505,7.051282051282052,7,25,101,120,46,2,13,77,137,70,2,15,48,146,88]
["Y60","MIDLANDS COMMISSIONING REGION","QHL","Birmingham and Solihull STP","RYW","BIRMINGHAM COMMUNITY HEALTHCARE NHS FOUNDATION TRUST","Community Trusts",526,4224,6.7110266159695815,22,87,191,174,52,10,45,147,199,125,8,32,95,185,206]
["Y60","MIDLANDS COMMISSIONING REGION","QUA","The Black Country and West Birmingham STP","TAJ","BLACK COUNTRY HEALTHCARE NHS FOUNDATION TRUST","Mental Health & Learning Disability and Mental Health, Learning Disability & Community Trusts",606,3097,6.4067656765676571,32,111,220,179,64,23,65,176,215,127,25,39,134,194,214]
["Y61","EAST OF ENGLAND COMMISSIONING REGION","QH8","Mid and South Essex STP","R1L","ESSEX PARTNERSHIP UNIVERSITY NHS FOUNDATION TRUST","Mental Health & Learning Disability and Mental Health, Learning Disability & Community Trusts",323,4918,6.5789473684210522,13,60,88,121,41,6,47,67,134,69,6,29,58,137,93]
["Y61","EAST OF ENGLAND COMMISSIONING REGION","QH8","Mid and South Essex STP","RAJ","MID AND SOUTH ESSEX NHS FOUNDATION TRUST","Acute and Acute & Community Trusts",48,13662,6.0243055555555562,8,7,17,14,2,3,5,16,10,14,7,2,5,15,19]
["Y61","EAST OF ENGLAND COMMISSIONING REGION","QH8","Mid and South Essex STP","RAJ","MID AND SOUTH ESSEX NHS FOUNDATION TRUST","Acute and Acute & Community Trusts",48,13662,6.0243055555555562,8,7,17,14,2,3,5,16,10,14,7,2,5,15,19]
["Y61","EAST OF ENGLAND COMMISSIONING REGION","QHG","Bedfordshire, Luton and Milton Keynes STP","RC9","BEDFORDSHIRE HOSPITALS NHS FOUNDATION TRUST","Acute and Acute & Community Trusts",28,7136,4.9404761904761907,4,10,8,6,0,2,8,8,7,3,5,2,7,7,7]
["Y61","EAST OF ENGLAND COMMISSIONING REGION","QMM","Norfolk and Waveney Health & Care Partnership (STP)","RCX","THE QUEEN ELIZABETH HOSPITAL, KING'S LYNN, NHS FOUNDATION TRUST","Acute and Acute & Community Trusts",89,3273,6.310861423220973,5,19,36,26,3,3,14,23,29,20,2,4,21,28,34]
["Y61","EAST OF ENGLAND COMMISSIONING REGION","QHG","Bedfordshire, Luton and Milton Keynes STP","RD8","MILTON KEYNES UNIVERSITY HOSPITAL NHS FOUNDATION TRUST","Acute and Acute & Community Trusts",12,3264,6.1805555555555562,1,1,5,4,1,0,2,3,5,2,0,1,3,8,0]
["Y61","EAST OF ENGLAND COMMISSIONING REGION","QJG","Suffolk and North East Essex STP","RDE","EAST SUFFOLK AND NORTH ESSEX NHS FOUNDATION TRUST","Acute and Acute & Community Trusts",32,9644,6.223958333333333,1,8,10,10,3,0,3,11,11,7,0,4,11,11,6]
["Y61","EAST OF ENGLAND COMMISSIONING REGION","QUE","Cambridgeshire and Peterborough STP","RGM","ROYAL PAPWORTH HOSPITAL NHS FOUNDATION TRUST","Acute Specialist Trusts",276,1894,6.8448067632850247,14,37,67,117,42,11,32,47,121,65,6,22,38,114,97]
["Y61","EAST OF ENGLAND COMMISSIONING REGION","QUE","Cambridgeshire and Peterborough STP","RGN","NORTH WEST ANGLIA NHS FOUNDATION TRUST","Acute and Acute & Community Trusts",261,6066,6.4144316730523627,32,42,71,81,35,23,29,57,93,64,18,18,36,106,89]
["Y61","EAST OF ENGLAND COMMISSIONING REGION","QJG","Suffolk and North East Essex STP","RGR","WEST SUFFOLK NHS FOUNDATION TRUST","Acute and Acute & Community Trusts",1404,4097,7.0186372269705597,40,139,455,606,172,19,81,344,583,377,18,54,299,552,484]
["Y61","EAST OF ENGLAND COMMISSIONING REGION","QUE","Cambridgeshire and Peterborough STP","RGT","CAMBRIDGE UNIVERSITY HOSPITALS NHS FOUNDATION TRUST","Acute and Acute & Community Trusts",4086,10429,3.1493718387991518,590,1571,1344,490,138,1049,1628,1050,303,56,1352,1530,925,208,74]
["Y61","EAST OF ENGLAND COMMISSIONING REGION","QMM","Norfolk and Waveney Health & Care Partnership (STP)","RM1","NORFOLK AND NORWICH UNIVERSITY HOSPITALS NHS FOUNDATION TRUST","Acute and Acute & Community Trusts",220,7867,5.9393939393939394,22,48,81,49,20,11,30,76,67,36,11,17,52,77,63]
["Y61","EAST OF ENGLAND COMMISSIONING REGION","QMM","Norfolk and Waveney Health & Care Partnership (STP)","RMY","NORFOLK AND SUFFOLK NHS FOUNDATION TRUST","Mental Health & Learning Disability and Mental Health, Learning Disability & Community Trusts",1382,4168,6.7932947419199232,48,170,465,552,154,15,109,356,605,299,22,84,288,550,438]
["Y61","EAST OF ENGLAND COMMISSIONING REGION","QM7","Hertfordshire and West Essex STP","RQW","THE PRINCESS ALEXANDRA HOSPITAL NHS TRUST","Acute and Acute & Community Trusts",190,3407,6.3026315789473681,18,39,68,47,18,8,19,49,65,49,6,10,53,59,62]
["Y61","EAST OF ENGLAND COMMISSIONING REGION","QUE","Cambridgeshire and Peterborough STP","RT1","CAMBRIDGESHIRE AND PETERBOROUGH NHS FOUNDATION TRUST","Mental Health & Learning Disability and Mental Health, Learning Disability & Community Trusts",2778,3809,6.8184545236381098,106,236,866,1156,414,64,142,747,1340,485,27,59,641,1503,548]
["Y61","EAST OF ENGLAND COMMISSIONING REGION","QM7","Hertfordshire and West Essex STP","RWG","WEST HERTFORDSHIRE HOSPITALS NHS TRUST","Acute and Acute & Community Trusts",664,4738,6.543674698795181,45,115,200,215,89,26,66,166,250,156,28,35,143,227,231]
["Y61","EAST OF ENGLAND COMMISSIONING REGION","QM7","Hertfordshire and West Essex STP","RWH","EAST AND NORTH HERTFORDSHIRE NHS TRUST","Acute and Acute & Community Trusts",180,5630,6.5,9,33,66,59,13,5,16,57,57,45,5,7,41,68,59]
["Y61","EAST OF ENGLAND COMMISSIONING REGION","QM7","Hertfordshire and West Essex STP","RWR","HERTFORDSHIRE PARTNERSHIP UNIVERSITY NHS FOUNDATION TRUST","Mental Health & Learning Disability and Mental Health, Learning Disability & Community Trusts",864,3266,7.2424768518518521,15,70,277,352,156,2,34,203,386,240,4,28,188,333,311]
["Y61","EAST OF ENGLAND COMMISSIONING REGION","QMM","Norfolk and Waveney Health & Care Partnership (STP)","RY3","NORFOLK COMMUNITY HEALTH AND CARE NHS TRUST","Community Trusts",398,1992,7.091708542713568,11,49,128,155,55,5,24,95,166,108,2,23,60,142,171]
["Y61","EAST OF ENGLAND COMMISSIONING REGION","QM7","Hertfordshire and West Essex STP","RY4","HERTFORDSHIRE COMMUNITY NHS TRUST","Community Trusts",171,2090,7.3830409356725148,9,19,39,73,31,5,10,33,66,57,3,3,21,48,96]
["Y61","EAST OF ENGLAND COMMISSIONING REGION","QUE","Cambridgeshire and Peterborough STP","RYC","EAST OF ENGLAND AMBULANCE SERVICE NHS TRUST","Ambulance Trusts",305,5410,5.3497267759562845,36,88,85,69,27,18,63,90,83,51,29,47,93,88,48]
["Y61","EAST OF ENGLAND COMMISSIONING REGION","QUE","Cambridgeshire and Peterborough STP","RYV","CAMBRIDGESHIRE COMMUNITY SERVICES NHS TRUST","Community Trusts",99,2126,7.4074074074074074,3,9,21,44,22,0,7,17,39,36,2,6,11,41,39]
["Y62","NORTH WEST COMMISSIONING REGION","QOP","Greater Manchester Health & Social Care Partnership","R0A","MANCHESTER UNIVERSITY NHS FOUNDATION TRUST","Acute and Acute & Community Trusts",2798,24928,6.4998808672861568,171,473,981,967,259,79,288,781,1113,545,62,167,668,1024,877]
["Y62","NORTH WEST COMMISSIONING REGION","QYG","Cheshire and Merseyside STP","RBL","WIRRAL UNIVERSITY TEACHING HOSPITAL NHS FOUNDATION TRUST","Acute and Acute & Community Trusts",59,5550,5.7344632768361583,9,16,16,16,2,6,5,22,20,6,2,4,14,19,20]
["Y62","NORTH WEST COMMISSIONING REGION","QYG","Cheshire and Merseyside STP","RBN","ST HELENS AND KNOWSLEY TEACHING HOSPITALS NHS TRUST","Acute and Acute & Community Trusts",137,5963,6.4659367396593677,9,28,41,44,15,4,20,34,38,41,4,6,37,45,45]
["Y62","NORTH WEST COMMISSIONING REGION","QYG","Cheshire and Merseyside STP","RBQ","LIVERPOOL HEART AND CHEST HOSPITAL NHS FOUNDATION TRUST","Acute Specialist Trusts",146,1662,6.7180365296803659,10,20,47,46,23,6,10,36,50,44,4,12,29,49,52]
["Y62","NORTH WEST COMMISSIONING REGION","QYG","Cheshire and Merseyside STP","RBS","ALDER HEY CHILDREN'S NHS FOUNDATION TRUST","Acute and Acute & Community Trusts",271,3632,6.9218942189421888,12,37,87,99,36,7,19,64,107,74,5,8,55,95,108]
["Y62","NORTH WEST COMMISSIONING REGION","QYG","Cheshire and Merseyside STP","RBT","MID CHESHIRE HOSPITALS NHS FOUNDATION TRUST","Acute and Acute & Community Trusts",204,4300,7.034313725490196,5,32,63,80,24,1,12,52,86,53,2,4,38,78,82]
["Y62","NORTH WEST COMMISSIONING REGION","QOP","Greater Manchester Health & Social Care Partnership","RBV","THE CHRISTIE NHS FOUNDATION TRUST","Acute Specialist Trusts",107,2962,6.6433021806853585,4,14,39,43,7,1,7,36,44,19,1,8,25,33,40]
["Y62","NORTH WEST COMMISSIONING REGION","QYG","Cheshire and Merseyside STP","REM","LIVERPOOL UNIVERSITY HOSPITALS NHS FOUNDATION TRUST","Acute and Acute & Community Trusts",2069,12104,6.592959561785082,98,326,782,678,216,47,157,622,784,464,42,105,514,793,615]
["Y62","NORTH WEST COMMISSIONING REGION","QYG","Cheshire and Merseyside STP","REN","THE CLATTERBRIDGE CANCER CENTRE NHS FOUNDATION TRUST","Acute Specialist Trusts",228,1451,6.7836257309941521,15,41,47,93,32,7,21,39,110,51,4,18,25,111,70]
["Y62","NORTH WEST COMMISSIONING REGION","QYG","Cheshire and Merseyside STP","REP","LIVERPOOL WOMEN'S NHS FOUNDATION TRUST","Acute Specialist Trusts",200,1405,7.0750000000000002,17,66,0,21,97,5,44,0,98,53,6,19,0,96,81]
["Y62","NORTH WEST COMMISSIONING REGION","QYG","Cheshire and Merseyside STP","RET","THE WALTON CENTRE NHS FOUNDATION TRUST","Acute Specialist Trusts",106,1347,6.949685534591195,4,18,27,42,15,2,9,22,43,30,2,5,18,41,40]
["Y62","NORTH WEST COMMISSIONING REGION","QYG","Cheshire and Merseyside STP","RJN","EAST CHESHIRE NHS TRUST","Acute and Acute & Community Trusts",122,2167,6.584699453551913,4,20,43,47,8,2,11,28,61,20,1,8,30,45,38]
["Y62","NORTH WEST COMMISSIONING REGION","QYG","Cheshire and Merseyside STP","RJR","COUNTESS OF CHESTER HOSPITAL NHS FOUNDATION TRUST","Acute and Acute & Community Trusts",264,3819,6.433080808080808,23,58,92,68,23,7,26,76,101,54,4,12,59,83,106]
["Y62","NORTH WEST COMMISSIONING REGION","QOP","Greater Manchester Health & Social Care Partnership","RM3","NORTHERN CARE ALLIANCE NHS FOUNDATION TRUST","Acute and Acute & Community Trusts",2279,17028,6.2735849056603774,174,415,864,666,199,90,262,728,795,404,76,143,553,808,707]
["Y62","NORTH WEST COMMISSIONING REGION","QOP","Greater Manchester Health & Social Care Partnership","RMC","BOLTON NHS FOUNDATION TRUST","Acute and Acute & Community Trusts",1089,5533,7.3186409550045912,50,131,273,440,195,16,56,134,492,391,14,33,134,510,398]
["Y62","NORTH WEST COMMISSIONING REGION","QOP","Greater Manchester Health & Social Care Partnership","RMP","TAMESIDE AND GLOSSOP INTEGRATED CARE NHS FOUNDATION TRUST","Acute and Acute & Community Trusts",78,3584,6.1431623931623935,6,20,22,24,6,4,9,26,17,22,3,9,23,12,31]
["Y62","NORTH WEST COMMISSIONING REGION","QOP","Greater Manchester Health & Social Care Partnership","RRF","WRIGHTINGTON, WIGAN AND LEIGH NHS FOUNDATION TRUST","Acute and Acute & Community Trusts",159,5754,6.2631027253668767,11,36,51,47,14,9,23,42,62,23,6,8,28,57,60]
["Y62","NORTH WEST COMMISSIONING REGION","QOP","Greater Manchester Health & Social Care Partnership","RT2","PENNINE CARE NHS FOUNDATION TRUST","Mental Health & Learning Disability and Mental Health, Learning Disability & Community Trusts",231,3145,6.5620490620490619,13,43,74,83,18,4,26,60,90,51,7,10,45,89,80]
["Y62","NORTH WEST COMMISSIONING REGION","QE1","Healthier Lancashire and South Cumbria","RTX","UNIVERSITY HOSPITALS OF MORECAMBE BAY NHS FOUNDATION TRUST","Acute and Acute & Community Trusts",199,6070,5.9882747068676725,20,46,67,44,22,8,36,58,56,41,10,13,60,51,65]
["Y62","NORTH WEST COMMISSIONING REGION","QYG","Cheshire and Merseyside STP","RVY","SOUTHPORT AND ORMSKIRK HOSPITAL NHS TRUST","Acute and Acute & Community Trusts",324,2861,6.7978395061728394,20,43,106,132,31,7,23,82,117,95,7,18,68,128,103]
["Y62","NORTH WEST COMMISSIONING REGION","QYG","Cheshire and Merseyside STP","RW4","MERSEY CARE NHS FOUNDATION TRUST","Mental Health & Learning Disability and Mental Health, Learning Disability & Community Trusts",2317,9735,7.1363832542080274,93,244,739,888,380,51,113,508,906,741,46,123,415,760,973]
["Y62","NORTH WEST COMMISSIONING REGION","QE1","Healthier Lancashire and South Cumbria","RW5","LANCASHIRE & SOUTH CUMBRIA NHS FOUNDATION TRUST","Mental Health & Learning Disability and Mental Health, Learning Disability & Community Trusts",1125,6159,7.1370370370370377,31,131,357,449,159,6,49,237,531,302,10,41,203,452,420]
["Y62","NORTH WEST COMMISSIONING REGION","QOP","Greater Manchester Health & Social Care Partnership","RWJ","STOCKPORT NHS FOUNDATION TRUST","Acute and Acute & Community Trusts",87,4993,6.235632183908046,9,19,33,19,7,2,12,25,25,23,2,7,18,31,29]
["Y62","NORTH WEST COMMISSIONING REGION","QYG","Cheshire and Merseyside STP","RWW","WARRINGTON AND HALTON TEACHING HOSPITALS NHS FOUNDATION TRUST","Acute and Acute & Community Trusts",51,3876,6.666666666666667,3,5,19,20,4,1,6,13,23,8,0,2,12,18,19]
["Y62","NORTH WEST COMMISSIONING REGION","QOP","Greater Manchester Health & Social Care Partnership","RX7","NORTH WEST AMBULANCE SERVICE NHS TRUST","Ambulance Trusts",1372,6258,6.3405004859086489,60,229,480,452,156,28,121,387,540,296,45,132,430,485,281]
["Y62","NORTH WEST COMMISSIONING REGION","QYG","Cheshire and Merseyside STP","RXA","CHESHIRE AND WIRRAL PARTNERSHIP NHS FOUNDATION TRUST","Mental Health & Learning Disability and Mental Health, Learning Disability & Community Trusts",807,3383,7.0724907063197024,20,77,276,331,107,8,34,199,335,231,7,39,169,307,285]
["Y62","NORTH WEST COMMISSIONING REGION","QE1","Healthier Lancashire and South Cumbria","RXL","BLACKPOOL TEACHING HOSPITALS NHS FOUNDATION TRUST","Acute and Acute & Community Trusts",539,6870,6.8552875695732842,18,86,166,205,64,10,44,145,203,137,6,22,109,194,208]
["Y62","NORTH WEST COMMISSIONING REGION","QE1","Healthier Lancashire and South Cumbria","RXN","LANCASHIRE TEACHING HOSPITALS NHS FOUNDATION TRUST","Acute and Acute & Community Trusts",1731,8078,6.8115732717119206,77,228,633,618,209,30,128,448,719,406,26,77,385,671,575]
["Y62","NORTH WEST COMMISSIONING REGION","QE1","Healthier Lancashire and South Cumbria","RXR","EAST LANCASHIRE HOSPITALS NHS TRUST","Acute and Acute & Community Trusts",95,8472,6.6228070175438596,5,16,33,31,10,2,10,28,30,25,3,4,16,40,32]
["Y62","NORTH WEST COMMISSIONING REGION","QOP","Greater Manchester Health & Social Care Partnership","RXV","GREATER MANCHESTER MENTAL HEALTH NHS FOUNDATION TRUST","Mental Health & Learning Disability and Mental Health, Learning Disability & Community Trusts",1277,5688,6.8285043069694593,44,177,423,492,146,20,94,342,512,309,24,50,269,493,441]
["Y62","NORTH WEST COMMISSIONING REGION","QYG","Cheshire and Merseyside STP","RY2","BRIDGEWATER COMMUNITY HEALTHCARE NHS FOUNDATION TRUST","Community Trusts",296,1423,7.0917792792792786,15,39,79,126,37,8,21,65,114,88,4,6,50,99,137]
["Y62","NORTH WEST COMMISSIONING REGION","QYG","Cheshire and Merseyside STP","RY7","WIRRAL COMMUNITY HEALTH AND CARE NHS FOUNDATION TRUST","Community Trusts",137,1514,7.0559610705596105,6,14,53,45,19,0,13,35,53,36,2,3,25,38,69]
["Y63","NORTH EAST AND YORKSHIRE COMMISSIONING REGION","QHM","Cumbria and North East STP","R0B","SOUTH TYNESIDE AND SUNDERLAND NHS FOUNDATION TRUST","Acute and Acute & Community Trusts",131,7669,5.1399491094147587,18,39,43,27,4,10,29,38,43,11,12,14,44,38,23]
["Y63","NORTH EAST AND YORKSHIRE COMMISSIONING REGION","QWO","West Yorkshire and Harrogate Health & Care Partnership (STP)","RAE","BRADFORD TEACHING HOSPITALS NHS FOUNDATION TRUST","Acute and Acute & Community Trusts",74,5468,5.8783783783783781,8,18,24,18,6,2,10,23,23,16,7,5,22,20,20]
["Y63","NORTH EAST AND YORKSHIRE COMMISSIONING REGION","QOQ","Humber, Coast and Vale STP","RCB","YORK AND SCARBOROUGH TEACHING HOSPITALS NHS FOUNDATION TRUST","Acute and Acute & Community Trusts",142,7674,6.050469483568075,13,33,50,35,11,6,24,39,43,30,7,9,35,45,46]
["Y63","NORTH EAST AND YORKSHIRE COMMISSIONING REGION","QOQ","Humber, Coast and Vale STP","RCD","HARROGATE AND DISTRICT NHS FOUNDATION TRUST","Acute and Acute & Community Trusts",948,3924,7.1518987341772151,27,133,308,347,134,8,57,227,361,295,9,31,153,321,434]
["Y63","NORTH EAST AND YORKSHIRE COMMISSIONING REGION","QWO","West Yorkshire and Harrogate Health & Care Partnership (STP)","RCF","AIREDALE NHS FOUNDATION TRUST","Acute and Acute & Community Trusts",890,2987,7.0692883895131091,26,97,284,375,124,11,53,213,379,234,14,42,164,354,320]
["Y63","NORTH EAST AND YORKSHIRE COMMISSIONING REGION","QF7","South Yorkshire and Bassetlaw STP","RCU","SHEFFIELD CHILDREN'S NHS FOUNDATION TRUST","Acute and Acute & Community Trusts",275,3013,6.5636363636363635,12,41,97,103,22,6,23,68,119,59,9,15,61,115,75]
["Y63","NORTH EAST AND YORKSHIRE COMMISSIONING REGION","QF7","South Yorkshire and Bassetlaw STP","RFF","BARNSLEY HOSPITAL NHS FOUNDATION TRUST","Acute and Acute & Community Trusts",61,3523,6.666666666666667,2,11,18,25,5,1,6,16,24,14,1,2,15,24,19]
["Y63","NORTH EAST AND YORKSHIRE COMMISSIONING REGION","QF7","South Yorkshire and Bassetlaw STP","RFR","THE ROTHERHAM NHS FOUNDATION TRUST","Acute and Acute & Community Trusts",53,3997,5.9905660377358494,5,13,14,20,1,1,11,10,22,9,4,4,11,19,15]
["Y63","NORTH EAST AND YORKSHIRE COMMISSIONING REGION","QWO","West Yorkshire and Harrogate Health & Care Partnership (STP)","RGD","LEEDS AND YORK PARTNERSHIP NHS FOUNDATION TRUST","Mental Health & Learning Disability and Mental Health, Learning Disability & Community Trusts",18,2818,6.0185185185185182,1,5,6,5,1,1,3,4,9,1,0,1,6,5,6]
["Y63","NORTH EAST AND YORKSHIRE COMMISSIONING REGION","QF7","South Yorkshire and Bassetlaw STP","RHQ","SHEFFIELD TEACHING HOSPITALS NHS FOUNDATION TRUST","Acute and Acute & Community Trusts",953,14915,6.2740468695348026,81,180,331,303,58,30,104,290,353,176,30,50,220,357,296]
["Y63","NORTH EAST AND YORKSHIRE COMMISSIONING REGION","QOQ","Humber, Coast and Vale STP","RJL","NORTHERN LINCOLNSHIRE AND GOOLE NHS FOUNDATION TRUST","Acute and Acute & Community Trusts",182,5527,6.1858974358974352,15,42,64,47,14,8,27,44,61,42,4,17,47,49,65]
["Y63","NORTH EAST AND YORKSHIRE COMMISSIONING REGION","QHM","Cumbria and North East STP","RNN","NORTH CUMBRIA INTEGRATED CARE NHS FOUNDATION TRUST","Acute and Acute & Community Trusts",504,5709,6.4732142857142856,29,94,177,164,40,11,59,139,186,109,16,32,96,180,180]
["Y63","NORTH EAST AND YORKSHIRE COMMISSIONING REGION","QF7","South Yorkshire and Bassetlaw STP","RP5","DONCASTER AND BASSETLAW TEACHING HOSPITALS NHS FOUNDATION TRUST","Acute and Acute & Community Trusts",1431,5615,6.8640810621942698,54,192,486,541,172,32,91,356,568,384,21,63,325,552,475]
["Y63","NORTH EAST AND YORKSHIRE COMMISSIONING REGION","QHM","Cumbria and North East STP","RR7","GATESHEAD HEALTH NHS FOUNDATION TRUST","Acute and Acute & Community Trusts",351,4268,6.3770180436847106,26,69,122,104,30,13,37,100,135,66,10,22,72,119,128]
["Y63","NORTH EAST AND YORKSHIRE COMMISSIONING REGION","QWO","West Yorkshire and Harrogate Health & Care Partnership (STP)","RR8","LEEDS TEACHING HOSPITALS NHS TRUST","Acute and Acute & Community Trusts",3182,17248,6.7936832181018225,103,413,1048,1295,323,37,232,844,1391,678,45,133,718,1263,1023]
["Y63","NORTH EAST AND YORKSHIRE COMMISSIONING REGION","QHM","Cumbria and North East STP","RTD","THE NEWCASTLE UPON TYNE HOSPITALS NHS FOUNDATION TRUST","Acute and Acute & Community Trusts",180,14299,5.9629629629629628,19,40,53,57,11,8,23,57,60,32,5,22,52,48,53]
["Y63","NORTH EAST AND YORKSHIRE COMMISSIONING REGION","QHM","Cumbria and North East STP","RTF","NORTHUMBRIA HEALTHCARE NHS FOUNDATION TRUST","Acute and Acute & Community Trusts",4015,7033,7.0697384806973851,112,403,1263,1585,652,58,223,950,1630,1154,65,157,858,1472,1463]
["Y63","NORTH EAST AND YORKSHIRE COMMISSIONING REGION","QOQ","Humber, Coast and Vale STP","RV9","HUMBER TEACHING NHS FOUNDATION TRUST","Mental Health & Learning Disability and Mental Health, Learning Disability & Community Trusts",602,2645,6.9808970099667773,15,74,196,254,71,4,40,152,251,155,6,26,127,238,205]
["Y63","NORTH EAST AND YORKSHIRE COMMISSIONING REGION","QHM","Cumbria and North East STP","RVW","NORTH TEES AND HARTLEPOOL NHS FOUNDATION TRUST","Acute and Acute & Community Trusts",122,4661,6.1816939890710376,11,32,33,37,9,5,14,31,35,37,6,7,38,36,35]
["Y63","NORTH EAST AND YORKSHIRE COMMISSIONING REGION","QWO","West Yorkshire and Harrogate Health & Care Partnership (STP)","RWY","CALDERDALE AND HUDDERSFIELD NHS FOUNDATION TRUST","Acute and Acute & Community Trusts",256,5590,6.399739583333333,14,49,93,84,16,7,25,89,91,44,5,18,50,87,96]
["Y63","NORTH EAST AND YORKSHIRE COMMISSIONING REGION","QHM","Cumbria and North East STP","RX3","TEES, ESK AND WEAR VALLEYS NHS FOUNDATION TRUST","Mental Health & Learning Disability and Mental Health, Learning Disability & Community Trusts",2390,6819,6.8546025104602508,82,313,813,941,261,31,176,607,1008,568,39,116,488,925,825]
["Y63","NORTH EAST AND YORKSHIRE COMMISSIONING REGION","QHM","Cumbria and North East STP","RX4","CUMBRIA, NORTHUMBERLAND, TYNE AND WEAR NHS FOUNDATION TRUST","Mental Health & Learning Disability and Mental Health, Learning Disability & Community Trusts",104,6670,6.2980769230769234,9,17,33,39,6,3,14,23,40,24,4,11,25,31,33]
["Y63","NORTH EAST AND YORKSHIRE COMMISSIONING REGION","QHM","Cumbria and North East STP","RX6","NORTH EAST AMBULANCE SERVICE NHS FOUNDATION TRUST","Ambulance Trusts",293,2645,5.6513083048919226,29,78,95,67,24,15,39,93,91,55,16,36,103,90,48]
["Y63","NORTH EAST AND YORKSHIRE COMMISSIONING REGION","QWO","West Yorkshire and Harrogate Health & Care Partnership (STP)","RX8","YORKSHIRE AMBULANCE SERVICE NHS TRUST","Ambulance Trusts",747,5221,6.0252119589468984,59,134,246,235,81,26,83,211,286,141,45,87,242,248,126]
["Y63","NORTH EAST AND YORKSHIRE COMMISSIONING REGION","QF7","South Yorkshire and Bassetlaw STP","RXE","ROTHERHAM DONCASTER AND SOUTH HUMBER NHS FOUNDATION TRUST","Mental Health & Learning Disability and Mental Health, Learning Disability & Community Trusts",56,3009,5.4910714285714288,7,13,22,10,4,4,11,19,15,7,2,7,13,25,9]
["Y63","NORTH EAST AND YORKSHIRE COMMISSIONING REGION","QWO","West Yorkshire and Harrogate Health & Care Partnership (STP)","RXF","MID YORKSHIRE HOSPITALS NHS TRUST","Acute and Acute & Community Trusts",2368,7662,6.8077843468468471,100,290,834,865,299,38,175,611,918,626,43,123,559,884,762]
["Y63","NORTH EAST AND YORKSHIRE COMMISSIONING REGION","QWO","West Yorkshire and Harrogate Health & Care Partnership (STP)","RXG","SOUTH WEST YORKSHIRE PARTNERSHIP NHS FOUNDATION TRUST","Mental Health & Learning Disability and Mental Health, Learning Disability & Community Trusts",817,3996,7.0573235414116686,26,67,284,327,115,9,35,213,337,223,7,27,200,288,297]
["Y63","NORTH EAST AND YORKSHIRE COMMISSIONING REGION","QHM","Cumbria and North East STP","RXP","COUNTY DURHAM AND DARLINGTON NHS FOUNDATION TRUST","Acute and Acute & Community Trusts",1503,6751,6.3179197161233089,130,303,418,524,128,66,172,265,734,266,53,121,283,667,379]
["Y63","NORTH EAST AND YORKSHIRE COMMISSIONING REGION","QWO","West Yorkshire and Harrogate Health & Care Partnership (STP)","RY6","LEEDS COMMUNITY HEALTHCARE NHS TRUST","Community Trusts",892,2710,6.8712630792227207,37,108,320,356,78,13,58,254,367,200,9,44,159,322,358]
["Y63","NORTH EAST AND YORKSHIRE COMMISSIONING REGION","QWO","West Yorkshire and Harrogate Health & Care Partnership (STP)","TAD","BRADFORD DISTRICT CARE NHS FOUNDATION TRUST","Mental Health & Learning Disability and Mental Health, Learning Disability & Community Trusts",494,2811,6.9686234817813766,18,42,167,191,76,10,29,129,189,137,13,17,105,187,172]
["Y63","NORTH EAST AND YORKSHIRE COMMISSIONING REGION","QF7","South Yorkshire and Bassetlaw STP","TAH","SHEFFIELD HEALTH & SOCIAL CARE NHS FOUNDATION TRUST","Mental Health & Learning Disability and Mental Health, Learning Disability & Community Trusts",457,2196,6.300145878920496,20,99,174,125,39,8,57,151,154,87,7,26,125,164,135]

{"sheet":"BS","index":7,"n_rows":195,"n_cols":41,"rows_kept":195,"cut":false,"hidden":true,"merged":[]}
[null,"Sort","Region (Geography) code","Region (Geography) name","Org code","Org name","STP Code","STP Name","Org Type",null,"Sort Lists:","Sort range…","Sort range…","Region (Geography) Reference Lists:","Code…","Name…","Region (Geography) Linked Lists:","Code…","Name…","STP Reference List:","Code…","Code…","Name…","STP Linked List:","Code…","Name…","Orgs Reference List:","Code…","Code…","Code…","Name…","Type…","Orgs Linked List:","Code…","Name…","Type…","Org Type Reference List:","Type…",null,"Org Type Linked List:","Type…"]
["Engagement Score Breakdown",1,1,1,1,1,1,1,1,null,null,"Region Code","Region Code",null,"Y56","LONDON COMMISSIONING REGION",null,"Y56","LONDON COMMISSIONING REGION",null,"Y60","QNC","NHS STAFFORDSHIRE AND STOKE-ON-TRENT INTEGRATED CARE BOARD",null,"QE1","NHS BATH AND NORTH EAST SOMERSET, SWINDON AND WILTSHIRE INTEGRATED CARE BOARD",null,"Y56","QMF","R1H","BARTS HEALTH NHS TRUST","Acute and Acute & Community Trusts",null,"R0A","AIREDALE NHS FOUNDATION TRUST","Acute and Acute & Community Trusts",null,"Acute",null,null,"Acute and Acute & Community Trusts"]
["All Engagement Scores",1,1,1,1,1,1,1,1,null,null,"Region Name","Region Name",null,"Y58","SOUTH WEST COMMISSIONING REGION",null,"Y58","SOUTH WEST COMMISSIONING REGION",null,"Y58","QT6","NHS CORNWALL AND THE ISLES OF SCILLY INTEGRATED CARE BOARD",null,"QF7","NHS BEDFORDSHIRE, LUTON AND MILTON KEYNES INTEGRATED CARE BOARD",null,"Y56","QMJ","RAL","ROYAL FREE LONDON NHS FOUNDATION TRUST","Acute and Acute & Community Trusts",null,"R0B","ALDER HEY CHILDREN'S NHS FOUNDATION TRUST","Acute and Acute & Community Trusts",null,"Mental Health",null,null,"Mental Health & Learning Disability and Mental Health, Learning Disability & Community Trusts"]
["Engagement Score",1,1,1,1,1,1,1,1,null,null,"STP Code","STP Code",null,"Y59","SOUTH EAST COMMISSIONING REGION",null,"Y59","SOUTH EAST COMMISSIONING REGION",null,"Y61","QHG","NHS BEDFORDSHIRE, LUTON AND MILTON KEYNES INTEGRATED CARE BOARD",null,"QGH","NHS BIRMINGHAM AND SOLIHULL INTEGRATED CARE BOARD",null,"Y56","QRV","RAS","THE HILLINGDON HOSPITALS NHS FOUNDATION TRUST","Acute and Acute & Community Trusts",null,"R0D","BARKING, HAVERING AND REDBRIDGE UNIVERSITY HOSPITALS NHS TRUST","Acute and Acute & Community Trusts",null,"Ambulance",null,null,"Acute Specialist Trusts"]
["Advocacy",1,1,1,1,1,1,1,1,null,null,"STP Name","STP Name",null,"Y60","MIDLANDS COMMISSIONING REGION",null,"Y60","MIDLANDS COMMISSIONING REGION",null,"Y61","QH8","NHS MID AND SOUTH ESSEX INTEGRATED CARE BOARD",null,"QH8","NHS BLACK COUNTRY INTEGRATED CARE BOARD",null,"Y56","QMF","RAT","NORTH EAST LONDON NHS FOUNDATION TRUST","Mental Health & Learning Disability and Mental Health, Learning Disability & Community Trusts",null,"R1A","BARNET, ENFIELD AND HARINGEY MENTAL HEALTH NHS TRUST","Acute and Acute & Community Trusts",null,"Community",null,null,"Ambulance Trusts"]
["Involvement",1,1,1,1,1,1,1,1,null,null,"Org Code","Org Code",null,"Y61","EAST OF ENGLAND COMMISSIONING REGION",null,"Y61","EAST OF ENGLAND COMMISSIONING REGION",null,"Y58","QUY","NHS BRISTOL, NORTH SOMERSET AND SOUTH GLOUCESTERSHIRE INTEGRATED CARE BOARD",null,"QHG","NHS BRISTOL, NORTH SOMERSET AND SOUTH GLOUCESTERSHIRE INTEGRATED CARE BOARD",null,"Y56","QWE","RAX","KINGSTON HOSPITAL NHS FOUNDATION TRUST","Acute and Acute & Community Trusts",null,"R1C","BARNSLEY HOSPITAL NHS FOUNDATION TRUST","Acute and Acute & Community Trusts",null,null,null,null,"Community Trusts"]
["Motivation",1,1,1,1,1,1,1,1,null,null,"Org Name","Org Name",null,"Y62","NORTH WEST COMMISSIONING REGION",null,"Y62","NORTH WEST COMMISSIONING REGION",null,"Y58","QR1","NHS GLOUCESTERSHIRE INTEGRATED CARE BOARD",null,"QHL","NHS BUCKINGHAMSHIRE, OXFORDSHIRE AND BERKSHIRE WEST INTEGRATED CARE BOARD",null,"Y56","QMF","RF4","BARKING, HAVERING AND REDBRIDGE UNIVERSITY HOSPITALS NHS TRUST","Acute and Acute & Community Trusts",null,"R1D","BARTS HEALTH NHS TRUST","Acute and Acute & Community Trusts"]
["Question Breakdown",1,1,1,1,1,1,1,1,null,null,"Org Type","Org Type",null,"Y63","NORTH EAST AND YORKSHIRE COMMISSIONING REGION",null,"Y63","NORTH EAST AND YORKSHIRE COMMISSIONING REGION",null,"Y60","QOC","NHS SHROPSHIRE, TELFORD AND WREKIN INTEGRATED CARE BOARD",null,"QHM","NHS CAMBRIDGESHIRE AND PETERBOROUGH INTEGRATED CARE BOARD",null,"Y56","QKK","RJ1","GUY'S AND ST THOMAS' NHS FOUNDATION TRUST","Acute and Acute & Community Trusts",null,"R1F","BEDFORDSHIRE HOSPITALS NHS FOUNDATION TRUST","Acute and Acute & Community Trusts"]
[null,null,null,null,null,null,null,null,null,null,null,"Total Responses","Total Responses",null,null,null,null,null,null,null,"Y58","QSL","NHS SOMERSET INTEGRATED CARE BOARD",null,"QJ2","NHS CHESHIRE AND MERSEYSIDE INTEGRATED CARE BOARD",null,"Y56","QKK","RJ2","LEWISHAM AND GREENWICH NHS TRUST","Acute and Acute & Community Trusts",null,"R1H","BERKSHIRE HEALTHCARE NHS FOUNDATION TRUST","Acute and Acute & Community Trusts"]
[null,null,null,null,null,null,null,null,null,null,null,"HSCIC Workforce Headcount","HSCIC Workforce Headcount",null,null,null,null,null,null,null,"Y60","QGH","NHS HEREFORDSHIRE AND WORCESTERSHIRE INTEGRATED CARE BOARD",null,"QJG","NHS CORNWALL AND THE ISLES OF SCILLY INTEGRATED CARE BOARD",null,"Y56","QWE","RJ7","ST GEORGE'S UNIVERSITY HOSPITALS NHS FOUNDATION TRUST","Acute and Acute & Community Trusts",null,"R1L","BIRMINGHAM AND SOLIHULL MENTAL HEALTH NHS FOUNDATION TRUST","Acute and Acute & Community Trusts"]
[null,null,null,null,null,null,null,null,null,null,null,"Score","Score",null,null,null,null,null,null,null,"Y59","QXU","NHS SURREY HEARTLANDS INTEGRATED CARE BOARD",null,"QJK","NHS COVENTRY AND WARWICKSHIRE INTEGRATED CARE BOARD",null,"Y56","QKK","RJZ","KING'S COLLEGE HOSPITAL NHS FOUNDATION TRUST","Acute and Acute & Community Trusts",null,"RA2","BIRMINGHAM COMMUNITY HEALTHCARE NHS FOUNDATION TRUST","Acute and Acute & Community Trusts"]
[null,null,null,null,null,null,null,null,null,null,null,null,null,null,null,null,null,null,null,null,"Y60","QWU","NHS COVENTRY AND WARWICKSHIRE INTEGRATED CARE BOARD",null,"QJM","NHS DERBY AND DERBYSHIRE INTEGRATED CARE BOARD",null,"Y56","QMJ","RKE","WHITTINGTON HEALTH NHS TRUST","Acute and Acute & Community Trusts",null,"RA4","BIRMINGHAM WOMEN'S AND CHILDREN'S NHS FOUNDATION TRUST","Acute and Acute & Community Trusts"]
[null,null,null,null,null,null,null,null,null,null,null,null,null,null,null,null,null,null,null,null,"Y60","QK1","NHS LEICESTER, LEICESTERSHIRE AND RUTLAND INTEGRATED CARE BOARD",null,"QK1","NHS DEVON INTEGRATED CARE BOARD",null,"Y56","QRV","RKL","WEST LONDON NHS TRUST","Mental Health & Learning Disability and Mental Health, Learning Disability & Community Trusts",null,"RA7","BLACK COUNTRY HEALTHCARE NHS FOUNDATION TRUST","Acute and Acute & Community Trusts"]
[null,null,null,null,null,null,null,null,null,null,null,null,null,null,null,null,null,null,null,null,"Y63","QOQ","NHS HUMBER AND NORTH YORKSHIRE INTEGRATED CARE BOARD",null,"QKK","NHS DORSET INTEGRATED CARE BOARD",null,"Y56","QMJ","RP4","GREAT ORMOND STREET HOSPITAL FOR CHILDREN NHS FOUNDATION TRUST","Acute Specialist Trusts",null,"RA9","BLACKPOOL TEACHING HOSPITALS NHS FOUNDATION TRUST","Acute and Acute & Community Trusts"]
[null,null,null,null,null,null,null,null,null,null,null,null,null,null,null,null,null,null,null,null,"Y60","QHL","NHS BIRMINGHAM AND SOLIHULL INTEGRATED CARE BOARD",null,"QKS","NHS FRIMLEY INTEGRATED CARE BOARD",null,"Y56","QMJ","RP6","MOORFIELDS EYE HOSPITAL NHS FOUNDATION TRUST","Acute Specialist Trusts",null,"RAE","BOLTON NHS FOUNDATION TRUST","Acute and Acute & Community Trusts"]
[null,null,null,null,null,null,null,null,null,null,null,null,null,null,null,null,null,null,null,null,"Y60","QPM","NHS NORTHAMPTONSHIRE INTEGRATED CARE BOARD",null,"QM7","NHS GLOUCESTERSHIRE INTEGRATED CARE BOARD",null,"Y56","QKK","RPG","OXLEAS NHS FOUNDATION TRUST","Mental Health & Learning Disability and Mental Health, Learning Disability & Community Trusts",null,"RAJ","BRADFORD DISTRICT CARE NHS FOUNDATION TRUST","Acute and Acute & Community Trusts"]
[null,null,null,null,null,null,null,null,null,null,null,null,null,null,null,null,null,null,null,null,"Y56","QWE","NHS SOUTH WEST LONDON INTEGRATED CARE BOARD",null,"QMF","NHS GREATER MANCHESTER INTEGRATED CARE BOARD",null,"Y56","QRV","RQM","CHELSEA AND WESTMINSTER HOSPITAL NHS FOUNDATION TRUST","Acute and Acute & Community Trusts",null,"RAJ","BRADFORD TEACHING HOSPITALS NHS FOUNDATION TRUST","Acute and Acute & Community Trusts"]
[null,null,null,null,null,null,null,null,null,null,null,null,null,null,null,null,null,null,null,null,"Y62","QE1","NHS LANCASHIRE AND SOUTH CUMBRIA INTEGRATED CARE BOARD",null,"QMJ","NHS HAMPSHIRE AND ISLE OF WIGHT INTEGRATED CARE BOARD",null,"Y56","QMF","RQX","HOMERTON UNIVERSITY HOSPITAL NHS FOUNDATION TRUST","Acute and Acute & Community Trusts",null,"RAL","BRIDGEWATER COMMUNITY HEALTHCARE NHS FOUNDATION TRUST","Acute and Acute & Community Trusts"]
[null,null,null,null,null,null,null,null,null,null,null,null,null,null,null,null,null,null,null,null,"Y61","QJG","NHS SUFFOLK AND NORTH EAST ESSEX INTEGRATED CARE BOARD",null,"QMM","NHS HEREFORDSHIRE AND WORCESTERSHIRE INTEGRATED CARE BOARD",null,"Y56","QWE","RQY","SOUTH WEST LONDON AND ST GEORGE'S MENTAL HEALTH NHS TRUST","Mental Health & Learning Disability and Mental Health, Learning Disability & Community Trusts",null,"RAS","BUCKINGHAMSHIRE HEALTHCARE NHS TRUST","Acute and Acute & Community Trusts"]
[null,null,null,null,null,null,null,null,null,null,null,null,null,null,null,null,null,null,null,null,"Y56","QMF","NHS NORTH EAST LONDON INTEGRATED CARE BOARD",null,"QNC","NHS HERTFORDSHIRE AND WEST ESSEX INTEGRATED CARE BOARD",null,"Y56","QMJ","RRP","BARNET, ENFIELD AND HARINGEY MENTAL HEALTH NHS TRUST","Mental Health & Learning Disability and Mental Health, Learning Disability & Community Trusts",null,"RAT","CALDERDALE AND HUDDERSFIELD NHS FOUNDATION TRUST","Acute and Acute & Community Trusts"]
[null,null,null,null,null,null,null,null,null,null,null,null,null,null,null,null,null,null,null,null,"Y58","QVV","NHS DORSET INTEGRATED CARE BOARD",null,"QNQ","NHS HUMBER AND NORTH YORKSHIRE INTEGRATED CARE BOARD",null,"Y56","QKK","RRU","LONDON AMBULANCE SERVICE NHS TRUST","Ambulance Trusts",null,"RAX","CAMBRIDGE UNIVERSITY HOSPITALS NHS FOUNDATION TRUST","Acute and Acute & Community Trusts"]
[null,null,null,null,null,null,null,null,null,null,null,null,null,null,null,null,null,null,null,null,"Y56","QMJ","NHS NORTH CENTRAL LONDON INTEGRATED CARE BOARD",null,"QNX","NHS KENT AND MEDWAY INTEGRATED CARE BOARD",null,"Y56","QMJ","RRV","UNIVERSITY COLLEGE LONDON HOSPITALS NHS FOUNDATION TRUST","Acute and Acute & Community Trusts",null,"RBD","CAMBRIDGESHIRE AND PETERBOROUGH NHS FOUNDATION TRUST","Acute and Acute & Community Trusts"]
[null,null,null,null,null,null,null,null,null,null,null,null,null,null,null,null,null,null,null,null,"Y59","QNX","NHS SUSSEX INTEGRATED CARE BOARD",null,"QOC","NHS LANCASHIRE AND SOUTH CUMBRIA INTEGRATED CARE BOARD",null,"Y56","QMJ","RV3","CENTRAL AND NORTH WEST LONDON NHS FOUNDATION TRUST","Mental Health & Learning Disability and Mental Health, Learning Disability & Community Trusts",null,"RBK","CAMBRIDGESHIRE COMMUNITY SERVICES NHS TRUST","Acute and Acute & Community Trusts"]
[null,null,null,null,null,null,null,null,null,null,null,null,null,null,null,null,null,null,null,null,"Y58","QOX","NHS BATH AND NORTH EAST SOMERSET, SWINDON AND WILTSHIRE INTEGRATED CARE BOARD",null,"QOP","NHS LEICESTER, LEICESTERSHIRE AND RUTLAND INTEGRATED CARE BOARD",null,"Y56","QKK","RV5","SOUTH LONDON AND MAUDSLEY NHS FOUNDATION TRUST","Mental Health & Learning Disability and Mental Health, Learning Disability & Community Trusts",null,"RBL","CENTRAL AND NORTH WEST LONDON NHS FOUNDATION TRUST","Acute and Acute & Community Trusts"]
[null,null,null,null,null,null,null,null,null,null,null,null,null,null,null,null,null,null,null,null,"Y61","QM7","NHS HERTFORDSHIRE AND WEST ESSEX INTEGRATED CARE BOARD",null,"QOQ","NHS LINCOLNSHIRE INTEGRATED CARE BOARD",null,"Y56","QWE","RVR","EPSOM AND ST HELIER UNIVERSITY HOSPITALS NHS TRUST","Acute and Acute & Community Trusts",null,"RBN","CENTRAL LONDON COMMUNITY HEALTHCARE NHS TRUST","Acute and Acute & Community Trusts"]
[null,null,null,null,null,null,null,null,null,null,null,null,null,null,null,null,null,null,null,null,"Y63","QWO","NHS WEST YORKSHIRE INTEGRATED CARE BOARD",null,"QOX","NHS MID AND SOUTH ESSEX INTEGRATED CARE BOARD",null,"Y56","QMF","RWK","EAST LONDON NHS FOUNDATION TRUST","Mental Health & Learning Disability and Mental Health, Learning Disability & Community Trusts",null,"RBQ","CHELSEA AND WESTMINSTER HOSPITAL NHS FOUNDATION TRUST","Acute and Acute & Community Trusts"]
[null,null,null,null,null,null,null,null,null,null,null,null,null,null,null,null,null,null,null,null,"Y59","QNQ","NHS FRIMLEY INTEGRATED CARE BOARD",null,"QPM","NHS NORFOLK AND WAVENEY INTEGRATED CARE BOARD",null,"Y56","QWE","RY9","HOUNSLOW AND RICHMOND COMMUNITY HEALTHCARE NHS TRUST","Community Trusts",null,"RBS","CHESHIRE AND WIRRAL PARTNERSHIP NHS FOUNDATION TRUST","Acute and Acute & Community Trusts"]
[null,null,null,null,null,null,null,null,null,null,null,null,null,null,null,null,null,null,null,null,"Y61","QMM","NHS NORFOLK AND WAVENEY INTEGRATED CARE BOARD",null,"QR1","NHS NORTH CENTRAL LONDON INTEGRATED CARE BOARD",null,"Y56","QRV","RYJ","IMPERIAL COLLEGE HEALTHCARE NHS TRUST","Acute and Acute & Community Trusts",null,"RBT","CHESTERFIELD ROYAL HOSPITAL NHS FOUNDATION TRUST","Acute and Acute & Community Trusts"]
[null,null,null,null,null,null,null,null,null,null,null,null,null,null,null,null,null,null,null,null,"Y63","QF7","NHS SOUTH YORKSHIRE INTEGRATED CARE BOARD",null,"QRL","NHS NORTH EAST AND NORTH CUMBRIA INTEGRATED CARE BOARD",null,"Y56","QRV","RYX","CENTRAL LONDON COMMUNITY HEALTHCARE NHS TRUST","Community Trusts",null,"RBV","CORNWALL PARTNERSHIP NHS FOUNDATION TRUST","Acute and Acute & Community Trusts"]
[null,null,null,null,null,null,null,null,null,null,null,null,null,null,null,null,null,null,null,null,"Y59","QU9","NHS BUCKINGHAMSHIRE, OXFORDSHIRE AND BERKSHIRE WEST INTEGRATED CARE BOARD",null,"QRV","NHS NORTH EAST LONDON INTEGRATED CARE BOARD",null,"Y58","QVV","R0D","UNIVERSITY HOSPITALS DORSET NHS FOUNDATION TRUST","Acute and Acute & Community Trusts",null,"RBZ","COUNTESS OF CHESTER HOSPITAL NHS FOUNDATION TRUST","Acute and Acute & Community Trusts"]
[null,null,null,null,null,null,null,null,null,null,null,null,null,null,null,null,null,null,null,null,"Y56","QRV","NHS NORTH WEST LONDON INTEGRATED CARE BOARD",null,"QSL","NHS NORTH WEST LONDON INTEGRATED CARE BOARD",null,"Y58","QSL","RA4","YEOVIL DISTRICT HOSPITAL NHS FOUNDATION TRUST","Acute and Acute & Community Trusts",null,"RC9","COUNTY DURHAM AND DARLINGTON NHS FOUNDATION TRUST","Acute and Acute & Community Trusts"]
[null,null,null,null,null,null,null,null,null,null,null,null,null,null,null,null,null,null,null,null,"Y60","QT1","NHS NOTTINGHAM AND NOTTINGHAMSHIRE INTEGRATED CARE BOARD",null,"QT1","NHS NORTHAMPTONSHIRE INTEGRATED CARE BOARD",null,"Y58","QUY","RA7","UNIVERSITY HOSPITALS BRISTOL AND WESTON NHS FOUNDATION TRUST","Acute and Acute & Community Trusts",null,"RCB","COVENTRY AND WARWICKSHIRE PARTNERSHIP NHS TRUST","Acute and Acute & Community Trusts"]
[null,null,null,null,null,null,null,null,null,null,null,null,null,null,null,null,null,null,null,null,"Y59","QKS","NHS KENT AND MEDWAY INTEGRATED CARE BOARD",null,"QT6","NHS NOTTINGHAM AND NOTTINGHAMSHIRE INTEGRATED CARE BOARD",null,"Y58","QJK","RA9","TORBAY AND SOUTH DEVON NHS FOUNDATION TRUST","Acute and Acute & Community Trusts",null,"RCD","CUMBRIA, NORTHUMBERLAND, TYNE AND WEAR NHS FOUNDATION TRUST","Acute and Acute & Community Trusts"]
[null,null,null,null,null,null,null,null,null,null,null,null,null,null,null,null,null,null,null,null,"Y58","QJK","NHS DEVON INTEGRATED CARE BOARD",null,"QU9","NHS SHROPSHIRE, TELFORD AND WREKIN INTEGRATED CARE BOARD",null,"Y58","QVV","RBD","DORSET COUNTY HOSPITAL NHS FOUNDATION TRUST","Acute and Acute & Community Trusts",null,"RCF","DARTFORD AND GRAVESHAM NHS TRUST","Acute and Acute & Community Trusts"]
[null,null,null,null,null,null,null,null,null,null,null,null,null,null,null,null,null,null,null,null,"Y60","QJ2","NHS DERBY AND DERBYSHIRE INTEGRATED CARE BOARD",null,"QUA","NHS SOMERSET INTEGRATED CARE BOARD",null,"Y58","QJK","RBZ","NORTHERN DEVON HEALTHCARE NHS TRUST","Acute and Acute & Community Trusts",null,"RCU","DERBYSHIRE COMMUNITY HEALTH SERVICES NHS FOUNDATION TRUST","Acute and Acute & Community Trusts"]
[null,null,null,null,null,null,null,null,null,null,null,null,null,null,null,null,null,null,null,null,"Y60","QJM","NHS LINCOLNSHIRE INTEGRATED CARE BOARD",null,"QUE","NHS SOUTH EAST LONDON INTEGRATED CARE BOARD",null,"Y58","QOX","RD1","ROYAL UNITED HOSPITALS BATH NHS FOUNDATION TRUST","Acute and Acute & Community Trusts",null,"RCX","DERBYSHIRE HEALTHCARE NHS FOUNDATION TRUST","Acute and Acute & Community Trusts"]
[null,null,null,null,null,null,null,null,null,null,null,null,null,null,null,null,null,null,null,null,"Y60","QUA","NHS BLACK COUNTRY INTEGRATED CARE BOARD",null,"QUY","NHS SOUTH WEST LONDON INTEGRATED CARE BOARD",null,"Y58","QVV","RDY","DORSET HEALTHCARE UNIVERSITY NHS FOUNDATION TRUST","Mental Health & Learning Disability and Mental Health, Learning Disability & Community Trusts",null,"RD1","DEVON PARTNERSHIP NHS TRUST","Acute and Acute & Community Trusts"]
[null,null,null,null,null,null,null,null,null,null,null,null,null,null,null,null,null,null,null,null,"Y56","QKK","NHS SOUTH EAST LONDON INTEGRATED CARE BOARD",null,"QVV","NHS SOUTH YORKSHIRE INTEGRATED CARE BOARD",null,"Y58","QT6","REF","ROYAL CORNWALL HOSPITALS NHS TRUST","Acute and Acute & Community Trusts",null,"RD8","DONCASTER AND BASSETLAW TEACHING HOSPITALS NHS FOUNDATION TRUST","Acute and Acute & Community Trusts"]
[null,null,null,null,null,null,null,null,null,null,null,null,null,null,null,null,null,null,null,null,"Y61","QUE","NHS CAMBRIDGESHIRE AND PETERBOROUGH INTEGRATED CARE BOARD",null,"QWE","NHS STAFFORDSHIRE AND STOKE-ON-TRENT INTEGRATED CARE BOARD",null,"Y58","QSL","RH5","SOMERSET NHS FOUNDATION TRUST","Acute and Acute & Community Trusts",null,"RDE","DORSET COUNTY HOSPITAL NHS FOUNDATION TRUST","Acute and Acute & Community Trusts"]
[null,null,null,null,null,null,null,null,null,null,null,null,null,null,null,null,null,null,null,null,"Y59","QRL","NHS HAMPSHIRE AND ISLE OF WIGHT INTEGRATED CARE BOARD",null,"QWO","NHS SUFFOLK AND NORTH EAST ESSEX INTEGRATED CARE BOARD",null,"Y58","QJK","RH8","ROYAL DEVON AND EXETER NHS FOUNDATION TRUST","Acute and Acute & Community Trusts",null,"RDR","DORSET HEALTHCARE UNIVERSITY NHS FOUNDATION TRUST","Acute and Acute & Community Trusts"]
[null,null,null,null,null,null,null,null,null,null,null,null,null,null,null,null,null,null,null,null,"Y62","QYG","NHS CHESHIRE AND MERSEYSIDE INTEGRATED CARE BOARD",null,"QWU","NHS SURREY HEARTLANDS INTEGRATED CARE BOARD",null,"Y58","QT6","RJ8","CORNWALL PARTNERSHIP NHS FOUNDATION TRUST","Mental Health & Learning Disability and Mental Health, Learning Disability & Community Trusts",null,"RDU","EAST AND NORTH HERTFORDSHIRE NHS TRUST","Acute and Acute & Community Trusts"]
[null,null,null,null,null,null,null,null,null,null,null,null,null,null,null,null,null,null,null,null,"Y63","QHM","NHS NORTH EAST AND NORTH CUMBRIA INTEGRATED CARE BOARD",null,"QXU","NHS SUSSEX INTEGRATED CARE BOARD",null,"Y58","QJK","RK9","UNIVERSITY HOSPITALS PLYMOUTH NHS TRUST","Acute and Acute & Community Trusts",null,"RDY","EAST CHESHIRE NHS TRUST","Acute and Acute & Community Trusts"]
[null,null,null,null,null,null,null,null,null,null,null,null,null,null,null,null,null,null,null,null,"Y62","QOP","NHS GREATER MANCHESTER INTEGRATED CARE BOARD",null,"QYG","NHS WEST YORKSHIRE INTEGRATED CARE BOARD",null,"Y58","QOX","RN3","GREAT WESTERN HOSPITALS NHS FOUNDATION TRUST","Acute and Acute & Community Trusts",null,"REF","EAST KENT HOSPITALS UNIVERSITY NHS FOUNDATION TRUST","Acute and Acute & Community Trusts"]
[null,null,null,null,null,null,null,null,null,null,null,null,null,null,null,null,null,null,null,null,null,null,null,null,null,null,null,"Y58","QOX","RNZ","SALISBURY NHS FOUNDATION TRUST","Acute and Acute & Community Trusts",null,"REM","EAST LANCASHIRE HOSPITALS NHS TRUST","Acute and Acute & Community Trusts"]
[null,null,null,null,null,null,null,null,null,null,null,null,null,null,null,null,null,null,null,null,null,null,null,null,null,null,null,"Y58","QR1","RTE","GLOUCESTERSHIRE HOSPITALS NHS FOUNDATION TRUST","Acute and Acute & Community Trusts",null,"REN","EAST LONDON NHS FOUNDATION TRUST","Acute and Acute & Community Trusts"]
[null,null,null,null,null,null,null,null,null,null,null,null,null,null,null,null,null,null,null,null,null,null,null,null,null,null,null,"Y58","QR1","RTQ","GLOUCESTERSHIRE HEALTH AND CARE NHS FOUNDATION TRUST","Mental Health & Learning Disability and Mental Health, Learning Disability & Community Trusts",null,"REP","EAST MIDLANDS AMBULANCE SERVICE NHS TRUST","Acute and Acute & Community Trusts"]
[null,null,null,null,null,null,null,null,null,null,null,null,null,null,null,null,null,null,null,null,null,null,null,null,null,null,null,"Y58","QUY","RVJ","NORTH BRISTOL NHS TRUST","Acute and Acute & Community Trusts",null,"RET","EAST OF ENGLAND AMBULANCE SERVICE NHS TRUST","Acute and Acute & Community Trusts"]
[null,null,null,null,null,null,null,null,null,null,null,null,null,null,null,null,null,null,null,null,null,null,null,null,null,null,null,"Y58","QJK","RWV","DEVON PARTNERSHIP NHS TRUST","Mental Health & Learning Disability and Mental Health, Learning Disability & Community Trusts",null,"RF4","EAST SUFFOLK AND NORTH ESSEX NHS FOUNDATION TRUST","Acute and Acute & Community Trusts"]
[null,null,null,null,null,null,null,null,null,null,null,null,null,null,null,null,null,null,null,null,null,null,null,null,null,null,null,"Y58","QJK","RYF","SOUTH WESTERN AMBULANCE SERVICE NHS FOUNDATION TRUST","Ambulance Trusts",null,"RFF","EAST SUSSEX HEALTHCARE NHS TRUST","Acute and Acute & Community Trusts"]
[null,null,null,null,null,null,null,null,null,null,null,null,null,null,null,null,null,null,null,null,null,null,null,null,null,null,null,"Y59","QRL","R1C","SOLENT NHS TRUST","Mental Health & Learning Disability and Mental Health, Learning Disability & Community Trusts",null,"RFR","EPSOM AND ST HELIER UNIVERSITY HOSPITALS NHS TRUST","Acute and Acute & Community Trusts"]
[null,null,null,null,null,null,null,null,null,null,null,null,null,null,null,null,null,null,null,null,null,null,null,null,null,null,null,"Y59","QRL","R1F","ISLE OF WIGHT NHS TRUST","Acute and Acute & Community Trusts",null,"RFS","ESSEX PARTNERSHIP UNIVERSITY NHS FOUNDATION TRUST","Acute and Acute & Community Trusts"]
[null,null,null,null,null,null,null,null,null,null,null,null,null,null,null,null,null,null,null,null,null,null,null,null,null,null,null,"Y59","QXU","RA2","ROYAL SURREY COUNTY HOSPITAL NHS FOUNDATION TRUST","Acute and Acute & Community Trusts",null,"RGD","FRIMLEY HEALTH NHS FOUNDATION TRUST","Acute and Acute & Community Trusts"]
[null,null,null,null,null,null,null,null,null,null,null,null,null,null,null,null,null,null,null,null,null,null,null,null,null,null,null,"Y59","QNX","RDR","SUSSEX COMMUNITY NHS FOUNDATION TRUST","Community Trusts",null,"RGM","GATESHEAD HEALTH NHS FOUNDATION TRUST","Acute and Acute & Community Trusts"]
[null,null,null,null,null,null,null,null,null,null,null,null,null,null,null,null,null,null,null,null,null,null,null,null,null,null,null,"Y59","QNQ","RDU","FRIMLEY HEALTH NHS FOUNDATION TRUST","Acute and Acute & Community Trusts",null,"RGN","GEORGE ELIOT HOSPITAL NHS TRUST","Acute and Acute & Community Trusts"]
[null,null,null,null,null,null,null,null,null,null,null,null,null,null,null,null,null,null,null,null,null,null,null,null,null,null,null,"Y59","QRL","RHM","UNIVERSITY HOSPITAL SOUTHAMPTON NHS FOUNDATION TRUST","Acute and Acute & Community Trusts",null,"RGR","GLOUCESTERSHIRE HEALTH AND CARE NHS FOUNDATION TRUST","Acute and Acute & Community Trusts"]
[null,null,null,null,null,null,null,null,null,null,null,null,null,null,null,null,null,null,null,null,null,null,null,null,null,null,null,"Y59","QRL","RHU","PORTSMOUTH HOSPITALS UNIVERSITY NATIONAL HEALTH SERVICE TRUST","Acute and Acute & Community Trusts",null,"RGT","GLOUCESTERSHIRE HOSPITALS NHS FOUNDATION TRUST","Acute and Acute & Community Trusts"]
[null,null,null,null,null,null,null,null,null,null,null,null,null,null,null,null,null,null,null,null,null,null,null,null,null,null,null,"Y59","QU9","RHW","ROYAL BERKSHIRE NHS FOUNDATION TRUST","Acute and Acute & Community Trusts",null,"RH5","GREAT ORMOND STREET HOSPITAL FOR CHILDREN NHS FOUNDATION TRUST","Acute and Acute & Community Trusts"]
[null,null,null,null,null,null,null,null,null,null,null,null,null,null,null,null,null,null,null,null,null,null,null,null,null,null,null,"Y59","QRL","RN5","HAMPSHIRE HOSPITALS NHS FOUNDATION TRUST","Acute and Acute & Community Trusts",null,"RH8","GREAT WESTERN HOSPITALS NHS FOUNDATION TRUST","Acute and Acute & Community Trusts"]
[null,null,null,null,null,null,null,null,null,null,null,null,null,null,null,null,null,null,null,null,null,null,null,null,null,null,null,"Y59","QKS","RN7","DARTFORD AND GRAVESHAM NHS TRUST","Acute and Acute & Community Trusts",null,"RHA","GREATER MANCHESTER MENTAL HEALTH NHS FOUNDATION TRUST","Acute and Acute & Community Trusts"]
[null,null,null,null,null,null,null,null,null,null,null,null,null,null,null,null,null,null,null,null,null,null,null,null,null,null,null,"Y59","QU9","RNU","OXFORD HEALTH NHS FOUNDATION TRUST","Mental Health & Learning Disability and Mental Health, Learning Disability & Community Trusts",null,"RHM","GUY'S AND ST THOMAS' NHS FOUNDATION TRUST","Acute and Acute & Community Trusts"]
[null,null,null,null,null,null,null,null,null,null,null,null,null,null,null,null,null,null,null,null,null,null,null,null,null,null,null,"Y59","QKS","RPA","MEDWAY NHS FOUNDATION TRUST","Acute and Acute & Community Trusts",null,"RHQ","HAMPSHIRE HOSPITALS NHS FOUNDATION TRUST","Acute and Acute & Community Trusts"]
[null,null,null,null,null,null,null,null,null,null,null,null,null,null,null,null,null,null,null,null,null,null,null,null,null,null,null,"Y59","QNX","RPC","QUEEN VICTORIA HOSPITAL NHS FOUNDATION TRUST","Acute Specialist Trusts",null,"RHU","HARROGATE AND DISTRICT NHS FOUNDATION TRUST","Acute and Acute & Community Trusts"]
[null,null,null,null,null,null,null,null,null,null,null,null,null,null,null,null,null,null,null,null,null,null,null,null,null,null,null,"Y59","QU9","RTH","OXFORD UNIVERSITY HOSPITALS NHS FOUNDATION TRUST","Acute and Acute & Community Trusts",null,"RHW","HEREFORDSHIRE AND WORCESTERSHIRE HEALTH AND CARE NHS TRUST","Acute and Acute & Community Trusts"]
[null,null,null,null,null,null,null,null,null,null,null,null,null,null,null,null,null,null,null,null,null,null,null,null,null,null,null,"Y59","QKS","RVV","EAST KENT HOSPITALS UNIVERSITY NHS FOUNDATION TRUST","Acute and Acute & Community Trusts",null,"RJ1","HERTFORDSHIRE COMMUNITY NHS TRUST","Acute and Acute & Community Trusts"]
[null,null,null,null,null,null,null,null,null,null,null,null,null,null,null,null,null,null,null,null,null,null,null,null,null,null,null,"Y59","QRL","RW1","SOUTHERN HEALTH NHS FOUNDATION TRUST","Mental Health & Learning Disability and Mental Health, Learning Disability & Community Trusts",null,"RJ2","HERTFORDSHIRE PARTNERSHIP UNIVERSITY NHS FOUNDATION TRUST","Acute and Acute & Community Trusts"]
[null,null,null,null,null,null,null,null,null,null,null,null,null,null,null,null,null,null,null,null,null,null,null,null,null,null,null,"Y59","QNQ","RWX","BERKSHIRE HEALTHCARE NHS FOUNDATION TRUST","Mental Health & Learning Disability and Mental Health, Learning Disability & Community Trusts",null,"RJ7","HOMERTON UNIVERSITY HOSPITAL NHS FOUNDATION TRUST","Acute and Acute & Community Trusts"]
[null,null,null,null,null,null,null,null,null,null,null,null,null,null,null,null,null,null,null,null,null,null,null,null,null,null,null,"Y59","QNX","RX2","SUSSEX PARTNERSHIP NHS FOUNDATION TRUST","Mental Health & Learning Disability and Mental Health, Learning Disability & Community Trusts",null,"RJ8","HOUNSLOW AND RICHMOND COMMUNITY HEALTHCARE NHS TRUST","Acute and Acute & Community Trusts"]
[null,null,null,null,null,null,null,null,null,null,null,null,null,null,null,null,null,null,null,null,null,null,null,null,null,null,null,"Y59","QNX","RXC","EAST SUSSEX HEALTHCARE NHS TRUST","Acute and Acute & Community Trusts",null,"RJC","HUMBER TEACHING NHS FOUNDATION TRUST","Acute and Acute & Community Trusts"]
[null,null,null,null,null,null,null,null,null,null,null,null,null,null,null,null,null,null,null,null,null,null,null,null,null,null,null,"Y59","QU9","RXQ","BUCKINGHAMSHIRE HEALTHCARE NHS TRUST","Acute and Acute & Community Trusts",null,"RJE","IMPERIAL COLLEGE HEALTHCARE NHS TRUST","Acute and Acute & Community Trusts"]
[null,null,null,null,null,null,null,null,null,null,null,null,null,null,null,null,null,null,null,null,null,null,null,null,null,null,null,"Y59","QKS","RXY","KENT AND MEDWAY NHS AND SOCIAL CARE PARTNERSHIP TRUST","Mental Health & Learning Disability and Mental Health, Learning Disability & Community Trusts",null,"RJL","ISLE OF WIGHT NHS TRUST","Acute and Acute & Community Trusts"]
[null,null,null,null,null,null,null,null,null,null,null,null,null,null,null,null,null,null,null,null,null,null,null,null,null,null,null,"Y59","QNX","RYD","SOUTH EAST COAST AMBULANCE SERVICE NHS FOUNDATION TRUST","Ambulance Trusts",null,"RJN","KENT AND MEDWAY NHS AND SOCIAL CARE PARTNERSHIP TRUST","Acute and Acute & Community Trusts"]
[null,null,null,null,null,null,null,null,null,null,null,null,null,null,null,null,null,null,null,null,null,null,null,null,null,null,null,"Y59","QU9","RYE","SOUTH CENTRAL AMBULANCE SERVICE NHS FOUNDATION TRUST","Ambulance Trusts",null,"RJR","KENT COMMUNITY HEALTH NHS FOUNDATION TRUST","Acute and Acute & Community Trusts"]
[null,null,null,null,null,null,null,null,null,null,null,null,null,null,null,null,null,null,null,null,null,null,null,null,null,null,null,"Y59","QNX","RYR","UNIVERSITY HOSPITALS SUSSEX NHS FOUNDATION TRUST","Acute and Acute & Community Trusts",null,"RJZ","KETTERING GENERAL HOSPITAL NHS FOUNDATION TRUST","Acute and Acute & Community Trusts"]
[null,null,null,null,null,null,null,null,null,null,null,null,null,null,null,null,null,null,null,null,null,null,null,null,null,null,null,"Y59","QKS","RYY","KENT COMMUNITY HEALTH NHS FOUNDATION TRUST","Community Trusts",null,"RK5","KING'S COLLEGE HOSPITAL NHS FOUNDATION TRUST","Acute and Acute & Community Trusts"]
[null,null,null,null,null,null,null,null,null,null,null,null,null,null,null,null,null,null,null,null,null,null,null,null,null,null,null,"Y60","QGH","R1A","HEREFORDSHIRE AND WORCESTERSHIRE HEALTH AND CARE NHS TRUST","Mental Health & Learning Disability and Mental Health, Learning Disability & Community Trusts",null,"RK9","KINGSTON HOSPITAL NHS FOUNDATION TRUST","Acute and Acute & Community Trusts"]
[null,null,null,null,null,null,null,null,null,null,null,null,null,null,null,null,null,null,null,null,null,null,null,null,null,null,null,"Y60","QOC","R1D","SHROPSHIRE COMMUNITY HEALTH NHS TRUST","Community Trusts",null,"RKB","LANCASHIRE & SOUTH CUMBRIA NHS FOUNDATION TRUST","Acute and Acute & Community Trusts"]
[null,null,null,null,null,null,null,null,null,null,null,null,null,null,null,null,null,null,null,null,null,null,null,null,null,null,null,"Y60","QUA","RBK","WALSALL HEALTHCARE NHS TRUST","Acute and Acute & Community Trusts",null,"RKE","LANCASHIRE TEACHING HOSPITALS NHS FOUNDATION TRUST","Acute and Acute & Community Trusts"]
[null,null,null,null,null,null,null,null,null,null,null,null,null,null,null,null,null,null,null,null,null,null,null,null,null,null,null,"Y60","QJ2","RFS","CHESTERFIELD ROYAL HOSPITAL NHS FOUNDATION TRUST","Acute and Acute & Community Trusts",null,"RKL","LEEDS AND YORK PARTNERSHIP NHS FOUNDATION TRUST","Acute and Acute & Community Trusts"]
[null,null,null,null,null,null,null,null,null,null,null,null,null,null,null,null,null,null,null,null,null,null,null,null,null,null,null,"Y60","QT1","RHA","NOTTINGHAMSHIRE HEALTHCARE NHS FOUNDATION TRUST","Mental Health & Learning Disability and Mental Health, Learning Disability & Community Trusts",null,"RL4","LEEDS COMMUNITY HEALTHCARE NHS TRUST","Acute and Acute & Community Trusts"]
[null,null,null,null,null,null,null,null,null,null,null,null,null,null,null,null,null,null,null,null,null,null,null,null,null,null,null,"Y60","QWU","RJC","SOUTH WARWICKSHIRE NHS FOUNDATION TRUST","Acute and Acute & Community Trusts",null,"RLT","LEEDS TEACHING HOSPITALS NHS TRUST","Acute and Acute & Community Trusts"]
[null,null,null,null,null,null,null,null,null,null,null,null,null,null,null,null,null,null,null,null,null,null,null,null,null,null,null,"Y60","QNC","RJE","UNIVERSITY HOSPITALS OF NORTH MIDLANDS NHS TRUST","Acute and Acute & Community Trusts",null,"RLY","LEICESTERSHIRE PARTNERSHIP NHS TRUST","Acute and Acute & Community Trusts"]
[null,null,null,null,null,null,null,null,null,null,null,null,null,null,null,null,null,null,null,null,null,null,null,null,null,null,null,"Y60","QT1","RK5","SHERWOOD FOREST HOSPITALS NHS FOUNDATION TRUST","Acute and Acute & Community Trusts",null,"RM1","LEWISHAM AND GREENWICH NHS TRUST","Acute and Acute & Community Trusts"]
[null,null,null,null,null,null,null,null,null,null,null,null,null,null,null,null,null,null,null,null,null,null,null,null,null,null,null,"Y60","QWU","RKB","UNIVERSITY HOSPITALS COVENTRY AND WARWICKSHIRE NHS TRUST","Acute and Acute & Community Trusts",null,"RM3","LINCOLNSHIRE COMMUNITY HEALTH SERVICES NHS TRUST","Acute and Acute & Community Trusts"]
[null,null,null,null,null,null,null,null,null,null,null,null,null,null,null,null,null,null,null,null,null,null,null,null,null,null,null,"Y60","QUA","RL4","THE ROYAL WOLVERHAMPTON NHS TRUST","Acute and Acute & Community Trusts",null,"RMC","LINCOLNSHIRE PARTNERSHIP NHS FOUNDATION TRUST","Acute and Acute & Community Trusts"]
[null,null,null,null,null,null,null,null,null,null,null,null,null,null,null,null,null,null,null,null,null,null,null,null,null,null,null,"Y60","QWU","RLT","GEORGE ELIOT HOSPITAL NHS TRUST","Acute and Acute & Community Trusts",null,"RMP","LIVERPOOL HEART AND CHEST HOSPITAL NHS FOUNDATION TRUST","Acute and Acute & Community Trusts"]
[null,null,null,null,null,null,null,null,null,null,null,null,null,null,null,null,null,null,null,null,null,null,null,null,null,null,null,"Y60","QNC","RLY","NORTH STAFFORDSHIRE COMBINED HEALTHCARE NHS TRUST","Mental Health & Learning Disability and Mental Health, Learning Disability & Community Trusts",null,"RMY","LIVERPOOL UNIVERSITY HOSPITALS NHS FOUNDATION TRUST","Acute and Acute & Community Trusts"]
[null,null,null,null,null,null,null,null,null,null,null,null,null,null,null,null,null,null,null,null,null,null,null,null,null,null,null,"Y60","QUA","RNA","THE DUDLEY GROUP NHS FOUNDATION TRUST","Acute and Acute & Community Trusts",null,"RN3","LIVERPOOL WOMEN'S NHS FOUNDATION TRUST","Acute and Acute & Community Trusts"]
[null,null,null,null,null,null,null,null,null,null,null,null,null,null,null,null,null,null,null,null,null,null,null,null,null,null,null,"Y60","QPM","RNQ","KETTERING GENERAL HOSPITAL NHS FOUNDATION TRUST","Acute and Acute & Community Trusts",null,"RN5","LONDON AMBULANCE SERVICE NHS TRUST","Acute and Acute & Community Trusts"]
[null,null,null,null,null,null,null,null,null,null,null,null,null,null,null,null,null,null,null,null,null,null,null,null,null,null,null,"Y60","QPM","RNS","NORTHAMPTON GENERAL HOSPITAL NHS TRUST","Acute and Acute & Community Trusts",null,"RN7","MANCHESTER UNIVERSITY NHS FOUNDATION TRUST","Acute and Acute & Community Trusts"]
[null,null,null,null,null,null,null,null,null,null,null,null,null,null,null,null,null,null,null,null,null,null,null,null,null,null,null,"Y60","QPM","RP1","NORTHAMPTONSHIRE HEALTHCARE NHS FOUNDATION TRUST","Mental Health & Learning Disability and Mental Health, Learning Disability & Community Trusts",null,"RNA","MEDWAY NHS FOUNDATION TRUST","Acute and Acute & Community Trusts"]
[null,null,null,null,null,null,null,null,null,null,null,null,null,null,null,null,null,null,null,null,null,null,null,null,null,null,null,"Y60","QJM","RP7","LINCOLNSHIRE PARTNERSHIP NHS FOUNDATION TRUST","Mental Health & Learning Disability and Mental Health, Learning Disability & Community Trusts",null,"RNN","MERSEY CARE NHS FOUNDATION TRUST","Acute and Acute & Community Trusts"]
[null,null,null,null,null,null,null,null,null,null,null,null,null,null,null,null,null,null,null,null,null,null,null,null,null,null,null,"Y60","QHL","RQ3","BIRMINGHAM WOMEN'S AND CHILDREN'S NHS FOUNDATION TRUST","Acute and Acute & Community Trusts",null,"RNQ","MID AND SOUTH ESSEX NHS FOUNDATION TRUST","Acute and Acute & Community Trusts"]
[null,null,null,null,null,null,null,null,null,null,null,null,null,null,null,null,null,null,null,null,null,null,null,null,null,null,null,"Y60","QNC","RRE","MIDLANDS PARTNERSHIP NHS FOUNDATION TRUST","Mental Health & Learning Disability and Mental Health, Learning Disability & Community Trusts",null,"RNS","MID AND SOUTH ESSEX NHS FOUNDATION TRUST","Acute and Acute & Community Trusts"]
[null,null,null,null,null,null,null,null,null,null,null,null,null,null,null,null,null,null,null,null,null,null,null,null,null,null,null,"Y60","QHL","RRK","UNIVERSITY HOSPITALS BIRMINGHAM NHS FOUNDATION TRUST","Acute and Acute & Community Trusts",null,"RNU","MID CHESHIRE HOSPITALS NHS FOUNDATION TRUST","Acute and Acute & Community Trusts"]
[null,null,null,null,null,null,null,null,null,null,null,null,null,null,null,null,null,null,null,null,null,null,null,null,null,null,null,"Y60","QK1","RT5","LEICESTERSHIRE PARTNERSHIP NHS TRUST","Mental Health & Learning Disability and Mental Health, Learning Disability & Community Trusts",null,"RNZ","MID YORKSHIRE HOSPITALS NHS TRUST","Acute and Acute & Community Trusts"]
[null,null,null,null,null,null,null,null,null,null,null,null,null,null,null,null,null,null,null,null,null,null,null,null,null,null,null,"Y60","QJ2","RTG","UNIVERSITY HOSPITALS OF DERBY AND BURTON NHS FOUNDATION TRUST","Acute and Acute & Community Trusts",null,"RP1","MIDLANDS PARTNERSHIP NHS FOUNDATION TRUST","Acute and Acute & Community Trusts"]
[null,null,null,null,null,null,null,null,null,null,null,null,null,null,null,null,null,null,null,null,null,null,null,null,null,null,null,"Y60","QJM","RWD","UNITED LINCOLNSHIRE HOSPITALS NHS TRUST","Acute and Acute & Community Trusts",null,"RP4","MILTON KEYNES UNIVERSITY HOSPITAL NHS FOUNDATION TRUST","Acute and Acute & Community Trusts"]
[null,null,null,null,null,null,null,null,null,null,null,null,null,null,null,null,null,null,null,null,null,null,null,null,null,null,null,"Y60","QK1","RWE","UNIVERSITY HOSPITALS OF LEICESTER NHS TRUST","Acute and Acute & Community Trusts",null,"RP5","MOORFIELDS EYE HOSPITAL NHS FOUNDATION TRUST","Acute and Acute & Community Trusts"]
[null,null,null,null,null,null,null,null,null,null,null,null,null,null,null,null,null,null,null,null,null,null,null,null,null,null,null,"Y60","QGH","RWP","WORCESTERSHIRE ACUTE HOSPITALS NHS TRUST","Acute and Acute & Community Trusts",null,"RP6","NORFOLK AND NORWICH UNIVERSITY HOSPITALS NHS FOUNDATION TRUST","Acute and Acute & Community Trusts"]
[null,null,null,null,null,null,null,null,null,null,null,null,null,null,null,null,null,null,null,null,null,null,null,null,null,null,null,"Y60","QT1","RX1","NOTTINGHAM UNIVERSITY HOSPITALS NHS TRUST","Acute and Acute & Community Trusts",null,"RP7","NORFOLK AND SUFFOLK NHS FOUNDATION TRUST","Acute and Acute & Community Trusts"]
[null,null,null,null,null,null,null,null,null,null,null,null,null,null,null,null,null,null,null,null,null,null,null,null,null,null,null,"Y60","QT1","RX9","EAST MIDLANDS AMBULANCE SERVICE NHS TRUST","Ambulance Trusts",null,"RPA","NORFOLK COMMUNITY HEALTH AND CARE NHS TRUST","Acute and Acute & Community Trusts"]
[null,null,null,null,null,null,null,null,null,null,null,null,null,null,null,null,null,null,null,null,null,null,null,null,null,null,null,"Y60","QUA","RXK","SANDWELL AND WEST BIRMINGHAM HOSPITALS NHS TRUST","Acute and Acute & Community Trusts",null,"RPC","NORTH BRISTOL NHS TRUST","Acute and Acute & Community Trusts"]
[null,null,null,null,null,null,null,null,null,null,null,null,null,null,null,null,null,null,null,null,null,null,null,null,null,null,null,"Y60","QJ2","RXM","DERBYSHIRE HEALTHCARE NHS FOUNDATION TRUST","Mental Health & Learning Disability and Mental Health, Learning Disability & Community Trusts",null,"RPG","NORTH CUMBRIA INTEGRATED CARE NHS FOUNDATION TRUST","Acute and Acute & Community Trusts"]
[null,null,null,null,null,null,null,null,null,null,null,null,null,null,null,null,null,null,null,null,null,null,null,null,null,null,null,"Y60","QUA","RXT","BIRMINGHAM AND SOLIHULL MENTAL HEALTH NHS FOUNDATION TRUST","Mental Health & Learning Disability and Mental Health, Learning Disability & Community Trusts",null,"RQ3","NORTH EAST AMBULANCE SERVICE NHS FOUNDATION TRUST","Acute and Acute & Community Trusts"]
[null,null,null,null,null,null,null,null,null,null,null,null,null,null,null,null,null,null,null,null,null,null,null,null,null,null,null,"Y60","QJM","RY5","LINCOLNSHIRE COMMUNITY HEALTH SERVICES NHS TRUST","Community Trusts",null,"RQM","NORTH EAST LONDON NHS FOUNDATION TRUST","Acute and Acute & Community Trusts"]
[null,null,null,null,null,null,null,null,null,null,null,null,null,null,null,null,null,null,null,null,null,null,null,null,null,null,null,"Y60","QJ2","RY8","DERBYSHIRE COMMUNITY HEALTH SERVICES NHS FOUNDATION TRUST","Community Trusts",null,"RQW","NORTH STAFFORDSHIRE COMBINED HEALTHCARE NHS TRUST","Acute and Acute & Community Trusts"]
[null,null,null,null,null,null,null,null,null,null,null,null,null,null,null,null,null,null,null,null,null,null,null,null,null,null,null,"Y60","QUA","RYA","WEST MIDLANDS AMBULANCE SERVICE UNIVERSITY NHS FOUNDATION TRUST","Ambulance Trusts",null,"RQX","NORTH TEES AND HARTLEPOOL NHS FOUNDATION TRUST","Acute and Acute & Community Trusts"]
[null,null,null,null,null,null,null,null,null,null,null,null,null,null,null,null,null,null,null,null,null,null,null,null,null,null,null,"Y60","QWU","RYG","COVENTRY AND WARWICKSHIRE PARTNERSHIP NHS TRUST","Mental Health & Learning Disability and Mental Health, Learning Disability & Community Trusts",null,"RQY","NORTH WEST AMBULANCE SERVICE NHS TRUST","Acute and Acute & Community Trusts"]
[null,null,null,null,null,null,null,null,null,null,null,null,null,null,null,null,null,null,null,null,null,null,null,null,null,null,null,"Y60","QHL","RYW","BIRMINGHAM COMMUNITY HEALTHCARE NHS FOUNDATION TRUST","Community Trusts",null,"RR7","NORTH WEST ANGLIA NHS FOUNDATION TRUST","Acute and Acute & Community Trusts"]
[null,null,null,null,null,null,null,null,null,null,null,null,null,null,null,null,null,null,null,null,null,null,null,null,null,null,null,"Y60","QUA","TAJ","BLACK COUNTRY HEALTHCARE NHS FOUNDATION TRUST","Mental Health & Learning Disability and Mental Health, Learning Disability & Community Trusts",null,"RR8","NORTHAMPTON GENERAL HOSPITAL NHS TRUST","Acute and Acute & Community Trusts"]
[null,null,null,null,null,null,null,null,null,null,null,null,null,null,null,null,null,null,null,null,null,null,null,null,null,null,null,"Y61","QH8","R1L","ESSEX PARTNERSHIP UNIVERSITY NHS FOUNDATION TRUST","Mental Health & Learning Disability and Mental Health, Learning Disability & Community Trusts",null,"RRE","NORTHAMPTONSHIRE HEALTHCARE NHS FOUNDATION TRUST","Acute and Acute & Community Trusts"]
[null,null,null,null,null,null,null,null,null,null,null,null,null,null,null,null,null,null,null,null,null,null,null,null,null,null,null,"Y61","QH8","RAJ","MID AND SOUTH ESSEX NHS FOUNDATION TRUST","Acute and Acute & Community Trusts",null,"RRF","NORTHERN CARE ALLIANCE NHS FOUNDATION TRUST","Acute and Acute & Community Trusts"]
[null,null,null,null,null,null,null,null,null,null,null,null,null,null,null,null,null,null,null,null,null,null,null,null,null,null,null,"Y61","QH8","RAJ","MID AND SOUTH ESSEX NHS FOUNDATION TRUST","Acute and Acute & Community Trusts",null,"RRK","NORTHERN DEVON HEALTHCARE NHS TRUST","Acute and Acute & Community Trusts"]
[null,null,null,null,null,null,null,null,null,null,null,null,null,null,null,null,null,null,null,null,null,null,null,null,null,null,null,"Y61","QHG","RC9","BEDFORDSHIRE HOSPITALS NHS FOUNDATION TRUST","Acute and Acute & Community Trusts",null,"RRP","NORTHERN LINCOLNSHIRE AND GOOLE NHS FOUNDATION TRUST","Acute and Acute & Community Trusts"]
[null,null,null,null,null,null,null,null,null,null,null,null,null,null,null,null,null,null,null,null,null,null,null,null,null,null,null,"Y61","QMM","RCX","THE QUEEN ELIZABETH HOSPITAL, KING'S LYNN, NHS FOUNDATION TRUST","Acute and Acute & Community Trusts",null,"RRU","NORTHUMBRIA HEALTHCARE NHS FOUNDATION TRUST","Acute and Acute & Community Trusts"]
[null,null,null,null,null,null,null,null,null,null,null,null,null,null,null,null,null,null,null,null,null,null,null,null,null,null,null,"Y61","QHG","RD8","MILTON KEYNES UNIVERSITY HOSPITAL NHS FOUNDATION TRUST","Acute and Acute & Community Trusts",null,"RRV","NOTTINGHAM UNIVERSITY HOSPITALS NHS TRUST","Acute and Acute & Community Trusts"]
[null,null,null,null,null,null,null,null,null,null,null,null,null,null,null,null,null,null,null,null,null,null,null,null,null,null,null,"Y61","QJG","RDE","EAST SUFFOLK AND NORTH ESSEX NHS FOUNDATION TRUST","Acute and Acute & Community Trusts",null,"RT1","NOTTINGHAMSHIRE HEALTHCARE NHS FOUNDATION TRUST","Acute Specialist Trusts"]
[null,null,null,null,null,null,null,null,null,null,null,null,null,null,null,null,null,null,null,null,null,null,null,null,null,null,null,"Y61","QUE","RGM","ROYAL PAPWORTH HOSPITAL NHS FOUNDATION TRUST","Acute Specialist Trusts",null,"RT2","OXFORD HEALTH NHS FOUNDATION TRUST","Acute Specialist Trusts"]
[null,null,null,null,null,null,null,null,null,null,null,null,null,null,null,null,null,null,null,null,null,null,null,null,null,null,null,"Y61","QUE","RGN","NORTH WEST ANGLIA NHS FOUNDATION TRUST","Acute and Acute & Community Trusts",null,"RT5","OXFORD UNIVERSITY HOSPITALS NHS FOUNDATION TRUST","Acute Specialist Trusts"]
[null,null,null,null,null,null,null,null,null,null,null,null,null,null,null,null,null,null,null,null,null,null,null,null,null,null,null,"Y61","QJG","RGR","WEST SUFFOLK NHS FOUNDATION TRUST","Acute and Acute & Community Trusts",null,"RTD","OXLEAS NHS FOUNDATION TRUST","Acute Specialist Trusts"]
[null,null,null,null,null,null,null,null,null,null,null,null,null,null,null,null,null,null,null,null,null,null,null,null,null,null,null,"Y61","QUE","RGT","CAMBRIDGE UNIVERSITY HOSPITALS NHS FOUNDATION TRUST","Acute and Acute & Community Trusts",null,"RTE","PENNINE CARE NHS FOUNDATION TRUST","Acute Specialist Trusts"]
[null,null,null,null,null,null,null,null,null,null,null,null,null,null,null,null,null,null,null,null,null,null,null,null,null,null,null,"Y61","QMM","RM1","NORFOLK AND NORWICH UNIVERSITY HOSPITALS NHS FOUNDATION TRUST","Acute and Acute & Community Trusts",null,"RTF","PORTSMOUTH HOSPITALS UNIVERSITY NATIONAL HEALTH SERVICE TRUST","Acute Specialist Trusts"]
[null,null,null,null,null,null,null,null,null,null,null,null,null,null,null,null,null,null,null,null,null,null,null,null,null,null,null,"Y61","QMM","RMY","NORFOLK AND SUFFOLK NHS FOUNDATION TRUST","Mental Health & Learning Disability and Mental Health, Learning Disability & Community Trusts",null,"RTG","QUEEN VICTORIA HOSPITAL NHS FOUNDATION TRUST","Acute Specialist Trusts"]
[null,null,null,null,null,null,null,null,null,null,null,null,null,null,null,null,null,null,null,null,null,null,null,null,null,null,null,"Y61","QM7","RQW","THE PRINCESS ALEXANDRA HOSPITAL NHS TRUST","Acute and Acute & Community Trusts",null,"RTH","ROTHERHAM DONCASTER AND SOUTH HUMBER NHS FOUNDATION TRUST","Acute Specialist Trusts"]
[null,null,null,null,null,null,null,null,null,null,null,null,null,null,null,null,null,null,null,null,null,null,null,null,null,null,null,"Y61","QUE","RT1","CAMBRIDGESHIRE AND PETERBOROUGH NHS FOUNDATION TRUST","Mental Health & Learning Disability and Mental Health, Learning Disability & Community Trusts",null,"RTQ","ROYAL BERKSHIRE NHS FOUNDATION TRUST","Acute Specialist Trusts"]
[null,null,null,null,null,null,null,null,null,null,null,null,null,null,null,null,null,null,null,null,null,null,null,null,null,null,null,"Y61","QM7","RWG","WEST HERTFORDSHIRE HOSPITALS NHS TRUST","Acute and Acute & Community Trusts",null,"RTX","ROYAL CORNWALL HOSPITALS NHS TRUST","Ambulance Trusts"]
[null,null,null,null,null,null,null,null,null,null,null,null,null,null,null,null,null,null,null,null,null,null,null,null,null,null,null,"Y61","QM7","RWH","EAST AND NORTH HERTFORDSHIRE NHS TRUST","Acute and Acute & Community Trusts",null,"RV3","ROYAL DEVON AND EXETER NHS FOUNDATION TRUST","Ambulance Trusts"]
[null,null,null,null,null,null,null,null,null,null,null,null,null,null,null,null,null,null,null,null,null,null,null,null,null,null,null,"Y61","QM7","RWR","HERTFORDSHIRE PARTNERSHIP UNIVERSITY NHS FOUNDATION TRUST","Mental Health & Learning Disability and Mental Health, Learning Disability & Community Trusts",null,"RV5","ROYAL FREE LONDON NHS FOUNDATION TRUST","Ambulance Trusts"]
[null,null,null,null,null,null,null,null,null,null,null,null,null,null,null,null,null,null,null,null,null,null,null,null,null,null,null,"Y61","QMM","RY3","NORFOLK COMMUNITY HEALTH AND CARE NHS TRUST","Community Trusts",null,"RV9","ROYAL PAPWORTH HOSPITAL NHS FOUNDATION TRUST","Ambulance Trusts"]
[null,null,null,null,null,null,null,null,null,null,null,null,null,null,null,null,null,null,null,null,null,null,null,null,null,null,null,"Y61","QM7","RY4","HERTFORDSHIRE COMMUNITY NHS TRUST","Community Trusts",null,"RVJ","ROYAL SURREY COUNTY HOSPITAL NHS FOUNDATION TRUST","Ambulance Trusts"]
[null,null,null,null,null,null,null,null,null,null,null,null,null,null,null,null,null,null,null,null,null,null,null,null,null,null,null,"Y61","QUE","RYC","EAST OF ENGLAND AMBULANCE SERVICE NHS TRUST","Ambulance Trusts",null,"RVR","ROYAL UNITED HOSPITALS BATH NHS FOUNDATION TRUST","Ambulance Trusts"]
[null,null,null,null,null,null,null,null,null,null,null,null,null,null,null,null,null,null,null,null,null,null,null,null,null,null,null,"Y61","QUE","RYV","CAMBRIDGESHIRE COMMUNITY SERVICES NHS TRUST","Community Trusts",null,"RVV","SALISBURY NHS FOUNDATION TRUST","Ambulance Trusts"]
[null,null,null,null,null,null,null,null,null,null,null,null,null,null,null,null,null,null,null,null,null,null,null,null,null,null,null,"Y62","QOP","R0A","MANCHESTER UNIVERSITY NHS FOUNDATION TRUST","Acute and Acute & Community Trusts",null,"RVW","SANDWELL AND WEST BIRMINGHAM HOSPITALS NHS TRUST","Ambulance Trusts"]
[null,null,null,null,null,null,null,null,null,null,null,null,null,null,null,null,null,null,null,null,null,null,null,null,null,null,null,"Y62","QYG","RBL","WIRRAL UNIVERSITY TEACHING HOSPITAL NHS FOUNDATION TRUST","Acute and Acute & Community Trusts",null,"RVY","SHEFFIELD CHILDREN'S NHS FOUNDATION TRUST","Ambulance Trusts"]
[null,null,null,null,null,null,null,null,null,null,null,null,null,null,null,null,null,null,null,null,null,null,null,null,null,null,null,"Y62","QYG","RBN","ST HELENS AND KNOWSLEY TEACHING HOSPITALS NHS TRUST","Acute and Acute & Community Trusts",null,"RW1","SHEFFIELD HEALTH & SOCIAL CARE NHS FOUNDATION TRUST","Ambulance Trusts"]
[null,null,null,null,null,null,null,null,null,null,null,null,null,null,null,null,null,null,null,null,null,null,null,null,null,null,null,"Y62","QYG","RBQ","LIVERPOOL HEART AND CHEST HOSPITAL NHS FOUNDATION TRUST","Acute Specialist Trusts",null,"RW4","SHEFFIELD TEACHING HOSPITALS NHS FOUNDATION TRUST","Community Trusts"]
[null,null,null,null,null,null,null,null,null,null,null,null,null,null,null,null,null,null,null,null,null,null,null,null,null,null,null,"Y62","QYG","RBS","ALDER HEY CHILDREN'S NHS FOUNDATION TRUST","Acute and Acute & Community Trusts",null,"RW5","SHERWOOD FOREST HOSPITALS NHS FOUNDATION TRUST","Community Trusts"]
[null,null,null,null,null,null,null,null,null,null,null,null,null,null,null,null,null,null,null,null,null,null,null,null,null,null,null,"Y62","QYG","RBT","MID CHESHIRE HOSPITALS NHS FOUNDATION TRUST","Acute and Acute & Community Trusts",null,"RWD","SHROPSHIRE COMMUNITY HEALTH NHS TRUST","Community Trusts"]
[null,null,null,null,null,null,null,null,null,null,null,null,null,null,null,null,null,null,null,null,null,null,null,null,null,null,null,"Y62","QOP","RBV","THE CHRISTIE NHS FOUNDATION TRUST","Acute Specialist Trusts",null,"RWE","SOLENT NHS TRUST","Community Trusts"]
[null,null,null,null,null,null,null,null,null,null,null,null,null,null,null,null,null,null,null,null,null,null,null,null,null,null,null,"Y62","QYG","REM","LIVERPOOL UNIVERSITY HOSPITALS NHS FOUNDATION TRUST","Acute and Acute & Community Trusts",null,"RWG","SOMERSET NHS FOUNDATION TRUST","Community Trusts"]
[null,null,null,null,null,null,null,null,null,null,null,null,null,null,null,null,null,null,null,null,null,null,null,null,null,null,null,"Y62","QYG","REN","THE CLATTERBRIDGE CANCER CENTRE NHS FOUNDATION TRUST","Acute Specialist Trusts",null,"RWH","SOUTH CENTRAL AMBULANCE SERVICE NHS FOUNDATION TRUST","Community Trusts"]
[null,null,null,null,null,null,null,null,null,null,null,null,null,null,null,null,null,null,null,null,null,null,null,null,null,null,null,"Y62","QYG","REP","LIVERPOOL WOMEN'S NHS FOUNDATION TRUST","Acute Specialist Trusts",null,"RWJ","SOUTH EAST COAST AMBULANCE SERVICE NHS FOUNDATION TRUST","Community Trusts"]
[null,null,null,null,null,null,null,null,null,null,null,null,null,null,null,null,null,null,null,null,null,null,null,null,null,null,null,"Y62","QYG","RET","THE WALTON CENTRE NHS FOUNDATION TRUST","Acute Specialist Trusts",null,"RWK","SOUTH LONDON AND MAUDSLEY NHS FOUNDATION TRUST","Community Trusts"]
[null,null,null,null,null,null,null,null,null,null,null,null,null,null,null,null,null,null,null,null,null,null,null,null,null,null,null,"Y62","QYG","RJN","EAST CHESHIRE NHS TRUST","Acute and Acute & Community Trusts",null,"RWP","SOUTH TYNESIDE AND SUNDERLAND NHS FOUNDATION TRUST","Community Trusts"]
[null,null,null,null,null,null,null,null,null,null,null,null,null,null,null,null,null,null,null,null,null,null,null,null,null,null,null,"Y62","QYG","RJR","COUNTESS OF CHESTER HOSPITAL NHS FOUNDATION TRUST","Acute and Acute & Community Trusts",null,"RWR","SOUTH WARWICKSHIRE NHS FOUNDATION TRUST","Community Trusts"]
[null,null,null,null,null,null,null,null,null,null,null,null,null,null,null,null,null,null,null,null,null,null,null,null,null,null,null,"Y62","QOP","RM3","NORTHERN CARE ALLIANCE NHS FOUNDATION TRUST","Acute and Acute & Community Trusts",null,"RWV","SOUTH WEST LONDON AND ST GEORGE'S MENTAL HEALTH NHS TRUST","Community Trusts"]
[null,null,null,null,null,null,null,null,null,null,null,null,null,null,null,null,null,null,null,null,null,null,null,null,null,null,null,"Y62","QOP","RMC","BOLTON NHS FOUNDATION TRUST","Acute and Acute & Community Trusts",null,"RWW","SOUTH WEST YORKSHIRE PARTNERSHIP NHS FOUNDATION TRUST","Community Trusts"]
[null,null,null,null,null,null,null,null,null,null,null,null,null,null,null,null,null,null,null,null,null,null,null,null,null,null,null,"Y62","QOP","RMP","TAMESIDE AND GLOSSOP INTEGRATED CARE NHS FOUNDATION TRUST","Acute and Acute & Community Trusts",null,"RWX","SOUTH WESTERN AMBULANCE SERVICE NHS FOUNDATION TRUST","Community Trusts"]
[null,null,null,null,null,null,null,null,null,null,null,null,null,null,null,null,null,null,null,null,null,null,null,null,null,null,null,"Y62","QOP","RRF","WRIGHTINGTON, WIGAN AND LEIGH NHS FOUNDATION TRUST","Acute and Acute & Community Trusts",null,"RWY","SOUTHERN HEALTH NHS FOUNDATION TRUST","Community Trusts"]
[null,null,null,null,null,null,null,null,null,null,null,null,null,null,null,null,null,null,null,null,null,null,null,null,null,null,null,"Y62","QOP","RT2","PENNINE CARE NHS FOUNDATION TRUST","Mental Health & Learning Disability and Mental Health, Learning Disability & Community Trusts",null,"RX1","SOUTHPORT AND ORMSKIRK HOSPITAL NHS TRUST","Mental Health & Learning Disability and Mental Health, Learning Disability & Community Trusts"]
[null,null,null,null,null,null,null,null,null,null,null,null,null,null,null,null,null,null,null,null,null,null,null,null,null,null,null,"Y62","QE1","RTX","UNIVERSITY HOSPITALS OF MORECAMBE BAY NHS FOUNDATION TRUST","Acute and Acute & Community Trusts",null,"RX2","ST GEORGE'S UNIVERSITY HOSPITALS NHS FOUNDATION TRUST","Mental Health & Learning Disability and Mental Health, Learning Disability & Community Trusts"]
[null,null,null,null,null,null,null,null,null,null,null,null,null,null,null,null,null,null,null,null,null,null,null,null,null,null,null,"Y62","QYG","RVY","SOUTHPORT AND ORMSKIRK HOSPITAL NHS TRUST","Acute and Acute & Community Trusts",null,"RX3","ST HELENS AND KNOWSLEY TEACHING HOSPITALS NHS TRUST","Mental Health & Learning Disability and Mental Health, Learning Disability & Community Trusts"]
[null,null,null,null,null,null,null,null,null,null,null,null,null,null,null,null,null,null,null,null,null,null,null,null,null,null,null,"Y62","QYG","RW4","MERSEY CARE NHS FOUNDATION TRUST","Mental Health & Learning Disability and Mental Health, Learning Disability & Community Trusts",null,"RX4","STOCKPORT NHS FOUNDATION TRUST","Mental Health & Learning Disability and Mental Health, Learning Disability & Community Trusts"]
[null,null,null,null,null,null,null,null,null,null,null,null,null,null,null,null,null,null,null,null,null,null,null,null,null,null,null,"Y62","QE1","RW5","LANCASHIRE & SOUTH CUMBRIA NHS FOUNDATION TRUST","Mental Health & Learning Disability and Mental Health, Learning Disability & Community Trusts",null,"RX6","SUSSEX COMMUNITY NHS FOUNDATION TRUST","Mental Health & Learning Disability and Mental Health, Learning Disability & Community Trusts"]
[null,null,null,null,null,null,null,null,null,null,null,null,null,null,null,null,null,null,null,null,null,null,null,null,null,null,null,"Y62","QOP","RWJ","STOCKPORT NHS FOUNDATION TRUST","Acute and Acute & Community Trusts",null,"RX7","SUSSEX PARTNERSHIP NHS FOUNDATION TRUST","Mental Health & Learning Disability and Mental Health, Learning Disability & Community Trusts"]
[null,null,null,null,null,null,null,null,null,null,null,null,null,null,null,null,null,null,null,null,null,null,null,null,null,null,null,"Y62","QYG","RWW","WARRINGTON AND HALTON TEACHING HOSPITALS NHS FOUNDATION TRUST","Acute and Acute & Community Trusts",null,"RX8","TAMESIDE AND GLOSSOP INTEGRATED CARE NHS FOUNDATION TRUST","Mental Health & Learning Disability and Mental Health, Learning Disability & Community Trusts"]
[null,null,null,null,null,null,null,null,null,null,null,null,null,null,null,null,null,null,null,null,null,null,null,null,null,null,null,"Y62","QOP","RX7","NORTH WEST AMBULANCE SERVICE NHS TRUST","Ambulance Trusts",null,"RX9","TEES, ESK AND WEAR VALLEYS NHS FOUNDATION TRUST","Mental Health & Learning Disability and Mental Health, Learning Disability & Community Trusts"]
[null,null,null,null,null,null,null,null,null,null,null,null,null,null,null,null,null,null,null,null,null,null,null,null,null,null,null,"Y62","QYG","RXA","CHESHIRE AND WIRRAL PARTNERSHIP NHS FOUNDATION TRUST","Mental Health & Learning Disability and Mental Health, Learning Disability & Community Trusts",null,"RXA","THE CHRISTIE NHS FOUNDATION TRUST","Mental Health & Learning Disability and Mental Health, Learning Disability & Community Trusts"]
[null,null,null,null,null,null,null,null,null,null,null,null,null,null,null,null,null,null,null,null,null,null,null,null,null,null,null,"Y62","QE1","RXL","BLACKPOOL TEACHING HOSPITALS NHS FOUNDATION TRUST","Acute and Acute & Community Trusts",null,"RXC","THE CLATTERBRIDGE CANCER CENTRE NHS FOUNDATION TRUST","Mental Health & Learning Disability and Mental Health, Learning Disability & Community Trusts"]
[null,null,null,null,null,null,null,null,null,null,null,null,null,null,null,null,null,null,null,null,null,null,null,null,null,null,null,"Y62","QE1","RXN","LANCASHIRE TEACHING HOSPITALS NHS FOUNDATION TRUST","Acute and Acute & Community Trusts",null,"RXE","THE DUDLEY GROUP NHS FOUNDATION TRUST","Mental Health & Learning Disability and Mental Health, Learning Disability & Community Trusts"]
[null,null,null,null,null,null,null,null,null,null,null,null,null,null,null,null,null,null,null,null,null,null,null,null,null,null,null,"Y62","QE1","RXR","EAST LANCASHIRE HOSPITALS NHS TRUST","Acute and Acute & Community Trusts",null,"RXF","THE HILLINGDON HOSPITALS NHS FOUNDATION TRUST","Mental Health & Learning Disability and Mental Health, Learning Disability & Community Trusts"]
[null,null,null,null,null,null,null,null,null,null,null,null,null,null,null,null,null,null,null,null,null,null,null,null,null,null,null,"Y62","QOP","RXV","GREATER MANCHESTER MENTAL HEALTH NHS FOUNDATION TRUST","Mental Health & Learning Disability and Mental Health, Learning Disability & Community Trusts",null,"RXG","THE NEWCASTLE UPON TYNE HOSPITALS NHS FOUNDATION TRUST","Mental Health & Learning Disability and Mental Health, Learning Disability & Community Trusts"]
[null,null,null,null,null,null,null,null,null,null,null,null,null,null,null,null,null,null,null,null,null,null,null,null,null,null,null,"Y62","QYG","RY2","BRIDGEWATER COMMUNITY HEALTHCARE NHS FOUNDATION TRUST","Community Trusts",null,"RXK","THE PRINCESS ALEXANDRA HOSPITAL NHS TRUST","Mental Health & Learning Disability and Mental Health, Learning Disability & Community Trusts"]
[null,null,null,null,null,null,null,null,null,null,null,null,null,null,null,null,null,null,null,null,null,null,null,null,null,null,null,"Y62","QYG","RY7","WIRRAL COMMUNITY HEALTH AND CARE NHS FOUNDATION TRUST","Community Trusts",null,"RXL","THE QUEEN ELIZABETH HOSPITAL, KING'S LYNN, NHS FOUNDATION TRUST","Mental Health & Learning Disability and Mental Health, Learning Disability & Community Trusts"]
[null,null,null,null,null,null,null,null,null,null,null,null,null,null,null,null,null,null,null,null,null,null,null,null,null,null,null,"Y63","QHM","R0B","SOUTH TYNESIDE AND SUNDERLAND NHS FOUNDATION TRUST","Acute and Acute & Community Trusts",null,"RXM","THE ROTHERHAM NHS FOUNDATION TRUST","Mental Health & Learning Disability and Mental Health, Learning Disability & Community Trusts"]
[null,null,null,null,null,null,null,null,null,null,null,null,null,null,null,null,null,null,null,null,null,null,null,null,null,null,null,"Y63","QWO","RAE","BRADFORD TEACHING HOSPITALS NHS FOUNDATION TRUST","Acute and Acute & Community Trusts",null,"RXN","THE ROYAL WOLVERHAMPTON NHS TRUST","Mental Health & Learning Disability and Mental Health, Learning Disability & Community Trusts"]
[null,null,null,null,null,null,null,null,null,null,null,null,null,null,null,null,null,null,null,null,null,null,null,null,null,null,null,"Y63","QOQ","RCB","YORK AND SCARBOROUGH TEACHING HOSPITALS NHS FOUNDATION TRUST","Acute and Acute & Community Trusts",null,"RXP","THE WALTON CENTRE NHS FOUNDATION TRUST","Mental Health & Learning Disability and Mental Health, Learning Disability & Community Trusts"]
[null,null,null,null,null,null,null,null,null,null,null,null,null,null,null,null,null,null,null,null,null,null,null,null,null,null,null,"Y63","QOQ","RCD","HARROGATE AND DISTRICT NHS FOUNDATION TRUST","Acute and Acute & Community Trusts",null,"RXQ","TORBAY AND SOUTH DEVON NHS FOUNDATION TRUST","Mental Health & Learning Disability and Mental Health, Learning Disability & Community Trusts"]
[null,null,null,null,null,null,null,null,null,null,null,null,null,null,null,null,null,null,null,null,null,null,null,null,null,null,null,"Y63","QWO","RCF","AIREDALE NHS FOUNDATION TRUST","Acute and Acute & Community Trusts",null,"RXR","UNITED LINCOLNSHIRE HOSPITALS NHS TRUST","Mental Health & Learning Disability and Mental Health, Learning Disability & Community Trusts"]
[null,null,null,null,null,null,null,null,null,null,null,null,null,null,null,null,null,null,null,null,null,null,null,null,null,null,null,"Y63","QF7","RCU","SHEFFIELD CHILDREN'S NHS FOUNDATION TRUST","Acute and Acute & Community Trusts",null,"RXT","UNIVERSITY COLLEGE LONDON HOSPITALS NHS FOUNDATION TRUST","Mental Health & Learning Disability and Mental Health, Learning Disability & Community Trusts"]
[null,null,null,null,null,null,null,null,null,null,null,null,null,null,null,null,null,null,null,null,null,null,null,null,null,null,null,"Y63","QF7","RFF","BARNSLEY HOSPITAL NHS FOUNDATION TRUST","Acute and Acute & Community Trusts",null,"RXV","UNIVERSITY HOSPITAL SOUTHAMPTON NHS FOUNDATION TRUST","Mental Health & Learning Disability and Mental Health, Learning Disability & Community Trusts"]
[null,null,null,null,null,null,null,null,null,null,null,null,null,null,null,null,null,null,null,null,null,null,null,null,null,null,null,"Y63","QF7","RFR","THE ROTHERHAM NHS FOUNDATION TRUST","Acute and Acute & Community Trusts",null,"RXY","UNIVERSITY HOSPITALS BIRMINGHAM NHS FOUNDATION TRUST","Mental Health & Learning Disability and Mental Health, Learning Disability & Community Trusts"]
[null,null,null,null,null,null,null,null,null,null,null,null,null,null,null,null,null,null,null,null,null,null,null,null,null,null,null,"Y63","QWO","RGD","LEEDS AND YORK PARTNERSHIP NHS FOUNDATION TRUST","Mental Health & Learning Disability and Mental Health, Learning Disability & Community Trusts",null,"RY2","UNIVERSITY HOSPITALS BRISTOL AND WESTON NHS FOUNDATION TRUST","Mental Health & Learning Disability and Mental Health, Learning Disability & Community Trusts"]
[null,null,null,null,null,null,null,null,null,null,null,null,null,null,null,null,null,null,null,null,null,null,null,null,null,null,null,"Y63","QF7","RHQ","SHEFFIELD TEACHING HOSPITALS NHS FOUNDATION TRUST","Acute and Acute & Community Trusts",null,"RY3","UNIVERSITY HOSPITALS COVENTRY AND WARWICKSHIRE NHS TRUST","Mental Health & Learning Disability and Mental Health, Learning Disability & Community Trusts"]
[null,null,null,null,null,null,null,null,null,null,null,null,null,null,null,null,null,null,null,null,null,null,null,null,null,null,null,"Y63","QOQ","RJL","NORTHERN LINCOLNSHIRE AND GOOLE NHS FOUNDATION TRUST","Acute and Acute & Community Trusts",null,"RY4","UNIVERSITY HOSPITALS DORSET NHS FOUNDATION TRUST","Mental Health & Learning Disability and Mental Health, Learning Disability & Community Trusts"]
[null,null,null,null,null,null,null,null,null,null,null,null,null,null,null,null,null,null,null,null,null,null,null,null,null,null,null,"Y63","QHM","RNN","NORTH CUMBRIA INTEGRATED CARE NHS FOUNDATION TRUST","Acute and Acute & Community Trusts",null,"RY5","UNIVERSITY HOSPITALS OF DERBY AND BURTON NHS FOUNDATION TRUST","Mental Health & Learning Disability and Mental Health, Learning Disability & Community Trusts"]
[null,null,null,null,null,null,null,null,null,null,null,null,null,null,null,null,null,null,null,null,null,null,null,null,null,null,null,"Y63","QF7","RP5","DONCASTER AND BASSETLAW TEACHING HOSPITALS NHS FOUNDATION TRUST","Acute and Acute & Community Trusts",null,"RY6","UNIVERSITY HOSPITALS OF LEICESTER NHS TRUST","Mental Health & Learning Disability and Mental Health, Learning Disability & Community Trusts"]
[null,null,null,null,null,null,null,null,null,null,null,null,null,null,null,null,null,null,null,null,null,null,null,null,null,null,null,"Y63","QHM","RR7","GATESHEAD HEALTH NHS FOUNDATION TRUST","Acute and Acute & Community Trusts",null,"RY7","UNIVERSITY HOSPITALS OF MORECAMBE BAY NHS FOUNDATION TRUST","Mental Health & Learning Disability and Mental Health, Learning Disability & Community Trusts"]
[null,null,null,null,null,null,null,null,null,null,null,null,null,null,null,null,null,null,null,null,null,null,null,null,null,null,null,"Y63","QWO","RR8","LEEDS TEACHING HOSPITALS NHS TRUST","Acute and Acute & Community Trusts",null,"RY8","UNIVERSITY HOSPITALS OF NORTH MIDLANDS NHS TRUST","Mental Health & Learning Disability and Mental Health, Learning Disability & Community Trusts"]
[null,null,null,null,null,null,null,null,null,null,null,null,null,null,null,null,null,null,null,null,null,null,null,null,null,null,null,"Y63","QHM","RTD","THE NEWCASTLE UPON TYNE HOSPITALS NHS FOUNDATION TRUST","Acute and Acute & Community Trusts",null,"RY9","UNIVERSITY HOSPITALS PLYMOUTH NHS TRUST","Mental Health & Learning Disability and Mental Health, Learning Disability & Community Trusts"]
[null,null,null,null,null,null,null,null,null,null,null,null,null,null,null,null,null,null,null,null,null,null,null,null,null,null,null,"Y63","QHM","RTF","NORTHUMBRIA HEALTHCARE NHS FOUNDATION TRUST","Acute and Acute & Community Trusts",null,"RYA","UNIVERSITY HOSPITALS SUSSEX NHS FOUNDATION TRUST","Mental Health & Learning Disability and Mental Health, Learning Disability & Community Trusts"]
[null,null,null,null,null,null,null,null,null,null,null,null,null,null,null,null,null,null,null,null,null,null,null,null,null,null,null,"Y63","QOQ","RV9","HUMBER TEACHING NHS FOUNDATION TRUST","Mental Health & Learning Disability and Mental Health, Learning Disability & Community Trusts",null,"RYC","WALSALL HEALTHCARE NHS TRUST","Mental Health & Learning Disability and Mental Health, Learning Disability & Community Trusts"]
[null,null,null,null,null,null,null,null,null,null,null,null,null,null,null,null,null,null,null,null,null,null,null,null,null,null,null,"Y63","QHM","RVW","NORTH TEES AND HARTLEPOOL NHS FOUNDATION TRUST","Acute and Acute & Community Trusts",null,"RYD","WARRINGTON AND HALTON TEACHING HOSPITALS NHS FOUNDATION TRUST","Mental Health & Learning Disability and Mental Health, Learning Disability & Community Trusts"]
[null,null,null,null,null,null,null,null,null,null,null,null,null,null,null,null,null,null,null,null,null,null,null,null,null,null,null,"Y63","QWO","RWY","CALDERDALE AND HUDDERSFIELD NHS FOUNDATION TRUST","Acute and Acute & Community Trusts",null,"RYE","WEST HERTFORDSHIRE HOSPITALS NHS TRUST","Mental Health & Learning Disability and Mental Health, Learning Disability & Community Trusts"]
[null,null,null,null,null,null,null,null,null,null,null,null,null,null,null,null,null,null,null,null,null,null,null,null,null,null,null,"Y63","QHM","RX3","TEES, ESK AND WEAR VALLEYS NHS FOUNDATION TRUST","Mental Health & Learning Disability and Mental Health, Learning Disability & Community Trusts",null,"RYF","WEST LONDON NHS TRUST","Mental Health & Learning Disability and Mental Health, Learning Disability & Community Trusts"]
[null,null,null,null,null,null,null,null,null,null,null,null,null,null,null,null,null,null,null,null,null,null,null,null,null,null,null,"Y63","QHM","RX4","CUMBRIA, NORTHUMBERLAND, TYNE AND WEAR NHS FOUNDATION TRUST","Mental Health & Learning Disability and Mental Health, Learning Disability & Community Trusts",null,"RYG","WEST MIDLANDS AMBULANCE SERVICE UNIVERSITY NHS FOUNDATION TRUST","Mental Health & Learning Disability and Mental Health, Learning Disability & Community Trusts"]
[null,null,null,null,null,null,null,null,null,null,null,null,null,null,null,null,null,null,null,null,null,null,null,null,null,null,null,"Y63","QHM","RX6","NORTH EAST AMBULANCE SERVICE NHS FOUNDATION TRUST","Ambulance Trusts",null,"RYJ","WEST SUFFOLK NHS FOUNDATION TRUST","Mental Health & Learning Disability and Mental Health, Learning Disability & Community Trusts"]
[null,null,null,null,null,null,null,null,null,null,null,null,null,null,null,null,null,null,null,null,null,null,null,null,null,null,null,"Y63","QWO","RX8","YORKSHIRE AMBULANCE SERVICE NHS TRUST","Ambulance Trusts",null,"RYR","WHITTINGTON HEALTH NHS TRUST","Mental Health & Learning Disability and Mental Health, Learning Disability & Community Trusts"]
[null,null,null,null,null,null,null,null,null,null,null,null,null,null,null,null,null,null,null,null,null,null,null,null,null,null,null,"Y63","QF7","RXE","ROTHERHAM DONCASTER AND SOUTH HUMBER NHS FOUNDATION TRUST","Mental Health & Learning Disability and Mental Health, Learning Disability & Community Trusts",null,"RYV","WIRRAL COMMUNITY HEALTH AND CARE NHS FOUNDATION TRUST","Mental Health & Learning Disability and Mental Health, Learning Disability & Community Trusts"]
[null,null,null,null,null,null,null,null,null,null,null,null,null,null,null,null,null,null,null,null,null,null,null,null,null,null,null,"Y63","QWO","RXF","MID YORKSHIRE HOSPITALS NHS TRUST","Acute and Acute & Community Trusts",null,"RYW","WIRRAL UNIVERSITY TEACHING HOSPITAL NHS FOUNDATION TRUST","Mental Health & Learning Disability and Mental Health, Learning Disability & Community Trusts"]
[null,null,null,null,null,null,null,null,null,null,null,null,null,null,null,null,null,null,null,null,null,null,null,null,null,null,null,"Y63","QWO","RXG","SOUTH WEST YORKSHIRE PARTNERSHIP NHS FOUNDATION TRUST","Mental Health & Learning Disability and Mental Health, Learning Disability & Community Trusts",null,"RYX","WORCESTERSHIRE ACUTE HOSPITALS NHS TRUST","Mental Health & Learning Disability and Mental Health, Learning Disability & Community Trusts"]
[null,null,null,null,null,null,null,null,null,null,null,null,null,null,null,null,null,null,null,null,null,null,null,null,null,null,null,"Y63","QHM","RXP","COUNTY DURHAM AND DARLINGTON NHS FOUNDATION TRUST","Acute and Acute & Community Trusts",null,"RYY","WRIGHTINGTON, WIGAN AND LEIGH NHS FOUNDATION TRUST","Mental Health & Learning Disability and Mental Health, Learning Disability & Community Trusts"]
[null,null,null,null,null,null,null,null,null,null,null,null,null,null,null,null,null,null,null,null,null,null,null,null,null,null,null,"Y63","QWO","RY6","LEEDS COMMUNITY HEALTHCARE NHS TRUST","Community Trusts",null,"TAD","YEOVIL DISTRICT HOSPITAL NHS FOUNDATION TRUST","Mental Health & Learning Disability and Mental Health, Learning Disability & Community Trusts"]
[null,null,null,null,null,null,null,null,null,null,null,null,null,null,null,null,null,null,null,null,null,null,null,null,null,null,null,"Y63","QWO","TAD","BRADFORD DISTRICT CARE NHS FOUNDATION TRUST","Mental Health & Learning Disability and Mental Health, Learning Disability & Community Trusts",null,"TAH","YORK AND SCARBOROUGH TEACHING HOSPITALS NHS FOUNDATION TRUST","Mental Health & Learning Disability and Mental Health, Learning Disability & Community Trusts"]
[null,null,null,null,null,null,null,null,null,null,null,null,null,null,null,null,null,null,null,null,null,null,null,null,null,null,null,"Y63","QF7","TAH","SHEFFIELD HEALTH & SOCIAL CARE NHS FOUNDATION TRUST","Mental Health & Learning Disability and Mental Health, Learning Disability & Community Trusts",null,"TAJ","YORKSHIRE AMBULANCE SERVICE NHS TRUST","Mental Health & Learning Disability and Mental Health, Learning Disability & Community Trusts"]